Workbook

Sheet Design Regulator
A1: LM25145 DC-DC Controller Design Tool
A3: About | C3: xx | F3: = Input Box | O3: TERMS OF USE
A5: Step 1: Operating Specifications
D6: Input Voltage ‒ Min, VIN(min) | E6: 20 | F6: V
D7: Input Voltage ‒ Nom, VIN(nom) | E7: 28 | F7: V
D8: Input Voltage ‒ Max, VIN(max) | E8: 36 | F8: V
D9: Output Voltage, VOUT | E9: 5 | F9: V
D10: Maximum Output Current, IOUT | E10: 19 | F10: A
D11: Free-running Switching Frequency, FSW | E11: 500 | F11: kHz
D12: SYNC Frequency (if used), FSW-SYNC | E12: 500 | F12: kHz
D13: Frequency Set Resistor, RRT | E13: ='Standard Value Calculator'!S4/1000 -> 20 | F13: kΩ
A15: Step 2: Filter Inductor
D16: Recommended Filter Inductance | E16: =Lout1*1000000 -> 1.298290772 | F16: µH
D17: Inductance, LF | E17: 2.2 | F17: µH
D18: Inductor DCR | E18: 3 | F18: mΩ
D19: Pk-to-Pk Ripple Current at VIN(nom), DIL | E19: =Iripple1 -> 3.897725284 | F19: Apk-pk
D20: Inductor Ripple Current as a % of Max IOUT | E20: =Iripple1/Iout*100 -> 20.5143436 | F20: %
A22: Step 3: RDS(on) or Shunt-Based Current Limit
D23: Shunt, RS | E23: 5 | F23: mΩ | S23: \
D24: Required Current Limit Setpoint | E24: 26 | F24: A
D25: Current Limit Set Resistor, RILIM | E25: =IF(RDSON_sense=1, Rilim_Rdson, Rilim_shunt) -> 1020 | F25: Ω
D26: Min Inductor Sat Current, IL(SAT) | E26: ='Variable Management'!B51 -> 33.6 | F26: A
D27: Power Loss in RS at Full Load, Max VIN | E27: =_Rs3 -> 1.34 | F27: W
A29: Step 4: Output Capacitance
D30: Output Voltage Ripple Specification | E30: 50 | F30: mVpk-pk
D31: Minimum Ideal Output Capacitance | E31: =Coutmin*1000000 -> 19.48862642 | F31: µF
D32: Total Output Capacitance (Derated), COUT | E32: 320 | F32: µF
D33: Maximum Permitted ESR | E33: =IF(ISERROR(Resrmax*1000),"N/A",Resrmax*1000) -> 12.80418296 | F33: mΩ
D34: Output Capacitor ESR | E34: 1 | F34: mΩ
D35: Resulting Output Voltage Ripple | E35: =Vripple2*1000 -> 4.946198891 | F35: mVpk-pk
D36: Output Capacitor Ripple Current | E36: =Icoutrms -> 1.125176371 | F36: A (rms)
A38: Step 5: Input Capacitance
D39: Input Voltage Ripple Specification | E39: 500 | F39: mVpk-pk
D40: Minimum Ideal Input Capacitance | E40: ='Variable Management'!B80*1000000 -> 11.52640024 | F40: µF
D41: Total Input Capacitance (Derated), CIN | E41: 15 | F41: µF
D42: Maximum Permitted ESR | E42: =IF(CinEsrMax*1000<0,"N/A",CinEsrMax*1000) -> 5.527109547 | F42: mΩ
D43: Input Capacitor ESR | E43: 2 | F43: mΩ
D44: Resulting Input Voltage Ripple | E44: =Vinripple2*1000 -> 426.1110666 | F44: mVpk-pk
D45: Input Capacitor Ripple Current | E45: =Icinrms -> 7.3993514 | F45: A (rms)
A47: Step 6: Soft-start, UVLO
D48: Soft-Start Time, tSS | E48: 4 | F48: ms
D49: Soft-Start Capacitance, CSS | E49: =Css_u*1000000000 -> 47 | F49: nF
D50: Input Voltage UVLO Turn-On | E50: 20 | F50: V
D51: Input Voltage UVLO Turn-Off | E51: 13 | F51: V
D52: UVLO Upper Resistor, RUV1 | E52: ='Variable Management'!F97 -> 698 | F52: kΩ
D53: UVLO Lower Resistor, RUV2 | E53: ='Variable Management'!F98 -> 44.2 | F53: kΩ
A54: If the SYNC feature is not required, connect SYNCIN to GND
A55: or VCC for DCM or CCM operation, respectively
A57: Step 7: Compensation Design
D58: LC Complex Pole Frequency | E58: =Fo/1000 -> 6.021042582 | F58: kHz
D59: ESR Zero Frequency | E59: =Fesr/1000 -> 497.3591977 | F59: kHz
D60: Desired Crossover Frequency | E60: 50 | F60: kHz
D61: Appropriate Midband Gain | E61: =Kmidband -> 0.5536139776 | F61: V/V
D62: Upper Feedback Resistor, RFB1 | E62: 21 | F62: kΩ
D63: Lower Feedback Resistor, RFB2 | E63: =IF(Vout=Vref,"OPEN",Rfb2_u/1000) -> 4.02 | F63: =IF(Vout=Vref,"","kΩ") -> kΩ
D64: Actual Output Voltage, VOUT | E64: ='Variable Management'!B129 -> 4.979104478 | F64: V
A66: Pole & Zero Placement | D66: FZ1 | E66: =Fo/1000*0.7 -> 4.214729808 | F66: =" kHz " -> kHz
A67: =" Baseline P/Z Frequencies:" -> Baseline P/Z Frequencies: | D67: FZ2 | E67: =Fo/1000*0.9 -> 5.418938324 | F67: =" kHz" -> kHz
D68: FP1 | E68: =Fesr/1000 -> 497.3591977 | F68: =" kHz" -> kHz
D69: FP2 | E69: =Fsw/2000 -> 250 | F69: =" kHz" -> kHz
A71: Compensation Components
B72: Calculated / | C72: Std Values | D72: =" Selected" -> Selected | F72: Actual P/Z Frequencies
A73: RC1 | B73: =Rcea1/1000 -> 11.62589353 | C73: ='Standard Value Calculator'!S27 -> 11.5 | D73: =C73 -> 11.5 | E73: kΩ | F73: =Fz1_u/1000 -> 4.193806147 | G73: kHz (FZ1)
A74: CC1 | B74: =Cc1ea*1000000000000 -> 3248.060067 | C74: ='Standard Value Calculator'!S28 -> 3300 | D74: =C74 -> 3300 | E74: pF | F74: =Fz2_u/1000 -> 4.997329291 | G74: kHz (FZ2)
A75: CC2 | B75: =Cc2ea*1000000000000 -> 55.69778681 | C75: ='Standard Value Calculator'!S29 -> 56 | D75: =C75 -> 56 | E75: pF | F75: =Fp1_u/1000 -> 457.341791 | G75: kHz (FP1)
A76: RC2 | B76: =Rcea2 -> 231.3242363 | C76: ='Standard Value Calculator'!S30 -> 232 | D76: =C76 -> 232 | E76: Ω | F76: =Fp2_u/1000 -> 251.3288112 | G76: kHz (FP2)
A77: CC3 | B77: =Cc3ea*1000000000000 -> 1383.339702 | C77: ='Standard Value Calculator'!S31 -> 1500 | D77: =C77 -> 1500 | E77: pF | L77: ** Specify Inductor Core Loss ** | M77: 0.6 | N77: W
A79: Efficiency / Power Loss Analyzer
A81: Step 8: Efficiency
D83: High-Side MOSFET (Q1) Specifications | E83: CSD18543Q3A
D84: On-State Resistance, RDS(on) | E84: 8.8 | F84: mΩ
D85: Total Gate Charge, QG | E85: 9 | F85: nC
D86: Gate-Drain Charge, QGD | E86: 1.7 | F86: nC
D87: Gate-Source Charge, QGS | E87: 3.1 | F87: nC
D88: Output Capacitance, COSS | E88: 168 | F88: pF
D89: Gate Resistance, RG | E89: 0.5 | F89: Ω
D90: Transconductance, gFS | E90: 40 | F90: S
D91: Gate-Source Threshold Voltage, VGS(TH) | E91: 3.5 | F91: V
D92: Body Diode Forward Voltage, VBD1 | E92: 0.8 | F92: V
D93: Thermal Resistance, θJA | E93: 55 | F93: °C/W
D95: Low-Side MOSFET (Q2) Specifications | E95: CSD18543Q3A
D96: On-State Resistance, RDS(on) | E96: 8.5 | F96: mΩ
D97: Total Gate Charge, QG | E97: 9 | F97: nC
D98: Output Charge, QOSS | E98: 24 | F98: nC
D99: Output Capacitance, COSS | E99: 168 | F99: pF
D100: Body Diode Forward Voltage, VBD2 | E100: 0.8 | F100: V
D101: Body Diode Recovery Charge, QRR | E101: 37 | F101: nC
D102: Thermal Resistance, θJA | E102: 55 | F102: °C/W
D103: Antiparallel Schottky Diode (if applicable)
D104: Schottky Diode Forward Voltage, VSD | E104: 0 | F104: V
D105: Schottky Diode Recovery Charge, QRR2 | E105: 0 | F105: nC

Sheet Schematic & BOM
B34: ** Tie SYNCIN to VCC and GND for CCM and DCM operation, respectively **
A35: ="VIN = "&Vin&" V, VOUT = "& Vout &" V, IOUT = " &Iout & " A, Fsw = " & Fsw/1000 &" kHz, Current Limit = "&ROUNDUP(DC_Current_Limit_Setpoint,0)&" A" -> VIN = 28 V, VOUT = 5 V, IOUT = 19 A, Fsw = 500 kHz, Current Limit = 26 A
A36: Wide VIN, High Efficiency Synchronous Buck Regulator BOM
A37: Count | B37: Ref Des | C37: Value | D37: Description | H37: Size | I37: Part Number | J37: MFR | K37: Footprint (mm) | L37: Area (mm2)
A38: 1 | B38: CBOOT | C38: 0.1 | D38: =C38 -> 0.1 | I38: Std | J38: Std | K38: =CHOOSE(Q38, 'Variable Management'!N69,'Variable Management'!N70,'Variable Management'!N71) -> 1.6 x 0.8 | L38: =CHOOSE(Q38, 'Variable Management'!O69,'Variable Management'!O70,'Variable Management'!O71) -> 1.3 | Q38: 2
A39: 1 | B39: CC1 | C39: ='Design Regulator'!D74 -> 3300 | D39: 3300 | I39: Std | J39: Std | K39: =CHOOSE(Q39, 'Variable Management'!N69,'Variable Management'!N70,'Variable Management'!N71) -> 1.0 x 0.5 | L39: =CHOOSE(Q39, 'Variable Management'!O69,'Variable Management'!O70,'Variable Management'!O71) -> 0.5 | Q39: 1
A40: 1 | B40: CC2 | C40: ='Design Regulator'!D75 -> 56 | D40: 56 | I40: Std | J40: Std | K40: =CHOOSE(Q40, 'Variable Management'!N69,'Variable Management'!N70,'Variable Management'!N71) -> 1.0 x 0.5 | L40: =CHOOSE(Q40, 'Variable Management'!O69,'Variable Management'!O70,'Variable Management'!O71) -> 0.5 | Q40: 1
A41: 1 | B41: CC3 | C41: ='Design Regulator'!D77 -> 1500 | D41: 1500 | I41: Std | J41: Std | K41: =CHOOSE(Q41, 'Variable Management'!N69,'Variable Management'!N70,'Variable Management'!N71) -> 1.0 x 0.5 | L41: =CHOOSE(Q41, 'Variable Management'!O69,'Variable Management'!O70,'Variable Management'!O71) -> 0.5 | Q41: 1
A42: 1 | B42: CS | C42: ='Variable Management'!B270 -> 3.9pF | D42: ="Capacitor, Ceramic, "&'Variable Management'!B270&", 100V, X7R, 20%" -> Capacitor, Ceramic, 3.9pF, 100V, X7R, 20% | I42: Std | J42: Std | K42: =CHOOSE(Q42, 'Variable Management'!N69,'Variable Management'!N70,'Variable Management'!N71) -> 1.6 x 0.8 | L42: =CHOOSE(RDSON_sense,CHOOSE(Q42,'Variable Management'!O69,'Variable Management'!O70,'Variable Management'!O71),0) -> 1.3 | Q42: 2
A43: =ROUNDUP('Design Regulator'!E41/10,0) -> 2 | B43: CIN | C43: ='Variable Management'!B249 -> 10µF | D43: =CHOOSE(Cin_Voltage_Rating, "Capacitor, Ceramic, "&'Variable Management'!B249&", 10V, X7R, 10%", "Capacitor, Ceramic, "&'Variable Management'!B249&", 16V, X7R, 10%", "Capacitor, Ceramic, "&'Variable Management'!B249&", 25V, X7R, 10%", "Capacitor, Ceramic, "&'Variable Management'!B249&", 50V, X7R, 10%") -> Capacitor, Ceramic, 10µF, 50V, X7R, 10% | I43: Std | J43: Std | K43: =CHOOSE(Q43, 'Variable Management'!N69,'Variable Management'!N70,'Variable Management'!N71,'Variable Management'!N72,'Variable Management'!N73) -> 3.2 x 2.5 | L43: =CHOOSE(Q43, 'Variable Management'!O69,'Variable Management'!O70,'Variable Management'!O71,'Variable Management'!O72,'Variable Management'!O73)*A43 -> 16 | Q43: 5
A44: ='Variable Management'!D242 -> 7 | B44: COUT | C44: ='Variable Management'!F243 -> 47µF | D44: =CHOOSE(Cout_Voltage_Rating, "Capacitor, Ceramic, "&'Variable Management'!B244&", 6.3V, X7R, 10%", "Capacitor, Ceramic, "&'Variable Management'!B244&", 10V, X7R, 10%", "Capacitor, Ceramic, "&'Variable Management'!B244&", 16V, X7R, 10%", "Capacitor, Ceramic, "&'Variable Management'!B244&", 25V, X7R, 10%", "Capacitor, Ceramic, "&'Variable Management'!B244&", 50V, X7R, 10%") -> Capacitor, Ceramic, 47µF, 6.3V, X7R, 10% | I44: Std | J44: Std | K44: =CHOOSE(Q44, 'Variable Management'!N69,'Variable Management'!N70,'Variable Management'!N71,'Variable Management'!N72,'Variable Management'!N73) -> 3.2 x 2.5 | L44: =CHOOSE(Q44, 'Variable Management'!O69,'Variable Management'!O70,'Variable Management'!O71,'Variable Management'!O72,'Variable Management'!O73)*A44 -> 56 | Q44: 5
A45: 1 | B45: CSS | C45: ='Design Regulator'!E49 -> 47 | D45: =C45 -> 47 | I45: Std | J45: Std | K45: =CHOOSE(Q45, 'Variable Management'!N69,'Variable Management'!N70,'Variable Management'!N71) -> 1.6 x 0.8 | L45: =CHOOSE(Q45, 'Variable Management'!O69,'Variable Management'!O70,'Variable Management'!O71) -> 1.3 | Q45: 2
A46: 1 | B46: CVCC | C46: 2.2 | D46: 2.2 | I46: Std | J46: Std | K46: =CHOOSE(Q46, 'Variable Management'!N69,'Variable Management'!N70,'Variable Management'!N71) -> 2.0 x 1.25 | L46: =CHOOSE(Q46, 'Variable Management'!O69,'Variable Management'!O70,'Variable Management'!O71) -> 2.5 | Q46: 3
A47: 1 | B47: CVIN | C47: 0.1 | D47: 0.1 | I47: Std | J47: Std | K47: =CHOOSE(Q47, 'Variable Management'!N69,'Variable Management'!N70,'Variable Management'!N71) -> 1.6 x 0.8 | L47: =CHOOSE(Q47, 'Variable Management'!O69,'Variable Management'!O70,'Variable Management'!O71) -> 1.3 | Q47: 2
A48: 1 | B48: LF | C48: ='Design Regulator'!E17 -> 2.2 | D48: ="Inductor, "&Lout2*1000000&"µH, "&Rdcr*1000&"mΩ, >"&ROUNDUP(Ilsat,0)&"A" -> Inductor, 2.2µH, 3mΩ, >34A | I48: Various | J48: Various | K48: =CHOOSE(Q48, 'Variable Management'!N78,'Variable Management'!N79,'Variable Management'!N80, 'Variable Management'!N81, 'Variable Management'!N82, 'Variable Management'!N83, 'Variable Management'!N84, 'Variable Management'!N85) -> 10.0 x 10.0 | L48: =CHOOSE(Q48, 'Variable Management'!O78,'Variable Management'!O79,'Variable Management'!O80, 'Variable Management'!O81, 'Variable Management'!O82, 'Variable Management'!O83, 'Variable Management'!O84, 'Variable Management'!O85) -> 100 | Q48: 7
A49: =R49 -> 1 | B49: Q1 | C49: See description | D49: ='Design Regulator'!E84 -> 8.8 | I49: ='Design Regulator'!E83 -> CSD18543Q3A | J49: TI | K49: =CHOOSE(Q49, 'Variable Management'!N48,'Variable Management'!N49,'Variable Management'!N50,'Variable Management'!N51) -> 3.3 x 3.3 | L49: =CHOOSE(Q49, 'Variable Management'!O48,'Variable Management'!O49,'Variable Management'!O50,'Variable Management'!O51)*R49 -> 10.9 | Q49: 2 | R49: 1
A50: =R50 -> 1 | B50: Q2 | C50: See description | D50: ='Design Regulator'!E96 -> 8.5 | I50: ='Design Regulator'!E95 -> CSD18543Q3A | J50: TI | K50: =CHOOSE(Q50, 'Variable Management'!N48,'Variable Management'!N49,'Variable Management'!N50,'Variable Management'!N51) -> 3.3 x 3.3 | L50: =CHOOSE(Q50, 'Variable Management'!O48,'Variable Management'!O49,'Variable Management'!O50,'Variable Management'!O51)*R50 -> 10.9 | Q50: 2 | R50: 1
A52: 1 | B52: RC1 | C52: ='Design Regulator'!D73 -> 11.5 | D52: =C52 -> 11.5 | I52: Std | J52: Std | K52: =CHOOSE(Q52, 'Variable Management'!N69,'Variable Management'!N70,'Variable Management'!N71) -> 1.0 x 0.5 | L52: =CHOOSE(Q52, 'Variable Management'!O69,'Variable Management'!O70,'Variable Management'!O71) -> 0.5 | Q52: 1
A53: 1 | B53: RC2 | C53: ='Design Regulator'!D76 -> 232 | D53: 232 | I53: Std | J53: Std | K53: =CHOOSE(Q52, 'Variable Management'!N69,'Variable Management'!N70,'Variable Management'!N71) -> 1.0 x 0.5 | L53: =CHOOSE(Q53, 'Variable Management'!O69,'Variable Management'!O70,'Variable Management'!O71) -> 0.5 | Q53: 1
A54: 1 | B54: RILIM | C54: ='Design Regulator'!E25 -> 1020 | D54: 1020 | I54: Std | J54: Std | K54: =CHOOSE(Q52, 'Variable Management'!N69,'Variable Management'!N70,'Variable Management'!N71) -> 1.0 x 0.5 | L54: =CHOOSE(Q54, 'Variable Management'!O69,'Variable Management'!O70,'Variable Management'!O71) -> 2.5 | Q54: 3
A55: 1 | B55: RRT | C55: ='Design Regulator'!E13 -> 20 | D55: 20 | I55: Std | J55: Std | K55: =CHOOSE(Q55, 'Variable Management'!N69,'Variable Management'!N70,'Variable Management'!N71) -> 1.0 x 0.5 | L55: =CHOOSE(Q55, 'Variable Management'!O69,'Variable Management'!O70,'Variable Management'!O71) -> 0.5 | Q55: 1
A56: 1 | B56: RFB1 | C56: ='Design Regulator'!E62 -> 21 | D56: 21 | I56: Std | J56: Std | K56: =CHOOSE(Q56, 'Variable Management'!N69,'Variable Management'!N70,'Variable Management'!N71) -> 1.0 x 0.5 | L56: =CHOOSE(Q56, 'Variable Management'!O69,'Variable Management'!O70,'Variable Management'!O71) -> 0.5 | Q56: 1
A57: 1 | B57: RFB2 | C57: ='Design Regulator'!E63 -> 4.02 | D57: 4.02 | I57: Std | J57: Std | K57: =CHOOSE(Q57, 'Variable Management'!N69,'Variable Management'!N70,'Variable Management'!N71) -> 1.0 x 0.5 | L57: =CHOOSE(Q57, 'Variable Management'!O69,'Variable Management'!O70,'Variable Management'!O71) -> 0.5 | Q57: 1
A58: 1 | B58: RPGOOD | C58: 20 | D58: 20 | I58: Std | J58: Std | K58: =CHOOSE(Q58, 'Variable Management'!N69,'Variable Management'!N70,'Variable Management'!N71) -> 1.0 x 0.5 | L58: =CHOOSE(Q58, 'Variable Management'!O69,'Variable Management'!O70,'Variable Management'!O71) -> 0.5 | Q58: 1
A59: 1 | B59: RS | C59: ='Design Regulator'!E23 -> 5 | D59: 5 | H59: 1206 | I59: Std | J59: Std | K59: 3.2 x 1.6 | L59: =CHOOSE(RDSON_sense, 0,5.1) -> 0
A60: 1 | B60: RUV1 | C60: ='Design Regulator'!E52 -> 698 | D60: 698 | I60: Std | J60: Std | K60: =CHOOSE(Q60, 'Variable Management'!N69,'Variable Management'!N70,'Variable Management'!N71) -> 1.6 x 0.8 | L60: =CHOOSE(Q60, 'Variable Management'!O69,'Variable Management'!O70,'Variable Management'!O71) -> 1.3 | Q60: 2
A61: 1 | B61: RUV2 | C61: ='Design Regulator'!E53 -> 44.2 | D61: 44.2 | I61: Std | J61: Std | K61: =CHOOSE(Q61, 'Variable Management'!N69,'Variable Management'!N70,'Variable Management'!N71) -> 1.0 x 0.5 | L61: =CHOOSE(Q61, 'Variable Management'!O69,'Variable Management'!O70,'Variable Management'!O71) -> 0.5 | Q61: 1
A62: 1 | B62: RVIN | C62: 2.2 | D62: 2.2 | I62: Std | J62: Std | K62: =CHOOSE(Q62, 'Variable Management'!N69,'Variable Management'!N70,'Variable Management'!N71) -> 1.0 x 0.5 | L62: =CHOOSE(Q62, 'Variable Management'!O69,'Variable Management'!O70,'Variable Management'!O71) -> 0.5 | Q62: 1
A63: 1 | B63: U1 | C63: LM25145 | D63: IC, LM25145, PWM Controller, 6V-42V Input | H63: VQFN-20 | I63: LM25145RGYR | J63: TI | K63: 3.5 x 4.5 x 1.0 | L63: 15.75
I65: Total Solution Size (buffered by 25%) | L65: =SUM(L38:L63)*1.25 -> 283.1875 | M65: mm2 = | N65: =L65/25.4/25.4 -> 0.4389415029 | O65: in2
A66: NOTES:
A67: ** Inductor saturation current should be higher than the current limit setpoint at all operating temperatures **
A68: ** Effective output capacitance should be appropriately derated for applied voltage and temperature, particularly with ceramics **
Q455: 2

Sheet EVM
A1: LM25145 Quickstart Calculator
B3: LM5145EVM-HD-20A PCB Layout
O5: Top
O6: Layer
O31: Layer 2
O57: Layer 3
O84: Bottom
O85: Layer

Sheet Variable Management (hidden)
A1: Excel Variables Names/Calculations
B2: Input from user =
B3: Output =
B4: Constant
A5: Variable Name | B5: Value | C5: STD Units | D5: Notes | H5: iteration
A6: Step 1: Operational Specs
A7: Vin | B7: ='Design Regulator'!E7 -> 28 | C7: V | D7: Nominal input voltage | H7: 1
A8: Vinmin | B8: ='Design Regulator'!E6 -> 20 | C8: V | D8: Min input voltage
A9: Vinmax | B9: ='Design Regulator'!E8 -> 36 | C9: V | D9: Max input voltage
A10: Vout | B10: ='Design Regulator'!E9 -> 5 | C10: V | D10: Output Voltage | H10: 1
A11: Iout | B11: ='Design Regulator'!E10 -> 19 | C11: A | D11: Maximum output Current | H11: 1
A12: Fsw | B12: =IF(AND('Design Regulator'!E12<='Design Regulator'!E11*1.5, 'Design Regulator'!E12>='Design Regulator'!E11*0.8), 'Design Regulator'!E12*1000, 'Design Regulator'!E11*1000) -> 500000 | C12: Hz | D12: Nominal Operational Frequency | H12: 1
A13: Fsw_freerunning | B13: ='Design Regulator'!E11*1000 -> 500000 | C13: Hz | D13: Free-running switching frequency
A14: Vref | B14: 0.8 | C14: V | D14: Reference Voltage
A15: R_RT | B15: =1/(B13*0.0000000001) -> 20000 | C15: W
A17: Ton at Vin-max | B17: =B38/Fsw*1000000000 -> 289.9625774 | C17: ns
A18: Toff at Vin-min | B18: =B37/Fsw*1000000000 -> 1478.00123 | C18: ns
A22: Step 2: Inductor
A23: Don1 | B23: =Vout/Vin -> 0.1785714286 | C23: index | D23: ideal Duty Cycle | H23: 1
A24: Doff1 | B24: =1-23:23 -> 0.8214285714 | C24: index | D24: Ideal 1- Duty Cycle | H24: 1
A25: Don_Vinmin | B25: =Vout/Vinmin -> 0.25
A26: Doff_Vinmin | B26: =1-B25 -> 0.75
A27: Don_Vinmax | B27: =Vout/Vinmax -> 0.1388888889
A28: Doff_Vinmax | B28: =1-B27 -> 0.8611111111
A30: Lout1 | B30: =(Vin-Vout)*_Don1/(Fsw*Iout*0.333) -> 1.298290772e-06 | C30: H | D30: Calculated Inductor value for 30% ripple | H30: 1
A31: Lout2 | B31: ='Design Regulator'!E17/1000000 -> 2.2e-06 | C31: H | D31: Chosen Inductor Value | H31: 2
A32: Rdcr | B32: ='Design Regulator'!E18/1000 -> 0.003 | C32: W | D32: DCR | H32: 1
A34: Don2 | B34: =(Vout+(Rdcr+RdsonBot)*Iout)/(Vin+(RdsonBot-RdsonTop)*Iout) -> 0.1864129484 | D34: Duty Cycle with DCR accounted for | H34: 2
A35: Doff2 | B35: =1-_Don2 -> 0.8135870516 | D35: 1-Duty Cycle with DCR accounted for | H35: 2
A36: Don2_Vinmin | B36: =(Vout+(Rdcr+RdsonBot)*Iout)/(Vinmin+(RdsonBot-RdsonTop)*Iout) -> 0.2609993848
A37: Doff2_Vinmin | B37: =1-B36 -> 0.7390006152
A38: Don2_Vinmax | B38: =(Vout+(Rdcr+RdsonBot)*Iout)/(Vinmax+(RdsonBot-RdsonTop)*Iout) -> 0.1449812887 | L38: Vout<5V | M38: 100 | N38: 1
A39: Doff2_Vinmax | B39: =1-B38 -> 0.8550187113 | L39: Vout<=8V | M39: 47 | N39: 2
L40: Vout<=12V | M40: 22 | N40: 3
A41: Vripple1 | B41: ='Design Regulator'!E30/1000 -> 0.05 | C41: V | D41: Choosen Initial Voltage ripple Value | H41: 1 | L41: Vout<=20V | M41: 22 | N41: 4
A42: Irripple1 | B42: =(Vin-Vout)*_Don2/(Fsw*Lout2) -> 3.897725284 | C42: A | D42: Ripple Current after Chosen inductor (p-p) | H42: 1 | L42: Vout>20V | M42: 10 | N42: 5
A43: DCR at hot | B43: =Rdcr*(1+0.0039*(F43-25)) -> 0.0038775 | C43: Ohms | E43: Temp | F43: 100 | L43: Cout Capacitance | M43: =CHOOSE(N43,"100", "47","22","22","10") -> 47 | N43: =IF(Vout<5, 1, IF(Vout<=8, 2, IF(Vout<=12, 3, IF(Vout<=20, 4, 5)))) -> 2
A44: TL | B44: =Lout2/Rdcr -> 0.0007333333333 | C44: s | D44: L/R Time Constant | Q44: Quantity: 1 | R44: 1
Q45: Quantity: 2 | R45: 2
A46: Step 3: Current Limit
L48: SON 5 x 6 | M48: 1 | N48: 5.0 x 6.0 | O48: 30
A49: DC Current Limit Setpoint | B49: ='Design Regulator'!E24 -> 26 | L49: SON 3 x 3 | M49: 2 | N49: 3.3 x 3.3 | O49: 10.9
A50: Ilimit | B50: ='Design Regulator'!E24-Iripple1/2 -> 24.05113736 | C50: A | D50: Chosen current limit level - valley current | L50: DPAK, TO-252 | M50: 3 | N50: 10.0 x 6.6 | O50: 66
A51: Ilsat | B51: =ROUND('Design Regulator'!E24+Iripple1/2,0)*1.2 -> 33.6 | C51: A | L51: D2PAK, TO-263 | M51: 4 | N51: 15.0 x 10.0 | O51: 150
K52: MOSFET package | L52: =CHOOSE(M52, L48, L49, L50, L51) -> SON 5 x 6 | M52: 1
A53: Ilim1 | B53: 0.0002 | C53: A | D53: Current Limit Current Source - Rdson sensing
A54: Ilim2 | B54: 0.0001 | C54: A | D54: Current Limit Current Source - shunt sensing | L54: RDS(on) sensing | M54: 1
A55: Rilim_Rdson_ideal | B55: =ILimit*RdsonBot/Ilim1 -> 1022.173338 | C55: W | D55: Ideal Rset for the chosen current limit | L55: Shunt sensing | M55: 2
A56: Rilim_Rdson | B56: ='Standard Value Calculator'!S6 -> 1020 | C56: W | D56: Standard value current limit set resistor | K56: Current Sensing | L56: =CHOOSE(RDSON_sense, L54,L55) -> RDS(on) sensing | M56: 1 | N56: 1 = Yes, 2 = No
A58: Rshunt | B58: ='Design Regulator'!E23/1000 -> 0.005 | C58: W
A59: Rilim_shunt_ideal | B59: =ILimit*Rshunt/Ilim2 -> 1202.556868 | C59: W | K59: Vout<=5V | L59: 6.3V | M59: 1
A60: Rilim_shunt | B60: ='Standard Value Calculator'!S22 -> 1210 | C60: W | D60: Standard value current limit set resistor | K60: Vout<=8V | L60: 10V | M60: 2 | Q60: Vin(max)<=8V | R60: 10V | S60: 1
K61: Vout<=12V | L61: 16V | M61: 3 | Q61: Vin(max)<=12V | R61: 16V | S61: 2
A62: Power dissipation in the shunt | B62: =ROUND(((1-Don_Vinmax)*Iout)^2*Rshunt,2) -> 1.34 | C62: W | K62: Vout<=20V | L62: 25V | M62: 4 | Q62: Vin(max)<=20V | R62: 25V | S62: 3
A64: Cilim | B64: =0.000000006/Rilim_Rdson_ideal - 0.000000000002 -> 3.869845924e-12 | C64: F | D64: Choose cap for 6ns time constant | K64: Vout<=42V | L64: 50V | M64: 5 | Q64: Vin(max)<=42V | R64: 50V | S64: 4
A65: Cilim_ideal | B65: ='Standard Value Calculator'!S23 -> 3.9 | C65: pF | K65: Vout<60V | L65: 100V | M65: 6 | Q65: Vin(max)<100V | R65: 100V | S65: 5
A66: Ilimit2 | B66: =Ics*Rset/Rdcr-Iripple1/2 ->  | C66: A | D66: Current limit setpoint after standard components are selected | K66: Cout Voltage Rating | L66: =CHOOSE(M66,"6.3V","10V","16V","25V","50V","100V") -> 6.3V | M66: =IF(Vout<=5, 1, IF(Vout<=8, 2, IF(Vout<=12, 3, IF(Vout<=20, 4, IF(Vout<=42, 5, 6))))) -> 1 | Q66: Cin Voltage Rating | R66: =CHOOSE(S66,"10V","16V","25V","50V","100V") -> 50V | S66: =IF(Vinmax<=8,1,IF(Vinmax<=12,2,IF(Vinmax<=20,3,IF(Vinmax<=42,4,5)))) -> 4
A68: Step 4: Output Capacitor
A69: Icoutrms | B69: =Iripple1/SQRT(3)/2 -> 1.125176371 | C69: A | D69: Output Cap rms current | L69: 0402 | M69: 1 | N69: 1.0 x 0.5 | O69: 0.5
A70: Coutmin | B70: =(Iripple1/(Vripple1*Fsw*8)) -> 1.948862642e-05 | C70: F | D70: Minimum Output Capacitnace | H70: 1 | L70: 0603 | M70: 2 | N70: 1.6 x 0.8 | O70: 1.3
A71: Cout | B71: ='Design Regulator'!E32/1000000 -> 0.00032 | C71: F | D71: Choosen Output Capacitor | H71: 1 | L71: 0805 | M71: 3 | N71: 2.0 x 1.25 | O71: 2.5
A72: Resrmax | B72: =SQRT((Vripple1/Iripple1)^2-(1/(Fsw*Cout*8))^2) -> 0.01280418296 | C72: W | D72: Max ESR before ripple exceeds Vripple1 | H72: 1 | L72: 1206 | M72: 4 | N72: 3.2 x 1.6 | O72: 5.1
A73: CoutEsr | B73: ='Design Regulator'!E34/1000 -> 0.001 | C73: W | D73: Chosen ESR | H73: 1 | L73: 1210 | M73: 5 | N73: 3.2 x 2.5 | O73: 8
A74: Vripple | B74: =Iripple1*SQRT(CoutEsr^2+(1/(8*Fsw*Cout))^2) -> 0.004946198891 | C74: Vp-p | K74: Component Size | L74: =CHOOSE(M74,"0402","0603","0805","1206","1210") -> 1210 | M74: 5 | N74: =CHOOSE(M74,N69,N70, N71,N72,N73) -> 3.2 x 2.5
A77: Step 5: Input Capacitor
A78: Vinripple1 | B78: ='Design Regulator'!E39/1000 -> 0.5 | C78: Vp-p | L78: 3mm x 3mm | M78: 1 | N78: 3.0 x 3.0 | O78: 9
A79: Icinrms | B79: =Iout*SQRT(_Don2*Doff2) -> 7.3993514 | C79: A | L79: 4mm x 4mm | M79: 2 | N79: 4.0 x 4.0 | O79: 16
A80: Cinmin | B80: =Iout*_Don2*(1-_Don2)/(Vinripple1*Fsw) -> 1.152640024e-05 | C80: F | L80: 5mm x 5mm | M80: 3 | N80: 5.0 x 5.0 | O80: 25
A81: Cin | B81: ='Design Regulator'!E41/1000000 -> 1.5e-05 | C81: F | D81: Input capacitance | L81: 6mm x 6mm | M81: 4 | N81: 6.0 x 6.0 | O81: 36
A82: CinEsrMax | B82: =-(Iout*_Don2*(1-_Don2)/(Cin*Fsw)-Vinripple1)/(Iout+Iripple1/2) -> 0.005527109547 | C82: W | L82: 7mm x 7mm | M82: 5 | N82: 7.0 x 7.0 | O82: 49
A83: RCinEsr | B83: ='Design Regulator'!E43/1000 -> 0.002 | C83: W | D83: Input capacitance series resistance (ESR) | L83: 8mm x 8mm | M83: 6 | N83: 8.0 x 8.0 | O83: 64
A84: Vinripple2 | B84: =Iout*_Don2*(1-_Don2)/(Cin*Fsw)+(Iout +Iripple1/2)*RCinEsr -> 0.4261110666 | C84: Vp-p | L84: 10mm x 10mm | M84: 7 | N84: 10.0 x 10.0 | O84: 100
B85: =Iout*_Don1*(1-_Don1)/(Cin*Fsw) -> 0.3715986395 | L85: 12mm x 12mm | M85: 8 | N85: 12.0 x 12.0 | O85: 144
K86: Inductor Size | L86: =CHOOSE(M86,L78,L79, L80, L81, L82, L83, L84, L85) -> 12mm x 12mm | M86: 8 | N86: =CHOOSE(M86,N78,N79, N80,N81,N82, N83, N84, N85) -> 12.0 x 12.0
A87: Step 6: Soft Start
A88: Tss | B88: ='Design Regulator'!E48/1000 -> 0.004 | C88: s | D88: Soft Start Time
A89: Iss | B89: =Cout*Vout/Tss -> 0.4 | C89: A | D89: Load Cap current during soft start
A90: Css | B90: =0.00001*Tss/0.8 -> 5e-08 | C90: F
A91: Css_u | B91: ='Standard Value Calculator'!B4 -> 4.7e-08 | C91: F
A93: Step 7: Other Components
A95: VINUVLO_ON | B95: ='Design Regulator'!E50 -> 20 | C95: V
A96: VINUVLO_OFF | B96: ='Design Regulator'!E51 -> 13 | C96: V
A97: RUV1 | B97: =(VINuvlo_off-VINuvlo_on*Vuvlo_off/Vuvlo_on)/(Iuvlo1*Vuvlo_off/Vuvlo_on-Iuvlo2) -> 700 | C97: kΩ | D97: ='Standard Value Calculator'!S16 -> 698 | E97: kΩ | F97: =IF(Ruvlo1<0,"N/A",D97) -> 698 | G97: =IF(Ruvlo1<0,"N/A",D97&"kΩ") -> 698kΩ
A98: RUV2 | B98: =D97*Vuvlo_on/(VINuvlo_on-Vuvlo_on+Ruvlo1*Iuvlo1) -> 44.55319149 | C98: kΩ | D98: ='Standard Value Calculator'!S17 -> 44.2 | E98: kΩ | F98: =IF(F97="N/A","N/A",D98) -> 44.2 | G98: =IF(G97="N/A","N/A",D98&"kΩ") -> 44.2kΩ
A100: VINUVLO_ON_ACTUAL | B100: =(D97+D98)/D98*Vuvlo_on-Iuvlo1*D97 -> 20.15022624
A101: VINUVLO_OFF_ACTUAL | B101: =(D97+D98)/D98*Vuvlo_off-Iuvlo2*D97 -> 13.17022624
A104: Rising UVLO/EN Threshold | B104: 1.2
A105: Falling UVLO/EN Threshold | B105: 1.2
A106: Falling UVLO/EN Threshold | B106: =B104-B105 -> 0
A107: UVLO/EN Current Hysteresis | B107: 0
A108: Falling UVLO/EN Falling | B108: 0.01
A109: Rising UVLO/EN Hysteresis | B109: =B108-B107 -> 0.01
A111: RPG | C111: W
A112: RSB | C112: W
A113: Rh | C113: W
A114: Rotp | B114: =80700/(Totp+273)*398 ->  | C114: W
A117: CSBY | B117: 100 | C117: pF
A121: Step 8: Compensation
A122: Eadcg | B122: 10000 | C122: V/V | D122: Error Amplifier Finite DC Gain (AOL)
A123: GBP | B123: 5000000 | C123: Hz | D123: Error Amplifier Gain Bandwidth Product (GBW)
A124: Chosen Crossover | B124: ='Design Regulator'!E60*1000 -> 50000 | C124: Hz
A125: Kmidband | B125: =Fcross/Fo/15 -> 0.5536139776 | C125: V/V | D125: Midband Gain For the Error Amplifier | H125: 1
A126: Rfb1 | B126: ='Design Regulator'!E62*1000 -> 21000 | C126: W | D126: Top Feedback Resistor | H126: 1
A127: Rfb2 | B127: =IF(Vout=Vref,100000000,Vref/((Vout-Vref)/_Rfb1)) -> 4000 | C127: W | D127: Lower Feedback Resistor
A128: Rfb2_u | B128: =IF(Vout=Vref,"N/A",'Standard Value Calculator'!S11) -> 4020 | C128: W | D128: Calculated Lower Feedback Resistor
A129: Vout_actual | B129: =0.8/Rfb2_u*(Rfb2_u+_Rfb1) -> 4.979104478 | C129: V | D129: Actual VOUT
A131: Vramp | B131: =Vin/15 -> 1.866666667 | C131: Vp-p | D131: Peak-to-Peak Ramp Voltage of PWM
A132: Rcea1 | B132: =Kmidband*_Rfb1 -> 11625.89353 | C132: W | D132: This component will first set the midband gain | H132: 1
A133: Cc1ea | B133: =1/(Rcea1*('Design Regulator'!E66*1000)*2*Pi) -> 3.248060067e-09 | C133: F | D133: This along with Rcea1 will set a zero | H133: 1
A134: Cc2ea | B134: =1/((Rcea1*2*Pi*'Design Regulator'!E69*1000)-1/Cc1ea) -> 5.569778681e-11 | C134: F | H134: 1
A135: Rcea2 | B135: =(1/(1000*2*Pi*'Design Regulator'!E68))*_Rfb1/(1/('Design Regulator'!E67*1000*2*Pi)-(1/(1000*2*Pi*'Design Regulator'!E68))) -> 231.3242363 | C135: W | H135: 1
A136: Cc3ea | B136: =(1/(1000*2*Pi*'Design Regulator'!E68))/Rcea2 -> 1.383339702e-09 | C136: F | H136: 1
A138: Choosen Compensation Components from the standard value sheet
A139: Rcea1_u | B139: ='Design Regulator'!D73*1000 -> 11500 | C139: W | H139: 2
A140: Cc1ea_u | B140: ='Design Regulator'!D74*0.000000000001 -> 3.3e-09 | C140: F | H140: 2
A141: Cc2ea_u | B141: ='Design Regulator'!D75*0.000000000001 -> 5.6e-11 | C141: F | H141: 2
A142: Rcea2_u | B142: ='Design Regulator'!D76 -> 232 | C142: W | H142: 2
A143: Cc3ea_u | B143: ='Design Regulator'!D77*0.000000000001 -> 1.5e-09 | C143: F | H143: 2
A145: Resulting Poles/Zero/Q Locations | D145: =Cout -> 0.00032 | E145: =CoutEsr -> 0.001
A146: Fo | B146: =SQRT((Rfets+Rdcr+Ro)/(Cout*Lout2*(CoutEsr+Ro)))/(2*Pi) -> 6021.042582 | C146: Hz | D146: LC Double Pole Location
A147: Q | B147: =(Rfets+Rdcr+Ro)/(Lout2+Cout*(Rdcr+Rfets)*(CoutEsr+Ro)+Cout*CoutEsr*Ro)/(Fo*2*Pi) -> 2.772209961 | C147: V/V | D147: Quality Factor of LC output Filter
A148: Fesr | B148: =1/(2*Pi*Cout*CoutEsr) -> 497359.1977 | C148: Hz | D148: Cout ESR Zero Location
A149: Fz1 | B149: =1/(2*Pi*Rcea1_u*Cc1ea_u) -> 4193.806147 | C149: Hz | D149: This zero is set at or below the double pole location
A150: Fz2 | B150: =1/(2*Pi*Cc3ea_u*(_Rfb1+Rcea2_u)) -> 4997.329291 | C150: Hz | D150: This zero is set at or below the double pole location
A151: Fp1 | B151: =1/(2*Pi*Rcea2_u*Cc3ea_u) -> 457341.791 | C151: Hz | D151: This pole cancels the zero from the Output Cap ESR
A152: Fp2 | B152: =1/(2*Pi*Rcea1_u*(Cc1ea_u*Cc2ea_u/(Cc1ea_u+Cc2ea_u))) -> 251328.8112 | C152: Hz | D152: This pole is set at half the switching frequency
A153: Ro | B153: =Vout/(Iout+Vref/_Rfb2) -> 0.2631551247 | D153: Output Resistance
A154: Pi | B154: 3.14159265 | D154: PI
A155: Other Input Variables
A156: Rfets | B156: 0 | C156: W | D156: Series resistance due to FETs | G156: =_Don2*RdsonTop+Doff2*RdsonBot+B161*Vin^2*Fsw/2/(((Iripple1/SQRT(3))^2)) -> 0.2020754883
A158: Diode loss eq res | B158: =0.00000002*Fsw*0.6*4/Iripple1 -> 0.006157437545
A159: Fet loss eq res | B159: =_Don2*RdsonTop+Doff2*RdsonBot -> 0.008555923885
A160: cap loss eq res | B160: =B161*Vin^2*Fsw/2/(((Iripple1/SQRT(3))^2)) -> 0.1935195644
A161: Sw cap | B161: 5e-09
A164: Step 8: Efficiency
A166: Design
A167: Ta | B167: 25 | D167: Ambient Temperature
A168: Components
A169: LTc | B169: =4000/1000000 -> 0.004 | C169: %/°C | D169: Inductor Series Resistance Temp Co
A170: ThetaCa | B170: 20 | C170: °C/W | D170: Core to Ambient Thermal Resistance
A171: RCinEsr | B171: =RCinEsr -> 0.002 | C171: W | D171: Input Capacitor Series Resistance
A172: Part Characteristics
A173: Vcc | B173: 7.5
A174: Top Driver
A175: RdsonDRT | B175: 1 | C175: W | D175: Drain to Source Resistance of pull up Top FET Driver
A176: RdsonDRT2 | B176: 0.9 | C176: W | D176: Drain to Source Resistance of pull down Top FET Driver
A177: Bottom Driver
A178: RdsonDRB | B178: 1 | C178: W | D178: Drain to Source Resistance of pull up Top FET Driver
A179: RdsonDRB2 | B179: 0.9 | C179: W | D179: Drain to Source Resistance of pull down Top FET Driver
A180: Deadtime | D180: Output Capacitor Capcitance
A181: Deadtime | B181: 3e-08 | C181: s | D181: Total Deadtime
A182: IQ
A183: IQ | B183: 0.003 | C183: A | D183: Quiescent Current Of Controller (Not Switching!)
A184: Top FET
A185: RdsonTop | B185: ='Design Regulator'!E84/1000 -> 0.0088 | C185: W | D185: Drain to Source Resistance of Top FET
A186: RdsonTopTc | B186: =4000/1000000 -> 0.004 | C186: %/°C | D186: Drain to Source Resistance Temp Co
A187: QgTop | B187: ='Design Regulator'!E85/1000000000 -> 9e-09 | C187: C | D187: Gate Charge Of Top FET
A188: QgdTop | B188: ='Design Regulator'!E86/1000000000 -> 1.7e-09 | C188: C | D188: Gate to Drain Charge
A189: QgsTop | B189: ='Design Regulator'!E87/1000000000 -> 3.1e-09 | C189: C | D189: Gate to Source Charge
A190: CossTop | B190: ='Design Regulator'!E88/1000000000000 -> 1.68e-10 | C190: F | D190: Output Capacitance of High-side FET
A191: RGateTop | B191: ='Design Regulator'!E89 -> 0.5 | C191: W | D191: Gate Resistance of High-side FET
A192: GfsTop | B192: ='Design Regulator'!E90 -> 40 | C192: S | D192: Transconductance of Top FET
A193: VthTop | B193: ='Design Regulator'!E91 -> 3.5 | C193: V | D193: Threshold Voltage of Top FET
A194: VspTop | B194: =VthTop+Iout/GmTop -> 3.975 | C194: V | D194: Switch Point Voltage of Top FET
A195: VsdTop | B195: ='Design Regulator'!E92 -> 0.8 | C195: V | D195: Diode Forward Voltage of Top FET Body diode
A196: ThetaJaTop | B196: ='Design Regulator'!E93 -> 55 | C196: °C/W | D196: Junction to Ambient Resistance
A197: Bottom FET
A198: RdsonBot | B198: ='Design Regulator'!E96/1000 -> 0.0085 | C198: W | D198: Drain To Source Resistance of Bottom FET Driver
A199: RdsonBotTc | B199: =4000/1000000 -> 0.004 | C199: %/°C | D199: Drain To Source Resitance Temp Co
A200: QgBot | B200: ='Design Regulator'!E97/1000000000 -> 9e-09 | C200: C | D200: Gate Charge Of Bottom FET | J200: =RGateTop -> 0.5
A201: QossBot | B201: ='Design Regulator'!E98/1000000000 -> 2.4e-08 | C201: C | D201: Output Charge Of Bottom FET
A202: CossBot | B202: ='Design Regulator'!E99/1000000000000 -> 1.68e-10 | C202: F | D202: Output Capacitance Of Bottom FET
A203: RGateBot | B203: 1 | C203: W | D203: Gate Resistance
A204: VsdBot | B204: ='Design Regulator'!E100 -> 0.8 | C204: V | D204: Diode Forward Voltage of Bottom FET Body Diode
A205: QrrBot | B205: ='Design Regulator'!E101/1000000000 -> 3.7e-08 | C205: C | D205: Reverse Recovery Charge of Body Diode
A206: TrrBot | B206: 4e-08 | C206: s | D206: Reverse Recovery Time of Body Diode
A207: ThetaJaBot | B207: ='Design Regulator'!E102 -> 55 | C207: °C/W | D207: Junction to Ambient Resistance
A208: Bottom Schottky
A209: VfdSky | B209: ='Design Regulator'!E104 -> 0 | C209: V | D209: Diode Forward Voltage
A210: QrrSky | B210: ='Design Regulator'!E105/1000000000 -> 0 | C210: C | D210: Diode Reverse Recovery Charge
A211: Ireverse | B211: 0 | C211: A | D211: Reverse Leakage Current
A212: Controller
A213: ThetaJaCtrl | B213: 30
A214: Outputs
A215: Top FET
A216: Tr | B216: =(QgdTop+QgsTop/2)*(RdsonDRT+RGateTop)/(Vdd-VspTop) -> 1.382978723e-09 | C216: s
A217: Tf | B217: =(QgdTop+QgsTop/2)*(RdsonDRT+RGateTop)/(VspTop) -> 1.226415094e-09 | C217: s
A220: Part Power Disipation | B220: Value | C220: Units
A221: Power Dis | B221: ='Power Calculations'!AN9 -> 0.336 | C221: W
A222: Temp rise | B222: =B221*ThetaJaCtrl -> 10.08 | C222: °C
A223: Current (switching) | B223: =(QgBot+QgTop)*Fsw+Iq -> 0.012 | C223: A
A224: Qrr Current | B224: =QrrBot*Fsw -> 0.0185 | C224: A
A225: Diode Current | B225: =C225/Vin -> 0.0003503606617 | C225: =Deadtime*Fsw*(Ipp/2)*(VsdTop+VsdBot) -> 0.009810098528
A226: Total Application Switching IQ | B226: =SUM(B223:B225) -> 0.03085036066 | C226: A
A232: Bottom FET/Diode
A233: Part Power
A234: Power Dis
A236: SCHEMATIC LABELS
A237: ="RC1 = "&'Design Regulator'!D73&"kΩ" -> RC1 = 11.5kΩ | B237: ='Design Regulator'!D73&"kΩ" -> 11.5kΩ
A238: ="LOUT = "&'Design Regulator'!E17&"uH" -> LOUT = 2.2uH | B238: ='Design Regulator'!E17&"µH" -> 2.2µH
... 59 more rows

Sheet Standard Value Calculator (hidden)
A2: Capacitors | B2: Css | C2: Cc1ea | D2: Cc2ea | E2: Cc3ea | F2: Cout | G2: Cin | H2: Cilim | I2: Cdd | J2: Csb | K2: Csby | L2: Cby | M2: Cb | N2: Sugested Cs
A3: Inputs | B3: =Css -> 5e-08 | C3: =Cc1ea -> 3.248060067e-09 | D3: =Cc2ea -> 5.569778681e-11 | E3: =Cc3ea -> 1.383339702e-09 | F3: =Cout -> 0.00032 | G3: =Cin -> 1.5e-05 | H3: =Cilim -> 3.869845924e-12 | I3: =Cdd -> 0 | J3: =Csb -> 0 | K3: =Csby -> 100 | L3: =Cby -> 0 | M3: =Cb -> 0 | N3: ='Variable Management'!#REF! ->  | Q3: Resistors | R3: inputs | S3: Standard Result
A4: Standard Result | B4: =SUM(B6:B158)/1000000000000 -> 4.7e-08 | C4: =SUM(C6:C158)/1000000000000 -> 3.3e-09 | D4: 5.6e-11 | E4: 1.5e-09 | F4: 0.00033 | G4: 1.5e-05 | H4: 3.9e-12 | I4: =IF(I3="OPEN","OPEN",SUM(I6:I158)/1000000000000) -> 0 | J4: 0 | K4: 0 | L4: 0 | M4: 0 | Q4: Radj | R4: =Rfadj -> 20000 | S4: =IF(R4>(INT(0.5+100*POWER(10,IF(96*(LOG(R4)-INT(LOG(R4)))-ROUND(96*(LOG(R4)-INT(LOG(R4))),0)<0,ROUND(96*(LOG(R4)-INT(LOG(R4))),0)-1,ROUND(96*(LOG(R4)-INT(LOG(R4))),0))/96))*POWER(10,INT(LOG(R4))-2)+INT(0.5+100*POWER(10,(IF(96*(LOG(R4)-INT(LOG(R4)))-ROUND(96*(LOG(R4)-INT(LOG(R4))),0)<0,ROUND(96*(LOG(R4)-INT(LOG(R4))),0)-1,ROUND(96*(LOG(R4)-INT(LOG(R4))),0))+1)/96))*POWER(10,INT(LOG(R4))-2))/2,INT(0.5+100*POWER(10,(IF(96*(LOG(R4)-INT(LOG(R4)))-ROUND(96*(LOG(R4)-INT(LOG(R4))),0)<0,ROUND(96*(LOG(R4)-INT(LOG(R4))),0)-1,ROUND(96*(LOG(R4)-INT(LOG(R4))),0))+1)/96))*POWER(10,INT(LOG(R4))-2),INT(0.5+100*POWER(10,IF(96*(LOG(R4)-INT(LOG(R4)))-ROUND(96*(LOG(R4)-INT(LOG(R4))),0)<0,ROUND(96*(LOG(R4)-INT(LOG(R4))),0)-1,ROUND(96*(LOG(R4)-INT(LOG(R4))),0))/96))*POWER(10,INT(LOG(R4))-2)) -> 20000 | T4: Ω
A5: (pF) | Q5: Rilim_Rdson | R5: =Rilim_Rdson_ideal -> 1022.173338 | S5: 1020 | T5: Ω
A6: 0.47 | B6: =IF(IF((B$3*10^12-$A7)*(B$3*10^12-$A6)*-1<0,0,1)*IF(ABS(B$3*10^12-$A7)>(B$3*10^12-$A6),$A6,$A7)=B7,0,IF((B$3*10^12-$A7)*(B$3*10^12-$A6)*-1<0,0,1)*IF(ABS(B$3*10^12-$A7)>(B$3*10^12-$A6),$A6,$A7)) -> 0 | C6: =IF(IF((C$3*10^12-$A7)*(C$3*10^12-$A6)*-1<0,0,1)*IF(ABS(C$3*10^12-$A7)>(C$3*10^12-$A6),$A6,$A7)=C7,0,IF((C$3*10^12-$A7)*(C$3*10^12-$A6)*-1<0,0,1)*IF(ABS(C$3*10^12-$A7)>(C$3*10^12-$A6),$A6,$A7)) -> 0 | D6: =IF(IF((D$3*10^12-$A7)*(D$3*10^12-$A6)*-1<0,0,1)*IF(ABS(D$3*10^12-$A7)>(D$3*10^12-$A6),$A6,$A7)=D7,0,IF((D$3*10^12-$A7)*(D$3*10^12-$A6)*-1<0,0,1)*IF(ABS(D$3*10^12-$A7)>(D$3*10^12-$A6),$A6,$A7)) -> 0 | E6: =IF(IF((E$3*10^12-$A7)*(E$3*10^12-$A6)*-1<0,0,1)*IF(ABS(E$3*10^12-$A7)>(E$3*10^12-$A6),$A6,$A7)=E7,0,IF((E$3*10^12-$A7)*(E$3*10^12-$A6)*-1<0,0,1)*IF(ABS(E$3*10^12-$A7)>(E$3*10^12-$A6),$A6,$A7)) -> 0 | F6: =IF(IF((F$3*10^12-$A7)*(F$3*10^12-$A6)*-1<0,0,1)*IF(ABS(F$3*10^12-$A7)>(F$3*10^12-$A6),$A6,$A7)=F7,0,IF((F$3*10^12-$A7)*(F$3*10^12-$A6)*-1<0,0,1)*IF(ABS(F$3*10^12-$A7)>(F$3*10^12-$A6),$A6,$A7)) -> 0 | G6: =IF(IF((G$3*10^12-$A7)*(G$3*10^12-$A6)*-1<0,0,1)*IF(ABS(G$3*10^12-$A7)>(G$3*10^12-$A6),$A6,$A7)=G7,0,IF((G$3*10^12-$A7)*(G$3*10^12-$A6)*-1<0,0,1)*IF(ABS(G$3*10^12-$A7)>(G$3*10^12-$A6),$A6,$A7)) -> 0 | H6: =IF(IF((H$3*10^12-$A7)*(H$3*10^12-$A6)*-1<0,0,1)*IF(ABS(H$3*10^12-$A7)>(H$3*10^12-$A6),$A6,$A7)=H7,0,IF((H$3*10^12-$A7)*(H$3*10^12-$A6)*-1<0,0,1)*IF(ABS(H$3*10^12-$A7)>(H$3*10^12-$A6),$A6,$A7)) -> 0 | I6: 0 | J6: 0 | K6: 0 | L6: =IF(IF((L$3*10^12-$A7)*(L$3*10^12-$A6)*-1<0,0,1)*IF(ABS(L$3*10^12-$A7)>(L$3*10^12-$A6),$A6,$A7)=L7,0,IF((L$3*10^12-$A7)*(L$3*10^12-$A6)*-1<0,0,1)*IF(ABS(L$3*10^12-$A7)>(L$3*10^12-$A6),$A6,$A7)) -> 0 | M6: =IF(IF((M$3*10^12-$A7)*(M$3*10^12-$A6)*-1<0,0,1)*IF(ABS(M$3*10^12-$A7)>(M$3*10^12-$A6),$A6,$A7)=M7,0,IF((M$3*10^12-$A7)*(M$3*10^12-$A6)*-1<0,0,1)*IF(ABS(M$3*10^12-$A7)>(M$3*10^12-$A6),$A6,$A7)) -> 0 | N6: =IF(IF((N$3*10^12-$A7)*(N$3*10^12-$A6)*-1<0,0,1)*IF(ABS(N$3*10^12-$A7)>(N$3*10^12-$A6),$A6,$A7)=N7,0,IF((N$3*10^12-$A7)*(N$3*10^12-$A6)*-1<0,0,1)*IF(ABS(N$3*10^12-$A7)>(N$3*10^12-$A6),$A6,$A7)) ->  | Q6: Rilim_Rdson | R6: =Rilim_Rdson_ideal -> 1022.173338 | S6: 1020 | T6: Ω
A7: 0.56 | B7: =IF(IF((B$3*10^12-$A8)*(B$3*10^12-$A7)*-1<0,0,1)*IF(ABS(B$3*10^12-$A8)>(B$3*10^12-$A7),$A7,$A8)=B8,0,IF((B$3*10^12-$A8)*(B$3*10^12-$A7)*-1<0,0,1)*IF(ABS(B$3*10^12-$A8)>(B$3*10^12-$A7),$A7,$A8)) -> 0 | C7: =IF(IF((C$3*10^12-$A8)*(C$3*10^12-$A7)*-1<0,0,1)*IF(ABS(C$3*10^12-$A8)>(C$3*10^12-$A7),$A7,$A8)=C8,0,IF((C$3*10^12-$A8)*(C$3*10^12-$A7)*-1<0,0,1)*IF(ABS(C$3*10^12-$A8)>(C$3*10^12-$A7),$A7,$A8)) -> 0 | D7: 0 | E7: 0 | F7: 0 | G7: 0 | H7: 0 | I7: 0 | J7: 0 | K7: 0 | L7: 0 | M7: 0
A8: 0.68 | B8: 0 | C8: 0 | D8: 0 | E8: 0 | F8: 0 | G8: 0 | H8: 0 | I8: 0 | J8: 0 | K8: 0 | L8: 0 | M8: 0 | Q8: Rc1ea | R8: =Rcea1 -> 11625.89353 | S8: =IF(R8>(INT(0.5+100*POWER(10,IF(96*(LOG(R8)-INT(LOG(R8)))-ROUND(96*(LOG(R8)-INT(LOG(R8))),0)<0,ROUND(96*(LOG(R8)-INT(LOG(R8))),0)-1,ROUND(96*(LOG(R8)-INT(LOG(R8))),0))/96))*POWER(10,INT(LOG(R8))-2)+INT(0.5+100*POWER(10,(IF(96*(LOG(R8)-INT(LOG(R8)))-ROUND(96*(LOG(R8)-INT(LOG(R8))),0)<0,ROUND(96*(LOG(R8)-INT(LOG(R8))),0)-1,ROUND(96*(LOG(R8)-INT(LOG(R8))),0))+1)/96))*POWER(10,INT(LOG(R8))-2))/2,INT(0.5+100*POWER(10,(IF(96*(LOG(R8)-INT(LOG(R8)))-ROUND(96*(LOG(R8)-INT(LOG(R8))),0)<0,ROUND(96*(LOG(R8)-INT(LOG(R8))),0)-1,ROUND(96*(LOG(R8)-INT(LOG(R8))),0))+1)/96))*POWER(10,INT(LOG(R8))-2),INT(0.5+100*POWER(10,IF(96*(LOG(R8)-INT(LOG(R8)))-ROUND(96*(LOG(R8)-INT(LOG(R8))),0)<0,ROUND(96*(LOG(R8)-INT(LOG(R8))),0)-1,ROUND(96*(LOG(R8)-INT(LOG(R8))),0))/96))*POWER(10,INT(LOG(R8))-2)) -> 11500 | T8: Ω
A9: 0.82 | B9: 0 | C9: 0 | D9: 0 | E9: 0 | F9: 0 | G9: 0 | H9: 0 | I9: 0 | J9: 0 | K9: 0 | L9: 0 | M9: 0 | Q9: Rc2ea | R9: =Rcea2 -> 231.3242363 | S9: =IF(R9>(INT(0.5+100*POWER(10,IF(96*(LOG(R9)-INT(LOG(R9)))-ROUND(96*(LOG(R9)-INT(LOG(R9))),0)<0,ROUND(96*(LOG(R9)-INT(LOG(R9))),0)-1,ROUND(96*(LOG(R9)-INT(LOG(R9))),0))/96))*POWER(10,INT(LOG(R9))-2)+INT(0.5+100*POWER(10,(IF(96*(LOG(R9)-INT(LOG(R9)))-ROUND(96*(LOG(R9)-INT(LOG(R9))),0)<0,ROUND(96*(LOG(R9)-INT(LOG(R9))),0)-1,ROUND(96*(LOG(R9)-INT(LOG(R9))),0))+1)/96))*POWER(10,INT(LOG(R9))-2))/2,INT(0.5+100*POWER(10,(IF(96*(LOG(R9)-INT(LOG(R9)))-ROUND(96*(LOG(R9)-INT(LOG(R9))),0)<0,ROUND(96*(LOG(R9)-INT(LOG(R9))),0)-1,ROUND(96*(LOG(R9)-INT(LOG(R9))),0))+1)/96))*POWER(10,INT(LOG(R9))-2),INT(0.5+100*POWER(10,IF(96*(LOG(R9)-INT(LOG(R9)))-ROUND(96*(LOG(R9)-INT(LOG(R9))),0)<0,ROUND(96*(LOG(R9)-INT(LOG(R9))),0)-1,ROUND(96*(LOG(R9)-INT(LOG(R9))),0))/96))*POWER(10,INT(LOG(R9))-2)) -> 232 | T9: Ω
A10: 1 | B10: 0 | C10: 0 | D10: 0 | E10: 0 | F10: 0 | G10: 0 | H10: 0 | I10: 0 | J10: 0 | K10: 0 | L10: 0 | M10: 0 | Q10: Rfb1 | R10: =_Rfb1 -> 21000 | S10: =IF(R10>(INT(0.5+100*POWER(10,IF(96*(LOG(R10)-INT(LOG(R10)))-ROUND(96*(LOG(R10)-INT(LOG(R10))),0)<0,ROUND(96*(LOG(R10)-INT(LOG(R10))),0)-1,ROUND(96*(LOG(R10)-INT(LOG(R10))),0))/96))*POWER(10,INT(LOG(R10))-2)+INT(0.5+100*POWER(10,(IF(96*(LOG(R10)-INT(LOG(R10)))-ROUND(96*(LOG(R10)-INT(LOG(R10))),0)<0,ROUND(96*(LOG(R10)-INT(LOG(R10))),0)-1,ROUND(96*(LOG(R10)-INT(LOG(R10))),0))+1)/96))*POWER(10,INT(LOG(R10))-2))/2,INT(0.5+100*POWER(10,(IF(96*(LOG(R10)-INT(LOG(R10)))-ROUND(96*(LOG(R10)-INT(LOG(R10))),0)<0,ROUND(96*(LOG(R10)-INT(LOG(R10))),0)-1,ROUND(96*(LOG(R10)-INT(LOG(R10))),0))+1)/96))*POWER(10,INT(LOG(R10))-2),INT(0.5+100*POWER(10,IF(96*(LOG(R10)-INT(LOG(R10)))-ROUND(96*(LOG(R10)-INT(LOG(R10))),0)<0,ROUND(96*(LOG(R10)-INT(LOG(R10))),0)-1,ROUND(96*(LOG(R10)-INT(LOG(R10))),0))/96))*POWER(10,INT(LOG(R10))-2)) -> 21000 | T10: Ω
A11: 1.2 | B11: 0 | C11: 0 | D11: 0 | E11: 0 | F11: 0 | G11: 0 | H11: 0 | I11: 0 | J11: 0 | K11: 0 | L11: 0 | M11: 0 | Q11: Rfb2 | R11: =_Rfb2 -> 4000 | S11: =IF(R11="OPEN","OPEN",IF(R11>(INT(0.5+100*POWER(10,IF(96*(LOG(R11)-INT(LOG(R11)))-ROUND(96*(LOG(R11)-INT(LOG(R11))),0)<0,ROUND(96*(LOG(R11)-INT(LOG(R11))),0)-1,ROUND(96*(LOG(R11)-INT(LOG(R11))),0))/96))*POWER(10,INT(LOG(R11))-2)+INT(0.5+100*POWER(10,(IF(96*(LOG(R11)-INT(LOG(R11)))-ROUND(96*(LOG(R11)-INT(LOG(R11))),0)<0,ROUND(96*(LOG(R11)-INT(LOG(R11))),0)-1,ROUND(96*(LOG(R11)-INT(LOG(R11))),0))+1)/96))*POWER(10,INT(LOG(R11))-2))/2,INT(0.5+100*POWER(10,(IF(96*(LOG(R11)-INT(LOG(R11)))-ROUND(96*(LOG(R11)-INT(LOG(R11))),0)<0,ROUND(96*(LOG(R11)-INT(LOG(R11))),0)-1,ROUND(96*(LOG(R11)-INT(LOG(R11))),0))+1)/96))*POWER(10,INT(LOG(R11))-2),INT(0.5+100*POWER(10,IF(96*(LOG(R11)-INT(LOG(R11)))-ROUND(96*(LOG(R11)-INT(LOG(R11))),0)<0,ROUND(96*(LOG(R11)-INT(LOG(R11))),0)-1,ROUND(96*(LOG(R11)-INT(LOG(R11))),0))/96))*POWER(10,INT(LOG(R11))-2))) -> 4020 | T11: Ω
A12: 1.5 | B12: 0 | C12: 0 | D12: 0 | E12: 0 | F12: 0 | G12: 0 | H12: 0 | I12: 0 | J12: 0 | K12: 0 | L12: 0 | M12: 0 | Q12: Rs1 | R12: =_Rs1 -> 3.9
A13: 1.8 | B13: 0 | C13: 0 | D13: 0 | E13: 0 | F13: 0 | G13: 0 | H13: 0 | I13: 0 | J13: 0 | K13: 0 | L13: 0 | M13: 0 | Q13: Rs2 | R13: =_Rs2 -> 3.869845924e-12
A14: 2.2 | B14: 0 | C14: 0 | D14: 0 | E14: 0 | F14: 0 | G14: 0 | H14: 0 | I14: 0 | J14: 0 | K14: 0 | L14: 0 | M14: 0 | Q14: Rs3 | R14: =_Rs3 -> 1.34
A15: 2.7 | B15: 0 | C15: 0 | D15: 0 | E15: 0 | F15: 0 | G15: 0 | H15: 0 | I15: 0 | J15: 0 | K15: 0 | L15: 0 | M15: 0
A16: 3.3 | B16: 0 | C16: 0 | D16: 0 | E16: 0 | F16: 0 | G16: 0 | H16: 3.9 | I16: 0 | J16: 0 | K16: 0 | L16: 0 | M16: 0 | Q16: Ruv1 | R16: =Ruvlo1 -> 700 | S16: =IF(R16="OPEN","OPEN",IF(R16>(INT(0.5+100*POWER(10,IF(96*(LOG(R16)-INT(LOG(R16)))-ROUND(96*(LOG(R16)-INT(LOG(R16))),0)<0,ROUND(96*(LOG(R16)-INT(LOG(R16))),0)-1,ROUND(96*(LOG(R16)-INT(LOG(R16))),0))/96))*POWER(10,INT(LOG(R16))-2)+INT(0.5+100*POWER(10,(IF(96*(LOG(R16)-INT(LOG(R16)))-ROUND(96*(LOG(R16)-INT(LOG(R16))),0)<0,ROUND(96*(LOG(R16)-INT(LOG(R16))),0)-1,ROUND(96*(LOG(R16)-INT(LOG(R16))),0))+1)/96))*POWER(10,INT(LOG(R16))-2))/2,INT(0.5+100*POWER(10,(IF(96*(LOG(R16)-INT(LOG(R16)))-ROUND(96*(LOG(R16)-INT(LOG(R16))),0)<0,ROUND(96*(LOG(R16)-INT(LOG(R16))),0)-1,ROUND(96*(LOG(R16)-INT(LOG(R16))),0))+1)/96))*POWER(10,INT(LOG(R16))-2),INT(0.5+100*POWER(10,IF(96*(LOG(R16)-INT(LOG(R16)))-ROUND(96*(LOG(R16)-INT(LOG(R16))),0)<0,ROUND(96*(LOG(R16)-INT(LOG(R16))),0)-1,ROUND(96*(LOG(R16)-INT(LOG(R16))),0))/96))*POWER(10,INT(LOG(R16))-2))) -> 698 | T16: kΩ
A17: 3.9 | B17: 0 | C17: 0 | D17: 0 | E17: 0 | F17: 0 | G17: 0 | H17: 0 | I17: 0 | J17: 0 | K17: 0 | L17: 0 | M17: 0 | Q17: Ruv2 | R17: =Ruvlo2 -> 44.55319149 | S17: 44.2 | T17: kΩ
A18: 4.7 | B18: 0 | C18: 0 | D18: 0 | E18: 0 | F18: 0 | G18: 0 | H18: 0 | I18: 0 | J18: 0 | K18: 0 | L18: 0 | M18: 0
A19: 5.6 | B19: 0 | C19: 0 | D19: 0 | E19: 0 | F19: 0 | G19: 0 | H19: 0 | I19: 0 | J19: 0 | K19: 0 | L19: 0 | M19: 0
A20: 6.8 | B20: 0 | C20: 0 | D20: 0 | E20: 0 | F20: 0 | G20: 0 | H20: 0 | I20: 0 | J20: 0 | K20: 0 | L20: 0 | M20: 0
A21: 8.2 | B21: 0 | C21: 0 | D21: 0 | E21: 0 | F21: 0 | G21: 0 | H21: 0 | I21: 0 | J21: 0 | K21: 0 | L21: 0 | M21: 0
A22: 10 | B22: 0 | C22: 0 | D22: 0 | E22: 0 | F22: 0 | G22: 0 | H22: 0 | I22: 0 | J22: 0 | K22: 0 | L22: 0 | M22: 0 | Q22: Rilim_shunt | R22: =Rilim_shunt_ideal -> 1202.556868 | S22: =IF(R22=0,0,IF(R22>(INT(0.5+100*POWER(10,IF(96*(LOG(R22)-INT(LOG(R22)))-ROUND(96*(LOG(R22)-INT(LOG(R22))),0)<0,ROUND(96*(LOG(R22)-INT(LOG(R22))),0)-1,ROUND(96*(LOG(R22)-INT(LOG(R22))),0))/96))*POWER(10,INT(LOG(R22))-2)+INT(0.5+100*POWER(10,(IF(96*(LOG(R22)-INT(LOG(R22)))-ROUND(96*(LOG(R22)-INT(LOG(R22))),0)<0,ROUND(96*(LOG(R22)-INT(LOG(R22))),0)-1,ROUND(96*(LOG(R22)-INT(LOG(R22))),0))+1)/96))*POWER(10,INT(LOG(R22))-2))/2,INT(0.5+100*POWER(10,(IF(96*(LOG(R22)-INT(LOG(R22)))-ROUND(96*(LOG(R22)-INT(LOG(R22))),0)<0,ROUND(96*(LOG(R22)-INT(LOG(R22))),0)-1,ROUND(96*(LOG(R22)-INT(LOG(R22))),0))+1)/96))*POWER(10,INT(LOG(R22))-2),INT(0.5+100*POWER(10,IF(96*(LOG(R22)-INT(LOG(R22)))-ROUND(96*(LOG(R22)-INT(LOG(R22))),0)<0,ROUND(96*(LOG(R22)-INT(LOG(R22))),0)-1,ROUND(96*(LOG(R22)-INT(LOG(R22))),0))/96))*POWER(10,INT(LOG(R22))-2))) -> 1210 | T22: Ω
A23: 12 | B23: 0 | C23: 0 | D23: 0 | E23: 0 | F23: 0 | G23: 0 | H23: 0 | I23: 0 | J23: 0 | K23: 0 | L23: 0 | M23: 0 | Q23: Cilim | R23: =Cilim -> 3.869845924e-12 | S23: =H4*1000000000000 -> 3.9 | T23: pF
A24: 15 | B24: 0 | C24: 0 | D24: 0 | E24: 0 | F24: 0 | G24: 0 | H24: 0 | I24: 0 | J24: 0 | K24: 0 | L24: 0 | M24: 0
A25: 18 | B25: 0 | C25: 0 | D25: 0 | E25: 0 | F25: 0 | G25: 0 | H25: 0 | I25: 0 | J25: 0 | K25: 0 | L25: 0 | M25: 0
A26: 22 | B26: 0 | C26: 0 | D26: 0 | E26: 0 | F26: 0 | G26: 0 | H26: 0 | I26: 0 | J26: 0 | K26: 0 | L26: 0 | M26: 0
A27: 27 | B27: 0 | C27: 0 | D27: 0 | E27: 0 | F27: 0 | G27: 0 | H27: 0 | I27: 0 | J27: 0 | K27: 0 | L27: 0 | M27: 0 | Q27: Rc1 | R27: =S8/1000&" kΩ" -> 11.5 kΩ | S27: =S8/1000 -> 11.5 | T27: kΩ
A28: 33 | B28: 0 | C28: 0 | D28: 0 | E28: 0 | F28: 0 | G28: 0 | H28: 0 | I28: 0 | J28: 0 | K28: 0 | L28: 0 | M28: 0 | Q28: Cc1 | R28: =C4*1000000000000&" pF" -> 3300 pF | S28: =C4*1000000000000 -> 3300 | T28: pF
A29: 39 | B29: 0 | C29: 0 | D29: 0 | E29: 0 | F29: 0 | G29: 0 | H29: 0 | I29: 0 | J29: 0 | K29: 0 | L29: 0 | M29: 0 | Q29: Cc2 | R29: =D4*1000000000000&" pF" -> 56 pF | S29: =D4*1000000000000 -> 56 | T29: pF
A30: 47 | B30: 0 | C30: 0 | D30: 56 | E30: 0 | F30: 0 | G30: 0 | H30: 0 | I30: 0 | J30: 0 | K30: 0 | L30: 0 | M30: 0 | Q30: Rc2 | R30: =S9&" Ω" -> 232 Ω | S30: =S9 -> 232 | T30: Ω
A31: 56 | B31: 0 | C31: 0 | D31: 0 | E31: 0 | F31: 0 | G31: 0 | H31: 0 | I31: 0 | J31: 0 | K31: 0 | L31: 0 | M31: 0 | Q31: Cc3 | R31: =E4*1000000000000&" pF" -> 1500 pF | S31: =E4*1000000000000 -> 1500 | T31: pF
A32: 68 | B32: 0 | C32: 0 | D32: 0 | E32: 0 | F32: 0 | G32: 0 | H32: 0 | I32: 0 | J32: 0 | K32: 0 | L32: 0 | M32: 0
A33: 82 | B33: 0 | C33: 0 | D33: 0 | E33: 0 | F33: 0 | G33: 0 | H33: 0 | I33: 0 | J33: 0 | K33: 0 | L33: 0 | M33: 0
A34: =A22*10 -> 100 | B34: 0 | C34: 0 | D34: 0 | E34: 0 | F34: 0 | G34: 0 | H34: 0 | I34: 0 | J34: 0 | K34: 0 | L34: 0 | M34: 0
A35: =A23*10 -> 120 | B35: 0 | C35: 0 | D35: 0 | E35: 0 | F35: 0 | G35: 0 | H35: 0 | I35: 0 | J35: 0 | K35: 0 | L35: 0 | M35: 0
A36: 150 | B36: 0 | C36: 0 | D36: 0 | E36: 0 | F36: 0 | G36: 0 | H36: 0 | I36: 0 | J36: 0 | K36: 0 | L36: 0 | M36: 0
A37: 180 | B37: 0 | C37: 0 | D37: 0 | E37: 0 | F37: 0 | G37: 0 | H37: 0 | I37: 0 | J37: 0 | K37: 0 | L37: 0 | M37: 0
A38: 220 | B38: 0 | C38: 0 | D38: 0 | E38: 0 | F38: 0 | G38: 0 | H38: 0 | I38: 0 | J38: 0 | K38: 0 | L38: 0 | M38: =IF(IF((M$3*10^12-$A39)*(M$3*10^12-$A38)*-1<0,0,1)*IF(ABS(M$3*10^12-$A39)>(M$3*10^12-$A38),$A38,$A39)=M39,0,IF((M$3*10^12-$A39)*(M$3*10^12-$A38)*-1<0,0,1)*IF(ABS(M$3*10^12-$A39)>(M$3*10^12-$A38),$A38,$A39)) -> 0 | N38: =IF(IF((N$3*10^12-$A39)*(N$3*10^12-$A38)*-1<0,0,1)*IF(ABS(N$3*10^12-$A39)>(N$3*10^12-$A38),$A38,$A39)=N39,0,IF((N$3*10^12-$A39)*(N$3*10^12-$A38)*-1<0,0,1)*IF(ABS(N$3*10^12-$A39)>(N$3*10^12-$A38),$A38,$A39)) -> 
A39: 270 | B39: 0 | C39: =IF(IF((C$3*10^12-$A40)*(C$3*10^12-$A39)*-1<0,0,1)*IF(ABS(C$3*10^12-$A40)>(C$3*10^12-$A39),$A39,$A40)=C40,0,IF((C$3*10^12-$A40)*(C$3*10^12-$A39)*-1<0,0,1)*IF(ABS(C$3*10^12-$A40)>(C$3*10^12-$A39),$A39,$A40)) -> 0 | D39: 0 | E39: 0 | F39: 0 | G39: 0 | H39: 0 | I39: 0 | J39: 0 | K39: 0 | L39: 0 | M39: 0
A40: 330 | B40: 0 | C40: 0 | D40: 0 | E40: 0 | F40: 0 | G40: 0 | H40: 0 | I40: 0 | J40: 0 | K40: 0 | L40: 0 | M40: 0
A41: 390 | B41: 0 | C41: 0 | D41: 0 | E41: 0 | F41: 0 | G41: 0 | H41: 0 | I41: 0 | J41: 0 | K41: 0 | L41: 0 | M41: 0
A42: 470 | B42: 0 | C42: 0 | D42: 0 | E42: 0 | F42: 0 | G42: 0 | H42: 0 | I42: 0 | J42: 0 | K42: 0 | L42: 0 | M42: 0
A43: 560 | B43: 0 | C43: 0 | D43: 0 | E43: 0 | F43: 0 | G43: 0 | H43: 0 | I43: 0 | J43: 0 | K43: 0 | L43: 0 | M43: 0
A44: 680 | B44: 0 | C44: 0 | D44: 0 | E44: 0 | F44: 0 | G44: 0 | H44: 0 | I44: 0 | J44: 0 | K44: 0 | L44: 0 | M44: 0
A45: =A33*10 -> 820 | B45: 0 | C45: 0 | D45: 0 | E45: 0 | F45: 0 | G45: 0 | H45: 0 | I45: 0 | J45: 0 | K45: 0 | L45: 0 | M45: 0
A46: 1000 | B46: 0 | C46: 0 | D46: 0 | E46: 0 | F46: 0 | G46: 0 | H46: 0 | I46: 0 | J46: 0 | K46: 0 | L46: 0 | M46: 0
A47: 1200 | B47: 0 | C47: 0 | D47: 0 | E47: 1500 | F47: 0 | G47: 0 | H47: 0 | I47: 0 | J47: 0 | K47: 0 | L47: 0 | M47: 0
A48: 1500 | B48: 0 | C48: 0 | D48: 0 | E48: 0 | F48: 0 | G48: 0 | H48: 0 | I48: 0 | J48: 0 | K48: 0 | L48: 0 | M48: 0
A49: 1800 | B49: 0 | C49: 0 | D49: 0 | E49: 0 | F49: 0 | G49: 0 | H49: 0 | I49: 0 | J49: 0 | K49: 0 | L49: 0 | M49: 0
A50: 2200 | B50: 0 | C50: 0 | D50: 0 | E50: 0 | F50: 0 | G50: 0 | H50: 0 | I50: 0 | J50: 0 | K50: 0 | L50: 0 | M50: 0
A51: 2700 | B51: 0 | C51: 3300 | D51: 0 | E51: 0 | F51: 0 | G51: 0 | H51: 0 | I51: 0 | J51: 0 | K51: 0 | L51: 0 | M51: 0
A52: 3300 | B52: 0 | C52: 0 | D52: 0 | E52: 0 | F52: 0 | G52: 0 | H52: 0 | I52: 0 | J52: 0 | K52: 0 | L52: 0 | M52: 0
A53: 3900 | B53: 0 | C53: 0 | D53: 0 | E53: 0 | F53: 0 | G53: 0 | H53: 0 | I53: 0 | J53: 0 | K53: 0 | L53: 0 | M53: 0
A54: 4700 | B54: 0 | C54: 0 | D54: 0 | E54: 0 | F54: 0 | G54: 0 | H54: 0 | I54: 0 | J54: 0 | K54: 0 | L54: 0 | M54: 0
A55: 5600 | B55: 0 | C55: 0 | D55: 0 | E55: 0 | F55: 0 | G55: 0 | H55: 0 | I55: 0 | J55: 0 | K55: 0 | L55: 0 | M55: 0
A56: 6800 | B56: 0 | C56: 0 | D56: 0 | E56: 0 | F56: 0 | G56: 0 | H56: 0 | I56: 0 | J56: 0 | K56: 0 | L56: 0 | M56: 0
A57: 8200 | B57: 0 | C57: 0 | D57: 0 | E57: 0 | F57: 0 | G57: 0 | H57: 0 | I57: 0 | J57: 0 | K57: 0 | L57: 0 | M57: 0
A58: 10000 | B58: 0 | C58: 0 | D58: 0 | E58: 0 | F58: 0 | G58: 0 | H58: 0 | I58: 0 | J58: 0 | K58: 0 | L58: 0 | M58: 0
A59: 12000 | B59: 0 | C59: 0 | D59: 0 | E59: 0 | F59: 0 | G59: 0 | H59: 0 | I59: 0 | J59: 0 | K59: 0 | L59: 0 | M59: 0
A60: 15000 | B60: 0 | C60: 0 | D60: 0 | E60: 0 | F60: 0 | G60: 0 | H60: 0 | I60: 0 | J60: 0 | K60: 0 | L60: 0 | M60: 0
A61: 18000 | B61: 0 | C61: 0 | D61: 0 | E61: 0 | F61: 0 | G61: 0 | H61: 0 | I61: 0 | J61: 0 | K61: 0 | L61: 0 | M61: 0
A62: 22000 | B62: 0 | C62: 0 | D62: 0 | E62: 0 | F62: 0 | G62: 0 | H62: 0 | I62: 0 | J62: 0 | K62: 0 | L62: 0 | M62: 0
A63: 27000 | B63: 0 | C63: 0 | D63: 0 | E63: 0 | F63: 0 | G63: 0 | H63: 0 | I63: 0 | J63: 0 | K63: 0 | L63: 0 | M63: 0
A64: 33000 | B64: 0 | C64: 0 | D64: 0 | E64: 0 | F64: 0 | G64: 0 | H64: 0 | I64: 0 | J64: 0 | K64: 0 | L64: 0 | M64: 0
A65: 39000 | B65: 0 | C65: 0 | D65: 0 | E65: 0 | F65: 0 | G65: 0 | H65: 0 | I65: 0 | J65: 0 | K65: 0 | L65: 0 | M65: 0
A66: 47000 | B66: 47000 | C66: 0 | D66: 0 | E66: 0 | F66: 0 | G66: 0 | H66: 0 | I66: 0 | J66: 0 | K66: 0 | L66: 0 | M66: 0
A67: 56000 | B67: 0 | C67: 0 | D67: 0 | E67: 0 | F67: 0 | G67: 0 | H67: 0 | I67: 0 | J67: 0 | K67: 0 | L67: 0 | M67: 0
A68: 68000 | B68: 0 | C68: 0 | D68: 0 | E68: 0 | F68: 0 | G68: 0 | H68: 0 | I68: 0 | J68: 0 | K68: 0 | L68: 0 | M68: 0
A69: 82000 | B69: 0 | C69: 0 | D69: 0 | E69: 0 | F69: 0 | G69: 0 | H69: 0 | I69: 0 | J69: 0 | K69: =IF(IF((K$3*10^12-$A70)*(K$3*10^12-$A69)*-1<0,0,1)*IF(ABS(K$3*10^12-$A70)>(K$3*10^12-$A69),$A69,$A70)=K70,0,IF((K$3*10^12-$A70)*(K$3*10^12-$A69)*-1<0,0,1)*IF(ABS(K$3*10^12-$A70)>(K$3*10^12-$A69),$A69,$A70)) -> 0 | L69: 0 | M69: 0
A70: 100000 | B70: 0 | C70: 0 | D70: =IF(IF((D$3*10^12-$A71)*(D$3*10^12-$A70)*-1<0,0,1)*IF(ABS(D$3*10^12-$A71)>(D$3*10^12-$A70),$A70,$A71)=D71,0,IF((D$3*10^12-$A71)*(D$3*10^12-$A70)*-1<0,0,1)*IF(ABS(D$3*10^12-$A71)>(D$3*10^12-$A70),$A70,$A71)) -> 0 | E70: 0 | F70: 0 | G70: 0 | H70: 0 | I70: 0 | J70: 0 | K70: 0 | L70: 0 | M70: =IF(IF((M$3*10^12-$A71)*(M$3*10^12-$A70)*-1<0,0,1)*IF(ABS(M$3*10^12-$A71)>(M$3*10^12-$A70),$A70,$A71)=M71,0,IF((M$3*10^12-$A71)*(M$3*10^12-$A70)*-1<0,0,1)*IF(ABS(M$3*10^12-$A71)>(M$3*10^12-$A70),$A70,$A71)) -> 0 | N70: =IF(IF((N$3*10^12-$A71)*(N$3*10^12-$A70)*-1<0,0,1)*IF(ABS(N$3*10^12-$A71)>(N$3*10^12-$A70),$A70,$A71)=N71,0,IF((N$3*10^12-$A71)*(N$3*10^12-$A70)*-1<0,0,1)*IF(ABS(N$3*10^12-$A71)>(N$3*10^12-$A70),$A70,$A71)) -> 
A71: 120000 | B71: =IF(IF((B$3*10^12-$A72)*(B$3*10^12-$A71)*-1<0,0,1)*IF(ABS(B$3*10^12-$A72)>(B$3*10^12-$A71),$A71,$A72)=B72,0,IF((B$3*10^12-$A72)*(B$3*10^12-$A71)*-1<0,0,1)*IF(ABS(B$3*10^12-$A72)>(B$3*10^12-$A71),$A71,$A72)) -> 0 | C71: =IF(IF((C$3*10^12-$A72)*(C$3*10^12-$A71)*-1<0,0,1)*IF(ABS(C$3*10^12-$A72)>(C$3*10^12-$A71),$A71,$A72)=C72,0,IF((C$3*10^12-$A72)*(C$3*10^12-$A71)*-1<0,0,1)*IF(ABS(C$3*10^12-$A72)>(C$3*10^12-$A71),$A71,$A72)) -> 0 | D71: 0 | E71: 0 | F71: 0 | G71: =IF(IF((G$3*10^12-$A72)*(G$3*10^12-$A71)*-1<0,0,1)*IF(ABS(G$3*10^12-$A72)>(G$3*10^12-$A71),$A71,$A72)=G72,0,IF((G$3*10^12-$A72)*(G$3*10^12-$A71)*-1<0,0,1)*IF(ABS(G$3*10^12-$A72)>(G$3*10^12-$A71),$A71,$A72)) -> 0 | H71: =IF(IF((H$3*10^12-$A72)*(H$3*10^12-$A71)*-1<0,0,1)*IF(ABS(H$3*10^12-$A72)>(H$3*10^12-$A71),$A71,$A72)=H72,0,IF((H$3*10^12-$A72)*(H$3*10^12-$A71)*-1<0,0,1)*IF(ABS(H$3*10^12-$A72)>(H$3*10^12-$A71),$A71,$A72)) -> 0 | I71: =IF(IF((I$3*10^12-$A72)*(I$3*10^12-$A71)*-1<0,0,1)*IF(ABS(I$3*10^12-$A72)>(I$3*10^12-$A71),$A71,$A72)=I72,0,IF((I$3*10^12-$A72)*(I$3*10^12-$A71)*-1<0,0,1)*IF(ABS(I$3*10^12-$A72)>(I$3*10^12-$A71),$A71,$A72)) -> 0 | J71: =IF(IF((J$3*10^12-$A72)*(J$3*10^12-$A71)*-1<0,0,1)*IF(ABS(J$3*10^12-$A72)>(J$3*10^12-$A71),$A71,$A72)=J72,0,IF((J$3*10^12-$A72)*(J$3*10^12-$A71)*-1<0,0,1)*IF(ABS(J$3*10^12-$A72)>(J$3*10^12-$A71),$A71,$A72)) -> 0 | K71: 0 | L71: 0 | M71: 0
A72: 150000 | B72: 0 | C72: 0 | D72: 0 | E72: 0 | F72: 0 | G72: 0 | H72: 0 | I72: 0 | J72: 0 | K72: 0 | L72: 0 | M72: 0
A73: 180000 | B73: 0 | C73: 0 | D73: 0 | E73: 0 | F73: 0 | G73: 0 | H73: 0 | I73: 0 | J73: 0 | K73: 0 | L73: 0 | M73: 0
A74: 220000 | B74: 0 | C74: 0 | D74: 0 | E74: 0 | F74: 0 | G74: 0 | H74: 0 | I74: 0 | J74: 0 | K74: 0 | L74: 0 | M74: 0
A75: 270000 | B75: 0 | C75: 0 | D75: 0 | E75: 0 | F75: 0 | G75: 0 | H75: 0 | I75: 0 | J75: 0 | K75: 0 | L75: 0 | M75: 0
A76: 330000 | B76: 0 | C76: 0 | D76: 0 | E76: 0 | F76: 0 | G76: 0 | H76: 0 | I76: 0 | J76: 0 | K76: 0 | L76: 0 | M76: 0
A77: 390000 | B77: 0 | C77: 0 | D77: 0 | E77: 0 | F77: 0 | G77: 0 | H77: 0 | I77: 0 | J77: 0 | K77: 0 | L77: 0 | M77: 0
A78: 470000 | B78: 0 | C78: 0 | D78: 0 | E78: 0 | F78: 0 | G78: 0 | H78: 0 | I78: 0 | J78: 0 | K78: 0 | L78: 0 | M78: 0
A79: 560000 | B79: 0 | C79: 0 | D79: 0 | E79: 0 | F79: 0 | G79: 0 | H79: 0 | I79: 0 | J79: 0 | K79: 0 | L79: 0 | M79: 0
A80: 680000 | B80: 0 | C80: 0 | D80: 0 | E80: 0 | F80: 0 | G80: 0 | H80: 0 | I80: 0 | J80: 0 | K80: 0 | L80: 0 | M80: 0
A81: 820000 | B81: 0 | C81: 0 | D81: 0 | E81: 0 | F81: 0 | G81: 0 | H81: 0 | I81: 0 | J81: 0 | K81: 0 | L81: 0 | M81: 0
A82: 1000000 | B82: 0 | C82: 0 | D82: 0 | E82: 0 | F82: 0 | G82: 0 | H82: 0 | I82: 0 | J82: 0 | K82: 0 | L82: 0 | M82: 0
A83: 1200000 | B83: 0 | C83: 0 | D83: 0 | E83: 0 | F83: 0 | G83: 0 | H83: 0 | I83: 0 | J83: 0 | K83: 0 | L83: 0 | M83: 0
A84: 1500000 | B84: 0 | C84: 0 | D84: 0 | E84: 0 | F84: 0 | G84: 0 | H84: 0 | I84: 0 | J84: 0 | K84: 0 | L84: 0 | M84: 0
A85: 1800000 | B85: 0 | C85: 0 | D85: 0 | E85: 0 | F85: 0 | G85: 0 | H85: 0 | I85: 0 | J85: 0 | K85: 0 | L85: 0 | M85: 0
A86: 2200000 | B86: 0 | C86: 0 | D86: 0 | E86: 0 | F86: 0 | G86: 0 | H86: 0 | I86: 0 | J86: 0 | K86: 0 | L86: 0 | M86: 0
A87: 2700000 | B87: 0 | C87: 0 | D87: 0 | E87: 0 | F87: 0 | G87: 0 | H87: 0 | I87: 0 | J87: 0 | K87: 0 | L87: 0 | M87: 0
A88: 3300000 | B88: 0 | C88: 0 | D88: 0 | E88: 0 | F88: 0 | G88: 0 | H88: 0 | I88: 0 | J88: 0 | K88: 0 | L88: 0 | M88: 0
A89: 3900000 | B89: 0 | C89: 0 | D89: 0 | E89: 0 | F89: 0 | G89: 0 | H89: 0 | I89: 0 | J89: 0 | K89: 0 | L89: 0 | M89: 0
A90: 4700000 | B90: 0 | C90: 0 | D90: 0 | E90: 0 | F90: 0 | G90: 0 | H90: 0 | I90: 0 | J90: 0 | K90: 0 | L90: 0 | M90: 0
A91: 5600000 | B91: 0 | C91: 0 | D91: 0 | E91: 0 | F91: 0 | G91: 0 | H91: 0 | I91: 0 | J91: 0 | K91: 0 | L91: 0 | M91: 0
A92: 6800000 | B92: 0 | C92: 0 | D92: 0 | E92: 0 | F92: 0 | G92: 0 | H92: 0 | I92: 0 | J92: 0 | K92: 0 | L92: 0 | M92: 0
A93: 8200000 | B93: 0 | C93: 0 | D93: 0 | E93: 0 | F93: 0 | G93: 0 | H93: 0 | I93: 0 | J93: 0 | K93: 0 | L93: 0 | M93: 0
A94: 10000000 | B94: 0 | C94: 0 | D94: 0 | E94: 0 | F94: 0 | G94: 0 | H94: 0 | I94: 0 | J94: 0 | K94: 0 | L94: 0 | M94: 0
A95: 12000000 | B95: 0 | C95: 0 | D95: 0 | E95: 0 | F95: 0 | G95: 0 | H95: 0 | I95: 0 | J95: 0 | K95: 0 | L95: 0 | M95: 0
A96: 15000000 | B96: 0 | C96: 0 | D96: 0 | E96: 0 | F96: 0 | G96: 15000000 | H96: 0 | I96: 0 | J96: 0 | K96: 0 | L96: 0 | M96: 0
A97: 18000000 | B97: 0 | C97: 0 | D97: 0 | E97: 0 | F97: 0 | G97: 0 | H97: 0 | I97: 0 | J97: 0 | K97: 0 | L97: 0 | M97: 0
A98: 22000000 | B98: 0 | C98: 0 | D98: 0 | E98: 0 | F98: 0 | G98: 0 | H98: 0 | I98: 0 | J98: 0 | K98: 0 | L98: 0 | M98: 0
A99: =A87*10 -> 27000000 | B99: 0 | C99: 0 | D99: 0 | E99: 0 | F99: 0 | G99: 0 | H99: 0 | I99: 0 | J99: 0 | K99: 0 | L99: 0 | M99: 0
A100: 33000000 | B100: 0 | C100: 0 | D100: 0 | E100: 0 | F100: 0 | G100: 0 | H100: 0 | I100: 0 | J100: 0 | K100: 0 | L100: 0 | M100: 0
A101: 39000000 | B101: 0 | C101: 0 | D101: 0 | E101: 0 | F101: 0 | G101: 0 | H101: 0 | I101: 0 | J101: 0 | K101: 0 | L101: 0 | M101: 0
A102: 47000000 | B102: 0 | C102: 0 | D102: 0 | E102: 0 | F102: 0 | G102: 0 | H102: 0 | I102: 0 | J102: 0 | K102: 0 | L102: 0 | M102: =IF(IF((M$3*10^12-$A103)*(M$3*10^12-$A102)*-1<0,0,1)*IF(ABS(M$3*10^12-$A103)>(M$3*10^12-$A102),$A102,$A103)=M103,0,IF((M$3*10^12-$A103)*(M$3*10^12-$A102)*-1<0,0,1)*IF(ABS(M$3*10^12-$A103)>(M$3*10^12-$A102),$A102,$A103)) -> 0 | N102: =IF(IF((N$3*10^12-$A103)*(N$3*10^12-$A102)*-1<0,0,1)*IF(ABS(N$3*10^12-$A103)>(N$3*10^12-$A102),$A102,$A103)=N103,0,IF((N$3*10^12-$A103)*(N$3*10^12-$A102)*-1<0,0,1)*IF(ABS(N$3*10^12-$A103)>(N$3*10^12-$A102),$A102,$A103)) -> 
A103: 56000000 | B103: 0 | C103: 0 | D103: 0 | E103: 0 | F103: 0 | G103: =IF(IF((G$3*10^12-$A104)*(G$3*10^12-$A103)*-1<0,0,1)*IF(ABS(G$3*10^12-$A104)>(G$3*10^12-$A103),$A103,$A104)=G104,0,IF((G$3*10^12-$A104)*(G$3*10^12-$A103)*-1<0,0,1)*IF(ABS(G$3*10^12-$A104)>(G$3*10^12-$A103),$A103,$A104)) -> 0 | H103: =IF(IF((H$3*10^12-$A104)*(H$3*10^12-$A103)*-1<0,0,1)*IF(ABS(H$3*10^12-$A104)>(H$3*10^12-$A103),$A103,$A104)=H104,0,IF((H$3*10^12-$A104)*(H$3*10^12-$A103)*-1<0,0,1)*IF(ABS(H$3*10^12-$A104)>(H$3*10^12-$A103),$A103,$A104)) -> 0 | I103: =IF(IF((I$3*10^12-$A104)*(I$3*10^12-$A103)*-1<0,0,1)*IF(ABS(I$3*10^12-$A104)>(I$3*10^12-$A103),$A103,$A104)=I104,0,IF((I$3*10^12-$A104)*(I$3*10^12-$A103)*-1<0,0,1)*IF(ABS(I$3*10^12-$A104)>(I$3*10^12-$A103),$A103,$A104)) -> 0 | J103: =IF(IF((J$3*10^12-$A104)*(J$3*10^12-$A103)*-1<0,0,1)*IF(ABS(J$3*10^12-$A104)>(J$3*10^12-$A103),$A103,$A104)=J104,0,IF((J$3*10^12-$A104)*(J$3*10^12-$A103)*-1<0,0,1)*IF(ABS(J$3*10^12-$A104)>(J$3*10^12-$A103),$A103,$A104)) -> 0 | K103: 0 | L103: 0 | M103: 0
A104: 68000000 | B104: 0 | C104: 0 | D104: 0 | E104: 0 | F104: 0 | G104: 0 | H104: 0 | I104: 0 | J104: 0 | K104: 0 | L104: 0 | M104: 0
A105: 82000000 | B105: 0 | C105: 0 | D105: 0 | E105: 0 | F105: 0 | G105: 0 | H105: 0 | I105: 0 | J105: 0 | K105: 0 | L105: 0 | M105: 0
A106: 100000000 | B106: 0 | C106: 0 | D106: 0 | E106: 0 | F106: 0 | G106: 0 | H106: 0 | I106: 0 | J106: 0 | K106: 0 | L106: 0 | M106: 0
A107: 120000000 | B107: 0 | C107: 0 | D107: 0 | E107: 0 | F107: 0 | G107: 0 | H107: 0 | I107: 0 | J107: 0 | K107: 0 | L107: 0 | M107: 0
A108: 150000000 | B108: 0 | C108: 0 | D108: 0 | E108: 0 | F108: 0 | G108: 0 | H108: 0 | I108: 0 | J108: 0 | K108: 0 | L108: 0 | M108: 0
A109: 180000000 | B109: 0 | C109: 0 | D109: 0 | E109: 0 | F109: 0 | G109: 0 | H109: 0 | I109: 0 | J109: 0 | K109: 0 | L109: 0 | M109: 0
A110: 220000000 | B110: 0 | C110: 0 | D110: 0 | E110: 0 | F110: 0 | G110: 0 | H110: 0 | I110: 0 | J110: 0 | K110: 0 | L110: 0 | M110: 0
A111: 270000000 | B111: 0 | C111: 0 | D111: 0 | E111: 0 | F111: 330000000 | G111: 0 | H111: 0 | I111: 0 | J111: 0 | K111: 0 | L111: 0 | M111: 0
A112: 330000000 | B112: 0 | C112: 0 | D112: 0 | E112: 0 | F112: 0 | G112: 0 | H112: 0 | I112: 0 | J112: 0 | K112: 0 | L112: 0 | M112: 0
A113: 390000000 | B113: 0 | C113: 0 | D113: 0 | E113: 0 | F113: 0 | G113: 0 | H113: 0 | I113: 0 | J113: 0 | K113: 0 | L113: 0 | M113: 0
A114: 470000000 | B114: 0 | C114: 0 | D114: 0 | E114: 0 | F114: 0 | G114: 0 | H114: 0 | I114: 0 | J114: 0 | K114: 0 | L114: 0 | M114: 0
A115: 560000000 | B115: 0 | C115: 0 | D115: 0 | E115: 0 | F115: 0 | G115: 0 | H115: 0 | I115: 0 | J115: 0 | K115: 0 | L115: 0 | M115: 0
A116: 680000000 | B116: 0 | C116: 0 | D116: 0 | E116: 0 | F116: 0 | G116: 0 | H116: 0 | I116: 0 | J116: 0 | K116: 0 | L116: 0 | M116: 0
A117: 820000000 | B117: 0 | C117: 0 | D117: 0 | E117: 0 | F117: 0 | G117: 0 | H117: 0 | I117: 0 | J117: 0 | K117: 0 | L117: 0 | M117: 0
A118: 1000000000 | B118: 0 | C118: 0 | D118: 0 | E118: 0 | F118: 0 | G118: 0 | H118: 0 | I118: 0 | J118: 0 | K118: 0 | L118: 0 | M118: 0
A119: 1200000000 | B119: 0 | C119: 0 | D119: 0 | E119: 0 | F119: 0 | G119: 0 | H119: 0 | I119: 0 | J119: 0 | K119: 0 | L119: 0 | M119: 0
A120: 1500000000 | B120: 0 | C120: 0 | D120: 0 | E120: 0 | F120: 0 | G120: 0 | H120: 0 | I120: 0 | J120: 0 | K120: 0 | L120: 0 | M120: 0
A121: 1800000000 | B121: 0 | C121: 0 | D121: 0 | E121: 0 | F121: 0 | G121: 0 | H121: 0 | I121: 0 | J121: 0 | K121: 0 | L121: 0 | M121: 0
A122: 2200000000 | B122: 0 | C122: 0 | D122: 0 | E122: 0 | F122: 0 | G122: 0 | H122: 0 | I122: 0 | J122: 0 | K122: 0 | L122: 0 | M122: 0
A123: 2700000000 | B123: 0 | C123: 0 | D123: 0 | E123: 0 | F123: 0 | G123: 0 | H123: 0 | I123: 0 | J123: 0 | K123: 0 | L123: 0 | M123: 0
A124: 3300000000 | B124: 0 | C124: 0 | D124: 0 | E124: 0 | F124: 0 | G124: 0 | H124: 0 | I124: 0 | J124: 0 | K124: 0 | L124: 0 | M124: 0
A125: 3900000000 | B125: 0 | C125: 0 | D125: 0 | E125: 0 | F125: 0 | G125: 0 | H125: 0 | I125: 0 | J125: 0 | K125: 0 | L125: 0 | M125: 0
A126: 4700000000 | B126: 0 | C126: 0 | D126: 0 | E126: 0 | F126: 0 | G126: 0 | H126: 0 | I126: 0 | J126: 0 | K126: 0 | L126: 0 | M126: 0
A127: 5600000000 | B127: 0 | C127: 0 | D127: 0 | E127: 0 | F127: 0 | G127: 0 | H127: 0 | I127: 0 | J127: 0 | K127: 0 | L127: 0 | M127: 0
A128: 6800000000 | B128: 0 | C128: 0 | D128: 0 | E128: 0 | F128: 0 | G128: 0 | H128: 0 | I128: 0 | J128: 0 | K128: 0 | L128: 0 | M128: 0
A129: 8200000000 | B129: 0 | C129: 0 | D129: 0 | E129: 0 | F129: 0 | G129: 0 | H129: 0 | I129: 0 | J129: 0 | K129: 0 | L129: 0 | M129: 0
A130: 10000000000 | B130: 0 | C130: 0 | D130: 0 | E130: 0 | F130: 0 | G130: 0 | H130: 0 | I130: 0 | J130: 0 | K130: 0 | L130: 0 | M130: 0
A131: 12000000000 | B131: 0 | C131: 0 | D131: 0 | E131: 0 | F131: 0 | G131: 0 | H131: 0 | I131: 0 | J131: 0 | K131: 0 | L131: 0 | M131: 0
A132: 15000000000 | B132: 0 | C132: 0 | D132: 0 | E132: 0 | F132: 0 | G132: 0 | H132: 0 | I132: 0 | J132: 0 | K132: 0 | L132: 0 | M132: 0
A133: 18000000000 | B133: 0 | C133: 0 | D133: 0 | E133: 0 | F133: 0 | G133: 0 | H133: 0 | I133: 0 | J133: 0 | K133: =IF(IF((K$3*10^12-$A134)*(K$3*10^12-$A133)*-1<0,0,1)*IF(ABS(K$3*10^12-$A134)>(K$3*10^12-$A133),$A133,$A134)=K134,0,IF((K$3*10^12-$A134)*(K$3*10^12-$A133)*-1<0,0,1)*IF(ABS(K$3*10^12-$A134)>(K$3*10^12-$A133),$A133,$A134)) -> 0 | L133: =IF(IF((L$3*10^12-$A134)*(L$3*10^12-$A133)*-1<0,0,1)*IF(ABS(L$3*10^12-$A134)>(L$3*10^12-$A133),$A133,$A134)=L134,0,IF((L$3*10^12-$A134)*(L$3*10^12-$A133)*-1<0,0,1)*IF(ABS(L$3*10^12-$A134)>(L$3*10^12-$A133),$A133,$A134)) -> 0 | M133: 0
A134: 22000000000 | B134: 0 | C134: 0 | D134: 0 | E134: 0 | F134: =IF(IF((F$3*10^12-$A135)*(F$3*10^12-$A134)*-1<0,0,1)*IF(ABS(F$3*10^12-$A135)>(F$3*10^12-$A134),$A134,$A135)=F135,0,IF((F$3*10^12-$A135)*(F$3*10^12-$A134)*-1<0,0,1)*IF(ABS(F$3*10^12-$A135)>(F$3*10^12-$A134),$A134,$A135)) -> 0 | G134: 0 | H134: 0 | I134: 0 | J134: 0 | K134: =IF(IF((K$3*10^12-$A135)*(K$3*10^12-$A134)*-1<0,0,1)*IF(ABS(K$3*10^12-$A135)>(K$3*10^12-$A134),$A134,$A135)=K135,0,IF((K$3*10^12-$A135)*(K$3*10^12-$A134)*-1<0,0,1)*IF(ABS(K$3*10^12-$A135)>(K$3*10^12-$A134),$A134,$A135)) -> 0 | L134: =IF(IF((L$3*10^12-$A135)*(L$3*10^12-$A134)*-1<0,0,1)*IF(ABS(L$3*10^12-$A135)>(L$3*10^12-$A134),$A134,$A135)=L135,0,IF((L$3*10^12-$A135)*(L$3*10^12-$A134)*-1<0,0,1)*IF(ABS(L$3*10^12-$A135)>(L$3*10^12-$A134),$A134,$A135)) -> 0 | M134: =IF(IF((M$3*10^12-$A135)*(M$3*10^12-$A134)*-1<0,0,1)*IF(ABS(M$3*10^12-$A135)>(M$3*10^12-$A134),$A134,$A135)=M135,0,IF((M$3*10^12-$A135)*(M$3*10^12-$A134)*-1<0,0,1)*IF(ABS(M$3*10^12-$A135)>(M$3*10^12-$A134),$A134,$A135)) -> 0 | N134: =IF(IF((N$3*10^12-$A135)*(N$3*10^12-$A134)*-1<0,0,1)*IF(ABS(N$3*10^12-$A135)>(N$3*10^12-$A134),$A134,$A135)=N135,0,IF((N$3*10^12-$A135)*(N$3*10^12-$A134)*-1<0,0,1)*IF(ABS(N$3*10^12-$A135)>(N$3*10^12-$A134),$A134,$A135)) -> 
A135: 27000000000 | B135: =IF(IF((B$3*10^12-$A136)*(B$3*10^12-$A135)*-1<0,0,1)*IF(ABS(B$3*10^12-$A136)>(B$3*10^12-$A135),$A135,$A136)=B136,0,IF((B$3*10^12-$A136)*(B$3*10^12-$A135)*-1<0,0,1)*IF(ABS(B$3*10^12-$A136)>(B$3*10^12-$A135),$A135,$A136)) -> 0 | C135: =IF(IF((C$3*10^12-$A136)*(C$3*10^12-$A135)*-1<0,0,1)*IF(ABS(C$3*10^12-$A136)>(C$3*10^12-$A135),$A135,$A136)=C136,0,IF((C$3*10^12-$A136)*(C$3*10^12-$A135)*-1<0,0,1)*IF(ABS(C$3*10^12-$A136)>(C$3*10^12-$A135),$A135,$A136)) -> 0 | D135: 0 | E135: 0 | F135: 0 | G135: 0 | H135: 0 | I135: 0 | J135: 0 | K135: 0 | L135: 0 | M135: 0
A136: 33000000000 | B136: 0 | C136: 0 | D136: 0 | E136: 0 | F136: 0 | G136: 0 | H136: 0 | I136: 0 | J136: 0 | K136: 0 | L136: 0 | M136: 0
A137: 39000000000 | B137: 0 | C137: 0 | D137: 0 | E137: 0 | F137: 0 | G137: 0 | H137: 0 | I137: 0 | J137: 0 | K137: 0 | L137: 0 | M137: 0
A138: 47000000000 | B138: 0 | C138: 0 | D138: 0 | E138: 0 | F138: 0 | G138: 0 | H138: 0 | I138: 0 | J138: 0 | K138: 0 | L138: 0 | M138: 0
A139: 56000000000 | B139: 0 | C139: 0 | D139: 0 | E139: 0 | F139: 0 | G139: 0 | H139: 0 | I139: 0 | J139: 0 | K139: 0 | L139: 0 | M139: 0
A140: 68000000000 | B140: 0 | C140: 0 | D140: 0 | E140: 0 | F140: 0 | G140: 0 | H140: 0 | I140: 0 | J140: 0 | K140: 0 | L140: 0 | M140: 0
A141: 82000000000 | B141: 0 | C141: 0 | D141: 0 | E141: 0 | F141: 0 | G141: 0 | H141: 0 | I141: 0 | J141: 0 | K141: 0 | L141: 0 | M141: 0
A142: 100000000000 | B142: 0 | C142: 0 | D142: 0 | E142: 0 | F142: 0 | G142: 0 | H142: 0 | I142: 0 | J142: 0 | K142: 0 | L142: 0 | M142: 0
A143: 120000000000 | B143: 0 | C143: 0 | D143: 0 | E143: 0 | F143: 0 | G143: 0 | H143: 0 | I143: 0 | J143: 0 | K143: 0 | L143: 0 | M143: 0
A144: 150000000000 | B144: 0 | C144: 0 | D144: 0 | E144: 0 | F144: 0 | G144: 0 | H144: 0 | I144: 0 | J144: 0 | K144: 0 | L144: 0 | M144: 0
A145: 180000000000 | B145: 0 | C145: 0 | D145: 0 | E145: 0 | F145: 0 | G145: 0 | H145: 0 | I145: 0 | J145: 0 | K145: 0 | L145: 0 | M145: 0
A146: 220000000000 | B146: 0 | C146: 0 | D146: 0 | E146: 0 | F146: 0 | G146: 0 | H146: 0 | I146: 0 | J146: 0 | K146: 0 | L146: 0 | M146: 0
A147: 270000000000 | B147: 0 | C147: 0 | D147: 0 | E147: 0 | F147: 0 | G147: 0 | H147: 0 | I147: 0 | J147: 0 | K147: 0 | L147: 0 | M147: 0
A148: 330000000000 | B148: 0 | C148: 0 | D148: 0 | E148: 0 | F148: 0 | G148: 0 | H148: 0 | I148: 0 | J148: 0 | K148: 0 | L148: 0 | M148: 0
A149: 390000000000 | B149: 0 | C149: 0 | D149: 0 | E149: 0 | F149: 0 | G149: 0 | H149: 0 | I149: 0 | J149: 0 | K149: 0 | L149: 0 | M149: 0
A150: 470000000000 | B150: 0 | C150: 0 | D150: 0 | E150: 0 | F150: 0 | G150: 0 | H150: 0 | I150: 0 | J150: 0 | K150: 0 | L150: 0 | M150: 0
A151: 560000000000 | B151: 0 | C151: 0 | D151: 0 | E151: 0 | F151: 0 | G151: 0 | H151: 0 | I151: 0 | J151: 0 | K151: 0 | L151: 0 | M151: 0
A152: 680000000000 | B152: 0 | C152: 0 | D152: 0 | E152: 0 | F152: 0 | G152: 0 | H152: 0 | I152: 0 | J152: 0 | K152: 0 | L152: 0 | M152: 0
A153: 820000000000 | B153: 0 | C153: 0 | D153: 0 | E153: 0 | F153: 0 | G153: 0 | H153: 0 | I153: 0 | J153: 0 | K153: 0 | L153: 0 | M153: 0
A154: 1000000000000 | B154: 0 | C154: 0 | D154: 0 | E154: 0 | F154: 0 | G154: 0 | H154: 0 | I154: 0 | J154: 0 | K154: 0 | L154: 0 | M154: 0
A155: 1200000000000 | B155: 0 | C155: 0 | D155: 0 | E155: 0 | F155: 0 | G155: 0 | H155: 0 | I155: 0 | J155: 0 | K155: 0 | L155: 0 | M155: 0
A156: 1500000000000 | B156: 0 | C156: 0 | D156: 0 | E156: 0 | F156: 0 | G156: 0 | H156: 0 | I156: 0 | J156: 0 | K156: 0 | L156: 0 | M156: 0
A157: 1800000000000 | B157: 0 | C157: 0 | D157: 0 | E157: 0 | F157: 0 | G157: 0 | H157: 0 | I157: 0 | J157: 0 | K157: 0 | L157: 0 | M157: 0
A158: 2200000000000 | B158: 0 | C158: 0 | D158: 0 | E158: 0 | F158: 0 | G158: 0 | H158: 0 | I158: 0 | J158: 0 | K158: 0 | L158: 0 | M158: 0
A159: 2700000000000 | B159: 2700000000000 | C159: 2700000000000 | D159: 2700000000000 | E159: 2700000000000 | F159: 2700000000000 | G159: 2700000000000 | H159: 2700000000000 | I159: 2700000000000 | J159: 2700000000000 | K159: 0 | L159: 2700000000000 | M159: 2700000000000

Sheet Bode Plots Calculations (hidden)
A1: Bode Plot Setup | AC1: EA MODELING
AT3: =AT9/10000000000000 -> -8.372825291e-05 | AU3: =AU9/10000000000000 -> -0.04742383237
AT4: =AT3*1000 -> -0.08372825291 | AU4: =AU3*1000 -> -47.42383237 | BJ4: XOVER SEARCH
AC5: a | AD5: b | AE5: c | AF5: d | AJ5: a | AK5: b | AL5: c | AM5: d | BJ5: xover | BK5: =SUM(BJ9:BJ626)/1000 -> 60
C6: Output Filter | J6: Pwm | M6: Compensation | X6: Design Output | AC6: Z1 | AJ6: Z3 | AQ6: Ea Gain BW | AT6: Complex EA | BA6: Actual EA Response | BF6: Actual Open Loop System Response | BJ6: phase margin | BK6: =SUM(BK10:BK627) -> 64.39825147 | BM6: Comp To Output
C7: Esr zero | F7: LC Double Pole | M7: Origin Pole | O7: Fz1 | Q7: Fz2 | S7: Fp1 | U7: Fp2 | AC7: Num | AE7: Den | AG7: Total | AJ7: Num | AL7: Den | AN7: Total | AQ7: A(s) | AT7: Num | AW7: Den
A8: Frequency | C8: Gain | D8: Phase | F8: Gain | H8: Phase | J8: Gain | M8: Gain | N8: Phase | O8: Gain | P8: Phase | Q8: Gain | R8: Phase | S8: Gain | T8: Phase | U8: Gain | V8: Phase | X8: Total Gain | Y8: Total Phase | Z8: Phase margin | AC8: Real | AD8: Imag | AE8: Real | AF8: Imag | AG8: Z1 Real | AH8: Z1 Imag | AJ8: Real | AK8: Imag | AL8: Real | AM8: Imag | AN8: Z3 Real | AO8: Z3 Imag | AQ8: Real | AR8: Imag | AT8: Real | AU8: Imag | AV8: Phase | AW8: Real | AX8: Imag | AY8: Phase | BA8: EAGain | BB8: Ea Gain (db) | BC8: Ea Phase | BF8: Total Gain | BG8: Total Phase | BH8: Total Phase Margin | BM8: Total Gain | BN8: Total Phase margin | BT8: Output to Comp 5V In @ 500kHz 0A Iout 25DegC
A9: 1 | B9: =A9/1000 -> 0.001 | C9: =SQRT((A9/Fesr)^2+1) -> 1 | D9: =ATAN(A9/Fesr) -> 2.010619296e-06 | F9: =(Ro/(Ro+Rdcr))/SQRT((A9/(Q*Fo))^2+(1-(A9^2/Fo^2))^2) -> 0.9887284033 | G9: =-ATAN(A9*Fo/(Q*(Fo^2-A9^2))) -> -5.99103964e-05 | H9: =IF(G9>0,G9-Pi,G9) -> -5.99103964e-05 | J9: =Vin/Vramp -> 15 | M9: =1/(2*Pi*_Rfb1*(Cc1ea_u+Cc2ea_u)*A9) -> 2258.285704 | N9: =-Pi/2 -> -1.570796325 | O9: =SQRT(1+(A9/Fz1_u)^2) -> 1.000000028 | P9: =ATAN2(Fz1_u,A9) -> 0.0002384468776 | Q9: =SQRT(1+(A9/Fz2_u)^2) -> 1.00000002 | R9: =ATAN2(Fz2_u,A9) -> 0.0002001068828 | S9: =1/SQRT(1+(A9/Fp1_u)^2) -> 1 | T9: =-ATAN2(Fp1_u,A9) -> -2.186548484e-06 | U9: =1/SQRT(1+(A9/Fp2_u)^2) -> 1 | V9: =-ATAN2(Fp2_u,A9) -> -3.97885143e-06 | X9: =20*LOG(C9*J9*O9*Q9*F9*M9*S9*U9) -> 90.49894351 | Y9: =(180/Pi)*(D9+H9+N9+P9+R9+T9+V9) -> -89.97854338 | Z9: =Y9+180 -> 90.02145662 | AC9: 1 | AD9: =Rcea1_u*Cc1ea_u*A9*2*Pi -> 0.0002384468821 | AE9: =-Rcea1_u*Cc1ea_u*Cc2ea_u*(A9*2*Pi)^2 -> -8.38995329e-14 | AF9: =(Cc2ea_u+Cc1ea_u)*A9*2*Pi -> 2.108636987e-08 | AG9: =AC9*AE9/(AE9^2+AF9^2)+AD9*AF9/(AE9^2+AF9^2) -> 11119.41184 | AH9: =AD9*AE9/(AE9^2+AF9^2)-AC9*AF9/(AE9^2+AF9^2) -> -47423999.83 | AI9: =SQRT(AG9^2+AH9^2) -> 47424001.13 | AJ9: =_Rfb1 -> 21000 | AK9: =_Rfb1*Rcea2_u*Cc3ea_u*A9*2*Pi -> 0.04591751817 | AL9: 1 | AM9: =(_Rfb1+Rcea2_u)*Cc3ea_u*A9*2*Pi -> 0.0002001068854 | AN9: =AJ9*AL9/(AL9^2+AM9^2)+AK9*AM9/(AL9^2+AM9^2) -> 20999.99917 | AO9: =AK9*AL9/(AL9^2+AM9^2)-AJ9*AM9/(AL9^2+AM9^2) -> -4.15632691 | AP9: =SQRT(AN9^2+AO9^2) -> 20999.99958 | AQ9: =Eadcg/(1+(Eadcg*A9/GBP)^2) -> 9999.96 | AR9: =-(A9*Eadcg*Eadcg/GBP)/(1+(Eadcg*A9/GBP)^2) -> -19.99992 | AT9: =-AR9*AH9+AG9*AQ9 -> -837282529.1 | AU9: =AQ9*AH9+AG9*AR9 -> -4.742383237e+11 | AV9: =ATAN2(AT9,AU9) -> -1.572561856 | AW9: =AG9-AH9*AO9/_Rfb2+AG9*AN9/_Rfb2+AN9-AO9*AR9+AQ9*AN9 -> 210040287.5 | AX9: =AH9+AH9*AN9/_Rfb2+AG9*AO9/_Rfb2+AO9+AO9*AQ9+AN9*AR9 -> -296861566.2 | AY9: =ATAN2(AW9,AX9) -> -0.955030435 | BA9: =SQRT(AT9^2+AU9^2)/SQRT(AW9^2+AX9^2) -> 1304.096738 | BB9: =20*LOG(BA9) -> 62.30619617 | BC9: =AV9-AY9 -> -0.6175314211 | BD9: =BC9*180/Pi-180 -> -215.3819442 | BF9: =20*LOG(BA9*J9*F9*C9) -> 85.72956156 | BG9: =(180/Pi)*(D9+H9+BC9) -> -35.3852616 | BH9: =IF(BG9>180,BG9-180,BG9+180) -> 144.6147384 | BI9: =IF(BH9>180,BH9-360,BH9) -> 144.6147384 | BJ9: =SUM((BF10<0)*(BF9>0))*A9 -> 0 | BK9: =IF(BJ9>0,BI9,0) -> 0 | BM9: =20*LOG(J9*F9*C9) -> 23.42336539 | BN9: =(H9+D9)*180/Pi -> -0.003317412867 | BQ9: =20*LOG(BA9*7) -> 79.20815697 | BT9: Frequency | BU9: Gain | BV9: Phase
A10: 2 | B10: =A10/1000 -> 0.002 | C10: 1 | D10: 4.021238592e-06 | F10: 0.9887284798 | G10: -0.0001198208023 | H10: -0.0001198208023 | J10: 15 | M10: 1129.142852 | N10: -1.570796325 | O10: 1.000000114 | P10: 0.0004768937281 | Q10: 1.00000008 | R10: 0.0004002137495 | S10: 1 | T10: -4.373096969e-06 | U10: 1 | V10: -7.95770286e-06 | X10: =20*LOG(C10*J10*O10*Q10*F10*M10*S10*U10) -> 84.47834554 | Y10: -89.95708677 | Z10: =Y10+180 -> 90.04291323 | AC10: 1 | AD10: 0.0004768937643 | AE10: -3.355981316e-13 | AF10: 4.217273973e-08 | AG10: =AC10*AE10/(AE10^2+AF10^2)+AD10*AF10/(AE10^2+AF10^2) -> 11119.41184 | AH10: =AD10*AE10/(AE10^2+AF10^2)-AC10*AF10/(AE10^2+AF10^2) -> -23711999.98 | AJ10: 21000 | AK10: 0.09183503634 | AL10: 1 | AM10: 0.0004002137709 | AN10: =AJ10*AL10/(AL10^2+AM10^2)+AK10*AM10/(AL10^2+AM10^2) -> 20999.99667 | AO10: =AK10*AL10/(AL10^2+AM10^2)-AJ10*AM10/(AL10^2+AM10^2) -> -8.31265282 | AQ10: 9999.840003 | AR10: -39.99936001 | AT10: =-AR10*AH10+AG10*AQ10 -> -837272484.5 | AU10: =AQ10*AH10+AG10*AR10 -> -2.371166507e+11 | AV10: =ATAN2(AT10,AU10) -> -1.574327369 | AW10: 210037493.2 | AX10: -149123123.2 | AY10: =ATAN2(AW10,AX10) -> -0.6173948224 | BA10: 920.5194951 | BB10: =20*LOG(BA10) -> 59.28065981 | BC10: =AV10-AY10 -> -0.956932547 | BD10: -234.8281963 | BF10: 82.70402587 | BG10: -54.83483111 | BH10: =IF(BG10>180,BG10-180,BG10+180) -> 125.1651689 | BI10: =IF(BH10>180,BH10-360,BH10) -> 125.1651689 | BJ10: 0 | BK10: =IF(BJ10>0,BI10,0) -> 0 | BM10: =20*LOG(J10*F10*C10) -> 23.42336606 | BN10: -0.006634826277 | BQ10: =20*LOG(BA10*7) -> 76.18262061 | BT10: 100 | BU10: 35.3593 | BV10: -267.6677
A11: 3 | B11: 0.003 | C11: 1 | D11: 6.031857888e-06 | F11: 0.9887286073 | G11: -0.0001797312272 | H11: -0.0001797312272 | J11: 15 | M11: 752.7619013 | N11: -1.570796325 | O11: 1.000000256 | P11: 0.0007153405244 | Q11: 1.00000018 | R11: 0.0006003205842 | S11: 1 | T11: -6.559645453e-06 | U11: 0.9999999999 | V11: -1.193655429e-05 | X11: 80.95652358 | Y11: -89.93563017 | Z11: 90.06436983 | AC11: 1 | AD11: 0.0007153406464 | AE11: -7.550957961e-13 | AF11: 6.32591096e-08 | AG11: 11119.41184 | AH11: -15808000.06 | AJ11: 21000 | AK11: 0.1377525545 | AL11: 1 | AM11: 0.0006003206563 | AN11: 20999.99251 | AO11: -12.46897673 | AQ11: 9999.640013 | AR11: -59.99784008 | AT11: -837255744.1 | AU11: -1.580749771e+11 | AV11: -1.576092851 | AW11: 210032836.2 | AX11: -100184657.4 | AY11: =ATAN2(AW11,AX11) -> -0.4450749917 | BA11: 679.3083448 | BB11: 56.64133899 | BC11: -1.131017859 | BD11: -244.80255 | BF11: 80.06470617 | BG11: -64.8125022 | BH11: 115.1874978 | BI11: 115.1874978 | BJ11: 0 | BK11: 0 | BM11: 23.42336718 | BN11: -0.009952240774 | BQ11: 73.54329979 | BT11: 102.329 | BU11: 34.9368 | BV11: -265.9149
A12: 4 | B12: 0.004 | C12: 1 | D12: 8.042477184e-06 | F12: 0.9887287858 | G12: -0.0002396416805 | H12: -0.0002396416805 | J12: 15 | M12: 564.571426 | N12: -1.570796325 | O12: 1.000000455 | P12: 0.0009537872393 | Q12: 1.00000032 | R12: 0.0008004273708 | S12: 1 | T12: -8.746193937e-06 | U12: 0.9999999999 | V12: -1.591540572e-05 | X12: 78.45775336 | Y12: -89.91417357 | Z12: 90.08582643 | AC12: 1 | AD12: 0.0009537875285 | AE12: -1.342392526e-12 | AF12: 8.434547947e-08 | AG12: 11119.41183 | AH12: -11856000.12 | AJ12: 21000 | AK12: 0.1836700727 | AL12: 1 | AM12: 0.0008004275417 | AN12: 20999.98669 | AO12: -16.62529765 | AQ12: 9999.360041 | AR12: -79.99488033 | AT12: -837232308.6 | AU12: -1.185533034e+11 | AV12: -1.577858284 | AW12: 210026316.7 | AX12: -75946157.93 | AY12: -0.3469739907 | BA12: 530.8430976 | BB12: 54.49932349 | BC12: -1.230884294 | BD12: -250.5244752 | BF12: 77.92269224 | BG12: -70.53774483 | BH12: 109.4622552 | BI12: 109.4622552 | BJ12: 0 | BK12: 0 | BM12: 23.42336875 | BN12: -0.0132696569 | BQ12: 71.40128429 | BT12: 104.713 | BU12: 34.1908 | BV12: -264.9322
A13: 5 | B13: 0.005 | C13: 1 | D13: 1.005309648e-05 | F13: 0.9887290153 | G13: -0.0002995521717 | H13: -0.0002995521717 | J13: 15 | M13: 451.6571408 | N13: -1.570796325 | O13: 1.000000711 | P13: 0.001192233846 | Q13: 1.000000501 | R13: 0.001000534093 | S13: 0.9999999999 | T13: -1.093274242e-05 | U13: 0.9999999998 | V13: -1.989425715e-05 | X13: 76.5195589 | Y13: -89.89271698 | Z13: 90.10728302 | AC13: 1 | AD13: 0.001192234411 | AE13: -2.097488323e-12 | AF13: 1.054318493e-07 | AG13: 11119.41183 | AH13: -9484800.178 | AJ13: 21000 | AK13: 0.2295875909 | AL13: 1 | AM13: 0.001000534427 | AN13: 20999.97921 | AO13: -20.78161458 | AQ13: 9999.0001 | AR13: -99.990001 | AT13: -837202179.2 | AU13: -9.483962976e+10 | AV13: -1.579623654 | AW13: 210017935.1 | AX13: -61587613.67 | AY13: -0.2852520481 | BA13: 433.3476467 | BB13: 52.73672885 | BC13: -1.294371606 | BD13: -254.1620302 | BF13: 76.16009961 | BG13: -74.17861729 | BH13: 105.8213827 | BI13: 105.8213827 | BJ13: 0 | BK13: 0 | BM13: 23.42337077 | BN13: -0.0165870752 | BQ13: 69.63868965 | BT13: 107.152 | BU13: 34.4777 | BV13: -262.3057
A14: 6 | B14: 0.006 | C14: 1 | D14: 1.206371578e-05 | F14: 0.9887292958 | G14: -0.0003594627104 | H14: -0.0003594627104 | J14: 15 | M14: 376.3809507 | N14: -1.570796325 | O14: 1.000001023 | P14: 0.001430680317 | Q14: 1.000000721 | R14: 0.001200640736 | S14: 0.9999999999 | T14: -1.311929091e-05 | U14: 0.9999999997 | V14: -2.387310858e-05 | X14: 74.93594107 | Y14: -89.87126041 | Z14: 90.12873959 | AC14: 1 | AD14: 0.001430681293 | AE14: -3.020383184e-12 | AF14: 1.265182192e-07 | AG14: 11119.41183 | AH14: -7904000.229 | AJ14: 21000 | AK14: 0.275505109 | AL14: 1 | AM14: 0.001200641313 | AN14: 20999.97006 | AO14: -24.93792651 | AQ14: 9998.560207 | AR14: -119.9827225 | AT14: -837165357.4 | AU14: -7.902995631e+10 | AV14: -1.581388944 | AW14: 210007691.7 | AX14: -52169013.47 | AY14: -0.243486131 | BA14: 365.2396954 | BB14: 51.25155944 | BC14: -1.337902813 | BD14: -256.6561847 | BF14: 74.67493267 | BG14: -76.67608915 | BH14: 103.3239109 | BI14: 103.3239109 | BJ14: 0 | BK14: 0 | BM14: 23.42337323 | BN14: -0.01990449622 | BQ14: 68.15352024 | BT14: 109.648 | BU14: 34.1144 | BV14: -262.7662
A15: 7 | B15: 0.007 | C15: 1 | D15: 1.407433507e-05 | F15: 0.9887296273 | G15: -0.000419373306 | H15: -0.000419373306 | J15: 15 | M15: 322.6122434 | N15: -1.570796325 | O15: 1.000001393 | P15: 0.001669126625 | Q15: 1.000000981 | R15: 0.001400747282 | S15: 0.9999999999 | T15: -1.530583939e-05 | U15: 0.9999999996 | V15: -2.785196e-05 | X15: 73.59701366 | Y15: -89.84980386 | Z15: 90.15019614 | AC15: 1 | AD15: 0.001669128175 | AE15: -4.111077112e-12 | AF15: 1.476045891e-07 | AG15: 11119.41183 | AH15: -6774857.422 | AJ15: 21000 | AK15: 0.3214226272 | AL15: 1 | AM15: 0.001400748198 | AN15: 20999.95925 | AO15: -29.09423245 | AQ15: 9998.040384 | AR15: -139.9725654 | AT15: -837121844.9 | AU15: -6.773685451e+10 | AV15: -1.583154138 | AW15: 209995587.1 | AX15: -45573203.31 | AY15: -0.2137059302 | BA15: 315.2495227 | BB15: 49.97308875 | BC15: -1.369448207 | BD15: -258.4636026 | BF15: 73.39646489 | BG15: -78.48682456 | BH15: 101.5131754 | BI15: 101.5131754 | BJ15: 0 | BK15: 0 | BM15: 23.42337614 | BN15: -0.0232219205 | BQ15: 66.87504955 | BT15: 112.202 | BU15: 34.2977 | BV15: -267.0128
A16: 8 | B16: 0.008 | C16: 1 | D16: 1.608495437e-05 | F16: 0.9887300098 | G16: -0.000479283968 | H16: -0.000479283968 | J16: 15 | M16: 282.285713 | N16: -1.570796325 | O16: 1.000001819 | P16: 0.001907572743 | Q16: 1.000001281 | R16: 0.001600853716 | S16: 0.9999999998 | T16: -1.749238787e-05 | U16: 0.9999999995 | V16: -3.183081143e-05 | X16: 72.43718439 | Y16: -89.82834733 | Z16: 90.17165267 | AC16: 1 | AD16: 0.001907575057 | AE16: -5.369570106e-12 | AF16: 1.686909589e-07 | AG16: 11119.41183 | AH16: -5928000.327 | AJ16: 21000 | AK16: 0.3673401454 | AL16: 1 | AM16: 0.001600855083 | AN16: 20999.94677 | AO16: -33.2505314 | AQ16: 9997.440655 | AR16: -159.9590505 | AT16: -837071643.7 | AU16: -5.926661012e+10 | AV16: -1.58491922 | AW16: 209981621.7 | AX16: -40741600.6 | AY16: -0.1916434385 | BA16: 277.107067 | BB16: 48.85295203 | BC16: -1.393275781 | BD16: -259.8288221 | BF16: 72.27633154 | BG16: -79.85536141 | BH16: 100.1446386 | BI16: 100.1446386 | BJ16: 0 | BK16: 0 | BM16: 23.4233795 | BN16: -0.02653934859 | BQ16: 65.75491283 | BT16: 114.815 | BU16: 33.3465 | BV16: -266.2048
A17: 9 | B17: 0.009 | C17: 1 | D17: 1.809557366e-05 | F17: 0.9887304432 | G17: -0.0005391947059 | H17: -0.0005391947059 | J17: 15 | M17: 250.9206338 | N17: -1.570796325 | O17: 1.000002303 | P17: 0.002146018645 | Q17: 1.000001622 | R17: 0.001800960022 | S17: 0.9999999998 | T17: -1.967893636e-05 | U17: 0.9999999994 | V17: -3.580966286e-05 | X17: 71.41414491 | Y17: -89.80689082 | Z17: 90.19310918 | AC17: 1 | AD17: 0.002146021939 | AE17: -6.795862165e-12 | AF17: 1.897773288e-07 | AG17: 11119.41182 | AH17: -5269333.707 | AJ17: 21000 | AK17: 0.4132576636 | AL17: 1 | AM17: 0.001800961969 | AN17: 20999.93263 | AO17: -37.40682236 | AQ17: 9996.761049 | AR17: -179.9416989 | AT17: -837014756.3 | AU17: -5.267827081e+10 | AV17: -1.586684174 | AW17: 209965796.3 | AX17: -37086098.94 | AY17: -0.1748260547 | BA17: 247.0965974 | BB17: 47.8573353 | BC17: -1.41185812 | BD17: -260.8935116 | BF17: 71.28071861 | BG17: -80.92336839 | BH17: 99.07663161 | BI17: 99.07663161 | BJ17: 0 | BK17: 0 | BM17: 23.42338331 | BN17: -0.02985678102 | BQ17: 64.7592961 | BT17: 117.49 | BU17: 33.0246 | BV17: -264.9049
A18: 10 | B18: 0.01 | C18: 1 | D18: 2.010619296e-05 | F18: 0.9887309277 | G18: -0.0005991055291 | H18: -0.0005991055291 | J18: 15 | M18: 225.8285704 | N18: -1.570796325 | O18: 1.000002843 | P18: 0.002384464302 | Q18: 1.000002002 | R18: 0.002001066183 | S18: 0.9999999998 | T18: -2.186548484e-05 | U18: 0.9999999992 | V18: -3.978851428e-05 | X18: 70.49900735 | Y18: -89.78543434 | Z18: 90.21456566 | AC18: 1 | AD18: 0.002384468821 | AE18: -8.38995329e-12 | AF18: 2.108636987e-07 | AG18: 11119.41182 | AH18: -4742400.421 | AJ18: 21000 | AK18: 0.4591751817 | AL18: 1 | AM18: 0.002001068854 | AN18: 20999.91683 | AO18: -41.56310433 | AQ18: 9996.001599 | AR18: -199.920032 | AT18: -836951185.5 | AU18: -4.740726518e+10 | AV18: -1.588448985 | AW18: 209948111.7 | AX18: -34253830.03 | AY18: -0.1617288081 | BA18: 222.8927371 | BB18: 46.96191835 | BC18: -1.426720177 | BD18: -261.7450448 | BF18: 70.38530591 | BG18: -81.77821899 | BH18: 98.22178101 | BI18: 98.22178101 | BJ18: 0 | BK18: 0 | BM18: 23.42338757 | BN18: -0.03317421834 | BQ18: 63.86387915 | BT18: 120.226 | BU18: 33.736 | BV18: -269.9808
A19: =A10*10 -> 20 | B19: 0.02 | C19: 1.000000001 | D19: 4.02123859e-05 | F19: 0.9887385774 | G19: -0.001198220544 | H19: -0.001198220544 | J19: 15 | M19: 112.9142852 | N19: -1.570796325 | O19: 1.000011371 | P19: 0.00476890149 | Q19: 1.000008009 | R19: 0.004002116341 | S19: 0.999999999 | T19: -4.373096966e-05 | U19: 0.9999999968 | V19: -7.957702843e-05 | X19: 64.47860086 | Y19: -89.5708717 | Z19: 90.4291283 | AC19: 1 | AD19: 0.004768937643 | AE19: -3.355981316e-11 | AF19: 4.217273973e-07 | AG19: 11119.41177 | AH19: -2371200.874 | AJ19: 21000 | AK19: 0.9183503634 | AL19: 1 | AM19: 0.004002137709 | AN19: 20999.66732 | AO19: -83.12521009 | AQ19: 9984.025559 | AR19: -399.3610224 | AT19: -835948714 | AU19: -2.367857079e+10 | AV19: -1.606085689 | AW19: 209669236.7 | AX19: -24036495.28 | AY19: -0.114141777 | BA19: 112.2680077 | BB19: 41.00512031 | BC19: -1.491943912 | BD19: -265.4820896 | BF19: 64.42857509 | BG19: -85.54843853 | BH19: 94.45156147 | BI19: 94.45156147 | BJ19: 0 | BK19: 0 | BM19: 23.42345477 | BN19: -0.06634898016 | BQ19: 57.90708111 | BT19: 123.027 | BU19: 32.7649 | BV19: -265.7341
A20: =A11*10 -> 30 | B20: 0.03 | C20: 1.000000002 | D20: 6.031857881e-05 | F20: 0.9887513271 | G20: -0.00179735453 | H20: -0.00179735453 | J20: 15 | M20: 75.27619013 | N20: -1.570796325 | O20: 1.000025585 | P20: 0.007153284452 | Q20: 1.000018019 | R20: 0.006003134449 | S20: 0.9999999978 | T20: -6.559645444e-05 | U20: 0.9999999929 | V20: -0.0001193655423 | X20: 60.95709805 | Y20: -89.35631509 | Z20: 90.64368491 | AC20: 1 | AD20: 0.007153406464 | AE20: -7.550957961e-11 | AF20: 6.32591096e-07 | AG20: 11119.41168 | AH20: -1580801.32 | AJ20: 21000 | AK20: 1.377525545 | AL20: 1 | AM20: 0.006003206563 | AN20: 20999.25149 | AO20: -124.6853188 | AQ20: 9964.129135 | AR20: -597.8477481 | AT20: -834283255.5 | AU20: -1.575795621e+10 | AV20: -1.623690563 | AW20: 209205928.5 | AX20: -23676919.56 | AY20: -0.1126956583 | BA20: 74.94972172 | BB20: 37.49540049 | BC20: -1.510994905 | BD20: -266.573631 | BF20: 60.91896728 | BG20: -86.67315583 | BH20: 93.32684417 | BI20: 93.32684417 | BJ20: 0 | BK20: 0 | BM20: 23.42356679 | BN20: -0.09952482896 | BQ20: 54.39736129 | BT20: 125.893 | BU20: 32.2472 | BV20: -266.3711
A21: 40 | B21: 0.04 | C21: 1.000000003 | D21: 8.042477167e-05 | F21: 0.9887691772 | G21: -0.002396516974 | H21: -0.002396516974 | J21: 15 | M21: 56.4571426 | N21: -1.570796325 | O21: 1.000045484 | P21: 0.009537586078 | Q21: 1.000032034 | R21: 0.008004104484 | S21: 0.9999999962 | T21: -8.746193915e-05 | U21: 0.9999999873 | V21: -0.0001591540559 | X21: 58.45877464 | Y21: -89.14176753 | Z21: 90.85823247 | AC21: 1 | AD21: 0.009537875285 | AE21: -1.342392526e-10 | AF21: 8.434547947e-07 | AG21: 11119.41156 | AH21: -1185601.764 | AJ21: 21000 | AK21: 1.836700727 | AL21: 1 | AM21: 0.008004275417 | AN21: 20998.66935 | AO21: -166.2424321 | AQ21: 9936.406995 | AR21: -794.9125596 | AT21: -831962734.4 | AU21: -1.178946062e+10 | AV21: -1.64124788 | AW21: 208560393.8 | AX21: -25754203.46 | AY21: -0.1228636072 | BA21: 56.24119825 | BB21: 35.0010913 | BC21: -1.518384273 | BD21: -266.9970106 | BF21: 58.4248149 | BG21: -87.12971295 | BH21: 92.87028705 | BI21: 92.87028705 | BJ21: 0 | BK21: 0 | BM21: 23.4237236 | BN21: -0.1327023083 | BQ21: 51.9030521 | BT21: 128.825 | BU21: 32.3142 | BV21: -268.0596
A22: 50 | B22: 0.05 | C22: 1.000000005 | D22: 0.0001005309645 | F22: 0.9887921283 | G22: -0.002995717365 | H22: -0.002995717365 | J22: 15 | M22: 45.16571408 | N22: -1.570796325 | O22: 1.000071069 | P22: 0.01192177927 | Q22: 1.000050052 | R22: 0.01000501042 | S22: 0.999999994 | T22: -0.0001093274238 | U22: 0.9999999802 | V22: -0.0001989425689 | X22: 56.52115464 | Y22: -88.92723202 | Z22: 91.07276798 | AC22: 1 | AD22: 0.01192234411 | AE22: -2.097488323e-10 | AF22: 1.054318493e-06 | AG22: 11119.4114 | AH22: -948482.2078 | AJ22: 21000 | AK22: 2.295875909 | AL22: 1 | AM22: 0.01000534427 | AN22: 20997.92093 | AO22: -207.795552 | AQ22: 9900.990099 | AR22: -990.0990099 | AT22: =-AR22*AH22+AG22*AQ22 -> -828998112.7 | AU22: =AQ22*AH22+AG22*AR22 -> -9401922267 | AV22: -1.658742143 | AW22: 207735685 | AX22: -28775708.68 | AY22: -0.1376448611 | BA22: 45.00492947 | BB22: 33.06520171 | BC22: -1.521097282 | BD22: -267.1524546 | BF22: 56.48912694 | BG22: -87.31833652 | BH22: 92.68166348 | BI22: 92.68166348 | BJ22: 0 | BK22: 0 | BM22: 23.42392523 | BN22: -0.1658819618 | BQ22: 49.96716251 | BT22: 131.826 | BU22: 32.1558 | BV22: -263.3605
A23: 60 | B23: 0.06 | C23: 1.000000007 | D23: 0.0001206371572 | F23: 0.9888201809 | G23: -0.003594965192 | H23: -0.003594965192 | J23: 15 | M23: 37.63809507 | N23: -1.570796325 | O23: 1.000102337 | P23: 0.01430583692 | Q23: 1.000072074 | R23: 0.01200583625 | S23: 0.9999999914 | T23: -0.0001311929083 | U23: 0.9999999715 | V23: -0.0002387310813 | X23: 54.9382389 | Y23: -88.71271159 | Z23: 91.28728841 | AC23: 1 | AD23: 0.01430681293 | AE23: -3.020383184e-10 | AF23: 1.265182192e-06 | AG23: 11119.4112 | AH23: -790402.6509 | AJ23: 21000 | AK23: 2.75505109 | AL23: 1 | AM23: 0.01200641313 | AN23: 20997.00628 | AO23: -249.3436807 | AQ23: 9858.044164 | AR23: -1182.9653 | AT23: -825403262.1 | AU23: -7804978118 | AV23: -1.676158147 | AW23: 206735664.8 | AX23: -32237138.33 | AY23: -0.1546883486 | BA23: 37.51064003 | BB23: 31.48308949 | BC23: -1.521469798 | BD23: -267.1737982 | BF23: 54.90726116 | BG23: -87.37286254 | BH23: 92.62713746 | BI23: 92.62713746 | BJ23: 0 | BK23: 0 | BM23: 23.42417167 | BN23: -0.1990643333 | BQ23: 48.38505029 | BT23: 134.896 | BU23: 32.8753 | BV23: -269.4654
A24: 70 | B24: 0.07 | C24: 1.00000001 | D24: 0.0001407433498 | F24: 0.9888533359 | G24: -0.004194269949 | H24: -0.004194269949 | J24: 15 | M24: 32.26122434 | N24: -1.570796325 | O24: 1.00013929 | P24: 0.01668973195 | Q24: 1.0000981 | R24: 0.01400656595 | S24: 0.9999999883 | T24: -0.0001530583927 | U24: 0.9999999612 | V24: -0.0002785195929 | X24: 53.60014121 | Y24: -88.49820925 | Z24: 91.50179075 | AC24: 1 | AD24: 0.01669128175 | AE24: -4.111077112e-10 | AF24: 1.476045891e-06 | AG24: 11119.41097 | AH24: -677488.8082 | AJ24: 21000 | AK24: 3.214226272 | AL24: 1 | AM24: 0.01400748198 | AN24: 20995.92542 | AO24: -290.8858207 | AQ24: 9807.767752 | AR24: -1373.087485 | AT24: -821194803.5 | AU24: -6659920809 | AV24: -1.693481056 | AW24: 205564961.5 | AX24: -35916897.45 | AY24: -0.1729767464 | BA24: 32.15634597 | BB24: 30.14533385 | BC24: -1.520504309 | BD24: -267.1184798 | BF24: 53.56979678 | BG24: -87.35072973 | BH24: 92.64927027 | BI24: 92.64927027 | BJ24: 0 | BK24: 0 | BM24: 23.42446293 | BN24: -0.2322499666 | BQ24: 47.04729465 | BT24: 138.038 | BU24: 32.5387 | BV24: -267.9507
A25: 80 | B25: 0.08 | C25: 1.000000013 | D25: 0.0001608495423 | F25: 0.9888915942 | G25: -0.004793641131 | H25: -0.004793641131 | J25: 15 | M25: 28.2285713 | N25: -1.570796325 | O25: 1.000181926 | P25: 0.01907343729 | Q25: 1.000128129 | R25: 0.01600718352 | S25: 0.9999999847 | T25: -0.000174923877 | U25: 0.9999999493 | V25: -0.0003183081037 | X25: 52.44126927 | Y25: -88.283728 | Z25: 91.716272 | AC25: 1 | AD25: 0.01907575057 | AE25: -5.369570106e-10 | AF25: 1.686909589e-06 | AG25: 11119.41071 | AH25: -592803.5367 | AJ25: 21000 | AK25: 3.673401454 | AL25: 1 | AM25: 0.01600855083 | AN25: 20994.67842 | AO25: -332.4209753 | AQ25: 9750.390016 | AR25: -1560.062402 | AT25: -816391918.5 | AU25: -5797412660 | AV25: -1.71069646 | AW25: 204228916.5 | AX25: -39699732.56 | AY25: -0.1919940152 | BA25: 28.14017875 | BB25: 28.98653704 | BC25: -1.518702445 | BD25: -267.0152405 | BF25: 52.41133604 | BG25: -87.28067992 | BH25: 92.71932008 | BI25: 92.71932008 | BJ25: 0 | BK25: 0 | BM25: 23.424799 | BN25: -0.2654394057 | BQ25: 45.88849784 | BT25: 141.254 | BU25: 32.377 | BV25: -263.1143
A26: 90 | B26: 0.09 | C26: 1.000000016 | D26: 0.0001809557347 | F26: 0.9889349569 | G26: -0.005393088237 | H26: -0.005393088237 | J26: 15 | M26: 25.09206338 | N26: -1.570796325 | O26: 1.000230244 | P26: 0.02145692587 | Q26: 1.00016216 | R26: 0.01800767295 | S26: 0.9999999806 | T26: -0.0001967893611 | U26: 0.9999999359 | V26: -0.0003580966134 | X26: 51.41931472 | Y26: -88.06927086 | Z26: 91.93072914 | AC26: 1 | AD26: 0.02146021939 | AE26: -6.795862165e-10 | AF26: 1.897773288e-06 | AG26: 11119.41041 | AH26: -526937.3128 | AJ26: 21000 | AK26: 4.132576636 | AL26: 1 | AM26: 0.01800961969 | AN26: 20993.26534 | AO26: -373.9481481 | AQ26: 9686.168152 | AR26: -1743.510267 | AT26: -811016136 | AU26: -5123390223 | AV26: -1.727790436 | AW26: 202733524.7 | AX26: -43517982.79 | AY26: -0.2114474078 | BA26: 25.01636364 | BB26: 27.96448363 | BC26: -1.516343028 | BD26: -266.8800559 | BF26: 51.38966352 | BG26: -87.17868909 | BH26: 92.82131091 | BI26: 92.82131091 | BJ26: 0 | BK26: 0 | BM26: 23.4251799 | BN26: -0.298633195 | BQ26: 44.86644443 | BT26: 144.544 | BU26: 31.4991 | BV26: -266.2885
A27: 100 | B27: 0.1 | C27: 1.00000002 | D27: 0.0002010619269 | F27: 0.9889834253 | G27: -0.005992620768 | H27: -0.005992620768 | J27: 15 | M27: 22.58285704 | N27: -1.570796325 | O27: 1.000284244 | P27: 0.02384017064 | Q27: 1.000200194 | R27: 0.02000801824 | S27: 0.9999999761 | T27: -0.000218654845 | U27: 0.9999999208 | V27: -0.000397885122 | X27: 50.50538968 | Y27: -87.85484085 | Z27: 92.14515915 | AC27: 1 | AD27: 0.02384468821 | AE27: -8.38995329e-10 | AF27: 2.108636987e-06 | AG27: 11119.41008 | AH27: -474244.4221 | AJ27: 21000 | AK27: 4.591751817 | AL27: 1 | AM27: 0.02001068854 | AN27: 20991.68623 | AO27: -415.4663434 | AQ27: 9615.384615 | AR27: -1923.076923 | AT27: -805091099.4 | AU27: -4581426001 | AV27: -1.744749601 | AW27: 201085369.9 | AX27: -47328108.41 | AY27: -0.2311561824 | BA27: 22.51732187 | BB27: 27.05033472 | BC27: -1.513593419 | BD27: -266.7225149 | BF27: 50.47594034 | BG27: -87.05434677 | BH27: 92.94565323 | BI27: 92.94565323 | BJ27: 0 | BK27: 0 | BM27: 23.42560562 | BN27: -0.3318318788 | BQ27: 43.95229552 | BT27: 147.911 | BU27: 31.4819 | BV27: -266.3463
A28: 200 | B28: 0.2 | C28: 1.000000081 | D28: 0.0004021238375 | F28: 0.9897493008 | G28: -0.01199473882 | H28: -0.01199473882 | J28: 15 | M28: 11.29142852 | N28: -1.570796325 | O28: 1.001136493 | P28: 0.04765327274 | Q28: 1.000800535 | R28: 0.04000003004 | S28: 0.9999999044 | T28: -0.000437309669 | U28: 0.9999996834 | V28: -0.0007957701181 | X28: 44.50412059 | Y28: -85.71269387 | Z28: 94.28730613 | AC28: 1 | AD28: 0.04768937643 | AE28: -3.355981316e-09 | AF28: 4.217273973e-06 | AG28: 11119.4048 | AH28: -237128.8474 | AJ28: 21000 | AK28: 9.183503634 | AL28: 1 | AM28: 0.04002137709 | AN28: 20966.78481 | AO28: -829.9360977 | AQ28: 8620.689655 | AR28: -3448.275862 | AT28: -721828742.8 | AU28: -2082556977 | AV28: -1.904445201 | AW28: 177927466.6 | AX28: -80937102.77 | AY28: -0.4269115021 | BA28: 11.27585597 | BB28: 21.0429904 | BC28: -1.477533699 | BD28: -264.6564451 | BF28: 44.47532036 | BG28: -85.32065306 | BH28: 94.67934694 | BI28: 94.67934694 | BJ28: 0 | BK28: 0 | BM28: 23.43232996 | BN28: -0.6642079127 | BQ28: 37.9449512 | BT28: 151.356 | BU28: 31.0519 | BV28: -267.0283
A29: 300 | B29: 0.3 | C29: 1.000000182 | D29: 0.0006031857156 | F29: 0.9910282085 | G29: -0.01801589936 | H29: -0.01801589936 | J29: 15 | M29: 7.527619013 | N29: -1.570796325 | O29: 1.002555296 | P29: 0.07141242171 | Q29: 1.001800304 | R29: 0.05996010567 | S29: 0.9999997849 | T29: -0.0006559644512 | U29: 0.9999992876 | V29: -0.001193654862 | X29: 41.01448154 | Y29: -83.57655901 | Z29: 96.42344099 | AC29: 1 | AD29: 0.07153406464 | AE29: -7.550957961e-09 | AF29: 6.32591096e-06 | AG29: 11119.39599 | AH29: -158093.272 | AJ29: 21000 | AK29: 13.77525545 | AL29: 1 | AM29: 0.06003206563 | AN29: 20925.41492 | AO29: -1242.420627 | AQ29: 7352.941176 | AR29: -4411.764706 | AT29: -615710053 | AU29: -1211506688 | AV29: -2.04099706 | AW29: 148423187.3 | AX29: -102443284.1 | AY29: -0.6041257603 | BA29: 7.535517117 | BB29: 17.54226121 | BC29: -1.4368713 | BD29: -262.3266613 | BF29: 40.9858083 | BG29: -83.32433628 | BH29: 96.67566372 | BI29: 96.67566372 | BJ29: 0 | BK29: 0 | BM29: 23.44354709 | BN29: -0.997675003 | BQ29: 34.44422201 | BT29: 154.882 | BU29: 31.2487 | BV29: -260.6973
A30: 400 | B30: 0.4 | C30: 1.000000323 | D30: 0.000804247545 | F30: 0.9928238377 | G30: -0.02406574395 | H30: -0.02406574395 | J30: 15 | M30: 5.64571426 | N30: -1.570796325 | O30: 1.004538255 | P30: 0.09509109777 | Q30: 1.003198307 | R30: 0.07987246785 | S30: 0.9999996175 | T30: -0.0008746191707 | U30: 0.9999987335 | V30: -0.001591539228 | X30: 38.56070088 | Y30: -81.44941215 | Z30: 98.55058785 | AC30: 1 | AD30: 0.09537875285 | AE30: -1.342392526e-08 | AF30: 8.434547947e-06 | AG30: 11119.38367 | AH30: -118577.6964 | AJ30: 21000 | AK30: 18.36700727 | AL30: 1 | AM30: 0.08004275417 | AN30: 20867.77361 | AO30: -1651.947066 | AQ30: 6097.560976 | AR30: -4878.04878 | AT30: -510626667.4 | AU30: -777275630.2 | AV30: -2.15203771 | AW30: 119225269 | AX30: -112610300.5 | AY30: -0.7568728849 | BA30: 5.6707488 | BB30: 15.07280819 | BC30: -1.395164826 | BD30: -259.9370563 | BF30: 38.5320801 | BG30: -81.26984189 | BH30: 98.73015811 | BI30: 98.73015811 | BJ30: 0 | BK30: 0 | BM30: 23.45927191 | BN30: -1.332785571 | BQ30: 31.97476899 | BT30: 158.489 | BU30: 31.0037 | BV30: -259.869
A31: 500 | B31: 0.5 | C31: 1.000000505 | D31: 0.001005309309 | F31: 0.9951413876 | G31: -0.03015405986 | H31: -0.03015405986 | J31: 15 | M31: 4.516571408 | N31: -1.570796325 | O31: 1.007082037 | P31: 0.1186633206 | Q31: 1.004992881 | R31: 0.09972156579 | S31: 0.9999994024 | T31: -0.001093273807 | U31: 0.9999980211 | V31: -0.00198942309 | X31: 36.68023729 | Y31: -79.33419359 | Z31: 100.6658064 | AC31: 1 | AD31: 0.1192234411 | AE31: -2.097488323e-08 | AF31: 1.054318493e-05 | AG31: 11119.36783 | AH31: -94870.12072 | AJ31: 21000 | AK31: 22.95875909 | AL31: 1 | AM31: 0.1000534427 | AN31: 20794.13345 | AO31: -2057.565881 | AQ31: 5000 | AR31: -5000 | AT31: -418753764.5 | AU31: -529947442.8 | AV31: -2.239520593 | AW31: 93723755.37 | AX31: -114854329.5 | AY31: -0.8863614385 | BA31: 4.556235997 | BB31: 13.17212422 | BC31: -1.353159154 | BD31: -257.5303086 | BF31: 36.65164956 | BG31: -79.20040902 | BH31: 100.799591 | BI31: 100.799591 | BJ31: 0 | BK31: 0 | BM31: 23.47952535 | BN31: -1.670100386 | BQ31: 30.07408502 | BT31: 162.181 | BU31: 30.4293 | BV31: -262.3986
A32: 600 | B32: 0.6 | C32: 1.000000728 | D32: 0.001206370992 | F32: 0.9979876014 | G32: -0.03629083095 | H32: -0.03629083095 | J32: 15 | M32: 3.763809507 | N32: -1.570796325 | O32: 1.010182404 | P32: 0.1421038152 | Q32: 1.007181908 | R32: 0.1194921464 | S32: 0.9999991394 | T32: -0.001311928338 | U32: 0.9999971504 | V32: -0.002387306323 | X32: 35.1670092 | Y32: -77.23379746 | Z32: 102.7662025 | AC32: 1 | AD32: 0.1430681293 | AE32: -3.020383184e-08 | AF32: 1.265182192e-05 | AG32: 11119.34847 | AH32: -79066.54498 | AJ32: 21000 | AK32: 27.5505109 | AL32: 1 | AM32: 0.1200641313 | AN32: 20704.83938 | AO32: -2458.358042 | AQ32: 4098.360656 | AR32: -4918.032787 | AT32: -343280760.3 | AU32: -378728537.5 | AV32: -2.307137869 | AW32: 72806400.44 | AX32: -112399940.5 | AY32: -0.996008598 | BA32: 3.816855483 | BB32: 11.63411433 | BC32: -1.31112927 | BD32: -255.1221737 | BF32: 35.13844875 | BG32: -77.13236516 | BH32: 102.8676348 | BI32: 102.8676348 | BJ32: 0 | BK32: 0 | BM32: 23.50433442 | BN32: -2.010191484 | BQ32: 28.53607513 | BT32: 165.959 | BU32: 29.9194 | BV32: -264.8295
A33: 700 | B33: 0.7 | C33: 1.00000099 | D33: 0.001407432578 | F33: 1.001370811 | G33: -0.04248629054 | H33: -0.04248629054 | J33: 15 | M33: 3.226122434 | N33: -1.570796325 | O33: 1.013834251 | P33: 0.165388166 | Q33: 1.009762821 | R33: 0.1391693223 | S33: 0.9999988287 | T33: -0.001530582744 | U33: 0.9999961214 | V33: -0.002785188799 | X33: 33.91103209 | Y33: -75.15106197 | Z33: 104.848938 | AC33: 1 | AD33: 0.1669128175 | AE33: -4.111077112e-08 | AF33: 1.476045891e-05 | AG33: 11119.32558 | AH33: -67779.54062 | AJ33: 21000 | AK33: 32.14226272 | AL33: 1 | AM33: 0.1400748198 | AN33: 20600.30467 | AO33: -2853.441702 | AQ33: 3378.378378 | AR33: -4729.72973 | AT33: -283013619.2 | AU33: -281576339.3 | AV33: -2.35874019 | AW33: 56140249.59 | AX33: -107501514 | AY33: -1.08952523 | BA33: 3.291836626 | BB33: 10.34876546 | BC33: -1.269214961 | BD33: -252.7206606 | BF33: 33.8824978 | BG33: -75.07430583 | BH33: 104.9256942 | BI33: 104.9256942 | BJ33: 0 | BK33: 0 | BM33: 23.53373234 | BN33: -2.353645191 | BQ33: 27.25072626 | BT33: 169.824 | BU33: 29.8089 | BV33: -267.7277
A34: 800 | B34: 0.8 | C34: 1.000001294 | D34: 0.00160849405 | F34: 1.005300992 | G34: -0.04875097688 | H34: -0.04875097688 | J34: 15 | M34: 2.82285713 | N34: -1.570796325 | O34: 1.018031643 | P34: 0.1884929574 | Q34: 1.012732625 | R34: 0.158738635 | S34: 0.9999984701 | T34: -0.001749237003 | U34: 0.999994934 | V34: -0.003183070394 | X34: 32.84660088 | Y34: -73.08876092 | Z34: 106.9112391 | AC34: 1 | AD34: 0.1907575057 | AE34: -5.369570106e-08 | AF34: 1.686909589e-05 | AG34: 11119.29918 | AH34: -59315.39336 | AJ34: 21000 | AK34: 36.73401454 | AL34: 1 | AM34: 0.1600855083 | AN34: 20481.00626 | AO34: -3241.978284 | AQ34: 2808.988764 | AR34: -4494.382022 | AT34: -235352051.1 | AU34: -216590651.8 | AV34: -2.397683451 | AW34: 43000686.65 | AX34: -101531426.1 | AY34: -1.17017911 | BA34: 2.900793051 | BB34: 9.250334928 | BC34: -1.227504342 | BD34: -250.3308182 | BF34: 32.81809357 | BG34: -73.03188349 | BH34: 106.9681165 | BI34: 106.9681165 | BJ34: 0 | BK34: 0 | BM34: 23.56775864 | BN34: -2.701065305 | BQ34: 26.15229573 | BT34: 173.78 | BU34: 30.0709 | BV34: -269.952
A35: 900 | B35: 0.9 | C35: 1.000001637 | D35: 0.001809555391 | F35: 1.009789833 | G35: -0.05509579172 | H35: -0.05509579172 | J35: 15 | M35: 2.509206338 | N35: -1.570796325 | O35: 1.022767863 | P35: 0.211395899 | Q35: 1.01608791 | R35: 0.1781861146 | S35: 0.9999980637 | T35: -0.001967891096 | U35: 0.9999935884 | V35: -0.003580950981 | X35: 31.93128143 | Y35: -71.04959651 | Z35: 108.9504035 | AC35: 1 | AD35: 0.2146021939 | AE35: -6.795862165e-08 | AF35: 1.897773288e-05 | AG35: 11119.26925 | AH35: -52733.15082 | AJ35: 21000 | AK35: 41.32576636 | AL35: 1 | AM35: 0.1800961969 | AN35: 20347.47944 | AO35: -3623.177897 | AQ35: 2358.490566 | AR35: -4245.283019 | AT35: -197642458.1 | AU35: -171575083.7 | AV35: -2.426679201 | AW35: 32648186.33 | AX35: -95260714.61 | AY35: -1.240617615 | BA35: 2.599065228 | BB35: 8.296343579 | BC35: -1.186061586 | BD35: -247.9563232 | BF35: 31.90280286 | BG35: -71.00939964 | BH35: 108.9906004 | BI35: 108.9906004 | BJ35: 0 | BK35: 0 | BM35: 23.60645928 | BN35: -3.053076452 | BQ35: 25.19830438 | BT35: 177.828 | BU35: 29.7201 | BV35: -271.5601
A36: 1000 | B36: 1 | C36: 1.000002021 | D36: 0.002010616587 | F36: 1.014850813 | G36: -0.06153206284 | H36: -0.06153206284 | J36: 15 | M36: 2.258285704 | N36: -1.570796325 | O36: 1.028035464 | P36: 0.2340759335 | Q36: 1.01982487 | R36: 0.1974983322 | S36: 0.9999976095 | T36: -0.002186545 | U36: 0.9999920845 | V36: -0.003978830434 | X36: 31.13604891 | Y36: -69.03619366 | Z36: 110.9638063 | AC36: 1 | AD36: 0.2384468821 | AE36: -8.38995329e-08 | AF36: 2.108636987e-05 | AG36: 11119.23581 | AH36: -47468.24157 | AJ36: 21000 | AK36: 45.91751817 | AL36: 1 | AM36: 0.2001068854 | AN36: 20200.31205 | AO36: -3996.304011 | AQ36: 2000 | AR36: -4000 | AT36: -167634494.7 | AU36: -139413426.4 | AV36: -2.447847942 | AW36: 24455456.23 | AX36: -89096148.06 | AY36: -1.302910014 | BA36: 2.359857211 | BB36: 7.457714512 | BC36: -1.144937928 | BD36: -245.6001111 | BF36: 31.10760133 | BG36: -69.01043881 | BH36: 110.9895612 | BI36: 110.9895612 | BJ36: 0 | BK36: 0 | BM36: 23.64988681 | BN36: -3.410327665 | BQ36: 24.35967531 | BT36: 181.97 | BU36: 30.0421 | BV36: -268.8459
A37: =A36+500 -> 1500 | B37: 1.5 | C37: 1.000004548 | D37: 0.0030159198 | F37: 1.049347771 | G37: -0.09552048432 | H37: -0.09552048432 | J37: 15 | M37: 1.505523803 | N37: -1.570796325 | O37: 1.062039576 | P37: 0.3434916602 | Q37: 1.044076732 | R37: 0.291603878 | S37: 0.9999946214 | T37: -0.003279810966 | U37: 0.9999821903 | V37: -0.005968206283 | X37: 28.39126704 | Y37: -59.44169953 | Z37: 120.5583005 | AC37: 1 | AD37: 0.3576703232 | AE37: -1.88773949e-07 | AF37: 3.16295548e-05 | AG37: 11119.01577 | AH37: -31682.36122 | AJ37: 21000 | AK37: 68.87627726 | AL37: 1 | AM37: 0.3001603282 | AN37: 19283.31967 | AO37: -5719.211281 | AQ37: 1000 | AR37: -3000 | AT37: -83928067.9 | AU37: -65039408.55 | AV37: -2.482318645 | AW37: 2164391.511 | AX37: -63775205.12 | AY37: -1.536871526 | BA37: 1.663941531 | BB37: 4.422761231 | BC37: -0.9454471191 | BD37: -234.1701297 | BF37: 28.3630148 | BG37: -59.47025088 | BH37: 120.5297491 | BI37: 120.5297491 | BJ37: 0 | BK37: 0 | BM37: 23.94025357 | BN37: -5.300121139 | BQ37: 21.32472203 | BT37: 186.209 | BU37: 29.9018 | BV37: -265.3796
A38: =A37+500 -> 2000 | B38: 2 | C38: 1.000008085 | D38: 0.004021216917 | F38: 1.101405843 | G38: -0.1338753477 | H38: -0.1338753477 | J38: 15 | M38: 1.129142852 | N38: -1.570796325 | O38: 1.107893344 | P38: 0.4449923437 | Q38: 1.077112372 | R38: 0.3806906488 | S38: 0.9999904381 | T38: -0.004373069092 | U38: 0.999968339 | V38: -0.007957534893 | X38: 26.95064201 | Y38: -50.83843449 | Z38: 129.1615655 | AC38: 1 | AD38: 0.4768937643 | AE38: -3.355981316e-07 | AF38: 4.217273973e-05 | AG38: 11118.70774 | AH38: -23800.47926 | AJ38: 21000 | AK38: 91.83503634 | AL38: 1 | AM38: 0.4002137709 | AN38: 18132.4585 | AO38: -7165.024557 | AQ38: 588.2352941 | AR38: -2352.941176 | AT38: -49460711.36 | AU38: -40161947.2 | AV38: -2.459579182 | AW38: -6155708.46 | AX38: -47038100.83 | AY38: -1.70092327 | BA38: 1.34304562 | BB38: 2.561815298 | BC38: -0.758655912 | BD38: -223.4677819 | BF38: 26.92265823 | BG38: -50.90787557 | BH38: 129.0921244 | BI38: 129.0921244 | BJ38: 0 | BK38: 0 | BM38: 24.36084293 | BN38: -7.440093656 | BQ38: 19.4637761 | BT38: 190.546 | BU38: 29.5667 | BV38: -265.8945
A39: 2500 | B39: 2.5 | C39: 1.000012633 | D39: 0.005026505907 | F39: 1.175596479 | G39: -0.1790383851 | H39: -0.1790383851 | J39: 15 | M39: 0.9033142816 | N39: -1.570796325 | O39: 1.164197459 | P39: 0.537559613 | Q39: 1.118153516 | R39: 0.463861357 | S39: 0.9999850597 | T39: -0.005466316765 | U39: 0.999950531 | V39: -0.009946800521 | X39: 26.33388012 | Y39: -43.47605768 | Z39: 136.5239423 | AC39: 1 | AD39: 0.5961172053 | AE39: -5.243720806e-07 | AF39: 5.271592467e-05 | AG39: 11118.31173 | AH39: -19080.19519 | AJ39: 21000 | AK39: 114.7937954 | AL39: 1 | AM39: 0.5002672136 | AN39: 16842.34069 | AO39: -8310.877054 | AQ39: 384.6153846 | AR39: -1923.076923 | AT39: -32416409.31 | AU39: -28719905.33 | AV39: -2.416584281 | AW39: -9469500.567 | AX39: -35716438.48 | AY39: -1.829963555 | BA39: 1.17207926 | BB39: 1.379139625 | BC39: -0.5866207259 | BD39: -213.6108918 | BF39: 26.30624007 | BG39: -43.58103808 | BH39: 136.4189619 | BI39: 136.4189619 | BJ39: 0 | BK39: 0 | BM39: 24.92710045 | BN39: -9.970146272 | BQ39: 18.28110043 | BT39: 194.984 | BU39: 29.6856 | BV39: -265.6327
A40: 3000 | B40: 3 | C40: 1.000018191 | D40: 0.006031784737 | F40: 1.279192986 | G40: -0.2346801162 | H40: -0.2346801162 | J40: 15 | M40: 0.7527619013 | N40: -1.570796325 | O40: 1.229517076 | P40: 0.6209476736 | Q40: 1.166355388 | R40: 0.5406552436 | S40: 0.9999784862 | T40: -0.006559551371 | U40: 0.9999287669 | V40: -0.01193598743 | X40: 26.32436087 | Y40: -37.60535601 | Z40: 142.394644 | AA40: =20*LOG(7) -> 16.9019608 | AC40: 1 | AD40: 0.7153406464 | AE40: -7.550957961e-07 | AF40: 6.32591096e-05 | AG40: 11117.82775 | AH40: -15940.70848 | AJ40: 21000 | AK40: 137.7525545 | AL40: 1 | AM40: 0.6003206563 | AN40: 15497.5962 | AO40: -9165.774566 | AQ40: 270.2702703 | AR40: -1621.621622 | AT40: -22844979.23 | AU40: -22337209.46 | AV40: -2.36743229 | AW40: -10641715.61 | AX40: -27720816.47 | AY40: -1.9373372 | BA40: 1.076023579 | BB40: 0.6364357636 | BC40: -0.43009509 | BD40: -204.6426335 | BF40: 26.29714034 | BG40: -37.74321788 | BH40: 142.2567821 | BI40: 142.2567821 | BJ40: 0 | BK40: 0 | BM40: 25.66070458 | BN40: -13.1005844 | BQ40: 17.53839656 | BT40: 199.526 | BU40: 29.051 | BV40: -267.8015
A41: 3500 | B41: 3.5 | C41: 1.000024761 | D41: 0.007037051375 | F41: 1.423640357 | G41: -0.3067071919 | H41: -0.3067071919 | J41: 15 | M41: 0.6452244869 | N41: -1.570796325 | O41: 1.302496532 | P41: 0.6954641834 | Q41: 1.220870132 | R41: 0.6109769934 | S41: 0.9999707177 | T41: -0.007652770297 | U41: 0.9999030476 | V41: -0.01392507987 | X41: 26.81208727 | Y41: -33.55258836 | Z41: 146.4474116 | AC41: 1 | AD41: 0.8345640875 | AE41: -1.027769278e-06 | AF41: 7.380229453e-05 | AG41: 11117.25584 | AH41: -13704.53291 | AJ41: 21000 | AK41: 160.7113136 | AL41: 1 | AM41: 0.700374099 | AN41: 14164.52185 | AO41: -9759.752913 | AQ41: 200 | AR41: -1400 | AT41: -16962894.9 | AU41: -18305064.75 | AV41: -2.318156495 | AW41: -10799538.49 | AX41: -21881400.41 | AY41: -2.029269654 | BA41: 1.022741332 | BB41: 0.1953161516 | BC41: -0.2888868413 | BD41: -196.5519968 | BF41: 26.78536221 | BG41: -33.7218311 | BH41: 146.2781689 | BI41: 146.2781689 | BJ41: 0 | BK41: 0 | BM41: 26.59004606 | BN41: -17.16983432 | BQ41: 17.09727695 | BT41: 204.174 | BU41: 28.4243 | BV41: -264.1684
A42: 4000 | B42: 4 | C42: 1.00003234 | D42: 0.008042303791 | F42: 1.626503064 | G42: -0.4052203514 | H42: -0.4052203514 | J42: 15 | M42: 0.564571426 | N42: -1.570796325 | O42: 1.381922809 | P42: 0.7617498108 | Q42: 1.280891974 | R42: 0.675001584 | S42: 0.9999617542 | T42: -0.008745970932 | U42: 0.999873374 | V42: -0.01591406213 | X42: 27.74007533 | Y42: -31.84975046 | Z42: 148.1502495 | AC42: 1 | AD42: 0.9537875285 | AE42: -1.342392526e-06 | AF42: 8.434547947e-05 | AG42: 11116.596 | AH42: -12032.92508 | AJ42: 21000 | AK42: 183.6700727 | AL42: 1 | AM42: 0.8004275417 | AN42: 12889.14341 | AO42: -10133.1553 | AQ42: 153.8461538 | AR42: -1230.769231 | AT42: -13099508.41 | AU42: -15533183.55 | AV42: -2.27140191 | AW42: -10459286.9 | AX42: -17511609.24 | AY42: -2.109211446 | BA42: 0.9961755916 | BB42: -0.03328207169 | BC42: -0.1621904646 | BD42: -189.2928291 | BF42: 27.71392173 | BG42: -32.04945498 | BH42: 147.950545 | BI42: 147.950545 | BJ42: 0 | BK42: 0 | BM42: 27.7472038 | BN42: -22.75662587 | BQ42: 16.86867873 | BT42: 208.93 | BU42: 28.5109 | BV42: -267.6911
A43: 4500 | B43: 4.5 | C43: 1.00004093 | D43: 0.009047539953 | F43: 1.911542768 | G43: -0.548280771 | H43: -0.548280771 | J43: 15 | M43: 0.5018412676 | N43: -1.570796325 | O43: 1.46674897 | P43: 0.8206033817 | Q43: 1.345684214 | R43: 0.7330807755 | S43: 0.9999515959 | T43: -0.009839150662 | U43: 0.999839747 | V43: -0.01790291848 | X43: 29.065355 | Y43: -33.46574682 | Z43: 146.5342532 | AC43: 1 | AD43: 1.07301097 | AE43: -1.698965541e-06 | AF43: 9.48886644e-05 | AG43: 11115.84829 | AH43: -10737.69401 | AJ43: 21000 | AK43: 206.6288318 | AL43: 1 | AM43: 0.9004809845 | AN43: 11699.41083 | AO43: -10328.46815 | AQ43: 121.9512195 | AR43: -1097.560976 | AT43: -10429682.66 | AU43: -13509796.17 | AV43: -2.228234969 | AW43: -9881764.667 | AX43: -14181560.81 | AY43: -2.17937393 | BA43: 0.9874142414 | BB43: -0.1100122657 | BC43: -0.04886103902 | BD43: -182.7995313 | BF43: 29.03984881 | BG43: -33.69531967 | BH43: 146.3046803 | BI43: 146.3046803 | BJ43: 0 | BK43: 0 | BM43: 29.14986107 | BN43: -30.89578835 | BQ43: 16.79194853 | BT43: 213.796 | BU43: 28.179 | BV43: -266.9667
A44: 5000 | B44: 5 | C44: 1.000050531 | D44: 0.01005275783 | F44: 2.292065073 | G44: -0.7676133494 | H44: -0.7676133494 | J44: 15 | M44: 0.4516571408 | N44: -1.570796325 | O44: 1.556092186 | P44: 0.8728632414 | Q44: 1.41459151 | R44: 0.7856653056 | S44: 0.9999402429 | T44: -0.01093230688 | U44: 0.999802168 | V44: -0.01989163318 | X44: 30.67407037 | Y44: -40.14442029 | Z44: 139.8555797 | AC44: 1 | AD44: 1.192234411 | AE44: -2.097488323e-06 | AF44: 0.0001054318493 | AG44: 11115.01272 | AH44: -9705.924878 | AJ44: 21000 | AK44: 229.5875909 | AL44: 1 | AM44: 1.000534427 | AN44: 10609.18379 | AO44: -10385.26604 | AQ44: 99.00990099 | AR44: -990.0990099 | AT44: -8509330.303 | AU44: -11965945.75 | AV44: -2.188952393 | AW44: -9206022.539 | AX44: -11607078.8 | AY44: -2.241339479 | BA44: 0.9911154084 | BB44: -0.07751544065 | BC44: 0.05238708647 | BD44: -176.998441 | BF44: 30.6492875 | BG44: -40.40346571 | BH44: 139.5965343 | BI44: 139.5965343 | BJ44: 0 | BK44: 0 | BM44: 30.72680294 | BN44: -43.40502467 | BQ44: 16.82444536 | BT44: 218.776 | BU44: 27.7064 | BV44: -263.5369
A45: 5500 | B45: 5.5 | C45: 1.000061142 | D45: 0.01105795539 | F45: 2.681130857 | G45: -1.105131628 | H45: -1.105131628 | J45: 15 | M45: 0.4105974007 | N45: -1.570796325 | O45: 1.649218511 | P45: 0.919336644 | Q45: 1.487041916 | R45: 0.8332471933 | S45: 0.9999276953 | T45: -0.01202543696 | U45: 0.9997606382 | V45: -0.02188019054 | X45: 32.14636122 | Y45: -54.21279613 | Z45: 125.7872039 | AC45: 1 | AD45: 1.311457852 | AE45: -2.53796087e-06 | AF45: 0.0001159750343 | AG45: 11114.08935 | AH45: -8865.762622 | AJ45: 21000 | AK45: 252.5463499 | AL45: 1 | AM45: 1.10058787 | AN45: 9622.398798 | AO45: -10337.74905 | AQ45: 81.96721311 | AR45: -901.6393443 | AT45: -7082729.466 | AU45: -10747602.09 | AV45: -2.153476313 | AW45: -8507640.527 | AX45: -9592544.476 | AY45: -2.296327284 | BA45: 1.003882896 | BB45: 0.03366109892 | BC45: 0.142850971 | BD45: -171.8152423 | BF45: 32.12237756 | BG45: -54.50104627 | BH45: 125.4989537 | BI45: 125.4989537 | BJ45: 0 | BK45: 0 | BM45: 32.08871646 | BN45: -62.68580401 | BQ45: 16.9356219 | BT45: 223.872 | BU45: 27.9371 | BV45: -265.1945
A46: 6000 | B46: 6 | C46: 1.000072764 | D46: 0.0120631306 | F46: 2.750057444 | G46: -1.551387924 | H46: -1.551387924 | J46: 15 | M46: 0.3763809507 | N46: -1.570796325 | O46: 1.745522547 | P46: 0.9607635232 | Q46: 1.562542659 | R46: 0.8763208008 | S46: 0.9999139532 | T46: -0.01311853831 | U46: 0.9997151591 | V46: -0.02386857483 | X46: 32.53377023 | Y46: -75.05884103 | Z46: 104.941159 | AC46: 1 | AD46: 1.430681293 | AE46: -3.020383184e-06 | AF46: 0.0001265182192 | AG46: 11113.07821 | AH46: -8169.303687 | AJ46: 21000 | AK46: 275.505109 | AL46: 1 | AM46: 1.200641313 | AN46: 8736.611584 | AO46: -10214.03169 | AQ46: 68.96551724 | AR46: -827.5862069 | AT46: -5994383.864 | AU46: -9760430.499 | AV46: -2.121556473 | AW46: -7827204.837 | AX46: -7999318.897 | AY46: -2.34531988 | BA46: 1.023454297 | BB46: 0.201369074 | BC46: 0.2237634067 | BD46: -167.1793012 | BF46: 32.51066156 | BG46: -75.37611522 | BH46: 104.6238848 | BI46: 104.6238848 | BJ46: 0 | BK46: 0 | BM46: 32.30929249 | BN46: -88.19681404 | BQ46: 17.10332987 | BT46: 229.087 | BU46: 27.6763 | BV46: -266.7544
A47: 6500 | B47: 6.5 | C47: 1.000085396 | D47: 0.01306828144 | F47: 2.336886716 | G47: 1.169100104 | H47: -1.972492546 | J47: 15 | M47: 0.3474285698 | N47: -1.570796325 | O47: 1.844506623 | P47: 0.9978021838 | Q47: 1.640672681 | R47: 0.9153588872 | S47: 0.9998990168 | T47: -0.0142116083 | U47: 0.9996657323 | V47: -0.02585677038 | X47: 31.32689291 | Y47: -94.94643471 | Z47: 85.05356529 | AC47: 1 | AD47: 1.549904734 | AE47: -3.544755265e-06 | AF47: 0.0001370614041 | AG47: 11111.97936 | AH47: -7583.383914 | AJ47: 21000 | AK47: 298.4638681 | AL47: 1 | AM47: 1.300694755 | AN47: 7945.67055 | AO47: -10036.42814 | AQ47: 58.82352941 | AR47: -764.7058824 | AT47: -5145412.442 | AU47: -8943477.388 | AV47: -2.092875349 | AW47: -7185420.095 | AX47: -6727043.861 | AY47: -2.389129741 | BA47: 1.048264175 | BB47: 0.4094148731 | BC47: 0.2962543917 | BD47: -163.0258737 | BF47: 31.30473496 | BG47: -95.29261441 | BH47: 84.70738559 | BI47: 84.70738559 | BJ47: 0 | BK47: 0 | BM47: 30.89532009 | BN47: -112.2667407 | BQ47: 17.31137567 | BT47: 234.423 | BU47: 27.6703 | BV47: -266.7612
A48: 7000 | B48: 7 | C48: 1.000099039 | D48: 0.01407340587 | F48: 1.806651108 | G48: 0.8730586952 | H48: -2.268533955 | J48: 15 | M48: 0.3226122434 | N48: -1.570796325 | O48: 1.94576177 | P48: 1.031027695 | Q48: 1.721073942 | R48: 0.950799521 | S48: 0.9998828862 | T48: -0.01530464433 | U48: 0.9996123597 | V48: -0.02784476148 | X48: 29.32718707 | Y48: -108.0930182 | Z48: 71.90698182 | AC48: 1 | AD48: 1.669128175 | AE48: -4.111077112e-06 | AF48: 0.0001476045891 | AG48: 11110.79284 | AH48: -7084.31447 | AJ48: 21000 | AK48: 321.4226272 | AL48: 1 | AM48: 1.400748198 | AN48: 7241.573427 | AO48: -9822.198302 | AQ48: 50.76142132 | AR48: -710.6598985 | AT48: -4470538.565 | AU48: -8255604.786 | AV48: -2.067102255 | AW48: -6591578.502 | AX48: -5701899.594 | AY48: -2.428438534 | BA48: 1.077194715 | BB48: 0.6458842778 | BC48: 0.3613362786 | BD48: -159.2969562 | BF48: 29.30605549 | BG48: -108.4680309 | BH48: 71.53196909 | BI48: 71.53196909 | BJ48: 0 | BK48: 0 | BM48: 28.66017121 | BN48: -129.1710747 | BQ48: 17.54784508 | BT48: 239.883 | BU48: 27.2761 | BV48: -267.5957
A49: 7500 | B49: 7.5 | C49: 1.000113691 | D49: 0.01507850186 | F49: 1.389744472 | G49: 0.6835763476 | H49: -2.458016302 | J49: 15 | M49: 0.3011047605 | N49: -1.570796325 | O49: 2.048951318 | P49: 1.060936916 | Q49: 1.803442698 | R49: 0.9830402907 | S49: 0.9998655617 | T49: -0.01639764379 | U49: 0.999555043 | V49: -0.02983253246 | X49: 27.30351043 | Y49: -115.5075522 | Z49: 64.49244777 | AC49: 1 | AD49: 1.788351616 | AE49: -4.719348726e-06 | AF49: 0.000158147774 | AG49: 11109.51872 | AH49: -6654.723404 | AJ49: 21000 | AK49: 344.3813863 | AL49: 1 | AM49: 1.500801641 | AN49: 6615.671914 | AO49: -9584.429877 | AQ49: 44.24778761 | AR49: -663.7168142 | AT49: -3925280.192 | AU49: -7668031.159 | AV49: -2.043920106 | AW49: -6048464.427 | AX49: -4868887.625 | AY49: -2.463823023 | BA49: 1.109426283 | BB49: 0.9019690106 | BC49: 0.4199029166 | BD49: -155.941335 | BF49: 27.28348075 | BG49: -115.9113608 | BH49: 64.08863921 | BI49: 64.08863921 | BJ49: 0 | BK49: 0 | BM49: 26.38151174 | BN49: -139.9700257 | BQ49: 17.80392981 | BT49: 245.471 | BU49: 27.0755 | BV49: -266.8096
A50: 8000 | B50: 8 | C50: 1.000129355 | D50: 0.01608356739 | F50: 1.094870312 | G50: 0.5594677218 | H50: -2.582124928 | J50: 15 | M50: 0.282285713 | N50: -1.570796325 | O50: 2.153797251 | P50: 1.087956462 | Q50: 1.88752139 | R50: 1.012437111 | S50: 0.9998470433 | T50: -0.01749060407 | U50: 0.9994937844 | V50: -0.03182006764 | X50: 25.50018752 | Y50: -119.5049464 | Z50: 60.49505359 | AC50: 1 | AD50: 1.907575057 | AE50: -5.369570106e-06 | AF50: 0.0001686909589 | AG50: 11108.15705 | AH50: -6281.581625 | AJ50: 21000 | AK50: 367.3401454 | AL50: 1 | AM50: 1.600855083 | AN50: 6059.402743 | AO50: -9332.885538 | AQ50: 38.91050584 | AR50: -622.5680934 | AT50: -3478488.286 | AU50: -7160003.672 | AV50: -2.02303745 | AW50: -5555243.891 | AX50: -4186586.025 | AY50: -2.495773817 | BA50: 1.144344131 | BB50: 1.171132935 | BC50: 0.4727363671 | BD50: -152.9142013 | BF50: 25.48133519 | BG50: -119.9375415 | BH50: 60.06245849 | BI50: 60.06245849 | BJ50: 0 | BK50: 0 | BM50: 24.31020226 | BN50: -147.0233402 | BQ50: 18.07309373 | BT50: 251.189 | BU50: 27.0434 | BV50: -265.9205
A51: 8500 | B51: 8.5 | C51: 1.000146028 | D51: 0.01708860042 | F51: 0.8860285979 | G51: 0.4738814893 | H51: -2.667711161 | J51: 15 | M51: 0.2656806711 | N51: -1.570796325 | O51: 2.260069059 | P51: 1.112451524 | Q51: 1.973091436 | R51: 1.039305721 | S51: 0.9998273313 | T51: -0.01858352257 | U51: 0.9994285859 | V51: -0.03380735137 | X51: 23.93816131 | Y51: -121.5846531 | Z51: 58.41534691 | AC51: 1 | AD51: 2.026798498 | AE51: -6.061741252e-06 | AF51: 0.0001792341439 | AG51: 11106.70789 | AH51: -5954.925587 | AJ51: 21000 | AK51: 390.2989045 | AL51: 1 | AM51: 1.700908526 | AN51: 5564.696364 | AO51: -9074.740586 | AQ51: 34.48275862 | AR51: -586.2068966 | AT51: -3107828.52 | AU51: -6716171.025 | AV51: -2.004192658 | AW51: -5109176.517 | AX51: -3623497.102 | AY51: -2.524709842 | BA51: 1.181478086 | BB51: 1.448513418 | BC51: 0.5205171835 | BD51: -150.1765622 | BF51: 23.92056168 | BG51: -122.0460481 | BH51: 57.95395185 | BI51: 57.95395185 | BJ51: 0 | BK51: 0 | BM51: 22.47204826 | BN51: -151.869486 | BQ51: 18.35047422 | BT51: 257.04 | BU51: 26.6776 | BV51: -267.6031
A52: 9000 | B52: 9 | C52: 1.000163711 | D52: 0.01809359892 | F52: 0.7340591859 | G52: 0.411857453 | H52: -2.729735197 | J52: 15 | M52: 0.2509206338 | N52: -1.570796325 | O52: 2.367574743 | P52: 1.134734449 | Q52: 2.059966993 | R52: 1.063924609 | S52: 0.999806426 | T52: -0.01967639666 | U52: 0.99935945 | V52: -0.03579436801 | X52: 22.58462826 | Y52: -122.5699753 | Z52: 57.43002474 | AC52: 1 | AD52: 2.146021939 | AE52: -6.795862165e-06 | AF52: 0.0001897773288 | AG52: 11105.17132 | AH52: -5667.00575 | AJ52: 21000 | AK52: 413.2576636 | AL52: 1 | AM52: 1.800961969 | AN52: 5124.17715 | AO52: -8815.190506 | AQ52: 30.76923077 | AR52: -553.8461538 | AT52: -2796951.76 | AU52: -6324925.832 | AV52: -1.987154068 | AW52: -4706625.737 | AX52: -3155457.869 | AY52: -2.550989955 | BA52: 1.220462381 | BB52: 1.73048795 | BC52: 0.5638358867 | BD52: -147.6945833 | BF52: 22.56835655 | BG52: -123.0602026 | BH52: 56.93979738 | BI52: 56.93979738 | BJ52: 0 | BK52: 0 | BM52: 20.8378686 | BN52: -155.3656193 | BQ52: 18.63244875 | BT52: 263.027 | BU52: 26.2703 | BV52: -267.3229
A53: 9500 | B53: 9.5 | C53: 1.000182405 | D53: 0.01909856087 | F53: 0.6200906535 | G53: 0.3649977522 | H53: -2.776594898 | J53: 15 | M53: 0.2377142846 | N53: -1.570796325 | O53: 2.476153596 | P53: 1.155072546 | Q53: 2.147989664 | R53: 1.086538568 | S53: 0.9997843274 | T53: -0.02076922374 | U53: 0.9992863791 | V53: -0.03778110192 | X53: 21.40173989 | Y53: -122.9127326 | Z53: 57.08726743 | AC53: 1 | AD53: 2.26524538 | AE53: -7.571932844e-06 | AF53: 0.0002003205137 | AG53: 11103.54741 | AH53: -5411.703949 | AJ53: 21000 | AK53: 436.2164226 | AL53: 1 | AM53: 1.901015412 | AN53: 4731.23503 | AO53: -8557.934286 | AQ53: 27.62430939 | AR53: -524.8618785 | AT53: -2533669.272 | AU53: -5977323.335 | AV53: -1.971718148 | AW53: -4343646.461 | AX53: -2763778.436 | AY53: -2.574922465 | BA53: 1.261008184 | BB53: 2.014358103 | BC53: 0.603204317 | BD53: -145.4389384 | BF53: 21.3868712 | BG53: -123.4318407 | BH53: 56.56815928 | BI53: 56.56815928 | BJ53: 0 | BK53: 0 | BM53: 19.3725131 | BN53: -157.9929023 | BQ53: 18.9163189 | BT53: 269.153 | BU53: 26.2359 | BV53: -265.677
A54: 10000 | B54: 10 | C54: 1.000202109 | D54: 0.02010348425 | F54: 0.5322454517 | G54: 0.3283752423 | H54: -2.813217408 | J54: 15 | M54: 0.2258285704 | N54: -1.570796325 | O54: 2.585670428 | P54: 1.173694961 | Q54: 2.237024041 | R54: 1.107362397 | S54: 0.999761036 | T54: -0.02186200122 | U54: 0.9992093757 | V54: -0.03976753748 | X54: 20.35732792 | Y54: -122.8697926 | Z54: 57.13020744 | AC54: 1 | AD54: 2.384468821 | AE54: -8.38995329e-06 | AF54: 0.0002108636987 | AG54: 11101.83623 | AH54: -5184.125548 | AJ54: 21000 | AK54: 459.1751817 | AL54: 1 | AM54: 2.001068854 | AN54: 4380.021946 | AO54: -8305.550315 | AQ54: 24.93765586 | AR54: -498.7531172 | AT54: -2308745.006 | AU54: -5666355.367 | AV54: -1.957706835 | AW54: -4016317.454 | AX54: -2433888.591 | AY54: -2.596773025 | BA54: 1.302884379 | BB54: 2.298117542 | BC54: 0.6390661909 | BD54: -143.3842044 | BF54: 20.34393722 | BG54: -123.4178441 | BH54: 56.58215591 | BI54: 56.58215591 | BJ54: 0 | BK54: 0 | BM54: 18.04581968 | BN54: -160.0336397 | BQ54: 19.20007834 | BT54: 275.423 | BU54: 25.8456 | BV54: -266.4657
A55: 10500 | B55: 10.5 | C55: 1.000222823 | D55: 0.02110836701 | F55: 0.4629163672 | G55: 0.2989547811 | H55: -2.842637869 | J55: 15 | M55: 0.215074829 | N55: -1.570796325 | O55: 2.696010932 | P55: 1.19079858 | Q55: 2.326953998 | R55: 1.126584475 | S55: 0.9997365518 | T55: -0.02295472647 | U55: 0.9991284426 | V55: -0.04175365909 | X55: 19.42592963 | Y55: -122.5929811 | Z55: 57.4070189 | AC55: 1 | AD55: 2.503692262 | AE55: -9.249923502e-06 | AF55: 0.0002214068836 | AG55: 11100.03787 | AH55: -4980.308124 | AJ55: 21000 | AK55: 482.1339408 | AL55: 1 | AM55: 2.101122297 | AN55: 4065.407459 | AO55: -8059.784318 | AQ55: 22.62443439 | AR55: -475.1131222 | AT55: -2115077.664 | AU55: -5386450.304 | AV55: -1.94496463 | AW55: -3720919.81 | AX55: -2154344.308 | AY55: -2.616771203 | BA55: 1.34590384 | BB55: 2.580280641 | BC55: 0.6718065735 | BD55: -141.5083186 | BF55: 19.41409175 | BG55: -123.1700511 | BH55: 56.82994894 | BI55: 56.82994894 | BJ55: 0 | BK55: 0 | BM55: 16.83381111 | BN55: -161.6617324 | BQ55: 19.48224144 | BT55: 281.838 | BU55: 26.1068 | BV55: -266.6757
A56: 11000 | B56: 11 | C56: 1.000244547 | D56: 0.02211320714 | F56: 0.4070892628 | G56: 0.2747808975 | H56: -2.866811753 | J56: 15 | M56: 0.2052987004 | N56: -1.570796325 | O56: 2.80707798 | P56: 1.206553039 | Q56: 2.417679598 | R56: 1.14437007 | S56: 0.9997108753 | T56: -0.0240473969 | U56: 0.9990435827 | V56: -0.04373945114 | X56: 18.58770747 | Y56: -122.1751489 | Z56: 57.8248511 | AC56: 1 | AD56: 2.622915703 | AE56: -1.015184348e-05 | AF56: 0.0002319500685 | AG56: 11098.15241 | AH56: -4797.009603 | AJ56: 21000 | AK56: 505.0926999 | AL56: 1 | AM56: 2.20117574 | AN56: 3782.914826 | AO56: -7821.767641 | AQ56: 20.6185567 | AR56: -453.6082474 | AT56: -1947135.234 | AU56: -5133120.88 | AV56: -1.933355787 | AW56: -3454023.433 | AX56: -1916092.163 | AY56: -2.635115978 | BA56: 1.389913446 | BB56: 2.859755126 | BC56: 0.7017601908 | BD56: -139.7921028 | BF56: 18.57749711 | BG56: -122.7813236 | BH56: 57.21867638 | BI56: 57.21867638 | BJ56: 0 | BK56: 0 | BM56: 15.71774198 | BN56: -162.9892208 | BQ56: 19.76171593 | BT56: 288.403 | BU56: 25.7844 | BV56: -268.0599
A57: 11500 | B57: 11.5 | C57: 1.000267281 | D57: 0.02311800261 | F57: 0.3613586557 | G57: 0.2545431848 | H57: -2.887049465 | J57: 15 | M57: 0.1963726699 | N57: -1.570796325 | O57: 2.918788634 | P57: 1.221104944 | Q57: 2.509114535 | R57: 1.160864317 | S57: 0.9996840066 | T57: -0.0251400099 | U57: 0.998954799 | V57: -0.04572489808 | X57: 17.82717086 | Y57: -121.6746602 | Z57: 58.32533977 | AC57: 1 | AD57: 2.742139145 | AE57: -1.109571323e-05 | AF57: 0.0002424932535 | AG57: 11096.17994 | AH57: -4631.55166 | AJ57: 21000 | AK57: 528.051459 | AL57: 1 | AM57: 2.301229182 | AN57: 3528.65028 | AO57: -7592.181541 | AQ57: 18.86792453 | AR57: -433.9622642 | AT57: -1800556.759 | AU57: -4902711.139 | AV57: -1.922761713 | AW57: -3212519.414 | AX57: -1711920.341 | AY57: -2.651980336 | BA57: 1.434786707 | BB57: 3.135746888 | BC57: 0.729218623 | BD57: -138.2188505 | BF57: 17.81866257 | BG57: -122.3100363 | BH57: 57.68996368 | BI57: 57.68996368 | BJ57: 0 | BK57: 0 | BM57: 14.68291568 | BN57: -164.0911858 | BQ57: 20.03770769 | BT57: 295.121 | BU57: 25.5811 | BV57: -265.88
A58: 12000 | B58: 12 | C58: 1.000291024 | D58: 0.0241227514 | F58: 0.3233457721 | G58: 0.237333139 | H58: -2.904259511 | J58: 15 | M58: 0.1881904753 | N58: -1.570796325 | O58: 3.031071732 | P58: 1.234581407 | Q58: 2.601184009 | R58: 1.176194858 | S58: 0.9996559461 | T58: -0.02623256287 | U58: 0.9988620946 | V58: -0.04770998434 | X58: 17.13211665 | Y58: -121.1289713 | Z58: 58.87102869 | AC58: 1 | AD58: 2.861362586 | AE58: -1.208153274e-05 | AF58: 0.0002530364384 | AG58: 11094.12056 | AH58: -4481.702271 | AJ58: 21000 | AK58: 551.0102181 | AL58: 1 | AM58: 2.401282625 | AN58: 3299.232807 | AO58: -7371.380198 | AQ58: 17.33102253 | AR58: -415.9445407 | AT58: -1671867.14 | AU58: -4692211.363 | AV58: -1.913078652 | AW58: -2993621.481 | AX58: -1536045.803 | AY58: -2.667515127 | BA58: 1.480418223 | BB58: 3.40768845 | BC58: 0.7544364755 | BD58: -136.773974 | BF58: 17.1253848 | BG58: -121.7936549 | BH58: 58.20634507 | BI58: 58.20634507 | BJ58: 0 | BK58: 0 | BM58: 13.71769635 | BN58: -165.0196809 | BQ58: 20.30964925 | BT58: 301.995 | BU58: 24.917 | BV58: -267.1358
A59: 12500 | B59: 12.5 | C59: 1.000315777 | D59: 0.02512745147 | F59: 0.2913463602 | G59: 0.2225021312 | H59: -2.919090519 | J59: 15 | M59: 0.1806628563 | N59: -1.570796325 | O59: 3.143865942 | P59: 1.247093004 | Q59: 2.693822957 | R59: 1.19047415 | S59: 0.999626694 | T59: -0.0273250532 | U59: 0.9987654728 | V59: -0.04969469437 | X59: 16.49282562 | Y59: -120.5624661 | Z59: 59.43753388 | AC59: 1 | AD59: 2.980586027 | AE59: -1.310930202e-05 | AF59: 0.0002635796233 | AG59: 11091.97435 | AH59: -4345.586458 | AJ59: 21000 | AK59: 573.9689772 | AL59: 1 | AM59: 2.501336068 | AN59: 3091.728275 | AO59: -7159.482468 | AQ59: 15.97444089 | AR59: -399.3610224 | AT59: -1558269.762 | AU59: -4499120.531 | AV59: -1.904215657 | AW59: -2794850.6 | AX59: -1383801.605 | AY59: -2.681852299 | BA59: 1.52671948 | BB59: 3.675184938 | BC59: 0.7776366426 | BD59: -135.4447023 | BF59: 16.48794443 | BG59: -121.2565724 | BH59: 58.74342765 | BI59: 58.74342765 | BJ59: 0 | BK59: 0 | BM59: 12.81275949 | BN59: -165.81187 | BQ59: 20.57714574 | BT59: 309.03 | BU59: 24.8252 | BV59: -265.0361
A60: 13000 | B60: 13 | C60: 1.000341541 | D60: 0.0261321008 | F60: 0.2641115535 | G60: 0.2095751394 | H60: -2.932017511 | J60: 15 | M60: 0.1737142849 | N60: -1.570796325 | O60: 3.257118164 | P60: 1.258736246 | Q60: 2.786974594 | R60: 1.20380147 | S60: 0.9995962506 | T60: -0.02841747828 | U60: 0.998664937 | V60: -0.05167901266 | X60: 15.90146881 | Y60: -119.9911426 | Z60: 60.00885741 | AC60: 1 | AD60: 3.099809468 | AE60: -1.417902106e-05 | AF60: 0.0002741228083 | AG60: 11089.74143 | AH60: -4221.617619 | AJ60: 21000 | AK60: 596.9277362 | AL60: 1 | AM60: 2.601389511 | AN60: 2903.589715 | AO60: -6956.440091 | AQ60: 14.77104874 | AR60: -384.0472674 | AT60: -1457493.599 | AU60: -4321342.61 | AV60: -1.89609283 | AW60: -2614011.254 | AX60: -1251398.411 | AY60: -2.695107614 | BA60: 1.573615605 | BB60: 3.937973076 | BC60: 0.7990147844 | BD60: -134.219825 | BF60: 15.89851233 | BG60: -120.714795 | BH60: 59.28520505 | BI60: 59.28520505 | BJ60: 0 | BK60: 0 | BM60: 11.96053925 | BN60: -166.4949699 | BQ60: 20.83993388 | BT60: 316.228 | BU60: 24.722 | BV60: -265.2184
A61: 13500 | B61: 13.5 | C61: 1.000368313 | D61: 0.02713669738 | F61: 0.240707679 | G61: 0.1981964829 | H61: -2.943396167 | J61: 15 | M61: 0.1672804225 | N61: -1.570796325 | O61: 3.370782234 | P61: 1.26959565 | Q61: 2.880589181 | R61: 1.216264653 | S61: 0.9995646164 | T61: -0.02950983553 | U61: 0.9985604908 | V61: -0.05366292369 | X61: 15.35167045 | Y61: -119.4255039 | Z61: 60.57449611 | AC61: 1 | AD61: 3.219032909 | AE61: -1.529068987e-05 | AF61: 0.0002846659932 | AG61: 11087.42189 | AH61: -4108.444133 | AJ61: 21000 | AK61: 619.8864953 | AL61: 1 | AM61: 2.701442953 | AN61: 2732.604343 | AO61: -6762.088251 | AQ61: 13.69863014 | AR61: -369.8630137 | AT61: -1367679.037 | AU61: -4157107.33 | AV61: -1.888639811 | AW61: -2449164.408 | AX61: -1135741.375 | AY61: -2.70738294 | BA61: 1.621042854 | BB61: 4.195889919 | BC61: 0.818743129 | BD61: -133.0894741 | BF61: 15.35071255 | BG61: -120.1788339 | BH61: 59.82116608 | BI61: 59.82116608 | BJ61: 0 | BK61: 0 | BM61: 11.15482263 | BN61: -167.0893598 | BQ61: 21.09785072 | BT61: 323.594 | BU61: 24.5962 | BV61: -266.9949
A62: 14000 | B62: 14 | C62: 1.000396095 | D62: 0.02814123917 | F62: 0.2204241872 | G62: 0.1880946108 | H62: -2.953498039 | J62: 15 | M62: 0.1613061217 | N62: -1.570796325 | O62: 3.484817851 | P62: 1.27974547 | Q62: 2.974623011 | R62: 1.227941582 | S62: 0.9995317916 | T62: -0.03060212234 | U62: 0.9984521379 | V62: -0.05564641199 | X62: 14.83818448 | Y62: -118.8723909 | Z62: 61.12760915 | AC62: 1 | AD62: 3.33825635 | AE62: -1.644430845e-05 | AF62: 0.0002952091781 | AG62: 11085.01585 | AH62: -4004.907392 | AJ62: 21000 | AK62: 642.8452544 | AL62: 1 | AM62: 2.801496396 | AN62: 2576.847215 | AO62: -6576.182932 | AQ62: 12.7388535 | AR62: -356.6878981 | AT62: -1287291.607 | AU62: -4004908.931 | AV62: -1.881794483 | AW62: -2298600.078 | AX62: -1034288.62 | AY62: -2.718768183 | BA62: 1.668946621 | BB62: 4.448848932 | BC62: 0.8369736997 | BD62: -132.0449394 | BF62: 14.83929883 | BG62: -119.6555378 | BH62: 60.34446221 | BI62: 60.34446221 | BJ62: 0 | BK62: 0 | BM62: 10.3904499 | BN62: -167.6105984 | BQ62: 21.35080973 | BT62: 331.131 | BU62: 24.3868 | BV62: -265.0934
A63: 14500 | B63: 14.5 | C63: 1.000424887 | D63: 0.02914572415 | F63: 0.2027117038 | G63: 0.1790586138 | H63: -2.962534036 | J63: 15 | M63: 0.1557438417 | N63: -1.570796325 | O63: 3.599189701 | P63: 1.289251154 | Q63: 3.069037547 | R63: 1.238901482 | S63: 0.9994977766 | T63: -0.03169433611 | U63: 0.9983398821 | V63: -0.05762946208 | X63: 14.35665291 | Y63: -118.3361706 | Z63: 61.66382936 | AC63: 1 | AD63: 3.457479791 | AE63: -1.763987679e-05 | AF63: 0.0003057523631 | AG63: 11082.52341 | AH63: -3910.00853 | AJ63: 21000 | AK63: 665.8040135 | AL63: 1 | AM63: 2.901549839 | AN63: 2434.641077 | AO63: -6398.428411 | AQ63: 11.87648456 | AR63: -344.4180523 | AT63: -1215056.104 | AU63: -3863458.284 | AV63: -1.875501861 | AW63: -2160811.095 | AX63: -944941.1608 | AY63: -2.729342918 | BA63: 1.717279874 | BB63: 4.696821605 | BC63: 0.8538410572 | BD63: -131.078511 | BF63: 14.359913 | BG63: -119.1492811 | BH63: 60.85071886 | BI63: 60.85071886 | BJ63: 0 | BK63: 0 | BM63: 9.663091398 | BN63: -168.0707701 | BQ63: 21.59878241 | BT63: 338.844 | BU63: 24.1369 | BV63: -266.4201
A64: 15000 | B64: 15 | C64: 1.000454688 | D64: 0.0301501503 | F64: 0.1871394194 | G64: 0.170922167 | H64: -2.970670483 | J64: 15 | M64: 0.1505523803 | N64: -1.570796325 | O64: 3.713866719 | P64: 1.298170569 | Q64: 3.163798707 | R64: 1.249206023 | S64: 0.9994625717 | T64: -0.03278647424 | U64: 0.9982237273 | V64: -0.05961205852 | X64: 13.90342337 | Y64: -117.8195231 | Z64: 62.18047693 | AC64: 1 | AD64: 3.576703232 | AE64: -1.88773949e-05 | AF64: 0.000316295548 | AG64: 11079.94471 | AH64: -3822.881793 | AJ64: 21000 | AK64: 688.7627726 | AL64: 1 | AM64: 3.001603282 | AN64: 2304.521789 | AO64: -6228.497392 | AQ64: 11.09877913 | AR64: -332.963374 | AT64: -1149905.761 | AU64: -3731645.094 | AV64: -1.869713148 | AW64: -2034468.871 | AX64: -865956.7768 | AY64: -2.739177779 | BA64: 1.766001892 | BB64: 4.939823291 | BC64: 0.8694646312 | BD64: -130.1833461 | BF64: 13.9089025 | BG64: -118.662751 | BH64: 61.33724903 | BI64: 61.33724903 | BJ64: 0 | BK64: 0 | BM64: 8.969079208 | BN64: -168.4794048 | BQ64: 21.84178409 | BT64: 346.737 | BU64: 24.0404 | BV64: -265.8794
A65: 15500 | B65: 15.5 | C65: 1.000485498 | D65: 0.03115451561 | F65: 0.1733651845 | G65: 0.1635523088 | H65: -2.978040341 | J65: 15 | M65: 0.1456958519 | N65: -1.570796325 | O65: 3.828821486 | P65: 1.306555033 | Q65: 3.258876253 | R65: 1.258910277 | S65: 0.9994261773 | T65: -0.03387853413 | U65: 0.9981036778 | V65: -0.06159418587 | X65: 13.47540989 | Y65: -117.3239697 | Z65: 62.67603028 | AC65: 1 | AD65: 3.695926673 | AE65: -2.015686278e-05 | AF65: 0.0003268387329 | AG65: 11077.27985 | AH65: -3742.773076 | AJ65: 21000 | AK65: 711.7215317 | AL65: 1 | AM65: 3.101656724 | AN65: 2185.20868 | AO65: -6066.045663 | AQ65: 10.3950104 | AR65: -322.2453222 | AT65: -1090942.677 | AU65: -3608507.779 | AV65: -1.864384924 | AW65: -1918401.5 | AX65: -795882.208 | AY65: -2.748335631 | BA65: 1.815077249 | BB65: 5.177902261 | BC65: 0.8839507066 | BD65: -129.3533552 | BF65: 13.48318113 | BG65: -118.1974759 | BH65: 61.80252414 | BI65: 61.80252414 | BJ65: 0 | BK65: 0 | BM65: 8.305278864 | BN65: -168.8441207 | BQ65: 22.07986306 | BT65: 354.813 | BU65: 23.629 | BV65: -265.9549
A66: 16000 | B66: 16 | C66: 1.000517318 | D66: 0.03215881804 | F66: 0.1611141368 | G66: 0.1568414427 | H66: -2.984751207 | J66: 15 | M66: 0.1411428565 | N66: -1.570796325 | O66: 3.944029715 | P66: 1.314450191 | Q66: 3.354243282 | R66: 1.268063534 | S66: 0.9993885939 | T66: -0.0349705132 | U66: 0.9979797376 | V66: -0.06357582875 | X66: 13.0699854 | Y66: -116.850235 | Z66: 63.14976499 | AC66: 1 | AD66: 3.815150114 | AE66: -2.147828042e-05 | AF66: 0.0003373819179 | AG66: 11074.52896 | AH66: -3669.022473 | AJ66: 21000 | AK66: 734.6802908 | AL66: 1 | AM66: 3.201710167 | AN66: 2075.579175 | AO66: -5910.722657 | AQ66: 9.756097561 | AR66: -312.195122 | AT66: -1037406.733 | AU66: -3493209.261 | AV66: -1.859478457 | AW66: -1811574.248 | AX66: -733499.4797 | AY66: -2.756872577 | BA66: 1.864474988 | BB66: 5.411131233 | BC66: 0.8973941195 | BD66: -128.5831043 | BF66: 13.08012159 | BG66: -117.7541871 | BH66: 62.24581295 | BI66: 62.24581295 | BJ66: 0 | BK66: 0 | BM66: 7.66899036 | BN66: -169.1710827 | BQ66: 22.31309203 | BT66: 363.078 | BU66: 23.6126 | BV66: -265.3916
A67: 16500 | B67: 16.5 | C67: 1.000550146 | D67: 0.03316305559 | F67: 0.15016317 | G67: 0.1507015344 | H67: -2.990891116 | J67: 15 | M67: 0.1368658002 | N67: -1.570796325 | O67: 4.059469826 | P67: 1.32189676 | Q67: 3.449875785 | R67: 1.276710016 | S67: 0.9993498218 | T67: -0.03606240883 | U67: 0.9978519112 | V67: -0.06555697177 | X67: 12.68489793 | Y67: -116.3984956 | Z67: 63.60150443 | AC67: 1 | AD67: 3.934373555 | AE67: -2.284164783e-05 | AF67: 0.0003479251028 | AG67: 11071.69218 | AH67: -3601.050006 | AJ67: 21000 | AK67: 757.6390498 | AL67: 1 | AM67: 3.30176361 | AN67: 1974.647128 | AO67: -5762.178981 | AQ67: 9.174311927 | AR67: -302.7522936 | AT67: -988650.9911 | AU67: -3385017.357 | AV67: -1.854959106 | AW67: -1713072.337 | AX67: -677783.1722 | AY67: -2.764838812 | BA67: 1.914167949 | BB67: 5.639600802 | BC67: 0.9098797065 | BD67: -127.8677329 | BF67: 12.69747173 | BG67: -117.3330679 | BH67: 62.66693213 | BI67: 62.66693213 | BJ67: 0 | BK67: 0 | BM67: 7.057870931 | BN67: -169.465335 | BQ67: 22.5415616 | BT67: 371.535 | BU67: 23.316 | BV67: -265.2439
A68: 17000 | B68: 17 | C68: 1.000583984 | D68: 0.03416722622 | F68: 0.1403294758 | G68: 0.145059833 | H68: -2.996532817 | J68: 15 | M68: 0.1328403355 | N68: -1.570796325 | O68: 4.175122586 | P68: 1.328931154 | Q68: 3.545752284 | R68: 1.284889484 | S68: 0.9993098614 | T68: -0.03715421845 | U68: 0.9977202031 | V68: -0.06753759958 | X68: 12.3182047 | Y68: -115.9685542 | Z68: 64.03144584 | AC68: 1 | AD68: 4.053596996 | AE68: -2.424696501e-05 | AF68: 0.0003584682877 | AG68: 11068.76963 | AH68: -3538.343874 | AJ68: 21000 | AK68: 780.5978089 | AL68: 1 | AM68: 3.401817052 | AN68: 1881.544303 | AO68: -5620.071686 | AQ68: 8.643042351 | AR68: -293.8634399 | AT68: -944122.0578 | AU68: -3283288.775 | AV68: -1.850795811 | AW68: -1622085.859 | AX68: -627866.2218 | AY68: -2.77227936 | BA68: 1.964132207 | BB68: 5.86341434 | BC68: 0.9214835485 | BD68: -127.2028817 | BF68: 12.33328852 | BG68: -116.9339276 | BH68: 63.06607236 | BI68: 63.06607236 | BJ68: 0 | BK68: 0 | BM68: 6.469874179 | BN68: -169.7310459 | BQ68: 22.76537514 | BT68: 380.189 | BU68: 23.2133 | BV68: -265.4987
A69: 17500 | B69: 17.5 | C69: 1.00061883 | D69: 0.03517132793 | F69: 0.1314619742 | G69: 0.1398556696 | H69: -3.00173698 | J69: 15 | M69: 0.1290448974 | N69: -1.570796325 | O69: 4.2909708 | P69: 1.335586031 | Q69: 3.641853507 | R69: 1.292637768 | S69: 0.9992687132 | T69: -0.03824593945 | U69: 0.9975846179 | V69: -0.06951769683 | X69: 11.96821965 | Y69: -115.5599618 | Z69: 64.44003817 | AC69: 1 | AD69: 4.172820437 | AE69: -2.569423195e-05 | AF69: 0.0003690114727 | AG69: 11065.76145 | AH69: -3480.450708 | AJ69: 21000 | AK69: 803.556568 | AL69: 1 | AM69: 3.501870495 | AN69: 1795.504557 | AO69: -5484.067863 | AQ69: 8.156606852 | AR69: -285.4812398 | AT69: -903344.3176 | AU69: -3187455.967 | AV69: -1.846960661 | AW69: -1537896.603 | AX69: -583012.409 | AY69: -2.779234701 | BA69: 2.014346611 | BB69: 6.082684042 | BC69: 0.9322740393 | BD69: -126.5846321 | BF69: 11.98588565 | BG69: -116.5563239 | BH69: 63.44367613 | BI69: 63.44367613 | BJ69: 0 | BK69: 0 | BM69: 5.903201607 | BN69: -169.9716917 | BQ69: 22.98464484 | BT69: 389.045 | BU69: 22.9552 | BV69: -266.0672
A70: 18000 | B70: 18 | C70: 1.000654685 | D70: 0.03617535869 | F70: 0.1234348207 | G70: 0.1350380302 | H70: -3.00655462 | J70: 15 | M70: 0.1254603169 | N70: -1.570796325 | O70: 4.406999053 | P70: 1.341890754 | Q70: 3.738162122 | R70: 1.299987226 | S70: 0.9992263776 | T70: -0.03933756925 | U70: 0.9974451604 | V70: -0.07149724823 | X70: 11.6334714 | Y70: -115.1721043 | Z70: 64.82789574 | AC70: 1 | AD70: 4.292043878 | AE70: -2.718344866e-05 | AF70: 0.0003795546576 | AG70: 11062.66779 | AH70: -3426.967463 | AJ70: 21000 | AK70: 826.5153271 | AL70: 1 | AM70: 3.601923938 | AN70: 1715.850317 | AO70: -5353.847004 | AQ70: 7.710100231 | AR70: -277.5636083 | AT70: -865907.177 | AU70: -3097016.252 | AV70: -1.843428511 | AW70: -1459866.591 | AX70: -542594.1154 | AY70: -2.785741317 | BA70: 2.0647924 | BB70: 6.297527862 | BC70: 0.9423128058 | BD70: -126.0094532 | BF70: 11.65379152 | BG70: -116.1996486 | BH70: 63.8003514 | BI70: 63.8003514 | BJ70: 0 | BK70: 0 | BM70: 5.356263654 | BN70: -170.1901954 | BQ70: 23.19948866 | BT70: 398.107 | BU70: 22.7385 | BV70: -265.2319
A71: 18500 | B71: 18.5 | C71: 1.000691549 | D71: 0.03717931649 | F71: 0.1161424317 | G71: 0.1305636918 | H71: -3.011028958 | J71: 15 | M71: 0.1220694975 | N71: -1.570796325 | O71: 4.523193492 | P71: 1.347871786 | Q71: 3.834662505 | R71: 1.306967143 | S71: 0.999182855 | T71: -0.04042910526 | U71: 0.9973018354 | V71: -0.07347623849 | X71: 11.31266935 | Y71: -114.8042629 | Z71: 65.19573708 | AC71: 1 | AD71: 4.411267319 | AE71: -2.871461514e-05 | AF71: 0.0003900978425 | AG71: 11059.48878 | AH71: -3377.534609 | AJ71: 21000 | AK71: 849.4740862 | AL71: 1 | AM71: 3.701977381 | AN71: 1641.981004 | AO71: -5229.102451 | AQ71: 7.299270073 | AR71: -270.0729927 | AT71: -831454.6842 | AU71: -3011522.77 | AV71: -1.840176657 | AW71: -1387428.117 | AX71: -506074.2538 | AY71: -2.791832161 | BA71: 2.115452882 | BB71: 6.508067133 | BC71: 0.9516555038 | BD71: -125.474156 | BF71: 11.33571525 | BG71: -115.8631896 | BH71: 64.13681041 | BI71: 64.13681041 | BJ71: 0 | BK71: 0 | BM71: 4.827648118 | BN71: -170.3890336 | BQ71: 23.41002793 | BT71: 407.38 | BU71: 22.7593 | BV71: -265.7319
A72: 19000 | B72: 19 | C72: 1.000729421 | D72: 0.03818319931 | F72: 0.1094956307 | G72: 0.1263957767 | H72: -3.015196873 | J72: 15 | M72: 0.1188571423 | N72: -1.570796325 | O72: 4.639541629 | P72: 1.353553034 | Q72: 3.931340532 | R72: 1.313604076 | S72: 0.999138146 | T72: -0.04152054488 | U72: 0.9971546481 | V72: -0.07545465235 | X72: 11.00467598 | Y72: -114.4556585 | Z72: 65.5443415 | AC72: 1 | AD72: 4.530490761 | AE72: -3.028773138e-05 | AF72: 0.0004006410275 | AG72: 11056.22458 | AH72: -3331.830413 | AJ72: 21000 | AK72: 872.4328453 | AL72: 1 | AM72: 3.802030823 | AN72: 1573.363108 | AO72: -5109.542188 | AQ72: 6.920415225 | AR72: -262.9757785 | AT72: -799677.032 | AU72: -2930576.917 | AV72: -1.837184555 | AW72: -1320075.089 | AX72: -472991.5207 | AY72: -2.797537061 | BA72: 2.166313156 | BB72: 6.714424744 | BC72: 0.9603525061 | BD72: -124.9758545 | BF72: 11.03051908 | BG72: -115.5461738 | BH72: 64.45382624 | BI72: 64.45382624 | BJ72: 0 | BK72: 0 | BM72: 4.316094333 | BN72: -170.5703193 | BQ72: 23.61638554 | BT72: 416.869 | BU72: 22.4206 | BV72: -265.2494
A73: 19500 | B73: 19.5 | C73: =SQRT((A73/Fesr)^2+1) -> 1.000768302 | D73: =ATAN(A73/Fesr) -> 0.03918700514 | F73: =(Ro/(Ro+Rdcr))/SQRT((A73/(Q*Fo))^2+(1-(A73^2/Fo^2))^2) -> 0.1034186334 | G73: =-ATAN(A73*Fo/(Q*(Fo^2-A73^2))) -> 0.1225026173 | H73: =IF(G73>0,G73-Pi,G73) -> -3.019090033 | J73: =Vin/Vramp -> 15 | M73: =1/(2*Pi*_Rfb1*(Cc1ea_u+Cc2ea_u)*A73) -> 0.1158095233 | N73: =-Pi/2 -> -1.570796325 | O73: =SQRT(1+(A73/Fz1_u)^2) -> 4.756032186 | P73: =ATAN2(Fz1_u,A73) -> 1.358956145 | Q73: =SQRT(1+(A73/Fz2_u)^2) -> 4.028183414 | R73: =ATAN2(Fz2_u,A73) -> 1.319922155 | S73: =1/SQRT(1+(A73/Fp1_u)^2) -> 0.999092251 | T73: =-ATAN2(Fp1_u,A73) -> -0.04261188553 | U73: =1/SQRT(1+(A73/Fp2_u)^2) -> 0.9970036035 | V73: =-ATAN2(Fp2_u,A73) -> -0.07743247459 | X73: 10.70848419 | Y73: =(180/Pi)*(D73+H73+N73+P73+R73+T73+V73) -> -114.1254816 | Z73: 65.87451836 | AC73: 1 | AD73: =Rcea1_u*Cc1ea_u*A73*2*Pi -> 4.649714202 | AE73: =-Rcea1_u*Cc1ea_u*Cc2ea_u*(A73*2*Pi)^2 -> -3.190279739e-05 | AF73: =(Cc2ea_u+Cc1ea_u)*A73*2*Pi -> 0.0004111842124 | AG73: 11052.87534 | AH73: -3289.566091 | AJ73: =_Rfb1 -> 21000 | AK73: =_Rfb1*Rcea2_u*Cc3ea_u*A73*2*Pi -> 895.3916044 | AL73: 1 | AM73: =(_Rfb1+Rcea2_u)*Cc3ea_u*A73*2*Pi -> 3.902084266 | AN73: 1509.521667 | AO73: -4994.889142 | AQ73: =Eadcg/(1+(Eadcg*A73/GBP)^2) -> 6.570302234 | AR73: =-(A73*Eadcg*Eadcg/GBP)/(1+(Eadcg*A73/GBP)^2) -> -256.2417871 | AT73: -770303.5626 | AU73: -2853821.973 | AV73: -1.834433574 | AW73: -1257355.526 | AX73: -442948.3058 | AY73: -2.802883075 | BA73: =SQRT(AT73^2+AU73^2)/SQRT(AW73^2+AX73^2) -> 2.217359887 | BB73: 6.916723734 | BC73: 0.9684495008 | BD73: =BC73*180/Pi-180 -> -124.5119309 | BF73: =20*LOG(BA73*J73*F73*C73) -> 10.73719564 | BG73: =(180/Pi)*(D73+H73+BC73) -> -115.2477979 | BH73: 64.7522021 | BI73: 64.7522021 | BJ73: =SUM((BF74<0)*(BF73>0))*A73 -> 0 | BK73: 0 | BM73: 3.820471902 | BN73: =(H73+D73)*180/Pi -> -170.735867 | BQ73: 23.81868453 | BT73: 426.58 | BU73: 22.3737 | BV73: -265.1406
A74: 20000 | B74: =A74/1000 -> 20 | C74: 1.000808191 | D74: 0.04019073197 | F74: 0.09784666827 | G74: 0.118856858 | H74: -3.022735792 | J74: 15 | M74: 0.1129142852 | N74: -1.570796325 | O74: 4.872654948 | P74: 1.364100763 | Q74: 4.12517954 | R74: 1.325943348 | S74: 0.9990451704 | T74: -0.04370312463 | U74: 0.9968487071 | V74: -0.07940969001 | X74: =20*LOG(C74*J74*O74*Q74*F74*M74*S74*U74) -> 10.42319861 | Y74: -113.8129146 | Z74: =Y74+180 -> 66.18708541 | AC74: 1 | AD74: 4.768937643 | AE74: -3.355981316e-05 | AF74: 0.0004217273973 | AG74: =AC74*AE74/(AE74^2+AF74^2)+AD74*AF74/(AE74^2+AF74^2) -> 11049.44121 | AH74: =AD74*AE74/(AE74^2+AF74^2)-AC74*AF74/(AE74^2+AF74^2) -> -3250.481689 | AJ74: 21000 | AK74: 918.3503634 | AL74: 1 | AM74: 4.002137709 | AN74: =AJ74*AL74/(AL74^2+AM74^2)+AK74*AM74/(AL74^2+AM74^2) -> 1450.032942 | AO74: =AK74*AL74/(AL74^2+AM74^2)-AJ74*AM74/(AL74^2+AM74^2) -> -4884.881151 | AQ74: 6.24609619 | AR74: -249.8438476 | AT74: -743096.979 | AU74: -2780937.728 | AV74: =ATAN2(AT74,AU74) -> -1.831906787 | AW74: =AG74-AH74*AO74/_Rfb2+AG74*AN74/_Rfb2+AN74-AO74*AR74+AQ74*AN74 -> -1198865.023 | AX74: =AH74+AH74*AN74/_Rfb2+AG74*AO74/_Rfb2+AO74+AO74*AQ74+AN74*AR74 -> -415600.7378 | AY74: -2.807894799 | BA74: 2.268581107 | BB74: =20*LOG(BA74) -> 7.115086218 | BC74: =AV74-AY74 -> 0.9759880117 | BD74: -124.080006 | BF74: 10.45484927 | BG74: -114.9672504 | BH74: =IF(BG74>180,BG74-180,BG74+180) -> 65.03274965 | BI74: =IF(BH74>180,BH74-360,BH74) -> 65.03274965 | BJ74: 0 | BK74: =IF(BJ74>0,BI74,0) -> 0 | BM74: =20*LOG(J74*F74*C74) -> 3.339763053 | BN74: -170.8872443 | BQ74: =20*LOG(BA74*7) -> 24.01704702 | BT74: 436.516 | BU74: 22.0741 | BV74: -264.9151
A75: 20500 | B75: 20.5 | C75: 1.000849089 | D75: 0.04119437777 | F75: 0.09272408106 | G75: 0.1154347373 | H75: -3.026157913 | J75: 15 | M75: 0.1101602782 | N75: -1.570796325 | O75: 4.989400643 | P75: 1.369004751 | Q75: 4.222318349 | R75: 1.331687694 | S75: 0.9989969049 | T75: -0.04479425959 | U75: 0.9966899641 | V75: -0.08138628343 | X75: 10.14802001 | Y75: -113.5171463 | Z75: 66.48285369 | AC75: 1 | AD75: 4.888161084 | AE75: -3.52587787e-05 | AF75: 0.0004322705823 | AG75: 11045.92236 | AH75: -3214.342565 | AJ75: 21000 | AK75: 941.3091225 | AL75: 1 | AM75: 4.102191151 | AN75: 1394.518099 | AO75: -4779.270682 | AQ75: 5.94530321 | AR75: -243.7574316 | AT75: -717848.5303 | AU75: -2711635.906 | AV75: -1.829588777 | AW75: -1144241.092 | AX75: -390650.4546 | AY75: =ATAN2(AW75,AX75) -> -2.812594629 | BA75: 2.319966049 | BB75: 7.309632589 | BC75: 0.9830058519 | BD75: -123.6779134 | BF75: 10.18268049 | BG75: -114.7037261 | BH75: 65.29627386 | BI75: 65.29627386 | BJ75: 0 | BK75: 0 | BM75: 2.873047902 | BN75: -171.0258127 | BQ75: 24.21159339 | BT75: 446.684 | BU75: 21.7611 | BV75: -265.3082
A76: 21000 | B76: 21 | C76: 1.000890994 | D76: 0.04219794055 | F76: 0.08800281466 | G76: 0.1122155094 | H76: -3.029377141 | J76: 15 | M76: 0.1075374145 | N76: -1.570796325 | O76: 5.106260841 | P76: 1.373684384 | Q76: 4.319590215 | R76: 1.337173503 | S76: 0.9989474549 | T76: -0.04588528782 | U76: 0.9965273802 | V76: -0.08336223971 | X76: 9.88223238 | Y76: -113.2373829 | Z76: 66.76261714 | AC76: 1 | AD76: 5.007384525 | AE76: -3.699969401e-05 | AF76: 0.0004428137672 | AG76: 11042.31895 | AH76: -3180.936381 | AJ76: 21000 | AK76: 964.2678816 | AL76: 1 | AM76: 4.202244594 | AN76: 1342.63776 | AO76: -4677.824386 | AQ76: 5.66572238 | AR76: -237.9603399 | AT76: -694373.989 | AU76: -2645656.273 | AV76: -1.827465483 | AW76: -1093158.219 | AX76: -367837.7714 | AY76: -2.817003004 | BA76: 2.371505004 | BB76: 7.500480908 | BC76: 0.9895375211 | BD76: -123.3036763 | BF76: 9.919972974 | BG76: -114.4564373 | BH76: 65.54356269 | BI76: 65.54356269 | BJ76: 0 | BK76: 0 | BM76: 2.419492067 | BN76: -171.152761 | BQ76: 24.40244171 | BT76: 457.088 | BU76: 21.6126 | BV76: -265.6514
A77: 21500 | B77: 21.5 | C77: 1.000933908 | D77: 0.04320141828 | F77: 0.0836411796 | G77: 0.109180975 | H77: -3.032411675 | J77: 15 | M77: 0.1050365444 | N77: -1.570796325 | O77: 5.223227856 | P77: 1.378154524 | Q77: 4.416986348 | R77: 1.342417536 | S77: 0.9988968209 | T77: -0.04697620675 | U77: 0.9963609611 | V77: -0.08533754373 | X77: 9.625191951 | Y77: -112.9728544 | Z77: 67.02714565 | AC77: 1 | AD77: 5.126607966 | AE77: -3.878255908e-05 | AF77: 0.0004533569521 | AG77: 11038.63114 | AH77: -3150.070508 | AJ77: 21000 | AK77: 987.2266407 | AL77: 1 | AM77: 4.302298037 | AN77: 1294.087286 | AO77: -4580.32255 | AQ77: 5.405405405 | AR77: -232.4324324 | AT77: -672510.274 | AU77: -2582763.295 | AV77: -1.82552405 | AW77: -1045323.573 | AX77: -346935.9883 | AY77: -2.821138604 | BA77: 2.423189194 | BB77: 7.687746473 | BC77: 0.9956145541 | BD77: -122.955488 | BF77: 9.666082668 | BG77: -114.22462 | BH77: 65.77538005 | BI77: 65.77538005 | BJ77: 0 | BK77: 0 | BM77: 1.978336195 | BN77: -171.269132 | BQ77: 24.58970727 | BT77: 467.735 | BU77: 21.3672 | BV77: -265.0501
A78: 22000 | B78: 22 | C78: 1.000977829 | D78: 0.04420480896 | F78: 0.07960285347 | G78: 0.1063150968 | H78: -3.035277553 | J78: 15 | M78: 0.1026493502 | N78: -1.570796325 | O78: 5.340294669 | P78: 1.382428763 | Q78: 4.514498704 | R78: 1.347435162 | S78: 0.9988450035 | T78: -0.0480670138 | U78: 0.9961907125 | V78: -0.08731218042 | X78: 9.37631803 | Y78: -112.7228194 | Z78: 67.27718061 | AC78: 1 | AD78: 5.245831407 | AE78: -4.060737392e-05 | AF78: 0.0004639001371 | AG78: 11034.85911 | AH78: -3121.569783 | AJ78: 21000 | AK78: 1010.1854 | AL78: 1 | AM78: 4.40235148 | AN78: 1248.592688 | AO78: -4486.558468 | AQ78: 5.162622612 | AR78: -227.1553949 | AT78: -652112.6037 | AU78: -2522743.267 | AV78: -1.82375271 | AW78: -1000473.261 | AX78: -327746.6291 | AY78: -2.825018536 | BA78: 2.47501067 | BB78: 7.87154151 | BC78: 1.001265826 | BD78: -122.6316939 | BF78: 9.42042857 | BG78: -114.0075386 | BH78: 65.99246142 | BI78: 65.99246142 | BJ78: 0 | BK78: 0 | BM78: 1.548887061 | BN78: -171.3758447 | BQ78: 24.77350231 | BT78: 478.63 | BU78: 21.1958 | BV78: -264.3513
A79: 22500 | B79: 22.5 | C79: 1.001022758 | D79: 0.04520811059 | F79: 0.07585606111 | G79: 0.1036036842 | H79: -3.037988966 | J79: 15 | M79: 0.1003682535 | N79: -1.570796325 | O79: 5.457454858 | P79: 1.386519556 | Q79: 4.612119912 | R79: 1.352240496 | S79: 0.9987920032 | T79: -0.04915770638 | U79: 0.9960166404 | V79: -0.08928613471 | X79: 9.13508516 | Y79: -112.4865677 | Z79: 67.51343226 | AC79: 1 | AD79: 5.365054848 | AE79: -4.247413853e-05 | AF79: 0.000474443322 | AG79: 11031.00304 | AH79: -3095.274574 | AJ79: 21000 | AK79: 1033.144159 | AL79: 1 | AM79: 4.502404922 | AN79: 1205.907076 | AO79: -4396.337794 | AQ79: 4.935834156 | AR79: -222.112537 | AT79: -633052.0867 | AU79: -2465401.833 | AV79: -1.822140667 | AW79: -958369.0506 | AX79: -310095.4439 | AY79: -2.82865849 | BA79: 2.526962214 | BB79: 8.051974957 | BC79: 1.006517823 | BD79: -122.3307767 | BF79: 9.182484915 | BG79: -113.8044889 | BH79: 66.19551114 | BI79: 66.19551114 | BJ79: 0 | BK79: 0 | BM79: 1.130509958 | BN79: -171.4737122 | BQ79: 24.95393576 | BT79: 489.779 | BU79: 20.9448 | BV79: -263.9108
A80: 23000 | B80: 23 | C80: 1.001068694 | D80: 0.04621132114 | F80: 0.07237289897 | G80: 0.1010341312 | H80: -3.040558519 | J80: 15 | M80: 0.09818633496 | N80: -1.570796325 | O80: 5.574702535 | P80: 1.390438336 | Q80: 4.709843203 | R80: 1.356846524 | S80: 0.9987378207 | T80: -0.05024828193 | U80: 0.9958387509 | V80: -0.09125939159 | X80: 8.901016464 | Y80: -112.2634217 | Z80: 67.73657829 | AC80: 1 | AD80: 5.484278289 | AE80: -4.43828529e-05 | AF80: 0.0004849865069 | AG80: 11027.0631 | AH80: -3071.039087 | AJ80: 21000 | AK80: 1056.102918 | AL80: 1 | AM80: 4.602458365 | AN80: 1165.807565 | AO80: -4309.477862 | AQ80: 4.723665564 | AR80: -217.288616 | AT80: -615213.6745 | AU80: -2410561.84 | AV80: -1.820678002 | AW80: -918795.5098 | AX80: -293829.0427 | AY80: -2.832072881 | BA80: 2.579037263 | BB80: 8.229152342 | BC80: 1.011394879 | BD80: -122.0513419 | BF80: 8.951774506 | BG80: -113.614799 | BH80: 66.38520104 | BI80: 66.38520104 | BJ80: 0 | BK80: 0 | BM80: 0.7226221638 | BN80: -171.563457 | BQ80: 25.13111314 | BT80: 501.187 | BU80: 20.7819 | BV80: -264.7826
A81: 23500 | B81: 23.5 | C81: 1.001115638 | D81: 0.04721443862 | F81: 0.06912877498 | G81: 0.09859519816 | H81: -3.042997452 | J81: 15 | M81: 0.096097264 | N81: -1.570796325 | O81: 5.692032294 | P81: 1.394195617 | Q81: 4.807662353 | R81: 1.361265209 | S81: 0.9986824564 | T81: -0.05133873786 | U81: 0.9956570502 | V81: -0.09323193606 | X81: 8.673677938 | Y81: -112.0527366 | Z81: 67.94726344 | AC81: 1 | AD81: 5.60350173 | AE81: -4.633351704e-05 | AF81: 0.0004955296919 | AG81: 11023.03947 | AH81: -3048.729898 | AJ81: 21000 | AK81: 1079.061677 | AL81: 1 | AM81: 4.702511808 | AN81: 1128.092584 | AO81: -4225.807021 | AQ81: 4.524886878 | AR81: -212.6696833 | AT81: -598494.4152 | AU81: -2358061.47 | AV81: -1.819355587 | AW81: -881557.5012 | AX81: -278812.0501 | AY81: -2.835274973 | BA81: 2.631229837 | BB81: 8.403175706 | BC81: 1.015919386 | BD81: -121.7921068 | BF81: 8.72786301 | BG81: -113.43783 | BH81: 66.56217004 | BI81: 66.56217004 | BJ81: 0 | BK81: 0 | BM81: 0.3246873039 | BN81: -171.6457232 | BQ81: 25.30513651 | BT81: 512.861 | BU81: 20.6348 | BV81: -265.043
A82: 24000 | B82: 24 | C82: 1.001163589 | D82: 0.04821746102 | F82: 0.06610194184 | G82: 0.09627682914 | H82: -3.045315821 | J82: 15 | M82: 0.09409523767 | N82: -1.570796325 | O82: 5.809439163 | P82: 1.39780108 | Q82: 4.905571627 | R82: 1.365507591 | S82: 0.998625911 | T82: -0.0524290716 | U82: 0.9954715446 | V82: -0.09520375318 | X82: 8.452673536 | Y82: -111.8539003 | Z82: 68.14609969 | AC82: 1 | AD82: 5.722725171 | AE82: -4.832613095e-05 | AF82: 0.0005060728768 | AG82: 11018.93234 | AH82: -3028.224664 | AJ82: 21000 | AK82: 1102.020436 | AL82: 1 | AM82: 4.80256525 | AN82: 1092.579516 | AO82: -4145.163979 | AQ82: 4.338394794 | AR82: -208.2429501 | AT82: -582801.9589 | AU82: -2307752.612 | AV82: -1.818165007 | AW82: -846477.9796 | AX82: -264924.6925 | AY82: -2.83827699 | BA82: 2.683534476 | BB82: 8.574143584 | BC82: 1.020111983 | BD82: -121.5518887 | BF82: 8.510354049 | BG82: -113.2729757 | BH82: 66.72702432 | BI82: 66.72702432 | BJ82: 0 | BK82: 0 | BM82: -0.0637895353 | BN82: -171.721087 | BQ82: 25.47610438 | BT82: 524.807 | BU82: 20.2436 | BV82: -263.9557
A83: 24500 | B83: 24.5 | C83: 1.001212547 | D83: 0.04922038633 | F83: 0.06327310609 | G83: 0.09406999791 | H83: -3.047522652 | J83: 15 | M83: 0.09217492669 | N83: -1.570796325 | O83: 5.926918558 | P83: 1.401263656 | Q83: 5.003565734 | R83: 1.369583871 | S83: 0.9985681851 | T83: -0.05351928059 | U83: 0.9952822406 | V83: -0.09717482801 | X83: 8.237640943 | Y83: -111.666333 | Z83: 68.33366697 | AC83: 1 | AD83: 5.841948612 | AE83: -5.036069462e-05 | AF83: 0.0005166160617 | AG83: 11014.74191 | AH83: -3009.410989 | AJ83: 21000 | AK83: 1124.979195 | AL83: 1 | AM83: 4.902618693 | AN83: 1059.102632 | AO83: -4067.397164 | AQ83: 4.163197336 | AR83: -203.9966694 | AT83: -568053.2747 | AU83: -2259499.435 | AV83: -1.817098495 | AW83: -813396.0589 | AX83: -252060.7459 | AY83: -2.841090213 | BA83: 2.735946188 | BB83: 8.742151023 | BC83: 1.023991718 | BD83: -121.3295962 | BF83: 8.298884966 | BG83: -113.119662 | BH83: 66.88033803 | BI83: 66.88033803 | BJ83: 0 | BK83: 0 | BM83: -0.4432660566 | BN83: -171.7900657 | BQ83: 25.64411182 | BT83: 537.032 | BU83: 20.2926 | BV83: -264.5682
A84: 25000 | B84: 25 | C84: 1.001262512 | D84: 0.05022321256 | F84: 0.06062509907 | G84: 0.09196657755 | H84: -3.049626072 | J84: 15 | M84: 0.09033142816 | N84: -1.570796325 | O84: 6.04446625 | P84: 1.404591596 | Q84: 5.101639785 | R84: 1.373503489 | S84: 0.9985092793 | T84: -0.05460936225 | U84: 0.9950891447 | V84: -0.09914514568 | X84: 8.028247899 | Y84: -111.4894859 | Z84: 68.51051412 | AC84: 1 | AD84: 5.961172053 | AE84: -5.243720806e-05 | AF84: 0.0005271592467 | AG84: 11010.46835 | AH84: -2992.185435 | AJ84: 21000 | AK84: 1147.937954 | AL84: 1 | AM84: 5.002672136 | AN84: 1027.511284 | AO84: -3992.364115 | AQ84: 3.99840064 | AR84: -199.920032 | AT84: -554173.5442 | AU84: -2213177.142 | AV84: -1.816148869 | AW84: -782165.3086 | AX84: -240125.7853 | AY84: -2.843725067 | BA84: 2.788460397 | BB84: 8.907289616 | BC84: 1.027576199 | BD84: -121.1242206 | BF84: 8.09312315 | BG84: -112.9773458 | BH84: 67.02265425 | BI84: 67.02265425 | BJ84: 0 | BK84: 0 | BM84: -0.8141664656 | BN84: -171.8531251 | BQ84: 25.80925042 | BT84: 549.541 | BU84: 19.992 | BV84: -264.4762
A85: 25500 | B85: 25.5 | C85: 1.001313484 | D85: 0.0512259377 | F85: 0.05814259884 | G85: 0.08995922957 | H85: -3.05163342 | J85: 15 | M85: 0.08856022369 | N85: -1.570796325 | O85: 6.162078332 | P85: 1.407792534 | Q85: 5.199789258 | R85: 1.377275192 | S85: 0.9984491942 | T85: -0.05569931401 | U85: 0.9948922637 | V85: -0.1011146913 | X85: 7.824189006 | Y85: -111.3228399 | Z85: 68.67716009 | AC85: 1 | AD85: 6.080395494 | AE85: -5.455567127e-05 | AF85: 0.0005377024316 | AG85: 11006.11188 | AH85: -2976.45264 | AJ85: 21000 | AK85: 1170.896713 | AL85: 1 | AM85: 5.102725579 | AN85: 997.6683125 | AO85: -3919.930904 | AQ85: 3.84319754 | AR85: -196.0030746 | AT85: -541095.2065 | AU85: -2168670.864 | AV85: -1.81530948 | AW85: -752652.2524 | AX85: -229035.6866 | AY85: -2.846191203 | BA85: 2.841072908 | BB85: 9.069647575 | BC85: 1.030881723 | BD85: -120.934828 | BF85: 7.892762848 | BG85: -112.8455138 | BH85: 67.15448622 | BI85: 67.15448622 | BJ85: 0 | BK85: 0 | BM85: -1.176884727 | BN85: -171.9106858 | BQ85: 25.97160838 | BT85: 562.341 | BU85: 19.6823 | BV85: -264.604
A86: 26000 | B86: 26 | C86: 1.001365463 | D86: 0.05222855974 | F86: 0.05581189401 | G86: 0.08804130922 | H86: -3.053551341 | J86: 15 | M86: 0.08685714246 | N86: -1.570796325 | O86: 6.279751185 | P86: 1.410873541 | Q86: 5.298009961 | R86: 1.380907097 | S86: 0.9983879305 | T86: -0.05678913331 | U86: 0.9946916043 | V86: -0.1030834501 | X86: 7.625182945 | Y86: -111.1659047 | Z86: 68.83409527 | AC86: 1 | AD86: 6.199618936 | AE86: -5.671608424e-05 | AF86: 0.0005482456165 | AG86: 11001.6727 | AH86: -2962.124541 | AJ86: 21000 | AK86: 1193.855472 | AL86: 1 | AM86: 5.202779021 | AN86: 969.4486408 | AO86: -3849.971578 | AQ86: 3.696857671 | AR86: -192.2365989 | AT86: =-AR86*AH86+AG86*AQ86 -> -528757.1292 | AU86: =AQ86*AH86+AG86*AR86 -> -2125874.694 | AV86: -1.814574163 | AW86: -724735.0417 | AX86: -218715.3413 | AY86: -2.848497562 | BA86: 2.893779863 | BB86: 9.229309805 | BC86: 1.033923398 | BD86: -120.7605529 | BF86: 7.697522374 | BG86: -112.7236814 | BH86: 67.27631863 | BI86: 67.27631863 | BJ86: 0 | BK86: 0 | BM86: -1.531787431 | BN86: -171.9631285 | BQ86: 26.13127061 | BT86: 575.44 | BU86: 19.596 | BV86: -264.9076
A87: 26500 | B87: 26.5 | C87: 1.001418448 | D87: 0.0532310767 | F87: 0.05362068246 | G87: 0.0862067842 | H87: -3.055385866 | J87: 15 | M87: 0.08521832845 | N87: -1.570796325 | O87: 6.397481456 | P87: 1.413841178 | Q87: 5.396298003 | R87: 1.384406744 | S87: 0.9983254888 | T87: -0.05787881759 | U87: 0.9944871736 | V87: -0.1050514073 | X87: 7.430970034 | Y87: -111.0182171 | Z87: 68.98178286 | AC87: 1 | AD87: 6.318842377 | AE87: -5.891844698e-05 | AF87: 0.0005587888015 | AG87: 10997.151 | AH87: -2949.119692 | AJ87: 21000 | AK87: 1216.814232 | AL87: 1 | AM87: 5.302832464 | AN87: 942.7380395 | AO87: -3782.367649 | AQ87: 3.558718861 | AR87: -188.6120996 | AT87: -517103.8885 | AU87: -2084690.827 | AV87: -1.813937196 | AW87: -698302.2808 | AX87: -209097.5503 | AY87: -2.850652439 | BA87: 2.946577713 | BB87: 9.386357993 | BC87: 1.036715243 | BD87: -120.600592 | BF87: 7.507141674 | BG87: -112.611391 | BH87: 67.38860899 | BI87: 67.38860899 | BJ87: 0 | BK87: 0 | BM87: -1.879216319 | BN87: -172.0107991 | BQ87: 26.28831879 | BT87: 588.844 | BU87: 19.3732 | BV87: -263.8817
A88: 27000 | B88: 27 | C88: 1.00147244 | D88: 0.05423348657 | F88: 0.0515578991 | G88: 0.08445016468 | H88: -3.057142485 | J88: 15 | M88: 0.08364021126 | N88: -1.570796325 | O88: 6.515266032 | P88: 1.416701541 | Q88: 5.494649772 | R88: 1.387781147 | S88: 0.9982618698 | T88: -0.05896836428 | U88: 0.9942789785 | V88: -0.1070185481 | X88: 7.241310086 | Y88: -110.8793397 | Z88: 69.12066026 | AC88: 1 | AD88: 6.438065818 | AE88: -6.116275948e-05 | AF88: 0.0005693319864 | AG88: 10992.54699 | AH88: -2937.362642 | AJ88: 21000 | AK88: 1239.772991 | AL88: 1 | AM88: 5.402885907 | AN88: 917.4320307 | AO88: -3717.007599 | AQ88: 3.428179637 | AR88: -185.1217004 | AT88: -506085.1411 | AU88: -2045028.797 | AV88: -1.813393259 | AW88: -673251.9873 | AX88: -200122.0703 | AY88: -2.852663543 | BA88: 2.999463183 | BB88: 9.540870712 | BC88: 1.039270284 | BD88: -120.4541989 | BF88: 7.321380182 | BG88: -112.508211 | BH88: 67.49178904 | BI88: 67.49178904 | BJ88: 0 | BK88: 0 | BM88: -2.21949053 | BN88: -172.0540121 | BQ88: 26.44283151 | BT88: 602.56 | BU88: 19.198 | BV88: -264.0026
A89: 27500 | B89: 27.5 | C89: 1.001527438 | D89: 0.05523578735 | F89: 0.04961356791 | G89: 0.08276644272 | H89: -3.058826207 | J89: 15 | M89: 0.08211948014 | N89: -1.570796325 | O89: 6.633102021 | P89: 1.419460297 | Q89: 5.593061906 | R89: 1.391036838 | S89: 0.9981970741 | T89: -0.06005777081 | U89: 0.9940670264 | V89: -0.1089848579 | X89: 7.055980527 | Y89: -110.7488595 | Z89: 69.25114051 | AC89: 1 | AD89: 6.557289259 | AE89: -6.344902176e-05 | AF89: 0.0005798751713 | AG89: 10987.86089 | AH89: -2926.783398 | AJ89: 21000 | AK89: 1262.73175 | AL89: 1 | AM89: 5.502939349 | AN89: 893.4349191 | AO89: -3653.786423 | AQ89: 3.304692664 | AR89: -181.7580965 | AT89: -495655.0761 | AU89: -2006804.799 | AV89: -1.812937399 | AW89: -649490.6673 | AX89: -191734.7881 | AY89: -2.854538042 | BA89: 3.052433252 | BB89: 9.692923519 | BC89: 1.041600643 | BD89: -120.3206792 | BF89: 7.140014935 | BG89: -112.4137338 | BH89: 67.58626619 | BI89: 67.58626619 | BJ89: 0 | BK89: 0 | BM89: -2.552908584 | BN89: -172.0930546 | BQ89: 26.59488432 | BT89: 616.595 | BU89: 18.9837 | BV89: -264.1331
A90: 28000 | B90: 28 | C90: 1.001583442 | D90: 0.05623797705 | F90: 0.04777867445 | G90: 0.08115103983 | H90: -3.06044161 | J90: 15 | M90: 0.08065306086 | N90: -1.570796325 | O90: 6.75098673 | P90: 1.422122728 | Q90: 5.691531273 | R90: 1.394179907 | S90: 0.9981311025 | T90: -0.06114703464 | U90: 0.9938513244 | V90: -0.1109503219 | X90: 6.874774723 | Y90: -110.6263864 | Z90: 69.37361361 | AC90: 1 | AD90: 6.6765127 | AE90: -6.577723379e-05 | AF90: 0.0005904183563 | AG90: 10983.09291 | AH90: -2917.316936 | AJ90: 21000 | AK90: 1285.690509 | AL90: 1 | AM90: 5.602992792 | AN90: 870.6589308 | AO90: -3592.605205 | AQ90: 3.187759005 | AR90: -178.5145043 | AT90: -485771.9334 | AU90: -1969941.09 | AV90: -1.812565003 | AW90: -626932.4947 | AX90: -183887.0054 | AY90: -2.85628261 | BA90: 3.105485124 | BB90: 9.842589064 | BC90: 1.043717607 | BD90: -120.199386 | BF90: 6.962838901 | BG90: -112.3275752 | BH90: 67.6724248 | BI90: 67.6724248 | BJ90: 0 | BK90: 0 | BM90: -2.879750162 | BN90: -172.1281892 | BQ90: 26.74454986 | BT90: 630.957 | BU90: 18.8029 | BV90: -263.7485
A91: 28500 | B91: 28.5 | C91: 1.001640451 | D91: 0.05724005367 | F91: 0.04604505558 | G91: 0.07959976118 | H91: -3.061992889 | J91: 15 | M91: 0.07923809488 | N91: -1.570796325 | O91: 6.868917651 | P91: 1.424693754 | Q91: 5.790054953 | R91: 1.397216041 | S91: 0.9980639557 | T91: -0.06223615321 | U91: 0.9936318801 | V91: -0.1129149255 | X91: 6.697500505 | Y91: -110.5115521 | Z91: 69.48844787 | AC91: 1 | AD91: 6.795736141 | AE91: -6.81473956e-05 | AF91: 0.0006009615412 | AG91: 10978.24327 | AH91: -2908.902762 | AJ91: 21000 | AK91: 1308.649268 | AL91: 1 | AM91: 5.703046235 | AN91: 849.0234487 | AO91: -3533.370715 | AQ91: 3.076923077 | AR91: -175.3846154 | AT91: -476397.582 | AU91: -1934365.443 | AV91: -1.812271765 | AW91: -605498.5787 | AX91: -176534.8169 | AY91: -2.857903471 | BA91: 3.158616209 | BB91: 9.989937195 | BC91: 1.045631706 | BD91: -120.0897163 | BF91: 6.789659511 | BG91: -112.2493724 | BH91: 67.7506276 | BI91: 67.7506276 | BJ91: 0 | BK91: 0 | BM91: -3.200277684 | BN91: -172.1596561 | BQ91: 26.891898 | BT91: 645.654 | BU91: 18.5986 | BV91: -263.7636
A92: 29000 | B92: 29 | C92: 1.001698467 | D92: 0.05824201523 | F92: 0.04440530377 | G92: 0.07810875566 | H92: -3.063483894 | J92: 15 | M92: 0.07787192083 | N92: -1.570796325 | O92: 6.986892444 | P92: 1.427177972 | Q92: 5.88863022 | R92: 1.400150552 | S92: 0.9979956343 | T92: -0.06332512396 | U92: 0.993408701 | V92: -0.1148786542 | X92: 6.52397886 | Y92: -110.4040088 | Z92: 69.59599122 | AC92: 1 | AD92: 6.914959582 | AE92: -7.055950717e-05 | AF92: 0.0006115047261 | AG92: 10973.31219 | AH92: -2901.484525 | AJ92: 21000 | AK92: 1331.608027 | AL92: 1 | AM92: 5.803099678 | AN92: 828.4543312 | AO92: -3475.995035 | AQ92: 2.971768202 | AR92: -172.3625557 | AT92: -467497.1479 | AU92: -1900010.673 | AV92: -1.812053664 | AW92: -585116.3117 | AX92: -169638.5684 | AY92: -2.85940643 | BA92: 3.211824107 | BB92: 10.13503507 | BC92: 1.047352766 | BD92: -119.9911068 | BF92: 6.620297338 | BG92: -112.1787831 | BH92: 67.82121692 | BI92: 67.82121692 | BJ92: 0 | BK92: 0 | BM92: -3.514737731 | BN92: -172.1876763 | BQ92: 27.03699587 | BT92: 660.693 | BU92: 18.468 | BV92: -263.6098
A93: 29500 | B93: 29.5 | C93: 1.001757488 | D93: 0.05924385973 | F93: 0.04285268394 | G93: 0.07667448085 | H93: -3.064918169 | J93: 15 | M93: 0.07655205776 | N93: -1.570796325 | O93: 7.104908923 | P93: 1.429579676 | Q93: 5.987254526 | R93: 1.402988409 | S93: 0.9979261391 | T93: -0.06441394435 | U93: 0.9931817948 | V93: -0.1168414934 | X93: 6.354042762 | Y93: -110.3034277 | Z93: 69.69657235 | AC93: 1 | AD93: 7.034183023 | AE93: -7.301356851e-05 | AF93: 0.0006220479111 | AG93: 10968.29989 | AH93: -2895.009667 | AJ93: 21000 | AK93: 1354.566786 | AL93: 1 | AM93: 5.90315312 | AN93: 808.8833045 | AO93: -3420.395217 | AQ93: 2.871912694 | AR93: -169.4428489 | AT93: -459038.6859 | AU93: -1866814.197 | AV93: -1.811906941 | AW93: -565718.7852 | AX93: -163162.3843 | AY93: -2.860796912 | BA93: 3.265106585 | BB93: 10.27794726 | BC93: 1.048889972 | BD93: -119.9030314 | BF93: 6.454584937 | BG93: -112.1154841 | BH93: 67.8845159 | BI93: 67.8845159 | BJ93: 0 | BK93: 0 | BM93: -3.823362319 | BN93: -172.2124527 | BQ93: 27.17990806 | BT93: 676.083 | BU93: 18.2744 | BV93: -263.3252
A94: 30000 | B94: 30 | C94: 1.001817514 | D94: 0.06024558517 | F94: 0.04138106073 | G94: 0.0752936723 | H94: -3.066298978 | J94: 15 | M94: 0.07527619013 | N94: -1.570796325 | O94: 7.222965045 | P94: 1.431902884 | Q94: 6.085925487 | R94: 1.405734268 | S94: 0.9978554709 | T94: -0.06550261181 | U94: 0.9929511693 | V94: -0.1188034285 | X94: 6.187536129 | Y94: -110.209498 | Z94: 69.79050195 | AC94: 1 | AD94: 7.153406464 | AE94: -7.550957961e-05 | AF94: 0.000632591096 | AG94: 10963.20661 | AH94: -2889.429102 | AJ94: 21000 | AK94: 1377.525545 | AL94: 1 | AM94: 6.003206563 | AN94: 790.2474197 | AO94: -3366.492951 | AQ94: 2.777006387 | AR94: -166.6203832 | AT94: -450992.8895 | AU94: -1834717.65 | AV94: -1.811828074 | AW94: -547244.2688 | AX94: -157073.7528 | AY94: -2.86207999 | BA94: 3.318461568 | BB94: 10.41873585 | BC94: 1.050251916 | BD94: -119.8249977 | BF94: 6.292365799 | BG94: -112.0591703 | BH94: 67.94082969 | BI94: 67.94082969 | BJ94: 0 | BK94: 0 | BM94: -4.126370046 | BN94: -172.2341726 | BQ94: 27.32069665 | BT94: 691.831 | BU94: 18.0926 | BV94: -263.5782
A95: 30500 | B95: 30.5 | C95: 1.001878545 | D95: 0.06124718958 | F95: 0.039984835 | G95: 0.07396331633 | H95: -3.067629334 | J95: 15 | M95: 0.07404215423 | N95: -1.570796325 | O95: 7.341058898 | P95: 1.434151358 | Q95: 6.184640871 | R95: 1.408392491 | S95: 0.9977836303 | T95: -0.0665911238 | U95: 0.9927168324 | V95: -0.1207644452 | X95: 6.024312892 | Y95: -110.1219262 | Z95: 69.87807377 | AC95: 1 | AD95: 7.272629905 | AE95: -7.804754048e-05 | AF95: 0.0006431342809 | AG95: 10958.03258 | AH95: -2884.696939 | AJ95: 21000 | AK95: 1400.484304 | AL95: 1 | AM95: 6.103260006 | AN95: 772.4885675 | AO95: -3314.214275 | AQ95: 2.686727566 | AR95: -163.8903815 | AT95: -443332.8336 | AU95: -1803666.535 | AV95: -1.811813767 | AW95: -529635.7416 | AX95: -151343.164 | AY95: -2.863260411 | BA95: 3.371887119 | BB95: 10.55746054 | BC95: 1.051446644 | BD95: -119.7565448 | BF95: 6.13349342 | BG95: -112.0095535 | BH95: 67.9904465 | BI95: 67.9904465 | BJ95: 0 | BK95: 0 | BM95: -4.423967124 | BN95: -172.2530087 | BQ95: 27.45942134 | BT95: 707.946 | BU95: 17.887 | BV95: -262.8499
A96: 31000 | B96: 31 | C96: 1.001940582 | D96: 0.06224867096 | F96: 0.03865888802 | G96: 0.07268062608 | H96: -3.068912024 | J96: 15 | M96: 0.07284792593 | N96: -1.570796325 | O96: 7.459188689 | P96: 1.436328625 | Q96: 6.283398582 | R96: 1.410967172 | S96: 0.9977106182 | T96: -0.06767947779 | U96: 0.992478792 | V96: -0.1227245289 | X96: 5.864236158 | Y96: -110.0404344 | Z96: 69.95956563 | AC96: 1 | AD96: 7.391853346 | AE96: -8.062745112e-05 | AF96: 0.0006536774659 | AG96: 10952.77803 | AH96: -2880.770217 | AJ96: 21000 | AK96: 1423.443063 | AL96: 1 | AM96: 6.203313448 | AN96: 755.553042 | AO96: -3263.489283 | AQ96: 2.600780234 | AR96: -161.2483745 | AT96: -436033.7462 | AU96: -1773609.904 | AV96: -1.811860924 | AW96: -512840.4731 | AX96: -145943.7899 | AY96: -2.864342623 | BA96: 3.425381431 | BB96: 10.69417878 | BC96: 1.052481698 | BD96: -119.6972406 | BF96: 5.977830463 | BG96: -111.9663613 | BH96: 68.03363867 | BI96: 68.03363867 | BJ96: 0 | BK96: 0 | BM96: -4.716348319 | BN96: -172.2691207 | BQ96: 27.59613958 | BT96: 724.436 | BU96: 17.7536 | BV96: -262.8169
A97: 31500 | B97: 31.5 | C97: 1.002003623 | D97: 0.06325002733 | F97: 0.03739853237 | G97: 0.07144302028 | H97: -3.07014963 | J97: 15 | M97: 0.07169160965 | N97: -1.570796325 | O97: 7.577352737 | P97: 1.438437995 | Q97: 6.382196657 | R97: 1.413462156 | S97: 0.9976364354 | T97: -0.06876767121 | U97: 0.9922370565 | V97: -0.1246836654 | X97: 5.707177459 | Y97: -109.9647595 | Z97: 70.03524046 | AC97: 1 | AD97: 7.511076787 | AE97: -8.324931152e-05 | AF97: 0.0006642206508 | AG97: 10947.4432 | AH97: -2877.608678 | AJ97: 21000 | AK97: 1446.401822 | AL97: 1 | AM97: 6.303366891 | AN97: 739.3911505 | AO97: -3214.251875 | AQ97: 2.518891688 | AR97: -158.6901763 | AT97: -429072.8049 | AU97: -1744500.076 | AV97: -1.811966641 | AW97: -496809.6454 | AX97: -140851.2045 | AY97: -2.865330796 | BA97: 3.478942815 | BB97: 10.8289458 | BC97: 1.053364155 | BD97: -119.6466796 | BF97: 5.825248009 | BG97: -111.9293364 | BH97: 68.07066361 | BI97: 68.07066361 | BJ97: 0 | BK97: 0 | BM97: -5.003697793 | BN97: -172.2826568 | BQ97: 27.7309066 | BT97: 741.31 | BU97: 17.4164 | BV97: -262.1972
A98: 32000 | B98: 32 | C98: 1.002067668 | D98: 0.0642512567 | F98: 0.03619946875 | G98: 0.07024810432 | H98: -3.071344546 | J98: 15 | M98: 0.07057142825 | N98: -1.570796325 | O98: 7.695549465 | P98: 1.440482578 | Q98: 6.481033249 | R98: 1.415881057 | S98: 0.9975610825 | T98: -0.06985570154 | U98: 0.991991634 | V98: -0.1266418402 | X98: 5.553016076 | Y98: -109.8946529 | Z98: 70.10534713 | AC98: 1 | AD98: 7.630300228 | AE98: -8.591312169e-05 | AF98: 0.0006747638357 | AG98: 10942.02833 | AH98: -2875.174555 | AJ98: 21000 | AK98: 1469.360582 | AL98: 1 | AM98: 6.403420334 | AN98: 723.9568619 | AO98: -3166.439509 | AQ98: 2.440810349 | AR98: -156.2118623 | AT98: -422428.9559 | AU98: -1716292.379 | AV98: -1.812128187 | AW98: -481498.0135 | AX98: -136043.1353 | AY98: -2.866228845 | BA98: 3.532569687 | BB98: 10.96181476 | BC98: 1.054100659 | BD98: -119.604481 | BF98: 5.675624879 | BG98: -111.8982353 | BH98: 68.10176474 | BI98: 68.10176474 | BJ98: 0 | BK98: 0 | BM98: -5.286189881 | BN98: -172.2937543 | BQ98: 27.86377556 | BT98: 758.578 | BU98: 17.2832 | BV98: -262.5669
A99: 32500 | B99: 32.5 | C99: 1.002132719 | D99: 0.0652523571 | F99: 0.03505774761 | G99: 0.06909365346 | H99: -3.072498997 | J99: 15 | M99: 0.06948571397 | N99: -1.570796325 | O99: 7.81377739 | P99: 1.442465298 | Q99: 6.579906623 | R99: 1.418227275 | S99: 0.9974845605 | T99: -0.07094356623 | U99: 0.991742533 | V99: -0.128599039 | X99: 5.401638426 | Y99: -109.8298786 | Z99: 70.17012138 | AC99: 1 | AD99: 7.749523669 | AE99: -8.861888163e-05 | AF99: 0.0006853070207 | AG99: 10936.53367 | AH99: -2873.432379 | AJ99: 21000 | AK99: 1492.319341 | AL99: 1 | AM99: 6.503473777 | AN99: 709.2074907 | AO99: -3119.992977 | AQ99: 2.366303833 | AR99: -153.8097492 | AT99: -416082.7519 | AU99: -1688944.915 | AV99: -1.812342993 | AW99: -466863.6 | AX99: -131499.2449 | AY99: -2.867040448 | BA99: 3.586260562 | BB99: 11.09283681 | BC99: 1.054697456 | BD99: -119.5702871 | BF99: 5.528847024 | BG99: -111.8728277 | BH99: 68.12717234 | BI99: 68.12717234 | BJ99: 0 | BK99: 0 | BM99: -5.563989784 | BN99: -172.3025406 | BQ99: 27.99479761 | BT99: 776.247 | BU99: 17.0071 | BV99: -262.7177
A100: 33000 | B100: 33 | C100: 1.002198773 | D100: 0.06625332653 | F100: 0.03396973538 | G100: 0.06797759782 | H100: -3.073615052 | J100: 15 | M100: 0.06843290012 | N100: -1.570796325 | O100: 7.932035116 | P100: 1.444388905 | Q100: 6.678815145 | R100: 1.420504014 | S100: 0.9974068701 | T100: -0.07203126275 | U100: 0.9914897618 | V100: -0.1305552477 | X100: 5.252937514 | Y100: -109.7702134 | Z100: 70.22978659 | AC100: 1 | AD100: 7.86874711 | AE100: -9.136659133e-05 | AF100: 0.0006958502056 | AG100: 10930.95946 | AH100: -2872.348805 | AJ100: 21000 | AK100: 1515.2781 | AL100: 1 | AM100: 6.603527219 | AN100: 695.1034112 | AO100: -3074.856196 | AQ100: 2.295157218 | AR100: -151.4803764 | AT100: -410016.2076 | AU100: -1662418.346 | AV100: -1.812608641 | AW100: -452867.4176 | AX100: -127200.9367 | AY100: -2.867769062 | BA100: 3.640014043 | BB100: 11.22206118 | BC100: 1.055160421 | BD100: -119.5437611 | BF100: 5.384806973 | BG100: -111.8528956 | BH100: 68.14710436 | BI100: 68.14710436 | BJ100: 0 | BK100: 0 | BM100: -5.83725421 | BN100: -172.3091345 | BQ100: 28.12402198 | BT100: 794.328 | BU100: 16.8354 | BV100: -262.7938
A101: 33500 | B101: 33.5 | C101: 1.002265831 | D101: 0.06725416302 | F101: 0.03293208428 | G101: 0.06689800895 | H101: -3.074694641 | J101: 15 | M101: 0.06741151355 | N101: -1.570796325 | O101: 8.050321331 | P101: 1.446255989 | Q101: 6.777757276 | R101: 1.422714292 | S101: 0.9973280121 | T101: -0.07311878857 | U101: 0.9912333292 | V101: -0.132510452 | X101: 5.106812432 | Y101: -109.7154455 | Z101: 70.28455452 | AC101: 1 | AD101: 7.987970552 | AE101: -9.41562508e-05 | AF101: 0.0007063933905 | AG101: 10925.30597 | AH101: -2871.892455 | AJ101: 21000 | AK101: 1538.236859 | AL101: 1 | AM101: 6.703580662 | AN101: 681.6078009 | AO101: -3030.976015 | AQ101: 2.227171492 | AR101: -149.22049 | AT101: -404212.6693 | AU101: -1636675.707 | AV101: -1.812922851 | AW101: -439473.2206 | AX101: -123131.183 | AY101: -2.868417939 | BA101: 3.693828813 | BB101: 11.34953529 | BC101: 1.055495088 | BD101: -119.5245861 | BF101: 5.243403334 | BG101: -111.8382328 | BH101: 68.16176716 | BI101: 68.16176716 | BJ101: 0 | BK101: 0 | BM101: -6.106131957 | BN101: -172.3136467 | BQ101: 28.25149609 | BT101: 812.831 | BU101: 16.6614 | BV101: -262.2369
A102: =A101+500 -> 34000 | B102: 34 | C102: 1.002333893 | D102: 0.06825486459 | F102: 0.0319417056 | G102: 0.06585308775 | H102: -3.075739562 | J102: 15 | M102: 0.06642016776 | N102: -1.570796325 | O102: 8.168634796 | P102: 1.448068995 | Q102: 6.876731566 | R102: 1.424860957 | S102: 0.9972479875 | T102: -0.07420614114 | U102: 0.9909732438 | V102: -0.1344646377 | X102: 4.963167902 | Y102: -109.665374 | Z102: 70.33462604 | AC102: 1 | AD102: 8.107193993 | AE102: -9.698786003e-05 | AF102: 0.0007169365755 | AG102: 10919.57343 | AH102: -2872.033776 | AJ102: 21000 | AK102: 1561.195618 | AL102: 1 | AM102: 6.803634105 | AN102: 668.6864073 | AO102: -2988.302028 | AQ102: 2.162162162 | AR102: -147.027027 | AT102: -398656.6991 | AU102: -1611682.221 | AV102: -1.813283474 | AW102: -426647.2782 | AX102: -119274.3722 | AY102: -2.868990141 | BA102: 3.747703629 | BB102: 11.47530479 | BC102: 1.055706668 | BD102: -119.5124635 | BF102: 5.104540339 | BG102: -111.8286438 | BH102: 68.17135621 | BI102: 68.17135621 | BJ102: 0 | BK102: 0 | BM102: -6.370764447 | BN102: -172.3161803 | BQ102: 28.37726559 | BT102: 831.764 | BU102: 16.5098 | BV102: -262.3432
A103: 34500 | B103: 34.5 | C103: 1.002402959 | D103: 0.06925542927 | F103: 0.03099574579 | G103: 0.06484115369 | H103: -3.076751496 | J103: 15 | M103: 0.06545755664 | N103: -1.570796325 | O103: 8.286974345 | P103: 1.449830227 | Q103: 6.975736646 | R103: 1.426946698 | S103: 0.997166797 | T103: -0.07529331795 | U103: 0.9907095145 | V103: -0.1364177907 | X103: 4.821913869 | Y103: -109.6198082 | Z103: 70.38019179 | AC103: 1 | AD103: 8.226417434 | AE103: -9.986141904e-05 | AF103: 0.0007274797604 | AG103: 10913.76212 | AH103: -2872.744901 | AJ103: 21000 | AK103: 1584.154377 | AL103: 1 | AM103: 6.903687547 | AN103: 656.307337 | AO103: -2946.786413 | AQ103: 2.099958001 | AR103: -144.8971021 | AT103: -393333.969 | AU103: -1587405.147 | AV103: -1.813688479 | AW103: -414358.1702 | AX103: -115616.1726 | AY103: -2.869488556 | BA103: 3.801637317 | BB103: 11.59941364 | BC103: 1.055800077 | BD103: -119.5071115 | BF103: 4.968127431 | BG103: -111.8239432 | BH103: 68.17605676 | BI103: 68.17605676 | BJ103: 0 | BK103: 0 | BM103: -6.63128621 | BN103: -172.3168317 | BQ103: 28.50137444 | BT103: 851.138 | BU103: 16.2768 | BV103: -262.197
A104: 35000 | B104: 35 | C104: 1.002473028 | D104: 0.07025585507 | F104: 0.03009156516 | G104: 0.06386063505 | H104: -3.077732015 | J104: 15 | M104: 0.06452244869 | N104: -1.570796325 | O104: 8.405338875 | P104: 1.45154186 | Q104: 7.074771223 | R104: 1.428974053 | S104: 0.9970844415 | T104: -0.07638031647 | U104: 0.9904421502 | V104: -0.1383698969 | X104: 4.682965121 | Y104: -109.5785672 | Z104: 70.42143275 | AC104: 1 | AD104: 8.345640875 | AE104: -0.0001027769278 | AF104: 0.0007380229453 | AG104: 10907.87229 | AH104: -2873.999536 | AJ104: 21000 | AK104: 1607.113136 | AL104: 1 | AM104: 7.00374099 | AN104: 644.4408654 | AO104: -2906.383769 | AQ104: 2.040399918 | AR104: -142.8279943 | AT104: -388231.1676 | AU104: -1563813.629 | AV104: -1.814135948 | AW104: -402576.6008 | AX104: -112143.4112 | AY104: -2.869915904 | BA104: 3.855628763 | BB104: 11.72190423 | BC104: 1.055779955 | BD104: -119.5082644 | BF104: 4.834078892 | BG104: -111.8239555 | BH104: 68.17604446 | BI104: 68.17604446 | BJ104: 0 | BK104: 0 | BM104: -6.887825336 | BN104: -172.3156911 | BQ104: 28.62386503 | BT104: 870.964 | BU104: 16.1061 | BV104: -261.768
A105: 35500 | B105: 35.5 | C105: 1.002544101 | D105: 0.07125614004 | F105: 0.02922671879 | G105: 0.06291006015 | H105: -3.07868259 | J105: 15 | M105: 0.0636136818 | N105: -1.570796325 | O105: 8.523727347 | P105: 1.453205951 | Q105: 7.173834076 | R105: 1.430945425 | S105: 0.9970009218 | T105: -0.07746713416 | U105: 0.9901711599 | V105: -0.1403209424 | X105: 4.546240949 | Y105: -109.5414791 | Z105: 70.45852088 | AC105: 1 | AD105: 8.464864316 | AE105: -0.0001057343863 | AF105: 0.0007485661303 | AG105: 10901.9042 | AH105: -2875.772845 | AJ105: 21000 | AK105: 1630.071895 | AL105: 1 | AM105: 7.103794433 | AN105: 633.0592629 | AO105: -2867.050972 | AQ105: 1.983339944 | AR105: -140.8171361 | AT105: -383335.914 | AU105: -1540878.562 | AV105: -1.81462407 | AW105: -391275.2307 | AX105: -108843.9653 | AY105: -2.870274753 | BA105: 3.909676907 | BB105: 11.84281738 | BC105: 1.055650683 | BD105: -119.5156711 | BF105: 4.702313497 | BG105: -111.8285141 | BH105: 68.1714859 | BI105: 68.1714859 | BJ105: 0 | BK105: 0 | BM105: -7.140503884 | BN105: -172.312843 | BQ105: 28.74477818 | BT105: 891.251 | BU105: 15.8824 | BV105: -261.3831
A106: 36000 | B106: 36 | C106: 1.002616176 | D106: 0.07225628219 | F106: 0.02839893938 | G106: 0.06198804937 | H106: -3.079604601 | J106: 15 | M106: 0.06273015844 | N106: -1.570796325 | O106: 8.642138776 | P106: 1.454824444 | Q106: 7.272924049 | R106: 1.432863086 | S106: 0.996916239 | T106: -0.07855376852 | U106: 0.9898965529 | V106: -0.1422709131 | X106: 4.411664836 | Y106: -109.5083804 | Z106: 70.4916196 | AC106: 1 | AD106: 8.584087757 | AE106: -0.0001087337946 | AF106: 0.0007591093152 | AG106: 10895.85812 | AH106: -2878.041352 | AJ106: 21000 | AK106: 1653.030654 | AL106: 1 | AM106: 7.203847876 | AN106: 622.1366376 | AO106: -2828.747041 | AQ106: 1.928640309 | AR106: -138.8621022 | AT106: -378636.6812 | AU106: -1518572.471 | AV106: -1.815151126 | AW106: -380428.5228 | AX106: -105706.6657 | AY106: -2.870567529 | BA106: 3.963780741 | BB106: 11.96219246 | BC106: 1.055416403 | BD106: -119.5290944 | BF106: 4.572754202 | BG106: -111.8374608 | BH106: 68.16253922 | BI106: 68.16253922 | BJ106: 0 | BK106: 0 | BM106: -7.389438263 | BN106: -172.3083664 | BQ106: 28.86415326 | BT106: 912.011 | BU106: 15.6715 | BV106: -261.7487
A107: 36500 | B107: 36.5 | C107: 1.002689254 | D107: 0.07325627955 | F107: 0.0276061219 | G107: 0.06109330803 | H107: -3.080499342 | J107: 15 | M107: 0.0618708412 | N107: -1.570796325 | O107: 8.760572231 | P107: 1.456399182 | Q107: 7.372040048 | R107: 1.434729189 | S107: 0.9968303937 | T107: -0.07964021702 | U107: 0.9896183384 | V107: -0.1442197951 | X107: 4.279164165 | Y107: -109.4791157 | Z107: 70.52088431 | AC107: 1 | AD107: 8.703311198 | AE107: -0.0001117751527 | AF107: 0.0007696525001 | AG107: 10889.73433 | AH107: -2880.782844 | AJ107: 21000 | AK107: 1675.989413 | AL107: 1 | AM107: 7.303901318 | AN107: 611.6487921 | AO107: -2791.433005 | AQ107: 1.876172608 | AR107: -136.9606004 | AT107: -374122.7266 | AU107: -1496869.398 | AV107: -1.815715494 | AW107: -370012.6034 | AX107: -102721.2096 | AY107: -2.870796524 | BA107: 4.017939304 | BB107: 12.08006744 | BC107: 1.05508103 | BD107: -119.5483099 | BF107: 4.445327859 | BG107: -111.8506455 | BH107: 68.1493545 | BI107: 68.1493545 | BJ107: 0 | BK107: 0 | BM107: -7.634739578 | BN107: -172.3023356 | BQ107: 28.98202824 | BT107: 933.254 | BU107: 15.4714 | BV107: -261.2073
A108: 37000 | B108: 37 | C108: 1.002763335 | D108: 0.07425613016 | F108: 0.02684630978 | G108: 0.06022461979 | H108: -3.08136803 | J108: 15 | M108: 0.06103474876 | N108: -1.570796325 | O108: 8.87902683 | P108: 1.457931906 | Q108: 7.471181038 | R108: 1.436545772 | S108: 0.9967433871 | T108: -0.08072647714 | U108: 0.9893365258 | V108: -0.1461675745 | X108: 4.148669963 | Y108: -109.4535371 | Z108: 70.54646287 | AC108: 1 | AD108: 8.822534639 | AE108: -0.0001148584605 | AF108: 0.0007801956851 | AG108: 10883.5331 | AH108: -2883.97629 | AJ108: 21000 | AK108: 1698.948172 | AL108: 1 | AM108: 7.403954761 | AN108: 601.5730927 | AO108: -2755.071791 | AQ108: 1.825817053 | AR108: -135.1104619 | AT108: -369784.0284 | AU108: -1475744.798 | AV108: -1.816315631 | AW108: -360005.1341 | AX108: -99878.08297 | AY108: -2.870963904 | BA108: 4.072151673 | BB108: 12.19647891 | BC108: 1.054648272 | BD108: -119.5731051 | BF108: 4.319964954 | BG108: -111.8679256 | BH108: 68.13207435 | BI108: 68.13207435 | BJ108: 0 | BK108: 0 | BM108: -7.876513956 | BN108: -172.2948206 | BQ108: 29.09843971 | BT108: 954.993 | BU108: 15.3525 | BV108: -261.2661
A109: 37500 | B109: 37.5 | C109: 1.002838418 | D109: 0.07525583205 | F109: 0.02611768236 | G109: 0.05938084079 | H109: -3.082211809 | J109: 15 | M109: 0.06022095211 | N109: -1.570796325 | O109: 8.99750174 | P109: 1.459424269 | Q109: 7.570346037 | R109: 1.43831477 | S109: 0.9966552199 | T109: -0.08181254637 | U109: 0.9890511245 | V109: -0.1481142376 | X109: 4.020116656 | Y109: -109.431504 | Z109: 70.56849605 | AC109: 1 | AD109: 8.94175808 | AE109: -0.0001179837181 | AF109: 0.00079073887 | AG109: 10877.2547 | AH109: -2887.60176 | AJ109: 21000 | AK109: 1721.906931 | AL109: 1 | AM109: 7.504008204 | AN109: 591.888351 | AO109: -2719.62811 | AQ109: 1.777461785 | AR109: -133.3096338 | AT109: -365611.2287 | AU109: -1455175.443 | AV109: -1.816950079 | AW109: -350385.1962 | AX109: -97168.49062 | AY109: -2.871071719 | BA109: 4.126416965 | BB109: 12.31146221 | BC109: 1.05412164 | BD109: -119.6032789 | BF109: 4.196599364 | BG109: -111.8891657 | BH109: 68.11083426 | BI109: 68.11083426 | BJ109: 0 | BK109: 0 | BM109: -8.114862843 | BN109: -172.2858869 | BQ109: 29.21342301 | BT109: 977.237 | BU109: 15.0807 | BV109: -260.9324
A110: 38000 | B110: 38 | C110: 1.002914503 | D110: 0.07625538326 | F110: 0.02541854374 | G110: 0.05856089424 | H110: -3.083031756 | J110: 15 | M110: 0.05942857116 | N110: -1.570796325 | O110: 9.115996168 | P110: 1.460877838 | Q110: 7.669534114 | R110: 1.440038017 | S110: 0.9965658931 | T110: -0.0828984222 | U110: 0.9887621442 | V110: -0.1500597705 | X110: 3.893441851 | Y110: -109.4128821 | Z110: 70.58711788 | AC110: 1 | AD110: 9.060981521 | AE110: -0.0001211509255 | AF110: 0.0008012820549 | AG110: 10870.89941 | AH110: -2891.640353 | AJ110: 21000 | AK110: 1744.865691 | AL110: 1 | AM110: 7.604061647 | AN110: 582.5747147 | AO110: -2685.068354 | AQ110: 1.73100225 | AR110: -131.556171 | AT110: -361595.5815 | AU110: -1435139.338 | AV110: -1.81761745 | AW110: -341133.1845 | AX110: -94584.293 | AY110: -2.87112191 | BA110: 4.18073433 | BB110: 12.42505141 | BC110: 1.05350446 | BD110: -119.6386407 | BF110: 4.075168138 | BG110: -111.914237 | BH110: 68.08576304 | BI110: 68.08576304 | BJ110: 0 | BK110: 0 | BM110: -8.349883275 | BN110: -172.2755963 | BQ110: 29.32701221 | BT110: 1000 | BU110: 14.8838 | BV110: -260.5154
A111: 38500 | B111: 38.5 | C111: 1.00299159 | D111: 0.07725478182 | F111: 0.0247473125 | G111: 0.05776376551 | H111: -3.083828884 | J111: 15 | M111: 0.05865677153 | N111: -1.570796325 | O111: 9.234509362 | P111: 1.462294101 | Q111: 7.768744384 | R111: 1.441717256 | S111: 0.9964754077 | T111: -0.08398410212 | U111: 0.9884695945 | V111: -0.1520041594 | X111: 3.768586131 | Y111: -109.3975439 | Z111: 70.6024561 | AC111: 1 | AD111: 9.180204962 | AE111: -0.0001243600826 | AF111: 0.0008118252399 | AG111: 10864.46751 | AH111: -2896.074133 | AJ111: 21000 | AK111: 1767.82445 | AL111: 1 | AM111: 7.704115089 | AN111: 573.6135686 | AO111: -2651.3605 | AQ111: 1.686340641 | AR111: -129.8482293 | AT111: -357728.9051 | AU111: -1415615.637 | AV111: -1.818316429 | AW111: -332230.7099 | AX111: -92117.94966 | AY111: -2.871116317 | BA111: 4.235102948 | BB111: 12.53727943 | BC111: 1.052799887 | BD111: -119.6790097 | BF111: 3.955611293 | BG111: -111.9430168 | BH111: 68.05698322 | BI111: 68.05698322 | BJ111: 0 | BK111: 0 | BM111: -8.581668142 | BN111: -172.2640071 | BQ111: 29.43924023 | BT111: 1023.293 | BU111: 14.7437 | BV111: -261.1239
A112: 39000 | B112: 39 | C112: 1.003069678 | D112: 0.07825402577 | F112: 0.02410251256 | G112: 0.05698849768 | H112: -3.084604152 | J112: 15 | M112: 0.05790476164 | N112: -1.570796325 | O112: 9.353040609 | P112: 1.46367447 | Q112: 7.867976009 | R112: 1.443354141 | S112: 0.9963837646 | T112: -0.08506958363 | U112: 0.9881734853 | V112: -0.1539473908 | X112: 3.645492868 | Y112: -109.3853675 | Z112: 70.61463247 | AC112: 1 | AD112: 9.299428403 | AE112: -0.0001276111895 | AF112: 0.0008223684248 | AG112: 10857.9593 | AH112: -2900.886062 | AJ112: 21000 | AK112: 1790.783209 | AL112: 1 | AM112: 7.804168532 | AN112: 564.9874438 | AO112: -2618.474021 | AQ112: 1.643385374 | AR112: -128.1840592 | AT112: -354003.5391 | AU112: -1396584.57 | AV112: -1.819045764 | AW112: -323660.511 | AX112: -89762.46804 | AY112: -2.87105668 | BA112: 4.289522025 | BB112: 12.64817804 | BC112: 1.052010916 | BD112: -119.7242144 | BF112: 3.837871625 | BG112: -111.9753886 | BH112: 68.02461137 | BI112: 68.02461137 | BJ112: 0 | BK112: 0 | BM112: -8.810306417 | BN112: -172.2511742 | BQ112: 29.55013884 | BT112: 1047.129 | BU112: 14.5866 | BV112: -260.4077
A113: 39500 | B113: 39.5 | C113: 1.003148768 | D113: 0.07925311316 | F113: 0.02348276477 | G113: 0.0562341874 | H113: -3.085358463 | J113: 15 | M113: 0.05717178997 | N113: -1.570796325 | O113: 9.471589231 | P113: 1.465020287 | Q113: 7.96722819 | R113: 1.444950248 | S113: 0.9962909648 | T113: -0.08615486422 | U113: 0.9878738264 | V113: -0.1558894509 | X113: 3.52410805 | Y113: -109.3762368 | Z113: 70.62376315 | AC113: 1 | AD113: 9.418651844 | AE113: -0.0001309042462 | AF113: 0.0008329116097 | AG113: 10851.37505 | AH113: -2906.05995 | AJ113: 21000 | AK113: 1813.741968 | AL113: 1 | AM113: 7.904221975 | AN113: 556.6799343 | AO113: -2586.379802 | AQ113: 1.602050625 | AR113: -126.5619994 | AT113: -350412.3053 | AU113: -1378027.377 | AV113: -1.819804266 | AW113: -315406.3724 | AX113: -87511.35725 | AY113: -2.870944654 | BA113: 4.343990792 | BB113: 12.75777792 | BC113: 1.051140388 | BD113: -119.774092 | BF113: 3.721894541 | BG113: -112.0112415 | BH113: 67.98875849 | BI113: 67.98875849 | BJ113: 0 | BK113: 0 | BM113: -9.03588338 | BN113: -172.2371495 | BQ113: 29.65973872 | BT113: 1071.519 | BU113: 14.3581 | BV113: -260.5301
A114: 40000 | B114: 40 | C114: 1.003228859 | D114: 0.08025204202 | F114: 0.02288677938 | G114: 0.05549998115 | H114: -3.086092669 | J114: 15 | M114: 0.0564571426 | N114: -1.570796325 | O114: 9.590154585 | P114: 1.466332829 | Q114: 8.066500168 | R114: 1.446507073 | S114: 0.9961970092 | T114: -0.08723994139 | U114: 0.987570628 | V114: -0.1578303263 | X114: 3.40438012 | Y114: -109.370041 | Z114: 70.62995897 | AC114: 1 | AD114: 9.537875285 | AE114: -0.0001342392526 | AF114: 0.0008434547947 | AG114: 10844.71505 | AH114: -2911.580395 | AJ114: 21000 | AK114: 1836.700727 | AL114: 1 | AM114: 8.004275417 | AN114: 548.6756211 | AO114: -2555.050059 | AQ114: 1.562255898 | AR114: -124.9804718 | AT114: -346948.4714 | AU114: -1359926.238 | AV114: -1.820590801 | AW114: -307453.0502 | AX114: -85358.58622 | AY114: -2.870781805 | BA114: 4.398508502 | BB114: 12.86610871 | BC114: 1.050191003 | BD114: -119.8284878 | BF114: 3.607627892 | BG114: -112.0504698 | BH114: 67.94953025 | BI114: 67.94953025 | BJ114: 0 | BK114: 0 | BM114: -9.258480822 | BN114: -172.221982 | BQ114: 29.76806951 | BT114: 1096.478 | BU114: 14.1501 | BV114: -260.5471
A115: 40500 | B115: 40.5 | C115: 1.003309951 | D115: 0.08125081041 | F115: 0.02231334906 | G115: 0.05478507187 | H115: -3.086807578 | J115: 15 | M115: 0.05576014084 | N115: -1.570796325 | O115: 9.708736056 | P115: 1.467613311 | Q115: 8.165791221 | R115: 1.448026042 | S115: 0.9961018989 | T115: -0.08832481265 | U115: 0.9872638999 | V115: -0.1597700033 | X115: 3.286259832 | Y115: -109.3666743 | Z115: 70.63332575 | AC115: 1 | AD115: 9.657098726 | AE115: -0.0001376162088 | AF115: 0.0008539979796 | AG115: 10837.97961 | AH115: -2917.43274 | AJ115: 21000 | AK115: 1859.659486 | AL115: 1 | AM115: 8.10432886 | AN115: 540.9600017 | AO115: -2524.458268 | AQ115: 1.523925632 | AR115: -123.4379762 | AT115: -343605.7183 | AU115: -1342264.22 | AV115: -1.821404294 | AW115: -299786.2032 | AX115: -83298.54592 | AY115: -2.870569623 | BA115: 4.453074423 | BB115: 12.97319907 | BC115: 1.049165329 | BD115: -119.8872546 | BF115: 3.495021832 | BG115: -112.0929726 | BH115: 67.90702736 | BI115: 67.90702736 | BJ115: 0 | BK115: 0 | BM115: -9.478177236 | BN115: -172.2057181 | BQ115: 29.87515987 | BT115: 1122.018 | BU115: 13.9679 | BV115: -259.931
A116: 41000 | B116: 41 | C116: 1.003392044 | D116: 0.08224941636 | F116: 0.02176134269 | G116: 0.05408869573 | H116: -3.087503954 | J116: 15 | M116: 0.05508013912 | N116: -1.570796325 | O116: 9.827333063 | P116: 1.468862889 | Q116: 8.265100663 | R116: 1.449508511 | S116: 0.9960056348 | T116: -0.08940947549 | U116: 0.9869536526 | V116: -0.1617084685 | X116: 3.169700109 | Y116: -109.3660354 | Z116: 70.63396456 | AC116: 1 | AD116: 9.776322168 | AE116: -0.0001410351148 | AF116: 0.0008645411645 | AG116: 10831.16902 | AH116: -2923.603028 | AJ116: 21000 | AK116: 1882.618245 | AL116: 1 | AM116: 8.204382303 | AN116: 533.5194263 | AO116: -2494.579094 | AQ116: 1.486988848 | AR116: -121.9330855 | AT116: -340378.1104 | AU116: -1325025.223 | AV116: -1.822243715 | AW116: -292392.3301 | AX116: -81326.01494 | AY116: -2.870309521 | BA116: 4.507687842 | BB116: 13.07907667 | BC116: 1.048065805 | BD116: -119.9502526 | BF116: 3.384028676 | BG116: -112.1386542 | BH116: 67.86134579 | BI116: 67.86134579 | BJ116: 0 | BK116: 0 | BM116: -9.695047993 | BN116: -172.1884016 | BQ116: 29.98103747 | BT116: 1148.154 | BU116: 13.7508 | BV116: -259.948
A117: 41500 | B117: 41.5 | C117: 1.003475137 | D117: 0.08324785793 | F117: 0.0212296996 | G117: 0.05341012925 | H117: -3.088182521 | J117: 15 | M117: 0.05441652299 | N117: -1.570796325 | O117: 9.945945048 | P117: 1.470082665 | Q117: 8.364427838 | R117: 1.450955776 | S117: 0.995908218 | T117: -0.09049392744 | U117: 0.9866398962 | V117: -0.1636457085 | X117: 3.054655922 | Y117: -109.368028 | Z117: 70.63197199 | AC117: 1 | AD117: 9.895545609 | AE117: -0.0001444959705 | AF117: 0.0008750843495 | AG117: 10824.28358 | AH117: -2930.077954 | AJ117: 21000 | AK117: 1905.577004 | AL117: 1 | AM117: 8.304435746 | AN117: 526.3410383 | AO117: -2465.388328 | AQ117: 1.45137881 | AR117: -120.4644412 | AT117: -337260.0677 | AU117: -1308193.926 | AV117: -1.823108087 | AW117: -285258.7114 | AX117: -79436.12839 | AY117: -2.870002843 | BA117: 4.56234806 | BB117: 13.18376829 | BC117: 1.046894756 | BD117: -120.0173488 | BF117: 3.274602778 | BG117: -112.1874229 | BH117: 67.81257707 | BI117: 67.81257707 | BJ117: 0 | BK117: 0 | BM117: -9.909165509 | BN117: -172.1700741 | BQ117: 30.08572909 | BT117: 1174.898 | BU117: 13.6038 | BV117: -260.1987
A118: 42000 | B118: 42 | C118: 1.00355923 | D118: 0.08424613316 | F118: 0.02071742433 | G118: 0.05274868671 | H118: -3.088843963 | J118: 15 | M118: 0.05376870724 | N118: -1.570796325 | O118: 10.06457148 | P118: 1.471273689 | Q118: 8.463772121 | R118: 1.452369068 | S118: 0.9958096495 | T118: -0.091578166 | U118: 0.9863226412 | V118: -0.16558171 | X118: 2.941084167 | Y118: -109.3725596 | Z118: 70.62744039 | AC118: 1 | AD118: 10.01476905 | AE118: -0.000147998776 | AF118: 0.0008856275344 | AG118: 10817.32358 | AH118: -2936.844834 | AJ118: 21000 | AK118: 1928.535763 | AL118: 1 | AM118: 8.404489188 | AN118: 519.4127201 | AO118: -2436.862827 | AQ118: 1.417032733 | AR118: -119.0307496 | AT118: -334246.3405 | AU118: -1291755.739 | AV118: -1.823996475 | AW118: -278373.356 | AX118: -77624.34955 | AY118: -2.869650866 | BA118: 4.617054387 | BB118: 13.28729981 | BC118: 1.045654391 | BD118: -120.0884165 | BF118: 3.166700408 | BG118: -112.2391915 | BH118: 67.76080849 | BI118: 67.76080849 | BJ118: 0 | BK118: 0 | BM118: -10.1205994 | BN118: -172.150775 | BQ118: 30.18926061 | BT118: 1202.264 | BU118: 13.4128 | BV118: -259.341
A119: 42500 | B119: 42.5 | C119: 1.003644324 | D119: 0.08524424011 | F119: 0.02022358186 | G119: 0.05210371758 | H119: -3.089488932 | J119: 15 | M119: 0.05313613421 | N119: -1.570796325 | O119: 10.18321186 | P119: 1.472436962 | Q119: 8.563132917 | R119: 1.453749565 | S119: 0.9957099304 | T119: -0.09266218868 | U119: 0.9860018982 | V119: -0.1675164595 | X119: 2.828943561 | Y119: -109.3795419 | Z119: 70.62045809 | AC119: 1 | AD119: 10.13399249 | AE119: -0.0001515435313 | AF119: 0.0008961707193 | AG119: 10810.28933 | AH119: -2943.891563 | AJ119: 21000 | AK119: 1951.494522 | AL119: 1 | AM119: 8.504542631 | AN119: 512.7230428 | AO119: -2408.980453 | AQ119: 1.383891503 | AR119: -117.6307777 | AT119: -331331.9866 | AU119: -1275696.768 | AV119: -1.824907988 | AW119: -271724.952 | AX119: -75886.44407 | AY119: -2.869254805 | BA119: 4.671806145 | BB119: 13.38969627 | BC119: 1.044346817 | BD119: -120.1633349 | BF119: 3.060279649 | BG119: -112.2938766 | BH119: 67.70612337 | BI119: 67.70612337 | BJ119: 0 | BK119: 0 | BM119: -10.32941662 | BN119: -172.1305417 | BQ119: 30.29165707 | BT119: 1230.269 | BU119: 13.1837 | BV119: -259.551
A120: 43000 | B120: 43 | C120: 1.003730416 | D120: 0.08624217683 | F120: 0.01974729323 | G120: 0.05147460435 | H120: -3.090118046 | J120: 15 | M120: 0.05251827219 | N120: -1.570796325 | O120: 10.3018657 | P120: 1.47357344 | Q120: 8.662509659 | R120: 1.45509839 | S120: 0.9956090616 | T120: -0.09374599301 | U120: 0.9856776776 | V120: -0.1694499439 | X120: 2.718194534 | Y120: -109.3888904 | Z120: 70.61110962 | AC120: 1 | AD120: 10.25321593 | AE120: -0.0001551302363 | AF120: 0.0009067139043 | AG120: 10803.18115 | AH120: -2951.206585 | AJ120: 21000 | AK120: 1974.453281 | AL120: 1 | AM120: 8.604596074 | AN120: 506.2612201 | AO120: -2381.720025 | AQ120: 1.351899419 | AR120: -116.26335 | AT120: -328512.3498 | AU120: -1260003.765 | AV120: -1.825841774 | AW120: -265302.8214 | AX120: -74218.45654 | AY120: -2.868815818 | BA120: 4.726602662 | BB120: 13.49098191 | BC120: 1.042974043 | BD120: -120.2419891 | BF120: 2.955300288 | BG120: -112.3513988 | BH120: 67.64860122 | BI120: 67.64860122 | BJ120: 0 | BK120: 0 | BM120: -10.53568162 | BN120: -172.1094097 | BQ120: 30.39294271 | BT120: 1258.925 | BU120: 13.0792 | BV120: -259.272
A121: 43500 | B121: 43.5 | C121: 1.003817509 | D121: 0.08723994139 | F121: 0.01928773157 | G121: 0.05086076041 | H121: -3.09073189 | J121: 15 | M121: 0.05191461388 | N121: -1.570796325 | O121: 10.42053255 | P121: 1.474684036 | Q121: 8.761901803 | R121: 1.456416617 | S121: 0.9955070442 | T121: -0.0948295765 | U121: 0.9853499902 | V121: -0.1713821499 | X121: 2.608799141 | Y121: -109.4005241 | Z121: 70.59947589 | AC121: 1 | AD121: 10.37243937 | AE121: -0.0001587588911 | AF121: 0.0009172570892 | AG121: 10795.99933 | AH121: -2958.778858 | AJ121: 21000 | AK121: 1997.41204 | AL121: 1 | AM121: 8.704649516 | AN121: 500.0170657 | AO121: -2355.061269 | AQ121: 1.321003963 | AR121: -114.9273448 | AT121: -325783.04 | AU121: -1244664.096 | AV121: -1.826797021 | AW121: -259096.8779 | AX121: -72616.68906 | AY121: -2.868335003 | BA121: 4.781443274 | BB121: 13.59118015 | BC121: 1.041537982 | BD121: -120.3242694 | BF121: 2.85172373 | BG121: -112.411682 | BH121: 67.58831802 | BI121: 67.58831802 | BJ121: 0 | BK121: 0 | BM121: -10.73945642 | BN121: -172.0874126 | BQ121: 30.49314095 | BT121: 1288.25 | BU121: 12.807 | BV121: -258.861
A122: 44000 | B122: 44 | C122: 1.0039056 | D122: 0.08823753183 | F122: 0.01884411836 | G122: 0.0502616281 | H122: -3.091331022 | J122: 15 | M122: 0.05132467509 | N122: -1.570796325 | O122: 10.53921195 | P122: 1.47576962 | Q122: 8.861308831 | R122: 1.45770527 | S122: 0.9954038793 | T122: -0.09591293667 | U122: 0.9850188468 | V122: -0.1733130645 | X122: 2.50072097 | Y122: -109.4143656 | Z122: 70.58563443 | AC122: 1 | AD122: 10.49166281 | AE122: -0.0001624294957 | AF122: 0.0009278002741 | AG122: 10788.7442 | AH122: -2966.597829 | AJ122: 21000 | AK122: 2020.3708 | AL122: 1 | AM122: 8.804702959 | AN122: 493.9809536 | AO122: -2328.984764 | AQ122: 1.291155584 | AR122: -113.6216914 | AT122: -323139.9158 | AU122: -1229665.703 | AV122: -1.82777295 | AW122: -253097.5885 | AX122: -71077.68167 | AY122: -2.867813411 | BA122: 4.836327318 | BB122: 13.69031372 | BC122: 1.04004046 | BD122: -120.410071 | BF122: 2.749512901 | BG122: -112.4746537 | BH122: 67.52534631 | BI122: 67.52534631 | BJ122: 0 | BK122: 0 | BM122: -10.94080081 | BN122: -172.0645827 | BQ122: 30.59227452 | BT122: 1318.257 | BU122: 12.6826 | BV122: -258.683
A123: 44500 | B123: 44.5 | C123: 1.003994691 | D123: 0.08923494622 | F123: 0.01841572009 | G123: 0.04967667697 | H123: -3.091915973 | J123: 15 | M123: 0.05074799335 | N123: -1.570796325 | O123: 10.6579035 | P123: 1.476831027 | Q123: 8.960730248 | R123: 1.458965329 | S123: 0.9952995681 | T123: -0.09699607107 | U123: 0.9846842583 | V123: -0.1752426745 | X123: 2.393925059 | Y123: -109.4303405 | Z123: 70.56965948 | AC123: 1 | AD123: 10.61088626 | AE123: -0.00016614205 | AF123: 0.0009383434591 | AG123: 10781.41606 | AH123: -2974.653406 | AJ123: 21000 | AK123: 2043.329559 | AL123: 1 | AM123: 8.904756402 | AN123: 488.1437819 | AO123: -2303.471908 | AQ123: 1.262307498 | AR123: -112.3453673 | AT123: -320579.0672 | AU123: -1214997.075 | AV123: -1.828768819 | AW123: -247295.9376 | AX123: -69598.19456 | AY123: -2.867252039 | BA123: 4.891254135 | BB123: 13.78840456 | BC123: 1.038483221 | BD123: -120.4992943 | BF123: 2.648632172 | BG123: -112.5402445 | BH123: 67.45975545 | BI123: 67.45975545 | BJ123: 0 | BK123: 0 | BM123: -11.13977239 | BN123: -172.0409503 | BQ123: 30.69036536 | BT123: 1348.963 | BU123: 12.4759 | BV123: -258.797
A124: 45000 | B124: 45 | C124: 1.00408478 | D124: 0.09023218262 | F124: 0.01800184518 | G124: 0.04910540207 | H124: -3.092487248 | J124: 15 | M124: 0.05018412676 | N124: -1.570796325 | O124: 10.7766068 | P124: 1.477869052 | Q124: 9.06016558 | R124: 1.460197731 | S124: 0.9951941115 | T124: -0.0980789772 | U124: 0.9843462357 | V124: -0.1771709668 | X124: 2.288377824 | Y124: -109.4483778 | Z124: 70.55162224 | AC124: 1 | AD124: 10.7301097 | AE124: -0.0001698965541 | AF124: 0.000948886644 | AG124: 10774.01524 | AH124: -2982.935929 | AJ124: 21000 | AK124: 2066.288318 | AL124: 1 | AM124: 9.004809845 | AN124: 482.4969389 | AO124: -2278.504867 | AQ124: 1.234415504 | AR124: -111.0973954 | AT124: -318096.8008 | AU124: -1200647.213 | AV124: -1.829783914 | AW124: -241683.3934 | AX124: -68175.19162 | AY124: -2.866651841 | BA124: 4.94622307 | BB124: 13.88547397 | BC124: 1.036867927 | BD124: -120.5918438 | BF124: 2.54904728 | BG124: -112.6083883 | BH124: 67.39161175 | BI124: 67.39161175 | BJ124: 0 | BK124: 0 | BM124: -11.33642669 | BN124: -172.0165445 | BQ124: 30.78743477 | BT124: 1380.384 | BU124: 12.2584 | BV124: -258.41
A125: 45500 | B125: 45.5 | C125: 1.004175867 | D125: 0.0912292391 | F125: 0.01760184108 | G125: 0.04854732245 | H125: -3.093045328 | J125: 15 | M125: 0.04963265283 | N125: -1.570796325 | O125: 10.89532145 | P125: 1.478884458 | Q125: 9.159614374 | R125: 1.461403375 | S125: 0.9950875107 | T125: -0.09916165261 | U125: 0.9840047899 | V125: -0.1790979285 | X125: 2.184046981 | Y125: -109.468409 | Z125: 70.53159099 | AC125: 1 | AD125: 10.84933314 | AE125: -0.000173693008 | AF125: 0.0009594298289 | AG125: 10766.54205 | AH125: -2991.43615 | AJ125: 21000 | AK125: 2089.247077 | AL125: 1 | AM125: 9.104863287 | AN125: 477.0322721 | AO125: -2254.066544 | AQ125: 1.207437817 | AR125: -109.8768413 | AT125: -315689.6252 | AU125: -1186605.605 | AV125: -1.830817555 | AW125: -236251.878 | AX125: -66805.82561 | AY125: -2.866013725 | BA125: 5.001233462 | BB125: 13.98154257 | BC125: 1.03519617 | BD125: -120.6876285 | BF125: 2.450725256 | BG125: -112.6790214 | BH125: 67.32097861 | BI125: 67.32097861 | BJ125: 0 | BK125: 0 | BM125: -11.53081731 | BN125: -171.9913929 | BQ125: 30.88350337 | BT125: 1412.538 | BU125: 12.0929 | BV125: -258.136
A126: 46000 | B126: 46 | C126: 1.004267952 | D126: 0.09222611371 | F126: 0.01721509167 | G126: 0.04800197975 | H126: -3.09359067 | J126: 15 | M126: 0.04909316748 | N126: -1.570796325 | O126: 11.01404709 | P126: 1.479877974 | Q126: 9.259076196 | R126: 1.462583117 | S126: 0.9949797668 | T126: -0.1002440948 | U126: 0.9836599323 | V126: -0.1810235468 | X126: 2.080901485 | Y126: -109.4903688 | Z126: 70.50963123 | AC126: 1 | AD126: 10.96855658 | AE126: -0.0001775314116 | AF126: 0.0009699730139 | AG126: 10758.99681 | AH126: -3000.14521 | AJ126: 21000 | AK126: 2112.205836 | AL126: 1 | AM126: 9.20491673 | AN126: 471.7420592 | AO126: -2230.140537 | AQ126: 1.181334908 | AR126: -108.6828116 | AT126: -313354.2381 | AU126: -1172862.2 | AV126: -1.831869089 | AW126: -230993.7381 | AX126: -65487.42435 | AY126: -2.865338556 | BA126: 5.056284653 | BB126: 14.07663031 | BC126: 1.033469467 | BD126: -120.7865612 | BF126: 2.353634359 | BG126: -112.7520833 | BH126: 67.24791671 | BI126: 67.24791671 | BJ126: 0 | BK126: 0 | BM126: -11.72299595 | BN126: -171.9655221 | BQ126: 30.97859111 | BT126: 1445.44 | BU126: 11.9189 | BV126: -257.929
A127: 46500 | B127: 46.5 | C127: 1.004361036 | D127: 0.09322280454 | F127: 0.01684101482 | G127: 0.04746893684 | H127: -3.094123713 | J127: 15 | M127: 0.04856528396 | N127: -1.570796325 | O127: 11.13278338 | P127: 1.480850298 | Q127: 9.358550631 | R127: 1.463737782 | S127: 0.994870881 | T127: -0.1013263014 | U127: 0.983311674 | V127: -0.1829478086 | X127: 1.978911461 | Y127: -109.5141942 | Z127: 70.48580583 | AC127: 1 | AD127: 11.08778002 | AE127: -0.000181411765 | AF127: 0.0009805161988 | AG127: 10751.37986 | AH127: -3009.054618 | AJ127: 21000 | AK127: 2135.164595 | AL127: 1 | AM127: 9.304970173 | AN127: 466.6189811 | AO127: -2206.711106 | AQ127: 1.156069364 | AR127: -107.5144509 | AT127: -311087.514 | AU127: -1159407.377 | AV127: -1.832937891 | AW127: -225901.7191 | AX127: -64217.47818 | AY127: -2.864627163 | BA127: 5.111375979 | BB127: 14.17075655 | BC127: 1.031689272 | BD127: -120.8885589 | BF127: 2.257744011 | BG127: -112.8275159 | BH127: 67.17248413 | BI127: 67.17248413 | BJ127: 0 | BK127: 0 | BM127: -11.91301254 | BN127: -171.938957 | BQ127: 31.07271735 | BT127: 1479.108 | BU127: 11.7147 | BV127: -257.745
A128: 47000 | B128: 47 | C128: 1.004455117 | D128: 0.09421930966 | F128: 0.01647906017 | G128: 0.0469477766 | H128: -3.094644873 | J128: 15 | M128: 0.048048632 | N128: -1.570796325 | O128: 11.25152997 | P128: 1.481802099 | Q128: 9.458037281 | R128: 1.464868157 | S128: 0.9947608543 | T128: -0.1024082699 | U128: 0.9829600265 | V128: -0.1848707013 | X128: 1.87804815 | Y128: -109.5398249 | Z128: 70.46017514 | AC128: 1 | AD128: 11.20700346 | AE128: -0.0001853340682 | AF128: 0.0009910593837 | AG128: 10743.69151 | AH128: -3018.156232 | AJ128: 21000 | AK128: 2158.123354 | AL128: 1 | AM128: 9.405023615 | AN128: 461.656097 | AO128: -2183.76314 | AQ128: 1.131605749 | AR128: -106.3709404 | AT128: -308886.4934 | AU128: -1146231.932 | AV128: -1.834023359 | AW128: -220968.9404 | AX128: -62993.62839 | AY128: -2.863880333 | BA128: 5.166506774 | BB128: 14.26394006 | BC128: 1.029856974 | BD128: -120.9935418 | BF128: 2.163024742 | BG128: -112.9052636 | BH128: 67.09473644 | BI128: 67.09473644 | BJ128: 0 | BK128: 0 | BM128: -12.10091532 | BN128: -171.9117217 | BQ128: 31.16590086 | BT128: 1513.561 | BU128: 11.5252 | BV128: -257.61
A129: 47500 | B129: 47.5 | C129: 1.004550195 | D129: 0.09521562713 | F129: 0.01612870706 | G129: 0.0464381008 | H129: -3.095154549 | J129: 15 | M129: 0.04754285693 | N129: -1.570796325 | O129: 11.37028653 | P129: 1.48273402 | Q129: 9.557535764 | R129: 1.465974998 | S129: 0.994649688 | T129: -0.1034899978 | U129: 0.982605001 | V129: -0.1867922121 | X129: 1.778283853 | Y129: -109.5672028 | Z129: 70.43279715 | AC129: 1 | AD129: 11.3262269 | AE129: -0.0001892983211 | AF129: 0.001001602569 | AG129: 10735.9321 | AH129: -3027.442238 | AJ129: 21000 | AK129: 2181.082113 | AL129: 1 | AM129: 9.505077058 | AN129: 456.8468215 | AO129: -2161.282129 | AQ129: 1.107910481 | AR129: -105.2514957 | AT129: -306748.3719 | AU129: -1133327.046 | AV129: -1.835124919 | AW129: -216188.8724 | AX129: -61813.65663 | AY129: -2.863098821 | BA129: 5.221676366 | BB129: 14.35619902 | BC129: 1.027973902 | BD129: -121.1014339 | BF129: 2.069448129 | BG129: -112.9852731 | BH129: 67.0147269 | BI129: 67.0147269 | BJ129: 0 | BK129: 0 | BM129: -12.28675089 | BN129: -171.8838392 | BQ129: 31.25815982 | BT129: 1548.817 | BU129: 11.3354 | BV129: -257.471
A130: 48000 | B130: 48 | C130: 1.00464627 | D130: 0.09621175503 | F130: 0.0157894626 | G130: 0.04593952902 | H130: -3.095653121 | J130: 15 | M130: 0.04704761883 | N130: -1.570796325 | O130: 11.48905277 | P130: 1.483646673 | Q130: 9.657045715 | R130: 1.467059029 | S130: 0.9945373831 | T130: -0.1045714827 | U130: 0.9822466092 | V130: -0.1887123282 | X130: 1.679591877 | Y130: -109.5962724 | Z130: 70.40372759 | AC130: 1 | AD130: 11.44545034 | AE130: -0.0001933045238 | AF130: 0.001012145754 | AG130: 10728.10196 | AH130: -3036.905139 | AJ130: 21000 | AK130: 2204.040872 | AL130: 1 | AM130: 9.605130501 | AN130: 452.1849029 | AO130: -2139.25413 | AQ130: 1.08495172 | AR130: -104.1553651 | AT130: -304670.4908 | AU130: -1120684.272 | AV130: -1.836242018 | AW130: -211555.3158 | AX130: -60675.47513 | AY130: -2.862283348 | BA130: 5.276884074 | BB130: 14.44755107 | BC130: 1.02604133 | BD130: -121.2121621 | BF130: 1.97698675 | BG130: -113.0674935 | BH130: 66.93250651 | BI130: 66.93250651 | BJ130: 0 | BK130: 0 | BM130: -12.47056432 | BN130: -171.8553314 | BQ130: 31.34951187 | BT130: 1584.893 | BU130: 11.1604 | BV130: -256.942
A131: 48500 | B131: 48.5 | C131: 1.004743341 | D131: 0.09720769143 | F131: 0.01546085993 | G131: 0.04545169762 | H131: -3.096140952 | J131: 15 | M131: 0.04656259183 | N131: -1.570796325 | O131: 11.60782838 | P131: 1.484540651 | Q131: 9.756566782 | R131: 1.468120947 | S131: 0.9944239409 | T131: -0.1056527222 | U131: 0.9818848626 | V131: -0.1906310372 | X131: 1.581946489 | Y131: -109.62698 | Z131: 70.37302 | AC131: 1 | AD131: 11.56467378 | AE131: -0.0001973526763 | AF131: 0.001022688939 | AG131: 10720.20142 | AH131: -3046.537733 | AJ131: 21000 | AK131: 2226.999631 | AL131: 1 | AM131: 9.705183944 | AN131: 447.6644031 | AO131: -2117.665746 | AQ131: 1.062699256 | AR131: -103.0818278 | AT131: -302650.328 | AU131: -1108295.51 | AV131: -1.837374127 | AW131: -207062.3814 | AX131: -59577.11768 | AY131: -2.861434602 | BA131: 5.332129213 | BB131: 14.5380133 | BC131: 1.024060475 | BD131: -121.3256567 | BF131: 1.885614132 | BG131: -113.1518758 | BH131: 66.84812417 | BI131: 66.84812417 | BJ131: 0 | BK131: 0 | BM131: -12.65239917 | BN131: -171.8262191 | BQ131: 31.4399741 | BT131: 1621.81 | BU131: 10.9787 | BV131: -256.753
A132: 49000 | B132: 49 | C132: 1.00484141 | D132: 0.09820343443 | F132: 0.01514245656 | G132: 0.0449742589 | H132: -3.096618391 | J132: 15 | M132: 0.04608746335 | N132: -1.570796325 | O132: 11.72661308 | P132: 1.485416518 | Q132: 9.85609863 | R132: 1.469161418 | S132: 0.9943093626 | T132: -0.1067337137 | U132: 0.981519773 | V132: -0.1925483263 | X132: 1.485322866 | Y132: -109.6592741 | Z132: 70.34072591 | AC132: 1 | AD132: 11.68389722 | AE132: -0.0002014427785 | AF132: 0.001033232123 | AG132: 10712.23082 | AH132: -3056.3331 | AJ132: 21000 | AK132: 2249.95839 | AL132: 1 | AM132: 9.805237386 | AN132: 443.2796793 | AO132: -2096.504094 | AQ132: 1.041124414 | AR132: -102.0301926 | AT132: -300685.4899 | AU132: -1096152.996 | AV132: -1.838520735 | AW132: -202704.4719 | AX132: -58516.73138 | AY132: -2.860553241 | BA132: 5.387411088 | BB132: 14.62760232 | BC132: 1.022032506 | BD132: -121.4418508 | BF132: 1.795304706 | BG132: -113.2383733 | BH132: 66.76162674 | BI132: 66.76162674 | BJ132: 0 | BK132: 0 | BM132: -12.83229761 | BN132: -171.7965224 | BQ132: 31.52956312 | BT132: 1659.587 | BU132: 10.7578 | BV132: -256.857
A133: 49500 | B133: 49.5 | C133: 1.004940474 | D133: 0.0991989821 | F133: 0.01483383286 | G133: 0.04450688012 | H133: -3.09708577 | J133: 15 | M133: 0.04562193341 | N133: -1.570796325 | O133: 11.8454066 | P133: 1.486274818 | Q133: 9.955640934 | R133: 1.470181084 | S133: 0.9941936493 | T133: -0.1078144549 | U133: 0.9811513521 | V133: -0.1944641831 | X133: 1.389697059 | Y133: -109.6931051 | Z133: 70.30689485 | AC133: 1 | AD133: 11.80312067 | AE133: -0.0002055748305 | AF133: 0.001043775308 | AG133: 10704.19049 | AH133: -3066.284592 | AJ133: 21000 | AK133: 2272.91715 | AL133: 1 | AM133: 9.905290829 | AN133: 439.0253662 | AO133: -2075.756784 | AQ133: 1.020199959 | AR133: -100.999796 | AT133: -298773.7034 | AU133: -1084249.279 | AV133: -1.839681352 | AW133: -198476.2646 | AX133: -57492.56895 | AY133: -2.859639894 | BA133: 5.442728993 | BB133: 14.7163342 | BC133: 1.019958541 | BD133: -121.5606802 | BF133: 1.706033766 | BG133: -113.3269408 | BH133: 66.67305917 | BI133: 66.67305917 | BJ133: 0 | BK133: 0 | BM133: -13.01030044 | BN133: -171.7662606 | BQ133: 31.61829501 | BT133: 1698.244 | BU133: 10.5805 | BV133: -256.313
A134: 50000 | B134: 50 | C134: 1.005040534 | D134: 0.1001943325 | F134: 0.01453459065 | G134: 0.04404924278 | H134: -3.097543407 | J134: 15 | M134: 0.04516571408 | N134: -1.570796325 | O134: 11.96420867 | P134: 1.487116073 | Q134: 10.05519338 | R134: 1.47118056 | S134: 0.9940768023 | T134: -0.1088949434 | U134: 0.9807796118 | V134: -0.1963785952 | X134: 1.295045946 | Y134: -109.7284255 | Z134: 70.27157452 | AC134: 1 | AD134: 11.92234411 | AE134: -0.0002097488323 | AF134: 0.001054318493 | AG134: 10696.08078 | AH134: -3076.385812 | AJ134: 21000 | AK134: 2295.875909 | AL134: 1 | AM134: 10.00534427 | AN134: 434.89636 | AO134: -2055.411896 | AQ134: 0.99990001 | AR134: -99.990001 | AT134: -296912.8091 | AU134: -1072577.206 | AV134: -1.840855509 | AW134: -194372.6959 | AX134: -56502.98173 | AY134: -2.858695163 | BA134: 5.498082213 | BB134: 14.80422459 | BC134: 1.017839654 | BD134: -121.6820835 | BF134: 1.617777423 | BG134: -113.4175354 | BH134: 66.58246456 | BI134: 66.58246456 | BJ134: 0 | BK134: 0 | BM134: -13.18644717 | BN134: -171.7354519 | BQ134: 31.70618539 | BT134: 1737.801 | BU134: 10.4643 | BV134: -256.379
A135: 50500 | B135: 50.5 | C135: 1.00514159 | D135: 0.1011894838 | F135: 0.01424435191 | G135: 0.04360104182 | H135: -3.097991608 | J135: 15 | M135: 0.04471852879 | N135: -1.570796325 | O135: 12.08301904 | P135: 1.487940785 | Q135: 10.15475568 | R135: 1.472160438 | S135: 0.9939588227 | T135: -0.1099751766 | U135: 0.9804045639 | V135: -0.1982915502 | X135: 1.201347196 | Y135: -109.7651892 | Z135: 70.23481082 | AC135: 1 | AD135: 12.04156755 | AE135: -0.0002139647838 | AF135: 0.001064861678 | AG135: 10687.90203 | AH135: -3086.630606 | AJ135: 21000 | AK135: 2318.834668 | AL135: 1 | AM135: 10.10539771 | AN135: 430.8878036 | AO135: -2035.457958 | AQ135: 0.9801999608 | AR135: -99.00019604 | AT135: -295100.754 | AU135: -1061129.912 | AV135: -1.842042752 | AW135: -190388.9459 | AX135: -55546.41309 | AY135: -2.857719625 | BA135: 5.553470022 | BB135: 14.89128864 | BC135: 1.015676873 | BD135: -121.8060018 | BF135: 1.530512572 | BG135: -113.5101157 | BH135: 66.48988428 | BI135: 66.48988428 | BJ135: 0 | BK135: 0 | BM135: -13.36077607 | BN135: -171.704114 | BQ135: 31.79324944 | BT135: 1778.279 | BU135: 10.2137 | BV135: -256.015
A136: 51000 | B136: 51 | C136: 1.00524364 | D136: 0.102184434 | F136: 0.01396275754 | G136: 0.04316198494 | H136: -3.098430665 | J136: 15 | M136: 0.04428011184 | N136: -1.570796325 | O136: 12.20183746 | P136: 1.488749436 | Q136: 10.25432754 | R136: 1.473121288 | S136: 0.9938397119 | T136: -0.1110551522 | U136: 0.9800262207 | V136: -0.2002030357 | X136: 1.108579235 | Y136: -109.803352 | Z136: 70.19664798 | AC136: 1 | AD136: 12.16079099 | AE136: -0.0002182226851 | AF136: 0.001075404863 | AG136: 10679.65459 | AH136: -3097.013055 | AJ136: 21000 | AK136: 2341.793427 | AL136: 1 | AM136: 10.20545116 | AN136: 426.9950719 | AO136: -2015.883924 | AQ136: 0.9610764056 | AR136: -98.02979337 | AT136: -293335.5858 | AU136: -1049900.799 | AV136: -1.843242646 | AW136: -186520.4247 | AX136: -54621.39246 | AY136: -2.856713832 | BA136: 5.608891681 | BB136: 14.97754106 | BC136: 1.013471186 | BD136: -121.9323783 | BF136: 1.444216856 | BG136: -113.6046419 | BH136: 66.39535805 | BI136: 66.39535805 | BJ136: 0 | BK136: 0 | BM136: -13.5333242 | BN136: -171.6722636 | BQ136: 31.87950186 | BT136: 1819.701 | BU136: 10.0452 | BV136: -255.833
A137: 51500 | B137: 51.5 | C137: =SQRT((A137/Fesr)^2+1) -> 1.005346686 | D137: =ATAN(A137/Fesr) -> 0.1031791812 | F137: =(Ro/(Ro+Rdcr))/SQRT((A137/(Q*Fo))^2+(1-(A137^2/Fo^2))^2) -> 0.01368946622 | G137: =-ATAN(A137*Fo/(Q*(Fo^2-A137^2))) -> 0.04273179189 | H137: =IF(G137>0,G137-Pi,G137) -> -3.098860858 | J137: =Vin/Vramp -> 15 | M137: =1/(2*Pi*_Rfb1*(Cc1ea_u+Cc2ea_u)*A137) -> 0.04385020784 | N137: =-Pi/2 -> -1.570796325 | O137: =SQRT(1+(A137/Fz1_u)^2) -> 12.32066372 | P137: =ATAN2(Fz1_u,A137) -> 1.489542489 | Q137: =SQRT(1+(A137/Fz2_u)^2) -> 10.35390869 | R137: =ATAN2(Fz2_u,A137) -> 1.474063656 | S137: =1/SQRT(1+(A137/Fp1_u)^2) -> 0.9937194709 | T137: =-ATAN2(Fp1_u,A137) -> -0.1121348677 | U137: =1/SQRT(1+(A137/Fp2_u)^2) -> 0.979644594 | V137: =-ATAN2(Fp2_u,A137) -> -0.2021130395 | X137: 1.016721208 | Y137: =(180/Pi)*(D137+H137+N137+P137+R137+T137+V137) -> -109.8428714 | Z137: 70.15712857 | AC137: 1 | AD137: =Rcea1_u*Cc1ea_u*A137*2*Pi -> 12.28001443 | AE137: =-Rcea1_u*Cc1ea_u*Cc2ea_u*(A137*2*Pi)^2 -> -0.0002225225361 | AF137: =(Cc2ea_u+Cc1ea_u)*A137*2*Pi -> 0.001085948048 | AG137: 10671.3388 | AH137: -3107.527454 | AJ137: =_Rfb1 -> 21000 | AK137: =_Rfb1*Rcea2_u*Cc3ea_u*A137*2*Pi -> 2364.752186 | AL137: 1 | AM137: =(_Rfb1+Rcea2_u)*Cc3ea_u*A137*2*Pi -> 10.3055046 | AN137: 423.2137593 | AO137: -1996.679157 | AQ137: =Eadcg/(1+(Eadcg*A137/GBP)^2) -> 0.9425070688 | AR137: =-(A137*Eadcg*Eadcg/GBP)/(1+(Eadcg*A137/GBP)^2) -> -97.07822809 | AT137: -291615.4467 | AU137: -1038883.529 | AV137: -1.844454771 | AW137: -182762.7596 | AX137: -53726.52972 | AY137: -2.855678311 | BA137: =SQRT(AT137^2+AU137^2)/SQRT(AW137^2+AX137^2) -> 5.664346436 | BB137: 15.06299615 | BC137: 1.01122354 | BD137: =BC137*180/Pi-180 -> -122.061159 | BF137: =20*LOG(BA137*J137*F137*C137) -> 1.358868627 | BG137: =(180/Pi)*(D137+H137+BC137) -> -113.701076 | BH137: 66.298924 | BI137: 66.298924 | BJ137: =SUM((BF138<0)*(BF137>0))*A137 -> 0 | BK137: 0 | BM137: -13.70412752 | BN137: =(H137+D137)*180/Pi -> -171.639917 | BQ137: 31.96495695 | BT137: 1862.087 | BU137: 9.87672 | BV137: -255.47
A138: 52000 | B138: =A138/1000 -> 52 | C138: 1.005450726 | D138: 0.1041737236 | F138: 0.01342415339 | G138: 0.04231019389 | H138: -3.099282456 | J138: 15 | M138: 0.04342857123 | N138: -1.570796325 | O138: 12.43949757 | P138: 1.490320391 | Q138: 10.45349885 | R138: 1.474988069 | S138: 0.9935981012 | T138: -0.1132143208 | U138: 0.9792596962 | V138: -0.2040215494 | X138: =20*LOG(C138*J138*O138*Q138*F138*M138*S138*U138) -> 0.9257529517 | Y138: -109.8837063 | Z138: =Y138+180 -> 70.11629365 | AC138: 1 | AD138: 12.39923787 | AE138: -0.000226864337 | AF138: 0.001096491233 | AG138: =AC138*AE138/(AE138^2+AF138^2)+AD138*AF138/(AE138^2+AF138^2) -> 10662.95501 | AH138: =AD138*AE138/(AE138^2+AF138^2)-AC138*AF138/(AE138^2+AF138^2) -> -3118.168312 | AJ138: 21000 | AK138: 2387.710945 | AL138: 1 | AM138: 10.40555804 | AN138: =AJ138*AL138/(AL138^2+AM138^2)+AK138*AM138/(AL138^2+AM138^2) -> 419.5396668 | AO138: =AK138*AL138/(AL138^2+AM138^2)-AJ138*AM138/(AL138^2+AM138^2) -> -1977.833409 | AQ138: 0.9244707405 | AR138: -96.14495701 | AT138: -289938.5684 | AU138: -1028072.006 | AV138: =ATAN2(AT138,AU138) -> -1.845678724 | AW138: =AG138-AH138*AO138/_Rfb2+AG138*AN138/_Rfb2+AN138-AO138*AR138+AQ138*AN138 -> -179111.7825 | AX138: =AH138+AH138*AN138/_Rfb2+AG138*AO138/_Rfb2+AO138+AO138*AQ138+AN138*AR138 -> -52860.51005 | AY138: -2.854613569 | BA138: 5.719833523 | BB138: =20*LOG(BA138) -> 15.14766778 | BC138: =AV138-AY138 -> 1.008934845 | BD138: -122.1922915 | BF138: 1.274446921 | BG138: -113.7993813 | BH138: =IF(BG138>180,BG138-180,BG138+180) -> 66.20061874 | BI138: =IF(BH138>180,BH138-360,BH138) -> 66.20061874 | BJ138: 0 | BK138: =IF(BJ138>0,BI138,0) -> 0 | BM138: =20*LOG(J138*F138*C138) -> -13.87322085 | BN138: -171.6070898 | BQ138: =20*LOG(BA138*7) -> 32.04962858 | BT138: 1905.461 | BU138: 9.71342 | BV138: -255.059
A139: 52500 | B139: 52.5 | C139: 1.005555761 | D139: 0.1051680591 | F139: 0.01316651028 | G139: 0.04189693302 | H139: -3.099695717 | J139: 15 | M139: 0.04301496579 | N139: -1.570796325 | O139: 12.55833881 | P139: 1.49108357 | Q139: 10.55309778 | R139: 1.475895034 | S139: 0.9934756039 | T139: -0.1142935089 | U139: 0.9788715395 | V139: -0.2059285533 | X139: 0.8356549602 | Y139: -109.9258172 | Z139: 70.0741828 | AC139: 1 | AD139: 12.51846131 | AE139: -0.0002312480876 | AF139: 0.001107034418 | AG139: 10654.50357 | AH139: -3128.930336 | AJ139: 21000 | AK139: 2410.669704 | AL139: 1 | AM139: 10.50561149 | AN139: 415.9687908 | AO139: -1959.336802 | AQ139: 0.9069472157 | AR139: -95.22945765 | AT139: -288303.2666 | AU139: -1017460.371 | AV139: -1.846914115 | AW139: -175563.5187 | AX139: -52022.08912 | AY139: =ATAN2(AW139,AX139) -> -2.853520091 | BA139: 5.77535216 | BB139: 15.23156942 | BC139: 1.006605975 | BD139: -122.3257259 | BF139: 1.190931422 | BG139: -113.8995225 | BH139: 66.10047747 | BI139: 66.10047747 | BJ139: 0 | BK139: 0 | BM139: -14.040638 | BN139: -171.5737966 | BQ139: 32.13353022 | BT139: 1949.845 | BU139: 9.52685 | BV139: -254.971
A140: 53000 | B140: 53 | C140: 1.00566179 | D140: 0.106162186 | F140: 0.01291624292 | G140: 0.04149176169 | H140: -3.100100888 | J140: 15 | M140: 0.04260916423 | N140: -1.570796325 | O140: 12.67718722 | P140: 1.49183244 | Q140: 10.65270522 | R140: 1.476785039 | S140: 0.9933519803 | T140: -0.1153724297 | U140: 0.9784801362 | V140: -0.207834039 | X140: 0.7464083587 | Y140: -109.9691658 | Z140: 70.03083418 | AC140: 1 | AD140: 12.63768475 | AE140: -0.0002356737879 | AF140: 0.001117577603 | AG140: 10645.98483 | AH140: -3139.808423 | AJ140: 21000 | AK140: 2433.628463 | AL140: 1 | AM140: 10.60566493 | AN140: 412.4973124 | AO140: -1941.179815 | AQ140: 0.8899172377 | AR140: -94.3312272 | AT140: -286707.9363 | AU140: -1007042.983 | AV140: -1.84816057 | AW140: -172114.1767 | AX140: -51210.08866 | AY140: -2.85239834 | BA140: 5.830901552 | BB140: 15.31471418 | BC140: 1.00423777 | BD140: -122.4614141 | BF140: 1.108302436 | BG140: -114.001466 | BH140: 65.99853398 | BI140: 65.99853398 | BJ140: 0 | BK140: 0 | BM140: -14.20641174 | BN140: -171.540052 | BQ140: 32.21667498 | BT140: 1995.262 | BU140: 9.33494 | BV140: -254.804
A141: 53500 | B141: 53.5 | C141: 1.005768812 | D141: 0.1071561023 | F141: 0.0126730714 | G141: 0.04109444212 | H141: -3.100498208 | J141: 15 | M141: 0.04221094774 | N141: -1.570796325 | O141: 12.79604262 | P141: 1.492567399 | Q141: 10.75232095 | R141: 1.477658553 | S141: 0.9932272318 | T141: -0.1164510808 | U141: 0.9780854988 | V141: -0.2097379947 | X141: 0.6579948755 | Y141: -110.0137154 | Z141: 69.9862846 | AC141: 1 | AD141: 12.75690819 | AE141: -0.000240141438 | AF141: 0.001128120788 | AG141: 10637.39915 | AH141: -3150.797652 | AJ141: 21000 | AK141: 2456.587222 | AL141: 1 | AM141: 10.70571837 | AN141: 409.121587 | AO141: -1923.353268 | AQ141: 0.8733624454 | AR141: -93.44978166 | AT141: -285151.0477 | AU141: -996814.4167 | AV141: -1.849417727 | AW141: -168760.1376 | AX141: -50423.39235 | AY141: -2.851248764 | BA141: 5.886480886 | BB141: 15.39711476 | BC141: 1.001831037 | BD141: -122.5993097 | BF141: 1.026540862 | BG141: -114.1051792 | BH141: 65.89482079 | BI141: 65.89482079 | BJ141: 0 | BK141: 0 | BM141: -14.3705739 | BN141: -171.5058695 | BQ141: 32.29907556 | BT141: 2041.738 | BU141: 9.08847 | BV141: -254.411
A142: 54000 | B142: 54 | C142: 1.005876828 | D142: 0.1081498061 | F142: 0.01243672896 | G142: 0.04070474582 | H142: -3.100887904 | J142: 15 | M142: 0.04182010563 | N142: -1.570796325 | O142: 12.9149048 | P142: 1.49328883 | Q142: 10.85194473 | R142: 1.478516029 | S142: 0.9931013595 | T142: -0.1175294597 | U142: 0.9776876396 | V142: -0.2116404082 | X142: 0.5703968168 | Y142: -110.0594304 | Z142: 69.9405696 | AC142: 1 | AD142: 12.87613164 | AE142: -0.0002446510379 | AF142: 0.001138663973 | AG142: 10628.74689 | AH142: -3161.893276 | AJ142: 21000 | AK142: 2479.545981 | AL142: 1 | AM142: 10.80577181 | AN142: 405.8381353 | AO142: -1905.848302 | AQ142: 0.8572653236 | AR142: -92.58465495 | AT142: -283631.1418 | AU142: -986769.4451 | AV142: -1.850685237 | AW142: -165497.946 | AX142: -49660.94199 | AY142: -2.850071788 | BA142: 5.942089332 | BB142: 15.47878353 | BC142: 0.9993865512 | BD142: -122.7393685 | BF142: 0.9456281707 | BG142: -114.2106309 | BH142: 65.78936915 | BI142: 65.78936915 | BJ142: 0 | BK142: 0 | BM142: -14.53315536 | BN142: -171.4712624 | BQ142: 32.38074433 | BT142: 2089.296 | BU142: 8.96986 | BV142: -254.113
A143: 54500 | B143: 54.5 | C143: 1.005985836 | D143: 0.1091432955 | F143: 0.01220696133 | G143: 0.0403224532 | H143: -3.101270197 | J143: 15 | M143: 0.04143643494 | N143: -1.570796325 | O143: 13.03377357 | P143: 1.493997103 | Q143: 10.95157635 | R143: 1.479357905 | S143: 0.9929743649 | T143: -0.1186075641 | U143: 0.9772865714 | V143: -0.2135412678 | X143: 0.4835970419 | Y143: -110.1062765 | Z143: 69.89372346 | AC143: 1 | AD143: 12.99535508 | AE143: -0.0002492025876 | AF143: 0.001149207158 | AG143: 10620.02841 | AH143: -3173.090713 | AJ143: 21000 | AK143: 2502.50474 | AL143: 1 | AM143: 10.90582526 | AN143: 402.643634 | AO143: -1888.656372 | AQ143: 0.8416091567 | AR143: -91.73539808 | AT143: -282146.8265 | AU143: -976903.0357 | AV143: -1.851962764 | AW143: -162324.3013 | AX143: -48921.73391 | AY143: -2.848867823 | BA143: 5.997726044 | BB143: 15.5597325 | BC143: 0.9969050591 | BD143: -122.8815475 | BF143: 0.8655463742 | BG143: -114.3177909 | BH143: 65.68220912 | BI143: 65.68220912 | BJ143: 0 | BK143: 0 | BM143: -14.69418612 | BN143: -171.4362434 | BQ143: 32.4616933 | BT143: 2137.962 | BU143: 8.68736 | BV143: -254.34
A144: 55000 | B144: 55 | C144: 1.006095838 | D144: 0.1101365687 | F144: 0.01198352601 | G144: 0.03994735308 | H144: -3.101645297 | J144: 15 | M144: 0.04105974007 | N144: -1.570796325 | O144: 13.15264877 | P144: 1.494692573 | Q144: 11.05121559 | R144: 1.4801846 | S144: 0.9928462492 | T144: -0.1196853915 | U144: 0.9768823067 | V144: -0.2154405617 | X144: 0.397578941 | Y144: -110.1542207 | Z144: 69.84577931 | AC144: 1 | AD144: 13.11457852 | AE144: -0.000253796087 | AF144: 0.001159750343 | AG144: 10611.24405 | AH144: -3184.385538 | AJ144: 21000 | AK144: 2525.463499 | AL144: 1 | AM144: 11.0058787 | AN144: 399.5349076 | AO144: -1871.76923 | AQ144: 0.8263779853 | AR144: -90.90157838 | AT144: -280696.7731 | AU144: -967210.3392 | AV144: -1.853249984 | AW144: -159236.0496 | AX144: -48204.81569 | AY144: -2.847637263 | BA144: 6.053390158 | BB144: 15.63997333 | BC144: 0.9943872788 | BD144: -123.0258057 | BF144: 0.786278008 | BG144: -114.4266304 | BH144: 65.57336964 | BI144: 65.57336964 | BJ144: 0 | BK144: 0 | BM144: -14.85369532 | BN144: -171.4008247 | BQ144: 32.54193413 | BT144: 2187.762 | BU144: 8.53088 | BV144: -253.785
A145: 55500 | B145: 55.5 | C145: 1.006206831 | D145: 0.1111296237 | F145: 0.0117661916 | G145: 0.03957924232 | H145: -3.102013408 | J145: 15 | M145: 0.0406898325 | N145: -1.570796325 | O145: 13.27153022 | P145: 1.495375583 | Q145: 11.15086224 | R145: 1.480996521 | S145: 0.9927170137 | T145: -0.1207629396 | U145: 0.9764748582 | V145: -0.217338278 | X145: 0.3123264125 | Y145: -110.2032309 | Z145: 69.79676914 | AC145: 1 | AD145: 13.23380196 | AE145: -0.0002584315362 | AF145: 0.001170293528 | AG145: 10602.3942 | AH145: -3195.773481 | AJ145: 21000 | AK145: 2548.422259 | AL145: 1 | AM145: 11.10593214 | AN145: 396.5089208 | AO145: -1855.178909 | AQ145: 0.8115565655 | AR145: -90.08277877 | AT145: -279279.7129 | AU145: -957686.682 | AV145: -1.854546583 | AW145: -156230.1757 | AX145: -47509.28311 | AY145: -2.846380484 | BA145: 6.109080789 | BB145: 15.71951737 | BC145: 0.9918339012 | BD145: -123.1721034 | BF145: 0.7078061066 | BG145: -114.5371214 | BH145: 65.46287855 | BI145: 65.46287855 | BJ145: 0 | BK145: 0 | BM145: -15.01171126 | BN145: -171.365018 | BQ145: 32.62147817 | BT145: 2238.721 | BU145: 8.34969 | BV145: -253.783
A146: 56000 | B146: 56 | C146: 1.006318817 | D146: 0.1121224587 | F146: 0.01155473723 | G146: 0.03921792542 | H146: -3.102374725 | J146: 15 | M146: 0.04032653043 | N146: -1.570796325 | O146: 13.39041774 | P146: 1.496046466 | Q146: 11.25051612 | R146: 1.481794058 | S146: 0.9925866599 | T146: -0.121840206 | U146: 0.9760642388 | V146: -0.2192344052 | X146: 0.2278238431 | Y146: -110.2532762 | Z146: 69.74672384 | AC146: 1 | AD146: 13.3530254 | AE146: -0.0002631089352 | AF146: 0.001180836713 | AG146: 10593.4792 | AH146: -3207.250413 | AJ146: 21000 | AK146: 2571.381018 | AL146: 1 | AM146: 11.20598558 | AN146: 393.562771 | AO146: -1838.877721 | AQ146: 0.7971303308 | AR146: -89.27859705 | AT146: -277894.4336 | AU146: -948327.5579 | AV146: -1.855852259 | AW146: -153303.7958 | AX146: -46834.2772 | AY146: -2.84509785 | BA146: 6.164797035 | BB146: 15.79837566 | BC146: 0.9892455916 | BD146: -123.3204026 | BF146: 0.6301141837 | BG146: -114.6492373 | BH146: 65.35076265 | BI146: 65.35076265 | BJ146: 0 | BK146: 0 | BM146: -15.16826147 | BN146: -171.3288347 | BQ146: 32.70033646 | BT146: 2290.868 | BU146: 8.28183 | BV146: -253.62
A147: 56500 | B147: 56.5 | C147: 1.006431795 | D147: 0.1131150717 | F147: 0.01134895196 | G147: 0.03886321419 | H147: -3.102729436 | J147: 15 | M147: 0.03996965848 | N147: -1.570796325 | O147: 13.50931119 | P147: 1.49670554 | Q147: 11.35017702 | R147: 1.482577591 | S147: 0.9924551889 | T147: -0.1229171882 | U147: 0.9756504612 | V147: -0.2211289315 | X147: 0.1440560877 | Y147: -110.3043267 | Z147: 69.6956733 | AC147: 1 | AD147: 13.47224884 | AE147: -0.0002678282839 | AF147: 0.001191379897 | AG147: 10584.49944 | AH147: -3218.812344 | AJ147: 21000 | AK147: 2594.339777 | AL147: 1 | AM147: 11.30603903 | AN147: 390.6936814 | AO147: -1822.858233 | AQ147: 0.7830853563 | AR147: -88.48864526 | AT147: -276539.7772 | AU147: -939128.6208 | AV147: -1.857166718 | AW147: -150454.1513 | AX147: -46178.98164 | AY147: -2.843789709 | BA147: 6.220537972 | BB147: 15.87655891 | BC147: 0.9866229905 | BD147: -123.4706666 | BF147: 0.5531862122 | BG147: -114.7629522 | BH147: 65.23704776 | BI147: 65.23704776 | BJ147: 0 | BK147: 0 | BM147: -15.3233727 | BN147: -171.2922856 | BQ147: 32.77851971 | BT147: 2344.229 | BU147: 8.06623 | BV147: -253.171
A148: 57000 | B148: 57 | C148: 1.006545764 | D148: 0.114107461 | F148: 0.01114863424 | G148: 0.03851492737 | H148: -3.103077723 | J148: 15 | M148: 0.03961904744 | N148: -1.570796325 | O148: 13.6282104 | P148: 1.497353114 | Q148: 11.44984478 | R148: 1.483347483 | S148: 0.9923226023 | T148: -0.123993884 | U148: 0.9752335384 | V148: -0.2230218454 | X148: 0.06100845084 | Y148: -110.3563536 | Z148: 69.6436464 | AC148: 1 | AD148: 13.59147228 | AE148: -0.0002725895824 | AF148: 0.001201923082 | AG148: 10575.45526 | AH148: -3230.455418 | AJ148: 21000 | AK148: 2617.298536 | AL148: 1 | AM148: 11.40609247 | AN148: 387.8989946 | AO148: -1807.113265 | AQ148: 0.769408325 | AR148: -87.71254905 | AT148: -275214.636 | AU148: -930085.6778 | AV148: -1.85848968 | AW148: -147678.6015 | AX148: -45542.62024 | AY148: -2.842456395 | BA148: 6.276302658 | BB148: 15.95407756 | BC148: 0.9839667151 | BD148: -123.62286 | BF148: 0.477006606 | BG148: -114.8782413 | BH148: 65.12175874 | BI148: 65.12175874 | BJ148: 0 | BK148: 0 | BM148: -15.47707096 | BN148: -171.2553813 | BQ148: 32.85603836 | BT148: 2398.833 | BU148: 7.81402 | BV148: -252.658
A149: 57500 | B149: 57.5 | C149: 1.006660724 | D149: 0.1150996245 | F149: 0.01095359146 | G149: 0.03817289034 | H149: -3.10341976 | J149: 15 | M149: 0.03927453398 | N149: -1.570796325 | O149: 13.74711523 | P149: 1.497989487 | Q149: 11.5495192 | R149: 1.484104087 | S149: 0.9921889013 | T149: -0.1250702908 | U149: 0.9748134834 | V149: -0.2249131355 | X149: -0.02133333101 | Y149: -110.4093289 | Z149: 69.59067105 | AC149: 1 | AD149: 13.71069572 | AE149: -0.0002773928307 | AF149: 0.001212466267 | AG149: 10566.34705 | AH149: -3242.175906 | AJ149: 21000 | AK149: 2640.257295 | AL149: 1 | AM149: 11.50614591 | AN149: 385.1761664 | AO149: -1791.635878 | AQ149: 0.7560864963 | AR149: -86.94994707 | AT149: -273917.9511 | AU149: -921194.6824 | AV149: -1.859820869 | AW149: -144974.6185 | AX149: -44924.4546 | AY149: -2.84109823 | BA149: 6.332090127 | BB149: 16.03094175 | BC149: 0.9812773602 | BD149: -123.7769487 | BF149: 0.4015602016 | BG149: -114.9950804 | BH149: 65.00491956 | BI149: 65.00491956 | BJ149: 0 | BK149: 0 | BM149: -15.62938155 | BN149: -171.2181318 | BQ149: 32.93290255 | BT149: 2454.709 | BU149: 7.64239 | BV149: -251.974
A150: 58000 | B150: 58 | C150: 1.006776675 | D150: 0.1160915605 | F150: 0.01076363942 | G150: 0.03783693479 | H150: -3.103755715 | J150: 15 | M150: 0.03893596041 | N150: -1.570796325 | O150: 13.86602553 | P150: 1.498614945 | Q150: 11.64920012 | R150: 1.484847743 | S150: 0.9920540874 | T150: -0.1261464064 | U150: 0.9743903092 | V150: -0.2268027903 | X150: -0.1029831062 | Y150: -110.4632257 | Z150: 69.53677429 | AC150: 1 | AD150: 13.82991916 | AE150: -0.0002822380287 | AF150: 0.001223009452 | AG150: 10557.17518 | AH150: -3253.970198 | AJ150: 21000 | AK150: 2663.216054 | AL150: 1 | AM150: 11.60619936 | AN150: 382.5227604 | AO150: -1776.419361 | AQ150: 0.7431076763 | AR150: -86.20049045 | AT150: =-AR150*AH150+AG150*AQ150 -> -272648.7091 | AU150: =AQ150*AH150+AG150*AR150 -> -912451.7282 | AV150: -1.861160023 | AW150: -142339.7806 | AX150: -44323.78199 | AY150: -2.839715522 | BA150: 6.387899393 | BB150: 16.10716135 | BC150: 0.978555499 | BD150: -123.9328998 | BF150: 0.326832242 | BG150: -115.1134467 | BH150: 64.88655332 | BI150: 64.88655332 | BJ150: 0 | BK150: 0 | BM150: -15.78032911 | BN150: -171.1805469 | BQ150: 33.00912215 | BT150: 2511.886 | BU150: 7.45716 | BV150: -252.252
A151: 58500 | B151: 58.5 | C151: 1.006893616 | D151: 0.1170832671 | F151: 0.01057860191 | G151: 0.03750689847 | H151: -3.104085752 | J151: 15 | M151: 0.03860317443 | N151: -1.570796325 | O151: 13.98494117 | P151: 1.499229766 | Q151: 11.74888738 | R151: 1.48557878 | S151: 0.9919181619 | T151: -0.1272222283 | U151: 0.973964029 | V151: -0.2286907984 | X151: -0.1839543242 | Y151: -110.5180178 | Z151: 69.48198225 | AC151: 1 | AD151: 13.9491426 | AE151: -0.0002871251765 | AF151: 0.001233552637 | AG151: 10547.94001 | AH151: -3265.834804 | AJ151: 21000 | AK151: 2686.174813 | AL151: 1 | AM151: 11.7062528 | AN151: 379.936442 | AO151: -1761.457224 | AQ151: 0.7304601899 | AR151: -85.46384222 | AT151: -271405.9402 | AU151: -903853.0427 | AV151: -1.862506885 | AW151: -139771.7678 | AX151: -43739.93323 | AY151: -2.83830857 | BA151: 6.443729448 | BB151: 16.18274595 | BC151: 0.9758016845 | BD151: -124.0906818 | BF151: 0.2528083603 | BG151: -115.2333177 | BH151: 64.76668228 | BI151: 64.76668228 | BJ151: 0 | BK151: 0 | BM151: -15.92993759 | BN151: -171.1426359 | BQ151: 33.08470675 | BT151: 2570.396 | BU151: 7.31271 | BV151: -251.702
A152: 59000 | B152: 59 | C152: 1.007011547 | D152: 0.1180747424 | F152: 0.01039831033 | G152: 0.03718262489 | H152: -3.104410025 | J152: 15 | M152: 0.03827602888 | N152: -1.570796325 | O152: 14.103862 | P152: 1.49983422 | Q152: 11.8485808 | R152: 1.486297515 | S152: 0.9917811262 | T152: -0.1282977542 | U152: 0.9735346559 | V152: -0.2305771486 | X152: -0.2642600504 | Y152: -110.5736798 | Z152: 69.42632023 | AC152: 1 | AD152: 14.06836605 | AE152: -0.000292054274 | AF152: 0.001244095822 | AG152: 10538.64191 | AH152: -3277.766343 | AJ152: 21000 | AK152: 2709.133572 | AL152: 1 | AM152: 11.80630624 | AN152: 377.414974 | AO152: -1746.74319 | AQ152: 0.7181328546 | AR152: -84.73967684 | AT152: -270188.7157 | AU152: -895394.9818 | AV152: -1.863861209 | AW152: -137268.3562 | AX152: -43172.27091 | AY152: -2.836877659 | BA152: 6.499579261 | BB152: 16.25770489 | BC152: 0.9730164498 | BD152: -124.250264 | BF152: 0.1794745642 | BG152: -115.3546721 | BH152: 64.64532793 | BI152: 64.64532793 | BJ152: 0 | BK152: 0 | BM152: -16.07823032 | BN152: -171.1044081 | BQ152: 33.15966569 | BT152: 2630.268 | BU152: 7.13504 | BV152: -251.401
A153: 59500 | B153: 59.5 | C153: 1.007130468 | D153: 0.1190659845 | F153: 0.01022260325 | G153: 0.03686396309 | H153: -3.104728687 | J153: 15 | M153: 0.03795438158 | N153: -1.570796325 | O153: 14.22278789 | P153: 1.500428565 | Q153: 11.94828025 | R153: 1.487004256 | S153: 0.9916429818 | T153: -0.1293729818 | U153: 0.9731022033 | V153: -0.2324618296 | X153: -0.3439129811 | Y153: -110.6301873 | Z153: 69.36981274 | AC153: 1 | AD153: 14.18758949 | AE153: -0.0002970253214 | AF153: 0.001254639007 | AG153: 10529.28128 | AH153: -3289.761542 | AJ153: 21000 | AK153: 2732.092331 | AL153: 1 | AM153: 11.90635968 | AN153: 374.9562112 | AO153: -1732.271184 | AQ153: 0.7061149555 | AR153: -84.02767971 | AT153: -268996.1462 | AU153: -887074.0246 | AV153: -1.865222754 | AW153: -134827.4135 | AX153: -42620.1875 | AY153: -2.835423064 | BA153: 6.555447777 | BB153: 16.33204724 | BC153: 0.9702003096 | BD153: -124.4116169 | BF153: 0.1068172222 | BG153: -115.477489 | BH153: 64.52251099 | BI153: 64.52251099 | BJ153: 0 | BK153: 0 | BM153: -16.22523002 | BN153: -171.0658721 | BQ153: 33.23400804 | BT153: 2691.535 | BU153: 6.88093 | BV153: -251.244
A154: 60000 | B154: 60 | C154: 1.007250378 | D154: 0.1200569915 | F154: 0.01005132607 | G154: 0.03655076734 | H154: -3.105041883 | J154: 15 | M154: 0.03763809507 | N154: -1.570796325 | O154: 14.34171873 | P154: 1.501013053 | Q154: 12.04798556 | R154: 1.4876993 | S154: 0.99150373 | T154: -0.1304479086 | U154: 0.9726666843 | V154: -0.2343448303 | X154: -0.4229254573 | Y154: -110.6875165 | Z154: 69.31248349 | AC154: 1 | AD154: 14.30681293 | AE154: -0.0003020383184 | AF154: 0.001265182192 | AG154: 10519.85847 | AH154: -3301.817232 | AJ154: 21000 | AK154: 2755.05109 | AL154: 1 | AM154: 12.00641313 | AN154: 372.5580963 | AO154: -1718.035327 | AQ154: 0.6943962225 | AR154: -83.3275467 | AT154: -267827.3796 | AU154: -878886.7676 | AV154: -1.86659129 | AW154: -132446.8945 | AX154: -42083.10378 | AY154: -2.833945051 | BA154: 6.611333918 | BB154: 16.40578185 | BC154: 0.9673537605 | BD154: -124.5747122 | BF154: 0.03482304897 | BG154: -115.6017485 | BH154: 64.39825147 | BI154: 64.39825147 | BJ154: 60000 | BK154: 64.39825147 | BM154: -16.3709588 | BN154: -171.0270364 | BQ154: 33.30774265 | BT154: 2754.229 | BU154: 6.70094 | BV154: -251.051
A155: 60500 | B155: 60.5 | C155: 1.007371277 | D155: 0.1210477617 | F155: 0.009884330668 | G155: 0.036242897 | H155: -3.105349753 | J155: 15 | M155: 0.03732703643 | N155: -1.570796325 | O155: 14.46065439 | P155: 1.501587927 | Q155: 12.1476966 | R155: 1.488382934 | S155: 0.9913633723 | T155: -0.1315225323 | U155: 0.9722281124 | V155: -0.2362261396 | X155: -0.5013094775 | Y155: -110.7456445 | Z155: 69.25435547 | AC155: 1 | AD155: 14.42603637 | AE155: -0.0003070932653 | AF155: 0.001275725377 | AG155: 10510.37388 | AH155: -3313.930342 | AJ155: 21000 | AK155: 2778.009849 | AL155: 1 | AM155: 12.10646657 | AN155: 370.2186555 | AO155: -1704.029927 | AQ155: 0.6829668078 | AR155: -82.63898375 | AT155: -266681.5991 | AU155: -870829.9206 | AV155: -1.867966591 | AW155: -130124.8369 | AX155: -41560.46722 | AY155: -2.832443873 | BA155: 6.667236583 | BB155: 16.47891732 | BC155: 0.964477282 | BD155: -124.7395222 | BF155: -0.03652090723 | BG155: -115.7274313 | BH155: 64.27256867 | BI155: 64.27256867 | BJ155: 0 | BK155: 0 | BM155: -16.51543823 | BN155: -170.9879091 | BQ155: 33.38087812 | BT155: 2818.383 | BU155: 6.53562 | BV155: -250.48
A156: 61000 | B156: 61 | C156: 1.007493165 | D156: 0.1220382931 | F156: 0.009721475092 | G156: 0.03594021623 | H156: -3.105652434 | J156: 15 | M156: 0.03702107711 | N156: -1.570796325 | O156: 14.57959475 | P156: 1.502153422 | Q156: 12.24741323 | R156: 1.489055436 | S156: 0.9912219102 | T156: -0.1325968506 | U156: 0.971786501 | V156: -0.2381057464 | X156: -0.5790767107 | Y156: -110.804549 | Z156: 69.19545095 | AC156: 1 | AD156: 14.54525981 | AE156: -0.0003121901619 | AF156: 0.001286268562 | AG156: 10500.82788 | AH156: -3326.097894 | AJ156: 21000 | AK156: 2800.968609 | AL156: 1 | AM156: 12.20652001 | AN156: 367.9359946 | AO156: -1690.249472 | AQ156: 0.6718172657 | AR156: -81.96170642 | AT156: -265558.0216 | AU156: -862900.3015 | AV156: -1.869348441 | AW156: -127859.357 | AX156: -41051.75059 | AY156: -2.830919778 | BA156: 6.723154644 | BB156: 16.55146202 | BC156: 0.9615713375 | BD156: -124.9060206 | BF156: -0.1072272774 | BG156: -115.8545187 | BH156: 64.14548125 | BI156: 64.14548125 | BJ156: 0 | BK156: 0 | BM156: -16.65868929 | BN156: -170.9484982 | BQ156: 33.45342282 | BT156: 2884.032 | BU156: 6.32652 | BV156: -250.202
A157: 61500 | B157: 61.5 | C157: 1.007616041 | D157: 0.1230285839 | F157: 0.00956262323 | G157: 0.0356425938 | H157: -3.105950056 | J157: 15 | M157: 0.03672009275 | N157: -1.570796325 | O157: 14.69853969 | P157: 1.502709764 | Q157: 12.3471353 | R157: 1.489717076 | S157: 0.9910793451 | T157: -0.1336708611 | U157: 0.9713418636 | V157: -0.2399836399 | X157: -0.6562385083 | Y157: -110.8642085 | Z157: 69.13579151 | AC157: 1 | AD157: 14.66448325 | AE157: -0.0003173290083 | AF157: 0.001296811747 | AG157: 10491.22084 | AH157: -3338.317004 | AJ157: 21000 | AK157: 2823.927368 | AL157: 1 | AM157: 12.30657345 | AN157: 365.7082947 | AO157: -1676.688624 | AQ157: 0.6609385327 | AR157: -81.29543952 | AT157: -264455.896 | AU157: -855094.8319 | AV157: -1.870736627 | AW157: -125648.6467 | AX157: -40556.45051 | AY157: -2.829373002 | BA157: 6.779086949 | BB157: 16.62342409 | BC157: 0.9586363744 | BD157: -125.0741816 | BF157: -0.1773083837 | BG157: -115.9829928 | BH157: 64.01700722 | BI157: 64.01700722 | BJ157: 0 | BK157: 0 | BM157: -16.80073247 | BN157: -170.9088112 | BQ157: 33.52538489 | BT157: 2951.209 | BU157: 6.18308 | BV157: -249.926
A158: 62000 | B158: 62 | C158: 1.007739905 | D158: 0.1240186322 | F158: 0.009407644537 | G158: 0.03534990292 | H158: -3.106242747 | J158: 15 | M158: 0.03642396297 | N158: -1.570796325 | O158: 14.81748911 | P158: 1.503257174 | Q158: 12.4468627 | R158: 1.490368113 | S158: 0.9909356784 | T158: -0.1347445614 | U158: 0.9708942137 | V158: -0.2418598091 | X158: -0.7328059154 | Y158: -110.9246019 | Z158: 69.07539806 | AC158: 1 | AD158: 14.78370669 | AE158: -0.0003225098045 | AF158: 0.001307354932 | AG158: 10481.55316 | AH158: -3350.584875 | AJ158: 21000 | AK158: 2846.886127 | AL158: 1 | AM158: 12.4066269 | AN158: 363.5338093 | AO158: -1663.342209 | AQ158: 0.6503219093 | AR158: -80.63991676 | AT158: -263374.5018 | AU158: -847410.5333 | AV158: -1.872130947 | AW158: -123490.9689 | AX158: -40074.08625 | AY158: -2.827803773 | BA158: 6.835032323 | BB158: 16.69481145 | BC158: 0.9556728252 | BD158: -125.2439805 | BF158: -0.2467762508 | BG158: -116.112836 | BH158: 63.887164 | BI158: 63.887164 | BJ158: 0 | BK158: 0 | BM158: -16.9415877 | BN158: -170.8688555 | BQ158: 33.59677225 | BT158: 3019.952 | BU158: 6.01306 | BV158: -249.651
A159: 62500 | B159: 62.5 | C159: 1.007864756 | D159: 0.1250084362 | F159: 0.00925641376 | G159: 0.03506202102 | H159: -3.106530629 | J159: 15 | M159: 0.03613257126 | N159: -1.570796325 | O159: 14.9364429 | P159: 1.503795865 | Q159: 12.54659528 | R159: 1.491008801 | S159: 0.9907909117 | T159: -0.1358179493 | U159: 0.9704435651 | V159: -0.2437342432 | X159: -0.808789682 | Y159: -110.9857091 | Z159: 69.0142909 | AC159: 1 | AD159: 14.90293013 | AE159: -0.0003277325504 | AF159: 0.001317898117 | AG159: 10471.82522 | AH159: -3362.898794 | AJ159: 21000 | AK159: 2869.844886 | AL159: 1 | AM159: 12.50668034 | AN159: 361.4108604 | AO159: -1650.205217 | AQ159: 0.6399590426 | AR159: -79.99488033 | AT159: -262313.1473 | AU159: -839844.5228 | AV159: -1.873531202 | AW159: -121384.655 | AX159: -39604.19848 | AY159: -2.82621231 | BA159: 6.890989561 | BB159: 16.76563184 | BC159: 0.9526811082 | BD159: -125.4153932 | BF159: -0.3156426172 | BG159: -116.2440316 | BH159: 63.75596842 | BI159: 63.75596842 | BJ159: 0 | BK159: 0 | BM159: -17.08127446 | BN159: -170.8286384 | BQ159: 33.66759264 | BT159: 3090.295 | BU159: 5.85449 | BV159: -248.418
A160: 63000 | B160: 63 | C160: 1.007990595 | D160: 0.1259979941 | F160: 0.009108810683 | G160: 0.0347788296 | H160: -3.10681382 | J160: 15 | M160: 0.03584580483 | N160: -1.570796325 | O160: 15.05540096 | P160: 1.504326044 | Q160: 12.64633293 | R160: 1.491639383 | S160: 0.9906450464 | T160: -0.1368910223 | U160: 0.9699899312 | V160: -0.2456069315 | X160: -0.8842002733 | Y160: -111.0475103 | Z160: 68.95248971 | AC160: 1 | AD160: 15.02215357 | AE160: -0.0003329972461 | AF160: 0.001328441302 | AG160: 10462.0374 | AH160: -3375.256127 | AJ160: 21000 | AK160: 2892.803645 | AL160: 1 | AM160: 12.60673378 | AN160: 359.3378357 | AO160: -1637.272788 | AQ160: 0.6298419097 | AR160: -79.36008062 | AT160: -261271.1687 | AU160: -832394.0092 | AV160: -1.8749372 | AW160: -119328.1015 | AX160: -39146.34814 | AY160: -2.824598828 | BA160: 6.946957435 | BB160: 16.83589276 | BC160: 0.9496616279 | BD160: -125.5883967 | BF160: -0.383918945 | BG160: -116.3765632 | BH160: 63.62343676 | BI160: 63.62343676 | BJ160: 0 | BK160: 0 | BM160: -17.2198117 | BN160: -170.7881666 | BQ160: 33.73785356 | BT160: 3162.278 | BU160: 5.60993 | BV160: -248.626
A161: 63500 | B161: 63.5 | C161: 1.00811742 | D161: 0.1269873039 | F161: 0.008964719884 | G161: 0.03450021404 | H161: -3.107092436 | J161: 15 | M161: 0.03556355439 | N161: -1.570796325 | O161: 15.17436318 | P161: 1.50484791 | Q161: 12.74607554 | R161: 1.492260096 | S161: 0.9904980839 | T161: -0.1379637782 | U161: 0.969533326 | V161: -0.2474778633 | X161: -0.9590478796 | Y161: -111.1099864 | Z161: 68.89001356 | AC161: 1 | AD161: 15.14137702 | AE161: -0.0003383038915 | AF161: 0.001338984487 | AG161: 10452.19009 | AH161: -3387.654321 | AJ161: 21000 | AK161: 2915.762404 | AL161: 1 | AM161: 12.70678723 | AN161: 357.3131851 | AO161: -1624.540212 | AQ161: 0.6199628022 | AR161: -78.73527588 | AT161: -260247.9285 | AU161: -825056.2897 | AV161: -1.876348754 | AW161: -117319.7665 | AX161: -38700.11541 | AY161: -2.82296353 | BA161: 7.002934688 | BB161: 16.90560152 | BC161: 0.9466147757 | BD161: -125.7629685 | BF161: -0.4516164303 | BG161: -116.5104152 | BH161: 63.48958476 | BI161: 63.48958476 | BJ161: 0 | BK161: 0 | BM161: -17.35721795 | BN161: -170.7474468 | BQ161: 33.80756232 | BT161: 3235.937 | BU161: 5.43209 | BV161: -248.575
A162: 64000 | B162: 64 | C162: 1.008245232 | D162: 0.1279763638 | F162: 0.008824030508 | G162: 0.03422606346 | H162: -3.107366587 | J162: 15 | M162: 0.03528571412 | N162: -1.570796325 | O162: 15.29332947 | P162: 1.505361656 | Q162: 12.84582297 | R162: 1.49287117 | S162: 0.9903500259 | T162: -0.1390362146 | U162: 0.969073763 | V162: -0.2493470279 | X162: -1.033342426 | Y162: -111.173119 | Z162: 68.826881 | AC162: 1 | AD162: 15.26060046 | AE162: -0.0003436524868 | AF162: 0.001349527671 | AG162: 10442.28367 | AH162: -3400.090897 | AJ162: 21000 | AK162: 2938.721163 | AL162: 1 | AM162: 12.80684067 | AN162: 355.3354183 | AO162: -1612.002922 | AQ162: 0.6103143119 | AR162: -78.12023192 | AT162: -259242.8142 | AU162: -817828.7461 | AV162: -1.877765684 | AW162: -115358.1676 | AX162: -38265.09868 | AY162: -2.821306614 | BA162: 7.058920038 | BB162: 16.97476525 | BC162: 0.9435409302 | BD162: -125.9390868 | BF162: -0.5187460127 | BG162: -116.6455723 | BH162: 63.35442768 | BI162: 63.35442768 | BJ162: 0 | BK162: 0 | BM162: -17.49351126 | BN162: -170.7064855 | BQ162: 33.87672605 | BT162: 3311.311 | BU162: 5.23561 | BV162: -247.758
A163: 64500 | B163: 64.5 | C163: 1.00837403 | D163: 0.1289651721 | F163: 0.008686636049 | G163: 0.03395627055 | H163: -3.107636379 | J163: 15 | M163: 0.03501218146 | N163: -1.570796325 | O163: 15.41229974 | P163: 1.505867472 | Q163: 12.94557514 | R163: 1.493472826 | S163: 0.9902008738 | T163: -0.1401083292 | U163: 0.9686112563 | V163: -0.2512144149 | X163: -1.107093582 | Y163: -111.23689 | Z163: 68.76311 | AC163: 1 | AD163: 15.3798239 | AE163: -0.0003490430318 | AF163: 0.001360070856 | AG163: 10432.31854 | AH163: -3412.563447 | AJ163: 21000 | AK163: 2961.679922 | AL163: 1 | AM163: 12.90689411 | AN163: 353.4031015 | AO163: -1599.656488 | AQ163: 0.6008893162 | AR163: -77.51472179 | AT163: -258255.2374 | AU163: -810708.8419 | AV163: -1.879187814 | AW163: -113441.8787 | AX163: -37840.91365 | AY163: -2.819628272 | BA163: 7.114912174 | BB163: 17.04339087 | BC163: 0.9404404583 | BD163: -126.1167308 | BF163: -0.5853183843 | BG163: -116.7820197 | BH163: 63.21798027 | BI163: 63.21798027 | BJ163: 0 | BK163: 0 | BM163: -17.62870926 | BN163: -170.6652889 | BQ163: 33.94535167 | BT163: 3388.442 | BU163: 5.05282 | BV163: -247.756
A164: 65000 | B164: 65 | C164: 1.008503814 | D164: 0.1299537269 | F164: 0.008552434149 | G164: 0.03369073145 | H164: -3.107901919 | J164: 15 | M164: 0.03474285698 | N164: -1.570796325 | O164: 15.53127388 | P164: 1.506365538 | Q164: 13.04533191 | R164: 1.494065282 | S164: 0.9900506291 | T164: -0.1411801198 | U164: 0.9681458195 | V164: -0.2530800137 | X164: -1.180310768 | Y164: -111.301282 | Z164: 68.69871801 | AC164: 1 | AD164: 15.49904734 | AE164: -0.0003544755265 | AF164: 0.001370614041 | AG164: 10422.29508 | AH164: -3425.069636 | AJ164: 21000 | AK164: 2984.638681 | AL164: 1 | AM164: 13.00694755 | AN164: 351.5148556 | AO164: -1587.49661 | AQ164: 0.5916809656 | AR164: -76.91852553 | AT164: -257284.6326 | AU164: -803694.1185 | AV164: -1.880614973 | AW164: -111569.5276 | AX164: -37427.19241 | AY164: -2.817928688 | BA164: 7.170909758 | BB164: 17.11148514 | BC164: 0.9373137151 | BD164: -126.29588 | BF164: -0.6513439985 | BG164: -116.9197432 | BH164: 63.08025683 | BI164: 63.08025683 | BJ164: 0 | BK164: 0 | BM164: -17.76282914 | BN164: -170.6238632 | BQ164: 34.01344594 | BT164: 3467.369 | BU164: 4.9029 | BV164: -247.513
A165: 65500 | B165: 65.5 | C165: 1.008634583 | D165: 0.1309420262 | F165: 0.008421326405 | G165: 0.0334293456 | H165: -3.108163304 | J165: 15 | M165: 0.03447764434 | N165: -1.570796325 | O165: 15.65025182 | P165: 1.506856032 | Q165: 13.1450932 | R165: 1.494648745 | S165: 0.9898992934 | T165: -0.1422515838 | U165: 0.9676774668 | V165: -0.2549438141 | X165: -1.253003168 | Y165: -111.366278 | Z165: 68.633722 | AC165: 1 | AD165: 15.61827078 | AE165: -0.000359949971 | AF165: 0.001381157226 | AG165: 10412.21368 | AH165: -3437.607192 | AJ165: 21000 | AK165: 3007.59744 | AL165: 1 | AM165: 13.107001 | AN165: 349.669353 | AO165: -1575.519118 | AQ165: 0.582682671 | AR165: -76.3314299 | AT165: -256330.4559 | AU165: -796782.1931 | AV165: -1.882046996 | AW165: -109739.7938 | AX165: -37023.58261 | AY165: -2.816208041 | BA165: 7.226911423 | BB165: 17.17905464 | BC165: 0.9341610448 | BD165: -126.4765147 | BF165: -0.716833078 | BG165: -117.0587288 | BH165: 62.9412712 | BI165: 62.9412712 | BJ165: 0 | BK165: 0 | BM165: -17.89588771 | BN165: -170.5822141 | BQ165: 34.08101544 | BT165: 3548.134 | BU165: 4.65226 | BV165: -246.726
A166: =A165+500 -> 66000 | B166: 66 | C166: 1.008766337 | D166: 0.1319300684 | F166: 0.008293218184 | G166: 0.03317201557 | H166: -3.108420634 | J166: 15 | M166: 0.03421645006 | N166: -1.570796325 | O166: 15.76923347 | P166: 1.507339124 | Q166: 13.24485889 | R166: 1.495223418 | S166: 0.9897468683 | T166: -0.1433227192 | U166: 0.967206212 | V166: -0.2568058055 | X166: -1.325179733 | Y166: -111.4318616 | Z166: 68.56813842 | AC166: 1 | AD166: 15.73749422 | AE166: -0.0003654663653 | AF166: 0.001391700411 | AG166: 10402.07475 | AH166: -3450.17391 | AJ166: 21000 | AK166: 3030.556199 | AL166: 1 | AM166: 13.20705444 | AN166: 347.8653158 | AO166: -1563.719963 | AQ166: 0.5738880918 | AR166: -75.75322812 | AT166: -255392.1844 | AU166: -789970.7549 | AV166: -1.883483723 | AW166: -107951.4055 | AX166: -36629.74671 | AY166: -2.814466504 | BA166: 7.282915775 | BB166: 17.24610575 | BC166: 0.9309827809 | BD166: -126.6586158 | BF166: -0.7817956233 | BG166: -117.1989632 | BH166: 62.80103682 | BI166: 62.80103682 | BJ166: 0 | BK166: 0 | BM166: -18.02790137 | BN166: -170.5403474 | BQ166: 34.14806655 | BT166: 3630.781 | BU166: 4.4951 | BV166: -246.212
A167: 66500 | B167: 66.5 | C167: 1.008899075 | D167: 0.1329178516 | F167: 0.008168018453 | G167: 0.03291864703 | H167: -3.108674003 | J167: 15 | M167: 0.03395918352 | N167: -1.570796325 | O167: 15.88821875 | P167: 1.50781498 | Q167: 13.34462889 | R167: 1.495789499 | S167: 0.9895933552 | T167: -0.1443935235 | U167: 0.9667320693 | V167: -0.2586659778 | X167: -1.396849193 | Y167: -111.4980167 | Z167: 68.50198327 | AC167: 1 | AD167: 15.85671766 | AE167: -0.0003710247094 | AF167: 0.001402243596 | AG167: 10391.87866 | AH167: -3462.767648 | AJ167: 21000 | AK167: 3053.514958 | AL167: 1 | AM167: 13.30710788 | AN167: 346.1015133 | AO167: -1552.095216 | AQ167: 0.5652911249 | AR167: -75.18371962 | AT167: -254469.3152 | AU167: -783257.5632 | AV167: -1.884924996 | AW167: -106203.1383 | AX167: -36245.36122 | AY167: -2.812704243 | BA167: 7.338921391 | BB167: 17.31264472 | BC167: 0.9277792471 | BD167: -126.8421648 | BF167: -0.8462414198 | BG167: -117.3404333 | BH167: 62.65956671 | BI167: 62.65956671 | BJ167: 0 | BK167: 0 | BM167: -18.15888614 | BN167: -170.4982685 | BQ167: 34.21460552 | BT167: 3715.352 | BU167: 4.3437 | BV167: -245.97
A168: 67000 | B168: 67 | C168: 1.009032797 | D168: 0.1339053739 | F168: 0.008045639616 | G168: 0.03266914853 | H168: -3.108923501 | J168: 15 | M168: 0.03370575678 | N168: -1.570796325 | O168: 16.00720757 | P168: 1.508283762 | Q168: 13.4444031 | R168: 1.496347177 | S168: 0.9894387557 | T168: -0.1454639944 | U168: 0.9662550526 | V168: -0.2605243209 | X168: -1.468020058 | Y168: -111.5647279 | Z168: 68.4352721 | AC168: 1 | AD168: 15.9759411 | AE168: -0.0003766250032 | AF168: 0.001412786781 | AG168: 10381.62582 | AH168: -3475.386323 | AJ168: 21000 | AK168: 3076.473718 | AL168: 1 | AM168: 13.40716132 | AN168: 344.37676 | AO168: -1540.64106 | AQ168: 0.5568858941 | AR168: -74.62270981 | AT168: -253561.3641 | AU168: -776640.4442 | AV168: -1.886370664 | AW168: -104493.8127 | AX168: -35870.11601 | AY168: -2.810921421 | BA168: 7.394926816 | BB168: 17.37867761 | BC168: 0.9245507569 | BD168: -127.0271436 | BF168: -0.9101800457 | BG168: -117.4831265 | BH168: 62.5168735 | BI168: 62.5168735 | BJ168: 0 | BK168: 0 | BM168: -18.28885765 | BN168: -170.4559829 | BQ168: 34.28063841 | BT168: 3801.894 | BU168: 4.14374 | BV168: -245.169
A169: 67500 | B169: 67.5 | C169: 1.009167504 | D169: 0.1348926335 | F169: 0.007925997357 | G169: 0.03242343144 | H169: -3.109169219 | J169: 15 | M169: 0.0334560845 | N169: -1.570796325 | O169: 16.12619985 | P169: 1.508745626 | Q169: 13.54418144 | R169: 1.496896639 | S169: 0.9892830714 | T169: -0.1465341297 | U169: 0.9657751761 | V169: -0.2623808245 | X169: -1.538700633 | Y169: -111.63198 | Z169: 68.36802002 | AC169: 1 | AD169: 16.09516454 | AE169: -0.0003822672468 | AF169: 0.001423329966 | AG169: 10371.31661 | AH169: -3488.02791 | AJ169: 21000 | AK169: 3099.432477 | AL169: 1 | AM169: 13.50721477 | AN169: 342.6899139 | AO169: -1529.353789 | AQ169: 0.5486667398 | AR169: -74.07000988 | AT169: -252667.8652 | AU169: -770117.2887 | AV169: -1.88782058 | AW169: -102822.292 | AX169: -35503.71365 | AY169: -2.809118195 | BA169: 7.450930571 | BB169: 17.44421033 | BC169: 0.921297615 | BD169: -127.2135349 | BF169: -0.9736208783 | BG169: -117.6270305 | BH169: 62.37296945 | BI169: 62.37296945 | BJ169: 0 | BK169: 0 | BM169: -18.41783121 | BN169: -170.4134956 | BQ169: 34.34617113 | BT169: 3890.451 | BU169: 3.9573 | BV169: -244.768
A170: 68000 | B170: 68 | C170: 1.009303193 | D170: 0.1358796287 | F170: 0.007809010492 | G170: 0.03218140986 | H170: -3.10941124 | J170: 15 | M170: 0.03321008388 | N170: -1.570796325 | O170: 16.24519553 | P170: 1.509200724 | Q170: 13.6439638 | R170: 1.497438065 | S170: 0.9891263039 | T170: -0.1476039271 | U170: 0.9652924541 | V170: -0.2642354786 | X170: -1.60889902 | Y170: -111.6997583 | Z170: 68.30024171 | AC170: 1 | AD170: 16.21438799 | AE170: -0.0003879514401 | AF170: 0.001433873151 | AG170: 10360.95144 | AH170: -3500.69044 | AJ170: 21000 | AK170: 3122.391236 | AL170: 1 | AM170: 13.60726821 | AN170: 341.0398742 | AO170: -1518.229802 | AQ170: 0.54062821 | AR170: -73.52543656 | AT170: -251788.3702 | AU170: -763686.0497 | AV170: -1.8892746 | AW170: -101187.4807 | AX170: -35145.86881 | AY170: -2.807294717 | BA170: 7.506931141 | BB170: 17.50924865 | BC170: 0.918020117 | BD170: -127.4013217 | BF170: -1.036573101 | BG170: -117.7721335 | BH170: 62.22786649 | BI170: 62.22786649 | BJ170: 0 | BK170: 0 | BM170: -18.54582175 | BN170: -170.3708118 | BQ170: 34.41120945 | BT170: 3981.072 | BU170: 3.89809 | BV170: -244.315
A171: 68500 | B171: 68.5 | C171: 1.009439866 | D171: 0.1368663575 | F171: 0.007694600836 | G171: 0.03194300045 | H171: -3.10964965 | J171: 15 | M171: 0.03296767451 | N171: -1.570796325 | O171: 16.36419452 | P171: 1.509649203 | Q171: 13.7437501 | R171: 1.497971629 | S171: 0.9889684548 | T171: -0.1486733843 | U171: 0.9648069006 | V171: -0.2660882732 | X171: -1.678623125 | Y171: -111.7680485 | Z171: 68.23195146 | AC171: 1 | AD171: 16.33361143 | AE171: -0.0003936775833 | AF171: 0.001444416336 | AG171: 10350.5307 | AH171: -3513.372 | AJ171: 21000 | AK171: 3145.349995 | AL171: 1 | AM171: 13.70732165 | AN171: 339.4255796 | AO171: -1507.265602 | AQ171: 0.5327650506 | AR171: -72.98881193 | AT171: -250922.4472 | AU171: -757344.7405 | AV171: -1.890732584 | AW171: -99588.32265 | AX171: -34796.30764 | AY171: -2.805451134 | BA171: 7.562926987 | BB171: 17.57379815 | BC171: 0.9147185499 | BD171: -127.5904876 | BF171: -1.099045711 | BG171: -117.9184238 | BH171: 62.08157617 | BI171: 62.08157617 | BJ171: 0 | BK171: 0 | BM171: -18.67284387 | BN171: -170.3279362 | BQ171: 34.47575895 | BT171: 4073.803 | BU171: 3.5601 | BV171: -244.142
A172: 69000 | B172: 69 | C172: 1.009577521 | D172: 0.1378528182 | F172: 0.007582693064 | G172: 0.03170812241 | H172: -3.109884528 | J172: 15 | M172: 0.03272877832 | N172: -1.570796325 | O172: 16.48319675 | P172: 1.510091206 | Q172: 13.84354026 | R172: 1.4984975 | S172: 0.9888095256 | T172: -0.1497424989 | U172: 0.96431853 | V172: -0.2679391985 | X172: -1.747880664 | Y172: -111.8368368 | Z172: 68.16316316 | AC172: 1 | AD172: 16.45283487 | AE172: -0.0003994456761 | AF172: 0.001454959521 | AG172: 10340.05479 | AH172: -3526.070728 | AJ172: 21000 | AK172: 3168.308754 | AL172: 1 | AM172: 13.80737509 | AN172: 337.8460069 | AO172: -1496.457788 | AQ172: 0.5250721974 | AR172: -72.45996324 | AT172: -250069.6801 | AU172: -751091.4317 | AV172: -1.892194396 | AW172: -98023.79942 | AX172: -34454.76725 | AY172: -2.803587589 | BA172: 7.618916535 | BB172: 17.63786432 | BC172: 0.9113931927 | BD172: -127.7810165 | BF172: -1.161047523 | BG172: -118.0658902 | BH172: 61.93410976 | BI172: 61.93410976 | BJ172: 0 | BK172: 0 | BM172: -18.79891184 | BN172: -170.2848737 | BQ172: 34.53982512 | BT172: 4168.694 | BU172: 3.40988 | BV172: -243.709
A173: 69500 | B173: 69.5 | C173: 1.009716158 | D173: 0.138839009 | F173: 0.007473214593 | G173: 0.03147669732 | H173: -3.110115953 | J173: 15 | M173: 0.03249331948 | N173: -1.570796325 | O173: 16.60220216 | P173: 1.510526873 | Q173: 13.9433342 | R173: 1.499015844 | S173: 0.9886495181 | T173: -0.1508112688 | U173: 0.9638273566 | V173: -0.2697882446 | X173: -1.81667917 | Y173: -111.9061097 | Z173: 68.09389032 | AC173: 1 | AD173: 16.57205831 | AE173: -0.0004052557188 | AF173: 0.001465502706 | AG173: 10329.52411 | AH173: -3538.784811 | AJ173: 21000 | AK173: 3191.267513 | AL173: 1 | AM173: 13.90742854 | AN173: 336.3001691 | AO173: -1485.803057 | AQ173: 0.5175447676 | AR173: -71.9387227 | AT173: -249229.6681 | AU173: -744924.2498 | AV173: -1.893659905 | AW173: -96492.92855 | AX173: -34120.99518 | AY173: -2.801704221 | BA173: 7.674898184 | BB173: 17.70145246 | BC173: 0.9080443167 | BD173: -127.972893 | BF173: -1.222587176 | BG173: -118.2145218 | BH173: 61.78547818 | BI173: 61.78547818 | BJ173: 0 | BK173: 0 | BM173: -18.92403963 | BN173: -170.2416288 | BQ173: 34.60341326 | BT173: 4265.795 | BU173: 3.2245 | BV173: -243.324
A174: 70000 | B174: 70 | C174: 1.009855777 | D174: 0.1398249281 | F174: 0.007366095454 | G174: 0.03124864909 | H174: -3.110344001 | J174: 15 | M174: 0.03226122434 | N174: -1.570796325 | O174: 16.72121068 | P174: 1.510956338 | Q174: 14.04313182 | R174: 1.499526821 | S174: 0.9884884337 | T174: -0.1518796916 | U174: 0.9633333947 | V174: -0.2716354017 | X174: -1.885025999 | Y174: -111.9758539 | Z174: 68.02414608 | AC174: 1 | AD174: 16.69128175 | AE174: -0.0004111077112 | AF174: 0.001476045891 | AG174: 10318.93905 | AH174: -3551.512489 | AJ174: 21000 | AK174: 3214.226272 | AL174: 1 | AM174: 14.00748198 | AN174: 334.7871141 | AO174: -1475.298195 | AQ174: 0.5101780521 | AR174: -71.4249273 | AT174: -248402.0251 | AU174: -738841.3751 | AV174: -1.895128981 | AW174: -94994.76218 | AX174: -33794.74892 | AY174: -2.799801167 | BA174: 7.730870299 | BB174: 17.76456774 | BC174: 0.9046721854 | BD174: -128.1661019 | BF174: -1.283673141 | BG174: -118.3643079 | BH174: 61.6356921 | BI174: 61.6356921 | BJ174: 0 | BK174: 0 | BM174: -19.04824088 | BN174: -170.198206 | BQ174: 34.66652854 | BT174: 4365.158 | BU174: 3.07782 | BV174: -242.172
A175: 70500 | B175: 70.5 | C175: 1.009996378 | D175: 0.1408105736 | F175: 0.007261268189 | G175: 0.03102390386 | H175: -3.110568746 | J175: 15 | M175: 0.03203242133 | N175: -1.570796325 | O175: 16.84022223 | P175: 1.511379734 | Q175: 14.14293307 | R175: 1.500030587 | S175: 0.9883262742 | T175: -0.1529477651 | U175: 0.9628366587 | V175: -0.2734806602 | X175: -1.952928334 | Y175: -112.0460567 | Z175: 67.95394325 | AC175: 1 | AD175: 16.81050519 | AE175: -0.0004170016534 | AF175: 0.001486589076 | AG175: 10308.30002 | AH175: -3564.252044 | AJ175: 21000 | AK175: 3237.185031 | AL175: 1 | AM175: 14.10753542 | AN175: 333.3059227 | AO175: -1464.94008 | AQ175: 0.5029675083 | AR175: -70.91841867 | AT175: -247586.3787 | AU175: -732841.0394 | AV175: -1.8966015 | AW175: -93528.38552 | AX175: -33475.7954 | AY175: -2.797878556 | BA175: 7.786831217 | BB175: 17.82721523 | BC175: 0.9012770556 | BD175: -128.3606285 | BF175: -1.344313723 | BG175: -118.5152381 | BH175: 61.48476186 | BI175: 61.48476186 | BJ175: 0 | BK175: 0 | BM175: -19.17152895 | BN175: -170.1546097 | BQ175: 34.72917603 | BT175: 4466.836 | BU175: 2.92332 | BV175: -240.903
A176: 71000 | B176: 71 | C176: 1.010137959 | D176: 0.1417959438 | F176: 0.007158667736 | G176: 0.03080238993 | H176: -3.11079026 | J176: 15 | M176: 0.0318068409 | N176: -1.570796325 | O176: 16.95923676 | P176: 1.511797187 | Q176: 14.24273785 | R176: 1.500527293 | S176: 0.9881630411 | T176: -0.154015487 | U176: 0.9623371631 | V176: -0.2753240104 | X176: -2.020393193 | Y176: -112.1167057 | Z176: 67.88329427 | AC176: 1 | AD176: 16.92972863 | AE176: -0.0004229375454 | AF176: 0.001497132261 | AG176: 10297.60741 | AH176: -3577.001808 | AJ176: 21000 | AK176: 3260.14379 | AL176: 1 | AM176: 14.20758887 | AN176: 331.8557082 | AO176: -1454.725674 | AQ176: 0.4959087528 | AR176: -70.4190429 | AT176: -246782.3701 | AU176: -726921.5248 | AV176: -1.89807734 | AW176: -92092.91552 | AX176: -33163.91062 | AY176: -2.795936517 | BA176: 7.842779242 | BB176: 17.88939981 | BC176: 0.8978591769 | BD176: -128.5564585 | BF176: -1.40451707 | BG176: -118.6673024 | BH176: 61.33269758 | BI176: 61.33269758 | BJ176: 0 | BK176: 0 | BM176: -19.29391688 | BN176: -170.1108439 | BQ176: 34.79136061 | BT176: 4570.882 | BU176: 2.72669 | BV176: -241.252
A177: 71500 | B177: 71.5 | C177: 1.010280521 | D177: 0.1427810368 | F177: 0.007058231332 | G177: 0.03058403767 | H177: -3.111008612 | J177: 15 | M177: 0.03158441544 | N177: -1.570796325 | O177: 17.07825421 | P177: 1.512208821 | Q177: 14.34254609 | R177: 1.501017085 | S177: 0.9879987362 | T177: -0.155082855 | U177: 0.9618349223 | V177: -0.2771654427 | X177: -2.08742743 | Y177: -112.1877887 | Z177: 67.81221128 | AC177: 1 | AD177: 17.04895207 | AE177: -0.0004289153871 | AF177: 0.001507675445 | AG177: 10286.86164 | AH177: -3589.760156 | AJ177: 21000 | AK177: 3283.102549 | AL177: 1 | AM177: 14.30764231 | AN177: 330.435614 | AO177: -1444.652022 | AQ177: 0.488997555 | AR177: -69.92665037 | AT177: -245989.6531 | AU177: -721081.1612 | AV177: -1.899556382 | AW177: -90687.49956 | AX177: -32858.87915 | AY177: -2.793975175 | BA177: 7.898712647 | BB177: 17.95112629 | BC177: 0.8944187927 | BD177: -128.753578 | BF177: -1.464291175 | BG177: -118.8204909 | BH177: 61.17950909 | BI177: 61.17950909 | BJ177: 0 | BK177: 0 | BM177: -19.41541747 | BN177: -170.0669129 | BQ177: 34.85308709 | BT177: 4677.351 | BU177: 2.54392 | BV177: -240.638
A178: 72000 | B178: 72 | C178: 1.010424063 | D178: 0.1437658509 | F178: 0.006959898415 | G178: 0.03036877944 | H178: -3.111223871 | J178: 15 | M178: 0.03136507922 | N178: -1.570796325 | O178: 17.19727451 | P178: 1.512614758 | Q178: 14.44235773 | R178: 1.501500108 | S178: 0.9878333611 | T178: -0.1561498669 | U178: 0.9613299508 | V178: -0.2790049478 | X178: -2.154037744 | Y178: -112.2592939 | Z178: 67.74070607 | AC178: 1 | AD178: 17.16817551 | AE178: -0.0004349351786 | AF178: 0.00151821863 | AG178: 10276.0631 | AH178: -3602.525505 | AJ178: 21000 | AK178: 3306.061308 | AL178: 1 | AM178: 14.40769575 | AN178: 329.0448131 | AO178: -1434.716248 | AQ178: 0.4822298307 | AR178: -69.44109563 | AT178: -245207.8939 | AU178: -715318.3254 | AV178: -1.90103851 | AW178: -89311.31418 | AX178: -32560.49381 | AY178: -2.79199465 | BA178: 7.954629673 | BB178: 18.01239932 | BC178: 0.8909561398 | BD178: -128.9519734 | BF178: -1.523643882 | BG178: -118.974794 | BH178: 61.025206 | BI178: 61.025206 | BJ178: 0 | BK178: 0 | BM178: -19.5360432 | BN178: -170.0228206 | BQ178: 34.91436012 | BT178: 4786.301 | BU178: 2.53075 | BV178: -240.031
A179: 72500 | B179: 72.5 | C179: 1.010568584 | D179: 0.1447503843 | F179: 0.006863610529 | G179: 0.03015654953 | H179: -3.1114361 | J179: 15 | M179: 0.03114876833 | N179: -1.570796325 | O179: 17.3162976 | P179: 1.513015115 | Q179: 14.54217269 | R179: 1.501976501 | S179: 0.9876669174 | T179: -0.1572165205 | U179: 0.9608222632 | V179: -0.2808425161 | X179: -2.22023068 | Y179: -112.3312099 | Z179: 67.66879015 | AC179: 1 | AD179: 17.28739895 | AE179: -0.0004409969198 | AF179: 0.001528761815 | AG179: 10265.21219 | AH179: -3615.296313 | AJ179: 21000 | AK179: 3329.020067 | AL179: 1 | AM179: 14.50774919 | AN179: 327.6825067 | AO179: -1424.915555 | AQ179: 0.4756016361 | AR179: -68.96223723 | AT179: -244436.7703 | AU179: -709631.4388 | AV179: -1.902523612 | AW179: -87963.56387 | AX179: -32268.55527 | AY179: -2.789995062 | BA179: 8.01052853 | BB179: 18.07322343 | BC179: 0.8874714493 | BD179: -129.1516315 | BF179: -1.58258289 | BG179: -119.1302023 | BH179: 60.86979767 | BI179: 60.86979767 | BJ179: 0 | BK179: 0 | BM179: -19.65580632 | BN179: -169.9785709 | BQ179: 34.97518423 | BT179: 4897.788 | BU179: 2.17956 | BV179: -239.481
A180: 73000 | B180: 73 | C180: 1.010714085 | D180: 0.1457346352 | F180: 0.00676931124 | G180: 0.0299472841 | H180: -3.111645366 | J180: 15 | M180: 0.0309354206 | N180: -1.570796325 | O180: 17.43532343 | P180: 1.513410005 | Q180: 14.64199091 | R180: 1.502446398 | S180: 0.9874994068 | T180: -0.1582828135 | U180: 0.960311874 | V180: -0.2826781384 | X180: -2.286012637 | Y180: -112.4035253 | Z180: 67.59647471 | AC180: 1 | AD180: 17.4066224 | AE180: -0.0004471006108 | AF180: 0.001539305 | AG180: 10254.30931 | AH180: -3628.071082 | AJ180: 21000 | AK180: 3351.978827 | AL180: 1 | AM180: 14.60780264 | AN180: 326.3479228 | AO180: -1415.24722 | AQ180: 0.4691091617 | AR180: -68.48993761 | AT180: -243675.9716 | AU180: -704018.9664 | AV180: -1.904011579 | AW180: -86643.48003 | AX180: -31982.87166 | AY180: -2.787976525 | BA180: 8.066407396 | BB180: 18.13360305 | BC180: 0.8839649465 | BD180: -129.3525393 | BF180: -1.641115759 | BG180: -119.2867067 | BH180: 60.71329325 | BI180: 60.71329325 | BJ180: 0 | BK180: 0 | BM180: -19.77471881 | BN180: -169.9341675 | BQ180: 35.03556385 | BT180: 5011.872 | BU180: 2.08934 | BV180: -238.507
A181: 73500 | B181: 73.5 | C181: 1.010860565 | D181: 0.1467186017 | F181: 0.006676946052 | G181: 0.02974092109 | H181: -3.111851729 | J181: 15 | M181: 0.03072497556 | N181: -1.570796325 | O181: 17.55435195 | P181: 1.513799541 | Q181: 14.74181232 | R181: 1.502909931 | S181: 0.987330831 | T181: -0.1593487436 | U181: 0.9597987978 | V181: -0.2845118055 | X181: -2.351389871 | Y181: -112.4762293 | Z181: 67.52377068 | AC181: 1 | AD181: 17.52584584 | AE181: -0.0004532462516 | AF181: 0.001549848185 | AG181: 10243.35488 | AH181: -3640.848347 | AJ181: 21000 | AK181: 3374.937586 | AL181: 1 | AM181: 14.70785608 | AN181: 325.0403154 | AO181: -1405.708594 | AQ181: 0.4627487274 | AR181: -68.02406293 | AT181: -242925.1977 | AU181: -698479.4149 | AV181: -1.905502302 | AW181: -85350.31978 | AX181: -31703.2583 | AY181: -2.785939153 | BA181: 8.122264415 | BB181: 18.19354247 | BC181: 0.8804368512 | BD181: -129.5546842 | BF181: -1.699249913 | BG181: -119.4442983 | BH181: 60.55570169 | BI181: 60.55570169 | BJ181: 0 | BK181: 0 | BM181: -19.89279238 | BN181: -169.8896141 | BQ181: 35.09550327 | BT181: 5128.614 | BU181: 1.79547 | BV181: -237.881
A182: 74000 | B182: 74 | C182: 1.011008023 | D182: 0.1477022823 | F182: 0.006586462326 | G182: 0.02953740017 | H182: -3.11205525 | J182: 15 | M182: 0.03051737438 | N182: -1.570796325 | O182: 17.67338309 | P182: 1.514183829 | Q182: 14.84163685 | R182: 1.503367229 | S182: 0.9871611917 | T182: -0.1604143087 | U182: 0.9592830494 | V182: -0.286343508 | X182: -2.416368499 | Y182: -112.5493113 | Z182: 67.45068867 | AC182: 1 | AD182: 17.64506928 | AE182: -0.0004594338422 | AF182: 0.00156039137 | AG182: 10232.34929 | AH182: -3653.626685 | AJ182: 21000 | AK182: 3397.896345 | AL182: 1 | AM182: 14.80790952 | AN182: 323.7589635 | AO182: -1396.297094 | AQ182: 0.456516777 | AR182: -67.56448299 | AT182: -242184.1589 | AU182: -693011.3316 | AV182: -1.906995679 | AW182: -84083.365 | AX182: -31429.53731 | AY182: -2.783883057 | BA182: 8.178097702 | BB182: 18.25304589 | BC182: 0.8768873782 | BD182: -129.7580541 | BF182: -1.756992645 | BG182: -119.6029683 | BH182: 60.39703171 | BI182: 60.39703171 | BJ182: 0 | BK182: 0 | BM182: -20.01003854 | BN182: -169.8449142 | BQ182: 35.15500669 | BT182: 5248.075 | BU182: 1.60241 | BV182: -238.28
A183: 74500 | B183: 74.5 | C183: 1.011156459 | D183: 0.1486856749 | F183: 0.006497809205 | G183: 0.02933666268 | H183: -3.112255987 | J183: 15 | M183: 0.03031255978 | N183: -1.570796325 | O183: 17.79241681 | P183: 1.514562975 | Q183: 14.94146445 | R183: 1.503818417 | S183: 0.9869904907 | T183: -0.1614795064 | U183: 0.9587646433 | V183: -0.2881732369 | X183: -2.480954501 | Y183: -112.6227609 | Z183: 67.37723906 | AC183: 1 | AD183: 17.76429272 | AE183: -0.0004656633825 | AF183: 0.001570934555 | AG183: 10221.29295 | AH183: -3666.404709 | AJ183: 21000 | AK183: 3420.855104 | AL183: 1 | AM183: 14.90796296 | AN183: 322.5031699 | AO183: -1387.010209 | AQ183: 0.450409873 | AR183: -67.11107107 | AT183: -241452.5758 | AU183: -687613.3029 | AV183: -1.908491606 | AW183: -82841.92134 | AX183: -31161.53737 | AY183: -2.781808343 | BA183: 8.233905336 | BB183: 18.31211739 | BC183: 0.873316737 | BD183: -129.9626367 | BF183: -1.814351117 | BG183: -119.7627081 | BH183: 60.23729188 | BI183: 60.23729188 | BJ183: 0 | BK183: 0 | BM183: -20.12646851 | BN183: -169.8000714 | BQ183: 35.21407819 | BT183: 5370.318 | BU183: 1.48515 | BV183: -237.347
A184: 75000 | B184: 75 | C184: 1.011305873 | D184: 0.1496687779 | F184: 0.006410937541 | G184: 0.02913865158 | H184: -3.112453998 | J184: 15 | M184: 0.03011047605 | N184: -1.570796325 | O184: 17.91145305 | P184: 1.514937082 | Q184: 15.04129504 | R184: 1.504263615 | S184: 0.9868187295 | T184: -0.1625443346 | U184: 0.9582435944 | V184: -0.2900009831 | X184: -2.545153729 | Y184: -112.696568 | Z184: 67.30343196 | AC184: 1 | AD184: 17.88351616 | AE184: -0.0004719348726 | AF184: 0.00158147774 | AG184: 10210.18627 | AH184: -3679.181066 | AJ184: 21000 | AK184: 3443.813863 | AL184: 1 | AM184: 15.00801641 | AN184: 321.2722603 | AO184: -1377.845491 | AQ184: 0.4444246922 | AR184: -66.66370384 | AT184: -240730.1781 | AU184: -682283.9527 | AV184: -1.909989986 | AW184: -81625.31726 | AX184: -30899.09341 | AY184: -2.779715119 | BA184: 8.289685366 | BB184: 18.37076094 | BC184: 0.8697251327 | BD184: -130.1684205 | BF184: -1.871332373 | BG184: -119.9235094 | BH184: 60.07649057 | BI184: 60.07649057 | BJ184: 0 | BK184: 0 | BM184: -20.24209332 | BN184: -169.7550889 | BQ184: 35.27272175 | BT184: 5495.409 | BU184: 1.35836 | BV184: -235.612
A185: 75500 | B185: 75.5 | C185: 1.011456264 | D185: 0.1506515895 | F185: 0.006325799831 | G185: 0.02894331139 | H185: -3.112649339 | J185: 15 | M185: 0.02991106893 | N185: -1.570796325 | O185: 18.03049176 | P185: 1.51530625 | Q185: 15.14112858 | R185: 1.504702943 | S185: 0.98664591 | T185: -0.1636087911 | U185: 0.9577199173 | V185: -0.2918267378 | X185: -2.608971906 | Y185: -112.7707228 | Z185: 67.2292772 | AC185: 1 | AD185: 18.0027396 | AE185: -0.0004782483124 | AF185: 0.001592020925 | AG185: 10199.02965 | AH185: -3691.954438 | AJ185: 21000 | AK185: 3466.772622 | AL185: 1 | AM185: 15.10806985 | AN185: 320.0655826 | AO185: -1368.800556 | AQ185: 0.4385580212 | AR185: -66.22226121 | AT185: -240016.7049 | AU185: -677021.9419 | AV185: -1.911490722 | AW185: -80432.90315 | AX185: -30642.04632 | AY185: -2.777603488 | BA185: 8.345435806 | BB185: 18.42898042 | BC185: 0.8661127657 | BD185: -130.3753939 | BF185: -1.927943331 | BG185: -120.085364 | BH185: 59.91463597 | BI185: 59.91463597 | BJ185: 0 | BK185: 0 | BM185: -20.35692375 | BN185: -169.7099701 | BQ185: 35.33094122 | BT185: 5623.413 | BU185: 1.07298 | BV185: -235.138
A186: 76000 | B186: 76 | C186: 1.011607631 | D186: 0.151634108 | F186: 0.006242350145 | G186: 0.02875058811 | H186: -3.112842062 | J186: 15 | M186: 0.02971428558 | N186: -1.570796325 | O186: 18.1495329 | P186: 1.515670575 | Q186: 15.240965 | R186: 1.505136515 | S186: 0.9864720338 | T186: -0.1646728736 | U186: 0.9571936267 | V186: -0.2936504919 | X186: -2.672414632 | Y186: -112.8452156 | Z186: 67.1547844 | AC186: 1 | AD186: 18.12196304 | AE186: -0.000484603702 | AF186: 0.00160256411 | AG186: 10187.8235 | AH186: -3704.723541 | AJ186: 21000 | AK186: 3489.731381 | AL186: 1 | AM186: 15.20812329 | AN186: 318.8825057 | AO186: -1359.873082 | AQ186: 0.4328067518 | AR186: -65.78662627 | AT186: -239311.9042 | AU186: -671825.9665 | AV186: -1.912993719 | AW186: -79264.0505 | AX186: -30390.24272 | AY186: -2.775473551 | BA186: 8.401154641 | BB186: 18.48677958 | BC186: 0.8624798321 | BD186: -130.5835457 | BF186: -1.984190796 | BG186: -120.2482639 | BH186: 59.75173614 | BI186: 59.75173614 | BJ186: 0 | BK186: 0 | BM186: -20.47097037 | BN186: -169.6647182 | BQ186: 35.38874038 | BT186: 5754.399 | BU186: 0.869153 | BV186: -234.689
A187: 76500 | B187: 76.5 | C187: 1.011759975 | D187: 0.1526163315 | F187: 0.006160544068 | G187: 0.02856042922 | H187: -3.113032221 | J187: 15 | M187: 0.02952007456 | N187: -1.570796325 | O187: 18.26857642 | P187: 1.516030151 | Q187: 15.34080425 | R187: 1.505564444 | S187: 0.9862971028 | T187: -0.1657365799 | U187: 0.9566647376 | V187: -0.2954722367 | X187: -2.735487387 | Y187: -112.9200371 | Z187: 67.07996293 | AC187: 1 | AD187: 18.24118648 | AE187: -0.0004910010414 | AF187: 0.001613107295 | AG187: 10176.56822 | AH187: -3717.487122 | AJ187: 21000 | AK187: 3512.69014 | AL187: 1 | AM187: 15.30817674 | AN187: 317.7224191 | AO187: -1351.060805 | AQ187: 0.427167877 | AR187: -65.35668518 | AT187: -238615.5324 | AU187: -666694.7565 | AV187: -1.914498884 | AW187: -78118.15104 | AX187: -30143.53469 | AY187: -2.773325408 | BA187: 8.456839819 | BB187: 18.54416209 | BC187: 0.8588265238 | BD187: -130.7928648 | BF187: -2.040081458 | BG187: -120.412201 | BH187: 59.58779895 | BI187: 59.58779895 | BJ187: 0 | BK187: 0 | BM187: -20.58424355 | BN187: -169.6193363 | BQ187: 35.44612289 | BT187: 5888.437 | BU187: 0.803236 | BV187: -233.954
A188: 77000 | B188: 77 | C188: 1.011913295 | D188: 0.1535982583 | F188: 0.006080338637 | G188: 0.02837278359 | H188: -3.113219866 | J188: 15 | M188: 0.02932838577 | N188: -1.570796325 | O188: 18.38762227 | P188: 1.516385072 | Q188: 15.44064627 | R188: 1.505986838 | S188: 0.9861211186 | T188: -0.1667999078 | U188: 0.9561332647 | V188: -0.2972919633 | X188: -2.798195534 | Y188: -112.9951781 | Z188: 67.00482192 | AC188: 1 | AD188: 18.36040992 | AE188: -0.0004974403306 | AF188: 0.00162365048 | AG188: 10165.26422 | AH188: -3730.243961 | AJ188: 21000 | AK188: 3535.648899 | AL188: 1 | AM188: 15.40823018 | AN188: 316.5847318 | AO188: -1342.361519 | AQ188: 0.4216384872 | AR188: -64.93232702 | AT188: -237927.3541 | AU188: -661627.0753 | AV188: -1.91600613 | AW188: -76994.616 | AX188: -29901.77955 | AY188: -2.771159159 | BA188: 8.512489257 | BB188: 18.60113154 | BC188: 0.855153029 | BD188: -131.0033405 | BF188: -2.095621898 | BG188: -120.5771678 | BH188: 59.42283216 | BI188: 59.42283216 | BJ188: 0 | BK188: 0 | BM188: -20.69675344 | BN188: -169.5738273 | BQ188: 35.50309234 | BT188: 6025.596 | BU188: 0.769928 | BV188: -234.147
A189: 77500 | B189: 77.5 | C189: 1.01206759 | D189: 0.1545798867 | F189: 0.006001692288 | G189: 0.02818760145 | H189: -3.113405049 | J189: 15 | M189: 0.02913917037 | N189: -1.570796325 | O189: 18.5066704 | P189: 1.516735427 | Q189: 15.54049101 | R189: 1.506403805 | S189: 0.985944083 | T189: -0.1678628551 | U189: 0.9555992229 | V189: -0.2991096632 | X189: -2.860544323 | Y189: -113.0706297 | Z189: 66.9293703 | AC189: 1 | AD189: 18.47963337 | AE189: -0.0005039215695 | AF189: 0.001634193665 | AG189: 10153.91192 | AH189: -3742.992867 | AJ189: 21000 | AK189: 3558.607658 | AL189: 1 | AM189: 15.50828362 | AN189: 315.4688715 | AO189: -1333.773075 | AQ189: 0.4162157663 | AR189: -64.51344377 | AT189: -237247.1416 | AU189: -656621.7181 | AV189: -1.917515367 | AW189: -75892.87534 | AX189: -29664.83964 | AY189: -2.768974899 | BA189: 8.56810084 | BB189: 18.65769138 | BC189: 0.8514595321 | BD189: -131.2149623 | BF189: -2.15081859 | BG189: -120.7431566 | BH189: 59.25684339 | BI189: 59.25684339 | BJ189: 0 | BK189: 0 | BM189: -20.80850997 | BN189: -169.5281943 | BQ189: 35.55965218 | BT189: 6165.95 | BU189: 0.469478 | BV189: -232.056
A190: 78000 | B190: 78 | C190: 1.012222859 | D190: 0.1555612149 | F190: 0.0059245648 | G190: 0.02800483435 | H190: -3.113587816 | J190: 15 | M190: 0.02895238082 | N190: -1.570796325 | O190: 18.62572078 | P190: 1.517081302 | Q190: 15.64033842 | R190: 1.506815449 | S190: 0.9857659979 | T190: -0.1689254197 | U190: 0.9550626271 | V190: -0.3009253278 | X190: -2.922538893 | Y190: -113.1463832 | Z190: 66.85361676 | AC190: 1 | AD190: 18.59885681 | AE190: -0.0005104447582 | AF190: 0.00164473685 | AG190: 10142.5117 | AH190: -3755.732679 | AJ190: 21000 | AK190: 3581.566417 | AL190: 1 | AM190: 15.60833706 | AN190: 314.3742843 | AO190: -1325.293376 | AQ190: 0.4108969881 | AR190: -64.09993015 | AT190: -236574.6749 | AU190: -651677.511 | AV190: -1.91902651 | AW190: -74812.37706 | AX190: -29432.58211 | AY190: -2.766772724 | BA190: 8.623672417 | BB190: 18.71384502 | BC190: 0.8477462139 | BD190: -131.4277198 | BF190: -2.205677903 | BG190: -120.9101599 | BH190: 59.0898401 | BI190: 59.0898401 | BJ190: 0 | BK190: 0 | BM190: -20.91952292 | BN190: -169.4824401 | BQ190: 35.61580582 | BT190: 6309.573 | BU190: 0.369853 | BV190: -231.369
A191: 78500 | B191: 78.5 | C191: 1.012379104 | D191: 0.1565422411 | F191: 0.005848917243 | G191: 0.02782443508 | H191: -3.113768215 | J191: 15 | M191: 0.02876797075 | N191: -1.570796325 | O191: 18.74477336 | P191: 1.517422785 | Q191: 15.74018845 | R191: 1.50722187 | S191: 0.9855868648 | T191: -0.1699875992 | U191: 0.9545234922 | V191: -0.3027389483 | X191: -2.984184277 | Y191: -113.2224302 | Z191: 66.77756979 | AC191: 1 | AD191: 18.71808025 | AE191: -0.0005170098966 | AF191: 0.001655280035 | AG191: 10131.064 | AH191: -3768.462266 | AJ191: 21000 | AK191: 3604.525177 | AL191: 1 | AM191: 15.70839051 | AN191: 313.3004335 | AO191: -1316.920378 | AQ191: 0.4056795132 | AR191: -63.69168357 | AT191: -235909.7411 | AU191: -646793.3102 | AV191: -1.920539476 | AW191: -73752.58652 | AX191: -29204.8787 | AY191: -2.764552728 | BA191: 8.679201807 | BB191: 18.76959573 | BC191: 0.8440132519 | BD191: -131.6416028 | BF191: -2.260206107 | BG191: -121.0781703 | BH191: 58.92182968 | BI191: 58.92182968 | BJ191: 0 | BK191: 0 | BM191: -21.02980184 | BN191: -169.4365676 | BQ191: 35.67155653 | BT191: 6456.542 | BU191: 0.127676 | BV191: -230.779
A192: 79000 | B192: 79 | C192: 1.012536322 | D192: 0.1575229636 | F192: 0.005774711926 | G192: 0.0276463577 | H192: -3.113946292 | J192: 15 | M192: 0.02858589499 | N192: -1.570796325 | O192: 18.86382809 | P192: 1.517759957 | Q192: 15.84004104 | R192: 1.507623167 | S192: 0.9854066857 | T192: -0.1710493916 | U192: 0.953981833 | V192: -0.3045505166 | X192: -3.045485402 | Y192: -113.2987623 | Z192: 66.70123769 | AC192: 1 | AD192: 18.83730369 | AE192: -0.0005236169848 | AF192: 0.001665823219 | AG192: 10119.5692 | AH192: -3781.180523 | AJ192: 21000 | AK192: 3627.483936 | AL192: 1 | AM192: 15.80844395 | AN192: 312.2467993 | AO192: -1308.652089 | AQ192: 0.4005607851 | AR192: -63.28860405 | AT192: -235252.1344 | AU192: -641968.0008 | AV192: -1.922054184 | AW192: -72712.98576 | AX192: -28981.60559 | AY192: -2.762315004 | BA192: 8.734686795 | BB192: 18.82494674 | BC192: 0.8402608204 | BD192: -131.8566012 | BF192: -2.314409371 | BG192: -121.2471806 | BH192: 58.75281937 | BI192: 58.75281937 | BJ192: 0 | BK192: 0 | BM192: -21.13935611 | BN192: -169.3905794 | BQ192: 35.72690754 | BT192: 6606.934 | BU192: 0.0369381 | BV192: -229.609
A193: 79500 | B193: 79.5 | C193: 1.012694514 | D193: 0.1585033806 | F193: 0.005701912356 | G193: 0.02747055742 | H193: -3.114122093 | J193: 15 | M193: 0.02840610948 | N193: -1.570796325 | O193: 18.98288494 | P193: 1.5180929 | Q193: 15.93989615 | R193: 1.508019436 | S193: 0.9852254624 | T193: -0.1721107947 | U193: 0.9534376646 | V193: -0.306360024 | X193: -3.106447095 | Y193: -113.3753715 | Z193: 66.62462855 | AC193: 1 | AD193: 18.95652713 | AE193: -0.0005302660228 | AF193: 0.001676366404 | AG193: 10108.02772 | AH193: -3793.886374 | AJ193: 21000 | AK193: 3650.442695 | AL193: 1 | AM193: 15.90849739 | AN193: 311.2128781 | AO193: -1300.486565 | AQ193: 0.3955383277 | AR193: -62.8905941 | AT193: -234601.6556 | AU193: -637200.4962 | AV193: -1.923570553 | AW193: -71693.07291 | AX193: -28762.64315 | AY193: -2.760059643 | BA193: 8.790125131 | BB193: 18.87990115 | BC193: 0.8364890908 | BD193: -132.0727054 | BF193: -2.368293771 | BG193: -121.4171837 | BH193: 58.58281632 | BI193: 58.58281632 | BJ193: 0 | BK193: 0 | BM193: -21.24819492 | BN193: -169.3444782 | BQ193: 35.78186195 | BT193: 6760.83 | BU193: -0.0490191 | BV193: -229.1
A194: 80000 | B194: 80 | C194: 1.012853679 | D194: 0.1594834905 | F194: 0.005630483186 | G194: 0.02729699064 | H194: -3.114295659 | J194: 15 | M194: 0.0282285713 | N194: -1.570796325 | O194: 19.10194388 | P194: 1.518421692 | Q194: 16.03975373 | R194: 1.508410771 | S194: 0.9850431965 | T194: -0.1731718062 | U194: 0.952891002 | V194: -0.3081674623 | X194: -3.167074084 | Y194: -113.4522497 | Z194: 66.54775027 | AC194: 1 | AD194: 19.07575057 | AE194: -0.0005369570106 | AF194: 0.001686909589 | AG194: 10096.43998 | AH194: -3806.578769 | AJ194: 21000 | AK194: 3673.401454 | AL194: 1 | AM194: 16.00855083 | AN194: 310.1981818 | AO194: -1292.421908 | AQ194: 0.3906097418 | AR194: -62.49755869 | AT194: -233958.1122 | AU194: -632489.7367 | AV194: -1.925088505 | AW194: -70692.36159 | AX194: -28547.87584 | AY194: -2.757786736 | BA194: 8.845514535 | BB194: 18.93446201 | BC194: 0.8326982313 | BD194: -132.2899057 | BF194: -2.421865289 | BG194: -121.5881724 | BH194: 58.41182759 | BI194: 58.41182759 | BJ194: 0 | BK194: 0 | BM194: -21.3563273 | BN194: -169.2982667 | BQ194: 35.83642281 | BT194: 6918.31 | BU194: -0.217983 | BV194: -228.376
A195: 80500 | B195: 80.5 | C195: 1.013013817 | D195: 0.1604632914 | F195: 0.005560390178 | G195: 0.02712561482 | H195: -3.114467035 | J195: 15 | M195: 0.02805323856 | N195: -1.570796325 | O195: 19.22100485 | P195: 1.518746411 | Q195: 16.13961374 | R195: 1.508797263 | S195: 0.98485989 | T195: -0.174232424 | U195: 0.95234186 | V195: -0.3099728234 | X195: -3.227370999 | Y195: -113.5293894 | Z195: 66.47061056 | AC195: 1 | AD195: 19.19497401 | AE195: -0.0005436899481 | AF195: 0.001697452774 | AG195: 10084.80637 | AH195: -3819.256682 | AJ195: 21000 | AK195: 3696.360213 | AL195: 1 | AM195: 16.10860428 | AN195: 309.2022373 | AO195: -1284.45627 | AQ195: 0.3857727027 | AR195: -62.10940514 | AT195: -233321.3176 | AU195: -627834.6893 | AV195: -1.926607965 | AW195: -69710.38033 | AX195: -28337.19202 | AY195: -2.755496373 | BA195: 8.900852693 | BB195: 18.98863227 | BC195: 0.8288884078 | BD195: -132.5081925 | BF195: -2.475129817 | BG195: -121.7601399 | BH195: 58.23986013 | BI195: 58.23986013 | BJ195: 0 | BK195: 0 | BM195: -21.46376209 | BN195: -169.2519474 | BQ195: 35.89059307 | BT195: 7079.458 | BU195: -0.384014 | BV195: -227.044
A196: 81000 | B196: 81 | C196: 1.013174927 | D196: 0.1614427816 | F196: 0.005491600154 | G196: 0.02695638855 | H196: -3.114636261 | J196: 15 | M196: 0.02788007042 | N196: -1.570796325 | O196: 19.34006782 | P196: 1.519067133 | Q196: 16.23947613 | R196: 1.509179003 | S196: 0.9846755447 | T196: -0.175292646 | U196: 0.9517902538 | V196: -0.3117760989 | X196: -3.287342379 | Y196: -113.606783 | Z196: 66.39321696 | AC196: 1 | AD196: 19.31419745 | AE196: -0.0005504648354 | AF196: 0.001707995959 | AG196: 10073.1273 | AH196: -3831.919114 | AJ196: 21000 | AK196: 3719.318972 | AL196: 1 | AM196: 16.20865772 | AN196: 308.224586 | AO196: -1276.587844 | AQ196: 0.3810249571 | AR196: -61.72604306 | AT196: -232691.0913 | AU196: -623234.3464 | AV196: -1.928128859 | AW196: -68746.67205 | AX196: -28130.48374 | AY196: -2.753188642 | BA196: 8.956137256 | BB196: 19.04241481 | BC196: 0.8250597833 | BD196: -132.7275565 | BF196: -2.528093159 | BG196: -121.9330792 | BH196: 58.06692081 | BI196: 58.06692081 | BJ196: 0 | BK196: 0 | BM196: -21.57050797 | BN196: -169.2055227 | BQ196: 35.94437561 | BT196: 7244.36 | BU196: -0.57486 | BV196: -226.239
A197: 81500 | B197: 81.5 | C197: 1.013337009 | D197: 0.1624219595 | F197: 0.005424080966 | G197: 0.02678927143 | H197: -3.114803379 | J197: 15 | M197: 0.02770902704 | N197: -1.570796325 | O197: 19.45913276 | P197: 1.519383929 | Q197: 16.33934086 | R197: 1.509556076 | S197: 0.9844901623 | T197: -0.1763524699 | U197: 0.9512361983 | V197: -0.3135772808 | X197: -3.346992671 | Y197: -113.6844232 | Z197: 66.31557684 | AC197: 1 | AD197: 19.43342089 | AE197: -0.0005572816724 | AF197: 0.001718539144 | AG197: 10061.40319 | AH197: -3844.565089 | AJ197: 21000 | AK197: 3742.277731 | AL197: 1 | AM197: 16.30871116 | AN197: 307.2647832 | AO197: -1268.814869 | AQ197: 0.3763643207 | AR197: -61.34738427 | AT197: -232067.2587 | AU197: -618687.7251 | AV197: -1.929651113 | AW197: -67800.79347 | AX197: -27927.64669 | AY197: -2.750863632 | BA197: 9.011365845 | BB197: 19.09581243 | BC197: 0.8212125187 | BD197: -132.9479885 | BF197: -2.580761032 | BG197: -122.1069836 | BH197: 57.89301644 | BI197: 57.89301644 | BJ197: 0 | BK197: 0 | BM197: -21.67657346 | BN197: -169.158995 | BQ197: 35.99777323 | BT197: 7413.102 | BU197: -0.7333 | BV197: -225.834
A198: 82000 | B198: 82 | C198: 1.013500062 | D198: 0.1634008232 | F198: 0.00535780145 | G198: 0.02662422408 | H198: -3.114968426 | J198: 15 | M198: 0.02754006956 | N198: -1.570796325 | O198: 19.57819962 | P198: 1.519696872 | Q198: 16.43920788 | R198: 1.509928568 | S198: 0.9843037448 | T198: -0.1774118937 | U198: 0.9506797087 | V198: -0.3153763612 | X198: -3.406326233 | Y198: -113.7623026 | Z198: 66.23769739 | AC198: 1 | AD198: 19.55264434 | AE198: -0.0005641404592 | AF198: 0.001729082329 | AG198: 10049.63445 | AH198: -3857.193657 | AJ198: 21000 | AK198: 3765.23649 | AL198: 1 | AM198: 16.40876461 | AN198: 306.3223976 | AO198: -1261.135625 | AQ198: 0.3717886753 | AR198: -60.97334275 | AT198: -231449.6506 | AU198: -614193.8665 | AV198: -1.931174657 | AW198: -66872.31472 | AX198: -27728.57997 | AY198: -2.74852143 | BA198: 9.066536047 | BB198: 19.14882785 | BC198: 0.8173467725 | BD198: -133.1694795 | BF198: -2.633139071 | BG198: -122.2818463 | BH198: 57.71815374 | BI198: 57.71815374 | BJ198: 0 | BK198: 0 | BM198: -21.78196692 | BN198: -169.1123668 | BQ198: 36.05078865 | BT198: 7585.776 | BU198: -0.870902 | BV198: -224.429
A199: 82500 | B199: 82.5 | C199: 1.013664085 | D199: 0.1643793711 | F199: 0.005292731393 | G199: 0.02646120809 | H199: -3.115131442 | J199: 15 | M199: 0.02737316005 | N199: -1.570796325 | O199: 19.69726838 | P199: 1.520006032 | Q199: 16.53907716 | R199: 1.510296561 | S199: 0.9841162939 | T199: -0.1784709152 | U199: 0.9501207999 | V199: -0.3171733319 | X199: -3.465347337 | Y199: -113.8404144 | Z199: 66.15958563 | AC199: 1 | AD199: 19.67186778 | AE199: -0.0005710411958 | AF199: 0.001739625514 | AG199: 10037.82147 | AH199: -3869.803887 | AJ199: 21000 | AK199: 3788.195249 | AL199: 1 | AM199: 16.50881805 | AN199: 305.3970107 | AO199: -1253.548433 | AQ199: 0.3672959671 | AR199: -60.60383457 | AT199: -230838.1033 | AU199: -609751.8353 | AV199: -1.932699422 | AW199: -65960.81875 | AX199: -27533.186 | AY199: -2.746162123 | BA199: 9.121645415 | BB199: 19.20146372 | BC199: 0.8134627009 | BD199: -133.3920204 | BF199: -2.68523283 | BG199: -122.4576606 | BH199: 57.54233936 | BI199: 57.54233936 | BJ199: 0 | BK199: 0 | BM199: -21.88669655 | BN199: -169.0656402 | BQ199: 36.10342452 | BT199: 7762.471 | BU199: -1.03486 | BV199: -223.255
A200: 83000 | B200: 83 | C200: 1.013829079 | D200: 0.1653576014 | F200: 0.005228841499 | G200: 0.02630018602 | H200: -3.115292464 | J200: 15 | M200: 0.02720826149 | N200: -1.570796325 | O200: 19.81633901 | P200: 1.520311476 | Q200: 16.63894865 | R200: 1.510660137 | S200: 0.9839278116 | T200: -0.1795295322 | U200: 0.9495594871 | V200: -0.3189681853 | X200: -3.52406017 | Y200: -113.9187516 | Z200: 66.08124844 | AC200: 1 | AD200: 19.79109122 | AE200: -0.0005779838822 | AF200: 0.001750168699 | AG200: 10025.96468 | AH200: -3882.394875 | AJ200: 21000 | AK200: 3811.154008 | AL200: 1 | AM200: 16.60887149 | AN200: 304.4882167 | AO200: -1246.051653 | AQ200: 0.3628842037 | AR200: -60.23877781 | AT200: -230232.458 | AU200: -605360.7183 | AV200: -1.934225339 | AW200: -65065.90094 | AX200: -27341.37036 | AY200: -2.743785797 | BA200: 9.176691473 | BB200: 19.25372261 | BC200: 0.8095604583 | BD200: -133.6156024 | BF200: -2.737047783 | BG200: -122.6344201 | BH200: 57.36557991 | BI200: 57.36557991 | BJ200: 0 | BK200: 0 | BM200: -21.9907704 | BN200: -169.0188177 | BQ200: 36.15568341 | BT200: 7943.282 | BU200: -1.2308 | BV200: -223.135
A201: =A200+500 -> 83500 | B201: 83.5 | C201: =SQRT((A201/Fesr)^2+1) -> 1.013995043 | D201: =ATAN(A201/Fesr) -> 0.1663355124 | F201: =(Ro/(Ro+Rdcr))/SQRT((A201/(Q*Fo))^2+(1-(A201^2/Fo^2))^2) -> 0.005166103356 | G201: =-ATAN(A201*Fo/(Q*(Fo^2-A201^2))) -> 0.02614112134 | H201: =IF(G201>0,G201-Pi,G201) -> -3.115451529 | J201: =Vin/Vramp -> 15 | M201: =1/(2*Pi*_Rfb1*(Cc1ea_u+Cc2ea_u)*A201) -> 0.02704533777 | N201: =-Pi/2 -> -1.570796325 | O201: =SQRT(1+(A201/Fz1_u)^2) -> 19.93541145 | P201: =ATAN2(Fz1_u,A201) -> 1.520613272 | Q201: =SQRT(1+(A201/Fz2_u)^2) -> 16.73882231 | R201: =ATAN2(Fz2_u,A201) -> 1.511019374 | S201: =1/SQRT(1+(A201/Fp1_u)^2) -> 0.9837382996 | T201: =-ATAN2(Fp1_u,A201) -> -0.1805877425 | U201: =1/SQRT(1+(A201/Fp2_u)^2) -> 0.9489957854 | V201: =-ATAN2(Fp2_u,A201) -> -0.3207609133 | X201: -3.582468838 | Y201: =(180/Pi)*(D201+H201+N201+P201+R201+T201+V201) -> -113.9973075 | Z201: 66.00269253 | AC201: 1 | AD201: =Rcea1_u*Cc1ea_u*A201*2*Pi -> 19.91031466 | AE201: =-Rcea1_u*Cc1ea_u*Cc2ea_u*(A201*2*Pi)^2 -> -0.0005849685183 | AF201: =(Cc2ea_u+Cc1ea_u)*A201*2*Pi -> 0.001760711884 | AG201: 10014.06447 | AH201: -3894.965735 | AJ201: =_Rfb1 -> 21000 | AK201: =_Rfb1*Rcea2_u*Cc3ea_u*A201*2*Pi -> 3834.112767 | AL201: 1 | AM201: =(_Rfb1+Rcea2_u)*Cc3ea_u*A201*2*Pi -> 16.70892493 | AN201: 303.5956217 | AO201: -1238.643687 | AQ201: =Eadcg/(1+(Eadcg*A201/GBP)^2) -> 0.3585514521 | AR201: =-(A201*Eadcg*Eadcg/GBP)/(1+(Eadcg*A201/GBP)^2) -> -59.87809251 | AT201: -229632.5612 | AU201: -601019.6245 | AV201: -1.935752343 | AW201: -64187.16865 | AX201: -27153.04171 | AY201: -2.74139254 | BA201: =SQRT(AT201^2+AU201^2)/SQRT(AW201^2+AX201^2) -> 9.231671708 | BB201: 19.30560704 | BC201: 0.8056401971 | BD201: =BC201*180/Pi-180 -> -133.8402168 | BF201: =20*LOG(BA201*J201*F201*C201) -> -2.788589325 | BG201: =(180/Pi)*(D201+H201+BC201) -> -122.8121181 | BH201: 57.18788194 | BI201: 57.18788194 | BJ201: =SUM((BF202<0)*(BF201>0))*A201 -> 0 | BK201: 0 | BM201: -22.09419636 | BN201: =(H201+D201)*180/Pi -> -168.9719012 | BQ201: 36.20756784 | BT201: 8128.305 | BU201: -1.35261 | BV201: -221.982
... 491 more rows

Sheet Schematic Management (hidden)
A2: =IF(RDSON_sense=1, "SCH_RDSON", "SCH_SHUNT") -> SCH_RDSON

Sheet Power Calculations (hidden)
A1: BUCK CONTROLLER POWER TOOL
AA5: Scale QossBot appropriately
A6: Enter the values of your design and FET datasheet specifications below. Note that thermal resistance ("Theta JA") will change when components are placed on the PCB | BH6: 80 | BI6: 100 | BJ6: 120 | BK6: 140 | BL6: 160 | BM6: 180 | BN6: 20 | BO6: 30 | BP6: 40 | BQ6: 50
G7: Currents | N7: INDUCTOR | R7: Cout | U7: Cin | X7: HIGH SIDE FET losses | AD7: LOW SIDE FET Losses | AH7: Shunt | AI7: External Diode | AJ7: Diode/FET | AK7: Part Losses | AO7: RESULSTS
A8: Input Parameters | G8: Step | H8: Iout | I8: Duty Cycle | J8: Current Ripple p-p | K8: Peak Inductor Current | L8: Inductor Valley Current | M8: SW node voltage at Q1 turn-on | N8: IRMS | O8: DCR Loss | P8: Core | Q8: Total Inductor Loss/Diss | R8: Irms | S8: Cout Esr Loss | T8: Total Cout Loss/Diss | U8: Irms | V8: Cin Esr Loss | W8: Total Cin Loss/Diss | X8: Irms | Y8: RDSON Loss | Z8: Transitional Loss (not including capacitive loss) | AA8: MOSFET Output Capacitance Loss | AB8: Dead Time Loss | AC8: Total Top FET Loss/Diss | AD8: Irms | AE8: RDSON Loss | AF8: DeadTime Loss | AG8: Total Bottom FET Diss/Loss | AH8: Shunt Loss (if applicable) | AI8: DeadTime Loss | AJ8: Reverse Recovery Loss | AK8: IQ Loss | AL8: Switching Current Loss | AM8: Switching Current Diss | AN8: Total Part Loss | AO8: Total Loss | AP8: OUTPUT POWER | AQ8: EFF | AR8: Top FET Temp Rise | AS8: Bottom FET Temp Rise | BF8: Qg | BH8: θJA=80 | BI8: θJA=100 | BJ8: θJA=120 | BK8: θJA=140 | BL8: θJA=160 | BM8: θJA=180 | BN8: θJA=20 | BO8: θJA=30 | BP8: θJA=40 | BQ8: θJA=50
A9: Design | B9: Input Value | C9: Units | D9: Description | G9: 0 | H9: =Iout*(G9/200) -> 0 | I9: =(Vout+Rdcr*H9+RdsonBot*H9)/(Vin-RdsonTop*H9+RdsonBot*H9) -> 0.1785714286 | J9: =(Vin-Vout)*I9/(Fsw*Lout2) -> 3.733766234 | K9: =H9+J9/2 -> 1.866883117 | L9: =H9-J9/2 -> -1.866883117 | M9: =IF(MIN(Vin, -L9/(CossTop+CossBot)*0.00000002)<0, 0, MIN(Vin, -L9/(CossTop+CossBot)*0.00000002)) -> 28 | N9: =SQRT(H9^2+(J9^2)/12) -> 1.07784547 | O9: =(N9^2*Rdcr*(1+Ltc*Ta-Ltc*25))/(1-N9^2*Rdcr*Ltc*ThetaCa) -> 0.003486224602 | P9: =ABS(Core_Loss) -> 0.6 | Q9: =O9+P9 -> 0.6034862246 | R9: =J9/(2*SQRT(3)) -> 1.07784547 | S9: =RCoutEsr*R9^2 -> 0.001161750857 | T9: =S9 -> 0.001161750857 | U9: =SQRT(I9)*SQRT(H9^2+(J9^2)/12) -> 0.4554728425 | V9: =RCinEsr*U9^2 -> 0.0004149110205 | W9: =V9 -> 0.0004149110205 | X9: =SQRT(I9)*SQRT(H9^2+(J9^2)/12) -> 0.4554728425 | Y9: =RdsonTop*X9^2 -> 0.00182560849 | Z9: =IF(L9<0, (Vin*K9*Tf/2)*Fsw, (Vin*L9*Tr/2+Vin*K9*Tf/2)*Fsw) -> 0.01602701544 | AA9: =(0.5*CossTop*(Vin-M9)^2-0.5*CossBot*(Vin-M9)^2+(QossBot*(Vin-M9)/Vin)*Vin)*Fsw -> 0 | AB9: =IF(L9>0,0,-L9*VsdTop*Deadtime*Fsw) -> 0.0224025974 | AC9: =(AB9+AA9+Z9+Y9*(1+RdsonTopTc*Ta-RdsonTopTc*25))/(1-Y9*RdsonTopTc*ThetaJaTop) -> 0.04027139569 | AD9: =SQRT(1-I9)*SQRT(H9^2+(J9^2)/12) -> 0.976880416 | AE9: =RdsonBot*AD9^2 -> 0.008111510451 | AF9: =IF(L9<0, Deadtime*Fsw*IF(VfdSky>0,0,VsdBot)*K9, Deadtime*Fsw*IF(VfdSky>0,0,VsdBot)*(K9+L9)) -> 0.0224025974 | AG9: =(AF9+AE9*(1+RdsonBotTc*Ta-RdsonBotTc*25))/(1-AE9*RdsonBotTc*ThetaJaBot) -> 0.03056865861 | AH9: =IF(RDSON_sense=1, 0, AD9^2*Rshunt) -> 0 | AI9: =2*Deadtime*Fsw*IF(VfdSky>0,VfdSky,0)*H9 -> 0 | AJ9: =IF(L9<0, 0, IF(QrrSky>0,QrrSky,QrrBot)*Fsw*Vin*L9/$L$209) -> 0 | AK9: =Iq*Vin -> 0.084 | AL9: =Vin*(QgTop+QgBot)*Fsw -> 0.252 | AM9: =(Vin-Vdd)*Fsw*(QgTop+QgBot)+(RdsonDRT+RdsonDRT2)*Fsw*QgTop*Vdd/(RdsonDRT+2*RGateTop+RdsonDRT2)+(RdsonDRB+RdsonDRB2)*Fsw*QgBot*Vdd/(RdsonDRB+2*RGateBot+RdsonDRB2) -> 0.2230543767 | AN9: =SUM(AK9:AL9) -> 0.336 | AO9: =SUM(Q9,T9,W9,AC9,AJ9,AI9,AG9,AN9, AH9) -> 1.011902941 | AP9: =Vout*H9 -> 0 | AQ9: =AP9/(AP9+AO9) -> 0 | AR9: =ThetaJaTop*AC9 -> 2.214926763 | AS9: =AG9*ThetaJaBot -> 1.681276224 | AU9: =AQ9*100 -> 0 | BC9: 250kHz / 5-1.2V /25A | BD9: 70 | BE9: 70 | BF9: 70 | BG9: =250000*(5-Vdd)*BF9/1000000000+((250000*BF9/1000000000*Vdd)*2.5/(2*4)) -> -0.002734375 | BH9: =BH$6*$BG9 -> -0.21875 | BI9: -0.2734375 | BJ9: -0.328125 | BK9: -0.3828125 | BL9: -0.4375 | BM9: -0.4921875 | BN9: -0.0546875 | BO9: -0.08203125 | BP9: -0.109375 | BQ9: -0.13671875
G10: 1 | H10: 0.095 | I10: =(Vout+Rdcr*H10+RdsonBot*H10)/(Vin-RdsonTop*H10+RdsonBot*H10) -> 0.1786106282 | J10: =(Vin-Vout)*I10/(Fsw*Lout2) -> 3.734585863 | K10: =H10+J10/2 -> 1.962292931 | L10: =H10-J10/2 -> -1.772292931 | M10: 28 | N10: =SQRT(H10^2+(J10^2)/12) -> 1.082259656 | O10: =(N10^2*Rdcr*(1+Ltc*Ta-Ltc*25))/(1-N10^2*Rdcr*Ltc*ThetaCa) -> 0.003514845945 | P10: 0.6 | Q10: =O10+P10 -> 0.6035148459 | R10: =J10/(2*SQRT(3)) -> 1.078082077 | S10: 0.001162260964 | T10: =S10 -> 0.001162260964 | U10: =SQRT(I10)*SQRT(H10^2+(J10^2)/12) -> 0.4573883709 | V10: =RCinEsr*U10^2 -> 0.0004184082437 | W10: =V10 -> 0.0004184082437 | X10: =SQRT(I10)*SQRT(H10^2+(J10^2)/12) -> 0.4573883709 | Y10: =RdsonTop*X10^2 -> 0.001840996272 | Z10: 0.01684609969 | AA10: 0 | AB10: 0.02126751518 | AC10: 0.03997080009 | AD10: =SQRT(1-I10)*SQRT(H10^2+(J10^2)/12) -> 0.9808577074 | AE10: =RdsonBot*AD10^2 -> 0.008177695658 | AF10: 0.02354751518 | AG10: 0.03178239031 | AH10: 0 | AI10: 0 | AJ10: 0 | AK10: 0.084 | AL10: 0.252 | AM10: 0.2230543767 | AN10: =SUM(AK10:AL10) -> 0.336 | AO10: 1.012848706 | AP10: 0.475 | AQ10: =AP10/(AP10+AO10) -> 0.3192528906 | AR10: 2.198394005 | AS10: =AG10*ThetaJaBot -> 1.748031467 | AU10: =AQ10*100 -> 31.92528906
A11: Vin | B11: =Vin -> 28 | C11: V | D11: Vin | G11: 2 | H11: 0.19 | I11: 0.178649828 | J11: 3.735405494 | K11: 2.057702747 | L11: -1.677702747 | M11: 28 | N11: =SQRT(H11^2+(J11^2)/12) -> 1.094929762 | O11: 0.003597648699 | P11: 0.6 | Q11: 0.6035976487 | R11: 1.078318684 | S11: 0.001162771184 | T11: 0.001162771184 | U11: =SQRT(I11)*SQRT(H11^2+(J11^2)/12) -> 0.4627938317 | V11: 0.0004283562614 | W11: =V11 -> 0.0004283562614 | X11: =SQRT(I11)*SQRT(H11^2+(J11^2)/12) -> 0.4627938317 | Y11: 0.00188476755 | Z11: 0.01766518396 | AA11: 0 | AB11: 0.02013243296 | AC11: 0.03969884555 | AD11: =SQRT(1-I11)*SQRT(H11^2+(J11^2)/12) -> 0.9923170123 | AE11: 0.00836989095 | AF11: 0.02469243296 | AG11: 0.03312331639 | AH11: 0 | AI11: 0 | AJ11: 0 | AK11: 0.084 | AL11: 0.252 | AM11: 0.2230543767 | AN11: =SUM(AK11:AL11) -> 0.336 | AO11: 1.014010938 | AP11: 0.95 | AQ11: =AP11/(AP11+AO11) -> 0.4837040271 | AR11: 2.183436505 | AS11: =AG11*ThetaJaBot -> 1.821782402 | AU11: =AQ11*100 -> 48.37040271 | BC11: 250kHz / 12-5V / 30A | BD11: 90 | BE11: 90 | BF11: 90 | BG11: =250000*(12-Vdd)*BF11/1000000000+((250000*BF9/1000000000*Vdd)*2.5/(2*4)) -> 0.142265625 | BH11: 11.38125 | BI11: 14.2265625 | BJ11: 17.071875 | BK11: 19.9171875 | BL11: 22.7625 | BM11: 25.6078125 | BN11: 2.8453125 | BO11: 4.26796875 | BP11: 5.690625 | BQ11: 7.11328125
